Workbook

Sheet 使い方
A1: シグナビ（ファイル名：RTC-Okasan-1.xlsm）の起動方法とマクロなどの使い方・機能を説明します。
A2: なお、ここに記載されていないか説明がないシートやボタンはトレイドエイドの統合システムでのみ使うものです。
A5: １．起動
A6: （１）岡三ＲＳＳを起動し、ログインします。
A7: （２）シグナビを開きます。なお、ＲＳＳの関数はシグナビを初めて開いたときに、シグナビ利用者によって所定のマクロを起動することで適切なセルに書き込まれます。
A8: （３）ＲＳＳからの配信が始まると自動的に感知してデータの更新を行います。ブックが開いている間は四本値データのみならず、すべての配信データを監視しています。
A9: （４）ＲＳＳが接続状態で配信が始まっているにもかかわらず、四本値が更新されない場合は、ワークシート「ＲＴＣ」の「RSS 読み込み」や「５分足四本値再読み込み」ボタンをクリックしてみてください。
A10: （５）それでも動かない場合は、「数式」⇒「計算方法の設定」⇒「自動」や同じく「再計算実行」を行ってみてください。
A11: （６）以上を行ってもダメなときは、ＲＳＳの再起動、シグナビの再起動などをお試しください。
A12: （７）ＲＳＳの最終的なトラブル解決は岡三オンライン証券へ依頼してください。
A14: ２．ワークシート「Menu」
B17: ワークシート「ＲＴＣ」へ移動します。
B20: 当日のリアルタイムデータを表示するための準備をします。寄付き後でもセットアップできます。１日１回のみです。
B23: 当日のデータを保存します。大引け後に行います。１日１回のみです。
B26: 週の初めに行います。１週間に１回のみです。
B29: シグナビを終了します。
B32: 寄り前の準備を同じ日に複数回クリックした場合、ワークシート「リアルタイム更新データ」に当日レコードが複数こ作成されます。これを削除するためにクリックします。
A35: ３．ワークシート「ＲＴＣ」
B38: ５分足チャートに表示する価格帯を拡大縮小することができます。
B40: ５分足チャートに現在の気配値を表示します。通常、寄り前に使用します。
B42: ５分足チャートにワークシート「ＦＢ監視」のセルＢ４３のＣＭＥ終値を表示します。通常、寄り前に使用します。
B45: ５分足チャートで使う売買シグナルやテクニカル指標のマーカーや線の凡例を表示しません。
B47: ５分足チャートで使う売買シグナルやテクニカル指標のマーカーや線の凡例を表示します。
B50: ＲＳＳから配信されるデータを使って、シグナビのデータを更新するマクロを稼働します。
B52: ＲＳＳから配信される四本値データをワークシート「ＲＴＣ５分足データ」のＢ４０３～Ｆ４０３以降に表示します。
B55: ワークシート「ＲＴＣ」を全画面表示します。解除するにはキーボードの「Ｅｓｃ」を押下します。
B57: ＦＢの売買シグナル発動を再現し、発動していれば再表示します。ただし、複数回発動している場合は、完全には復元できません。
B60: 日足チャートに表示する日数を変更します。最低数は２０日間です。
B62: 週足チャートに表示する週数を変更します。最低数は２０日間です。
B64: インターネットからダウンロードした際に、数式にＲＳＳのプログラムが保管されていた場所へのパスが付加されることがあるので、これを消去します。ただし、うまく消去できない場合もあるので、その場合は「岡三RSS」でブック全体を検索して、手動で余分な表示を削除する必要があります。
A68: ４．ワークシート「ＲＴＣ５分足データ」
B72: ワークシート「FB監視」のC4~D69のデータを取り込んで、５分足チャートに表示できるようにします。
B76: 当日データを表示するセルに残っている前日データをデリートします。
B80: 当日の５分足四本値をRSSから読み込んで、当日データを表示するセルに書き込みます。
B85: 当日の５分足四本値をRSSから読み込んで、DA403～DG481に書き込みます。
A93: ５．ワークシート「FB監視」
B95: C4~D69のデータを降順に並べ替えます。
B97: OGPの売買シグナル発動となる価格範囲を表示します。データはU～Z列に表示されます。手法名がU1～Z1に表示され、数字が１の場合はシグナルが発動します。
A100: ６．ワークシート「MP」
B102: 前日５分足データからマーケットプロファイルを作ります。
B104: 同じくmodeを計算して、セルを緑色にします。
B107: 同じくValueAreaを計算し、セルを黄色にします。
A110: ７．ワークシート「mado」 | B110: 一番近い窓のデータを黄色のセルに入力すると５分足チャートに表示されます。
B112: 窓上限１ | D112: 窓下限１
B113: 窓上限２ | D113: 窓下限２
B114: 窓上限３ | D114: 窓下限３
A117: ８．ワークシート「週足」
B120: 週足四本値の１つのレコードを一番上に追加します。通常は月曜日の週替わりの際に作成しておきます。
B124: 週の途中で四本値などを更新します。
B129: 当日のデータで四本値を更新します。
B133: 週足データの一番上のレコードを削除します。
B137: 日足の全データから週足ファイルを作ります。
A141: ９．ワークシート「更新数式」 | B141: ワークシート「リアルタイム更新データ」のテクニカル指標の計算をするための数式が保管されています。
A143: １０．システムメッセージ
B144: ①大引け処理時の実行時エラー１００４
B145: エクセルの設定で、インターネットなどからダウンロードしたファイルを開ける際、保護モードを使う設定になっている場合に発生する事があります。
B146: 対策としては、保護モードを使わない設定にするか、ダウンロードした後、ファイル名を変えて一旦保存し、改めて正規の名前に変更します。
B147: ②起動時のリンクの編集
B148: Sim.xlsmが「エラー:ソースが見つかりません」と言うエラーが発生しますが、このファイルはトレイドエイドの処理にのみ使うもので、リンクを設定する必要はありません。
B149: エラーはそのままにしておいても問題ありません。
DR407: 23550 | DS407: 23570 | DT407: 23550 | DU407: 23550 | DV407: 964
DR408: 23550 | DS408: 23550 | DT408: 23530 | DU408: 23540 | DV408: 406
DR409: 23540 | DS409: 23550 | DT409: 23530 | DU409: 23550 | DV409: 472
DR410: 23540 | DS410: 23550 | DT410: 23510 | DU410: 23530 | DV410: 1202
DR411: 23520 | DS411: 23570 | DT411: 23520 | DU411: 23540 | DV411: 1169
DR412: 23540 | DS412: 23540 | DT412: 23490 | DU412: 23520 | DV412: 1401
DR413: 23520 | DS413: 23530 | DT413: 23490 | DU413: 23500 | DV413: 1624
DR414: 23500 | DS414: 23540 | DT414: 23500 | DU414: 23520 | DV414: 1338
DR415: 23520 | DS415: 23520 | DT415: 23470 | DU415: 23490 | DV415: 1740
DR416: 23490 | DS416: 23510 | DT416: 23480 | DU416: 23510 | DV416: 860
DR417: 23510 | DS417: 23520 | DT417: 23490 | DU417: 23490 | DV417: 1028
DR418: 23490 | DS418: 23500 | DT418: 23480 | DU418: 23500 | DV418: 512
DR419: 23490 | DS419: 23500 | DT419: 23480 | DU419: 23500 | DV419: 546
DR420: 23500 | DS420: 23520 | DT420: 23490 | DU420: 23490 | DV420: 769
DR421: 23500 | DS421: 23530 | DT421: 23500 | DU421: 23520 | DV421: 775
DR422: 23530 | DS422: 23530 | DT422: 23500 | DU422: 23500 | DV422: 903
DR423: 23500 | DS423: 23500 | DT423: 23460 | DU423: 23470 | DV423: 1063
DR424: 23470 | DS424: 23490 | DT424: 23460 | DU424: 23480 | DV424: 476
DR425: 23480 | DS425: 23510 | DT425: 23480 | DU425: 23510 | DV425: 663
DR426: 23510 | DS426: 23510 | DT426: 23500 | DU426: 23500 | DV426: 753
DR427: 23500 | DS427: 23510 | DT427: 23490 | DU427: 23510 | DV427: 250
DR428: 23510 | DS428: 23570 | DT428: 23510 | DU428: 23530 | DV428: 1300
DR429: 23530 | DS429: 23530 | DT429: 23500 | DU429: 23500 | DV429: 1126
DR430: 23500 | DS430: 23500 | DT430: 23450 | DU430: 23460 | DV430: 1552
DR431: 23460 | DS431: 23490 | DT431: 23450 | DU431: 23490 | DV431: 1172
DR432: 23480 | DS432: 23480 | DT432: 23440 | DU432: 23450 | DV432: 2332
DR433: 23450 | DS433: 23470 | DT433: 23450 | DU433: 23460 | DV433: 756
DR434: 23460 | DS434: 23490 | DT434: 23450 | DU434: 23490 | DV434: 1211
DR435: 23490 | DS435: 23520 | DT435: 23490 | DU435: 23510 | DV435: 1113
DR436: 23510 | DS436: 23550 | DT436: 23510 | DU436: 23550 | DV436: 1430
DR437: 23540 | DS437: 23580 | DT437: 23540 | DU437: 23570 | DV437: 1228
DR438: 23580 | DS438: 23590 | DT438: 23570 | DU438: 23570 | DV438: 608
DR439: 23570 | DS439: 23600 | DT439: 23560 | DU439: 23590 | DV439: 900
DR440: 23590 | DS440: 23590 | DT440: 23580 | DU440: 23580 | DV440: 539
DR441: 23580 | DS441: 23580 | DT441: 23560 | DU441: 23560 | DV441: 535
DR442: 23560 | DS442: 23560 | DT442: 23550 | DU442: 23550 | DV442: 136
DR443: 23560 | DS443: 23560 | DT443: 23540 | DU443: 23550 | DV443: 324
DR444: 23550 | DS444: 23550 | DT444: 23530 | DU444: 23530 | DV444: 421
DR445: 23540 | DS445: 23540 | DT445: 23540 | DU445: 23540 | DV445: 208
DR446: 23540 | DS446: 23540 | DT446: 23530 | DU446: 23530 | DV446: 50
DR447: 23540 | DS447: 23540 | DT447: 23510 | DU447: 23510 | DV447: 400
DR448: 23510 | DS448: 23530 | DT448: 23500 | DU448: 23520 | DV448: 189
DR449: 23530 | DS449: 23530 | DT449: 23530 | DU449: 23530 | DV449: 134
DR450: 23540 | DS450: 23560 | DT450: 23540 | DU450: 23560 | DV450: 518
DR451: 23560 | DS451: 23560 | DT451: 23540 | DU451: 23540 | DV451: 436
DR452: 23540 | DS452: 23550 | DT452: 23510 | DU452: 23520 | DV452: 561
DR453: 23520 | DS453: 23550 | DT453: 23500 | DU453: 23500 | DV453: 784
DR454: 23500 | DS454: 23510 | DT454: 23490 | DU454: 23500 | DV454: 1004
DR455: 23510 | DS455: 23510 | DT455: 23490 | DU455: 23500 | DV455: 383
DR456: 23510 | DS456: 23510 | DT456: 23490 | DU456: 23510 | DV456: 456
DR457: 23510 | DS457: 23520 | DT457: 23500 | DU457: 23500 | DV457: 375
DR458: 23510 | DS458: 23530 | DT458: 23510 | DU458: 23520 | DV458: 448
DR459: 23520 | DS459: 23520 | DT459: 23510 | DU459: 23510 | DV459: 169
DR460: 23500 | DS460: 23510 | DT460: 23500 | DU460: 23500 | DV460: 439
DR461: 23500 | DS461: 23500 | DT461: 23490 | DU461: 23500 | DV461: 427
DR462: 23490 | DS462: 23490 | DT462: 23460 | DU462: 23460 | DV462: 585
DR463: 23470 | DS463: 23490 | DT463: 23450 | DU463: 23480 | DV463: 641
DR464: 23470 | DS464: 23510 | DT464: 23470 | DU464: 23510 | DV464: 364
DR465: 23510 | DS465: 23510 | DT465: 23490 | DU465: 23490 | DV465: 428
DR466: 23500 | DS466: 23500 | DT466: 23490 | DU466: 23490 | DV466: 221
DR467: 23490 | DS467: 23490 | DT467: 23470 | DU467: 23490 | DV467: 421
DR468: 23480 | DS468: 23490 | DT468: 23480 | DU468: 23490 | DV468: 254
DR469: 23490 | DS469: 23490 | DT469: 23460 | DU469: 23480 | DV469: 611
DR470: 23480 | DS470: 23490 | DT470: 23470 | DU470: 23490 | DV470: 262
DR471: 23490 | DS471: 23500 | DT471: 23490 | DU471: 23490 | DV471: 324
DR472: 23500 | DS472: 23510 | DT472: 23490 | DU472: 23490 | DV472: 795
DR473: 23500 | DS473: 23500 | DT473: 23490 | DU473: 23490 | DV473: 225
DR474: 23500 | DS474: 23510 | DT474: 23500 | DU474: 23500 | DV474: 354
DR475: 23510 | DS475: 23520 | DT475: 23490 | DU475: 23500 | DV475: 499
DR476: 23500 | DS476: 23500 | DT476: 23490 | DU476: 23500 | DV476: 331
DR477: 23500 | DS477: 23520 | DT477: 23500 | DU477: 23510 | DV477: 294
DR478: 23510 | DS478: 23520 | DT478: 23500 | DU478: 23510 | DV478: 744
DR479: 23510 | DS479: 23510 | DT479: 23480 | DU479: 23480 | DV479: 647
DR480: 23480 | DS480: 23480 | DT480: 23450 | DU480: 23450 | DV480: 1425
DR481: 23450 | DS481: 23500 | DT481: 23440 | DU481: 23490 | DV481: 1847
DR482: 23490 | DS482: 23520 | DT482: 23480 | DU482: 23480 | DV482: 2745
DR483: 23480 | DS483: 23490 | DT483: 23480 | DU483: 23490 | DV483: 1121
DR484: 23490 | DS484: 23490 | DT484: 23490 | DU484: 23490 | DV484: 0
DR485: 23470 | DS485: 23470 | DT485: 23470 | DU485: 23470 | DV485: 1714
DR486: 23490 | DS486: 23510 | DT486: 23490 | DU486: 23510 | DV486: 645
DR487: 23510 | DS487: 23510 | DT487: 23510 | DU487: 23510 | DV487: 107
DR488: 23500 | DS488: 23500 | DT488: 23490 | DU488: 23490 | DV488: 498
DR489: 23500 | DS489: 23510 | DT489: 23490 | DU489: 23510 | DV489: 127
DR490: 23500 | DS490: 23500 | DT490: 23490 | DU490: 23500 | DV490: 98
DR491: 23500 | DS491: 23500 | DT491: 23470 | DU491: 23470 | DV491: 487
DR492: 23470 | DS492: 23470 | DT492: 23450 | DU492: 23460 | DV492: 144
DR493: 23460 | DS493: 23460 | DT493: 23440 | DU493: 23450 | DV493: 223
DR494: 23450 | DS494: 23450 | DT494: 23430 | DU494: 23430 | DV494: 202
DR495: 23440 | DS495: 23460 | DT495: 23440 | DU495: 23440 | DV495: 305
DR496: 23440 | DS496: 23450 | DT496: 23440 | DU496: 23450 | DV496: 178
DR497: 23440 | DS497: 23450 | DT497: 23440 | DU497: 23440 | DV497: 155
DR498: 23430 | DS498: 23450 | DT498: 23430 | DU498: 23440 | DV498: 260
DR499: 23440 | DS499: 23440 | DT499: 23430 | DU499: 23430 | DV499: 89
DR500: 23440 | DS500: 23440 | DT500: 23440 | DU500: 23440 | DV500: 87
DR501: 23450 | DS501: 23450 | DT501: 23440 | DU501: 23450 | DV501: 289
DR502: 23450 | DS502: 23460 | DT502: 23450 | DU502: 23450 | DV502: 100
DR503: 23450 | DS503: 23460 | DT503: 23450 | DU503: 23450 | DV503: 98
DR504: 23460 | DS504: 23460 | DT504: 23450 | DU504: 23460 | DV504: 169
DR505: 23470 | DS505: 23470 | DT505: 23440 | DU505: 23450 | DV505: 150
DR506: 23440 | DS506: 23450 | DT506: 23440 | DU506: 23450 | DV506: 122
DR507: 23450 | DS507: 23450 | DT507: 23450 | DU507: 23450 | DV507: 133
DR508: 23440 | DS508: 23460 | DT508: 23440 | DU508: 23450 | DV508: 43
DR509: 23440 | DS509: 23450 | DT509: 23440 | DU509: 23450 | DV509: 122
DR510: 23450 | DS510: 23450 | DT510: 23450 | DU510: 23450 | DV510: 133
DR511: 23440 | DS511: 23440 | DT511: 23440 | DU511: 23440 | DV511: 1
DV512: 100
DV513: 98
DV514: 169
DV515: 150
DV516: 122
DV517: 35

Sheet Menu
G1: シグナビ
G4: ■メインメニュー■
G26: データベース状況 | J26: 登録件数 | L26: =COUNTA(リアルタイム更新データ!A:A)-1 -> 299
J27: 最新データ日付 | L27: =リアルタイム更新データ!A2 -> 2022-11-02
G28: ＲＳＳ使用意思確認 | J28: OK

Sheet ＲＴＣ
A1: 売買シグナル強度 | B1: GUR/GDR | C1: BAG | D1: IRB | E1: 30MRBO | F1: 120MRBO | G1: ギャップ幅 | H1: OBQ | I1: WOBQ | J1: TOBQ | K1: =ＲＴＣ５分足データ!KD9 -> 短期上下端 | L1: =ＲＴＣ５分足データ!MI9 -> 中期上下端 | M1: =ＲＴＣ５分足データ!ON9 -> 長期上下端 | R1: 週足チャート | S1: 日足チャート | T1: ５分足チャート | X1: 現在位置 | Y1: 修正位置 | Z1: ナベアツ売買シグナル発動条件設定 | AL1: on
A2: 売り | B2: =FB監視!I49 -> 0 | C2: =FB監視!N90 -> 0 | D2: =FB監視!I75 -> 2 | E2: =L104+J124 -> 0 | F2: =L161 -> 0 | G2: =FB監視!P5 -> -90 | H2: =MIN(IF(ＲＴＣ５分足データ!DD403:DD481>=0,ＲＴＣ５分足データ!DD403:DD481,"")) -> 0 | I2: =MIN(IF(ＲＴＣ５分足データ!DE403:DE481>=0,ＲＴＣ５分足データ!DE403:DE481,"")) -> 8 | J2: =MIN(IF(ＲＴＣ５分足データ!DF403:DF481>=0,ＲＴＣ５分足データ!DF403:DF481,"")) -> 6 | K2: =IF(X2<>0,OFFSET(ＲＴＣ５分足データ!KD401,MATCH($X$2,ＲＴＣ５分足データ!$DO$402:$DO$481,0),0),"") -> 41.25 | L2: =IF(X2<>0,OFFSET(ＲＴＣ５分足データ!MI401,MATCH($X$2,ＲＴＣ５分足データ!$DO$402:$DO$481,0),0),"") -> 75.17391304 | M2: =IF(X2<>0,OFFSET(ＲＴＣ５分足データ!ON401,MATCH($X$2,ＲＴＣ５分足データ!$DO$402:$DO$481,0),0),"") -> -46.27388189 | R2: 表示週数 | S2: 表示日数 | T2: 最大値 | U2: 最小値 | V2: チャート範囲自動調整 | X2: =ＲＴＣ５分足データ!DP400 -> 481 | Y2: 444 | AA2: 買い | AB2: 売り | AC2: =(T7-"9:00:00") -> 44866.625 | AD2: =HOUR(AC2) -> 15 | AE2: =MINUTE(AC2) -> 0 | AF2: =AD2*60+AE2 -> 900 | AG2: =A5/AF2 -> 31.94222222 | AL2: off
A3: 買い | B3: =FB監視!N49 -> 0 | C3: =FB監視!I90 -> 0 | D3: =FB監視!N75 -> 0 | E3: =M104+K124 -> 0 | F3: =M143 -> 0 | H3: =MIN(IF(ＲＴＣ５分足データ!DA403:DA481>=0,ＲＴＣ５分足データ!DA403:DA481,"")) -> 6 | I3: =MIN(IF(ＲＴＣ５分足データ!DB403:DB481>=0,ＲＴＣ５分足データ!DB403:DB481,"")) -> 14 | J3: =MIN(IF(ＲＴＣ５分足データ!DC403:DC481>=0,ＲＴＣ５分足データ!DC403:DC481,"")) -> 23 | R3: 20 | S3: 20 | T3: 27800 | U3: 27400 | V3: on | Z3: 連続足本数 | AA3: 4 | AB3: 4
A4: 当日出来高 | B4: 同一時間帯前日出来高 | C4: 同一時間帯出来高前日比 | D4: 今日の値幅 | E4: 直近5日間平均値幅 | F4: 高値切り上げ | G4: 安値切り下げ | H4: 高値切り上げ継続時間 | I4: 安値切り下げ継続時間 | J4: span model 並び | K4: span model ブルベア転換 | L4: 遅行スパン ブルベア転換 | M4: 5MBB幅 | N4: 5MBB幅 拡大率 | O4: 5MBB ブレイク | Z4: 転換・基準線並び | AA4: 1 | AB4: 1
A5: =SUM(ＲＴＣ５分足データ!DV403:DV481) -> 28748 | B5: 23291 | C5: 0.8255978704 | D5: =FB監視!P6 -> 140 | E5: =リアルタイム更新データ!AD3 -> 186.6666667 | F5: 0 | G5: 0 | H5: 0 | I5: 0 | J5: =IF(X2<>0,OFFSET(ＲＴＣ５分足データ!CL401,MATCH($X$2,ＲＴＣ５分足データ!$DO$402:$DO$481,0),0),"") -> S | K5: =IF(X2<>0,OFFSET(ＲＴＣ５分足データ!CM401,MATCH($X$2,ＲＴＣ５分足データ!$DO$402:$DO$481,0),0),"") ->  | L5: =IF(X2<>0,OFFSET(ＲＴＣ５分足データ!CN401,MATCH($X$2,ＲＴＣ５分足データ!$DO$402:$DO$481,0),0),"") -> N | M5: =IF(X2<>0,OFFSET(ＲＴＣ５分足データ!DG401,MATCH($X$2,ＲＴＣ５分足データ!$DO$402:$DO$481,0),0),"") -> 0.1267972384 | N5: =IF(X2<>0,OFFSET(ＲＴＣ５分足データ!DH401,MATCH($X$2,ＲＴＣ５分足データ!$DO$402:$DO$481,0),0),"") -> 1 | O5: =IF(X2<>0,OFFSET(ＲＴＣ５分足データ!DI401,MATCH($X$2,ＲＴＣ５分足データ!$DO$402:$DO$481,0),0),"") -> 
R7: =TODAY() -> 2022-11-02 | T7: =R7 -> 44867 | U7: =NOW() -> 44867.64913
R8: 到達所要時間（分） | S8: 売り | T8: 気配値 | U8: 買い | V8: 到達所要時間（分）
R9: =IF($A$5>0,SUM(S9:S16)/$AG$2,0) -> 33.9049673 | S9: =FB監視!O21 -> 123 | T9: =FB監視!P21 -> 27710
R10: =IF($A$5>0,SUM(S10:S16)/$AG$2,0) -> 30.05426464 | S10: =FB監視!O22 -> 238 | T10: =FB監視!P22 -> 27700
R11: =IF($A$5>0,SUM(S11:S16)/$AG$2,0) -> 22.60331153 | S11: =FB監視!O23 -> 212 | T11: =FB監視!P23 -> 27690
R12: =IF($A$5>0,SUM(S12:S16)/$AG$2,0) -> 15.96632809 | S12: =FB監視!O24 -> 153 | T12: =FB監視!P24 -> 27680
R13: =IF($A$5>0,SUM(S13:S16)/$AG$2,0) -> 11.17642966 | S13: =FB監視!O25 -> 149 | T13: =FB監視!P25 -> 27670
R14: =IF($A$5>0,SUM(S14:S16)/$AG$2,0) -> 6.51175734 | S14: =FB監視!O26 -> 99 | T14: =FB監視!P26 -> 27660
R15: =IF($A$5>0,SUM(S15:S16)/$AG$2,0) -> 3.412411298 | S15: =FB監視!O27 -> 81 | T15: =FB監視!P27 -> 27650
R16: =IF($A$5>0,SUM(S16)/$AG$2,0) -> 0.8765827188 | S16: =FB監視!O28 -> 28 | T16: =FB監視!P28 -> 27640
S17: =FB監視!O29 -> 0 | T17: =FB監視!P29 -> 27630 | U17: =FB監視!Q29 -> 171 | V17: =IF($A$5>0,U17/$AG$2,0) -> 5.35341589
T18: =FB監視!P30 -> 27620 | U18: =FB監視!Q30 -> 158 | V18: =IF($A$5>0,SUM(U17:U18)/$AG$2,0) -> 10.29984695
T19: =FB監視!P31 -> 27610 | U19: =FB監視!Q31 -> 188 | V19: =IF($A$5>0,SUM(U17:U19)/$AG$2,0) -> 16.18547377
T20: =FB監視!P32 -> 27600 | U20: =FB監視!Q32 -> 130 | V20: =IF($A$5>0,SUM(U17:U20)/$AG$2,0) -> 20.25532211
T21: =FB監視!P33 -> 27590 | U21: =FB監視!Q33 -> 112 | V21: =IF($A$5>0,SUM(U17:U21)/$AG$2,0) -> 23.76165298
T22: =FB監視!P34 -> 27580 | U22: =FB監視!Q34 -> 132 | V22: =IF($A$5>0,SUM(U17:U22)/$AG$2,0) -> 27.89411437
T23: =FB監視!P35 -> 27570 | U23: =FB監視!Q35 -> 104 | V23: =IF($A$5>0,SUM(U17:U23)/$AG$2,0) -> 31.14999304
T24: =FB監視!P36 -> 27560 | U24: =FB監視!Q36 -> 113 | V24: =IF($A$5>0,SUM(U17:U24)/$AG$2,0) -> 34.68763044
P29: =IFERROR([2]!FBOARD("N225","202212","気配値6"),0) -> 27630
C43: フィボナッチ計算機
C44: 高値 | D44: 24450
C45: 安値 | D45: 22200
C46: -38.2% or +61.8% | D46: =D44-(D44-D45)*0.382 -> 23590.5
C47: ±50% | D47: =D44-(D44-D45)*0.5 -> 23325
C48: -61.8% or +38.2% | D48: =D44-(D44-D45)*0.618 -> 23059.5
C49: 1.382 | D49: =(D44-D45)*1.382+D44 -> 27559.5
C50: 1.5
C51: 1.618
A89: 30MRBO Ｇap-upパターン | D89: 1 | E89: 2 | F89: 3 | G89: 4 | H89: 5 | I89: 6 | J89: 7 | K89: 8 | L89: short | M89: long
A90: ギャップ値幅 | C90: =FB監視!$P$5 -> -90 | D90: =IF(C90>=0,1,0) -> 0 | E90: =IF(C90>=0,1,0) -> 0 | F90: =IF(C90>=50,1,0) -> 0 | G90: =IF(C90>=0,1,0) -> 0 | H90: =IF(C90>=0,1,0) -> 0 | I90: =IF(C90>=0,1,0) -> 0 | J90: =IF(C90>=0,1,0) -> 0 | K90: =IF(C90>=0,1,0) -> 0
A91: 前日レンジブレイク | C91: =IF(FB監視!$P$38>FB監視!$B$9,"H",IF(FB監視!$P$38<FB監視!$B$10,"L","I")) -> I | E91: =IF(C91="H",1,0) -> 0 | F91: =IF(C91="H",1,0) -> 0 | G91: =IF(C91="I",1,0) -> 1 | H91: =IF(C91="H",1,0) -> 0 | I91: =IF(C91="I",1,0) -> 1 | J91: =IF(C91="H",1,0) -> 0 | K91: =IF(C91="H",1,0) -> 0
A92: Ｐ～ | C92: =IF(FB監視!$P$38>=FB監視!$B$15,"Y","N") -> N | D92: =IF(FB監視!B5<>"",IF(C92="Y",1,0),0) -> 0
A93: Ｂ１～Ｐ | C93: =IF(AND(FB監視!$P$38>=FB監視!$B$16,FB監視!$P$38<=FB監視!$B$15),"Y","N") -> Y | E93: =IF(FB監視!B5<>"",IF(C93="Y",1,0),0) -> 1 | G93: =IF(FB監視!B5<>"",IF(C93="Y",1,0),0) -> 1
A94: Ｓ１～ＨＢＯＰ | C94: =IF(AND(FB監視!$P$38>=FB監視!$B$14,FB監視!$P$38<=FB監視!$B$12),"Y","N") -> N | E94: =IF(FB監視!B5<>"",IF(C94="Y",1,0),0) -> 0
A95: Ｐ～Ｓ２ | C95: =IF(AND(FB監視!$P$38>=FB監視!$B$15,FB監視!$P$38<=FB監視!$B$13),"Y","N") -> N | I95: =IF(FB監視!B5<>"",IF(C95="Y",1,0),0) -> 0
A96: Ｓ１～Ｓ２ | C96: =IF(AND(FB監視!$P$38>=FB監視!$B$14,FB監視!$P$38<=FB監視!$B$13),"Y","N") -> N | J96: =IF(FB監視!B5<>"",IF(C96="Y",1,0),0) -> 0
A97: ＨＢＯＰ～ | C97: =IF(FB監視!$P$38>=FB監視!$B$12,"Y","N") -> N | K97: =IF(FB監視!B5<>"",IF(C97="Y",1,0),0) -> 0
A98: 始値～５分 | C98: =IF(FB監視!$B$5<>" ",IF(ＲＴＣ５分足データ!B404<>"",ＲＴＣ５分足データ!$E$403-ＲＴＣ５分足データ!$B$403," "),"") -> -30 | D98: =IF(ＲＴＣ５分足データ!C404<>"",IF(C98<=0,1,0),0) -> 1 | E98: =IF(ＲＴＣ５分足データ!C404<>"",IF(C98>=0,1,0),0) -> 0 | F98: =IF(ＲＴＣ５分足データ!C404<>"",IF(C98>=10,1,0),0) -> 0 | G98: =IF(ＲＴＣ５分足データ!C404<>"",IF(C98>=0,1,0),0) -> 0 | H98: =IF(ＲＴＣ５分足データ!C404<>"",IF(C98<=0,1,0),0) -> 1 | I98: =IF(ＲＴＣ５分足データ!C404<>"",IF(C98<=0,1,0),0) -> 1 | J98: =IF(ＲＴＣ５分足データ!C404<>"",IF(OR(C98>=0,C99>=0,C100>=0,C101>=0),1,0),0) -> 1
A99: 始値～１０分 | C99: =IF(ＲＴＣ５分足データ!C404<>"",ＲＴＣ５分足データ!E404-ＲＴＣ５分足データ!B403,"") -> -30 | I99: =IF(ＲＴＣ５分足データ!C404<>"",IF(OR(C99>=0,C100>=0),1,0),0) -> 0 | J99: =IF(ＲＴＣ５分足データ!C404<>"",IF(OR(C98>=0,C99>=0,C100>=0,C101>=0),1,0),0) -> 1
A100: 始値～１５分 | C100: =IF(ＲＴＣ５分足データ!C405<>"",ＲＴＣ５分足データ!E405-ＲＴＣ５分足データ!B403,"") -> -20 | D100: =IF(ＲＴＣ５分足データ!C405<>"",IF(C100>=0,1,0),0) -> 0 | I100: =IF(ＲＴＣ５分足データ!C405<>"",IF(OR(C99>=0,C100>=0),1,0),0) -> 0 | J100: =IF(ＲＴＣ５分足データ!C405<>"",IF(OR(C98>=0,C99>=0,C100>=0,C101>=0),1,0),0) -> 1
A101: 始値～３０分 | C101: =IF(ＲＴＣ５分足データ!C408<>"",ＲＴＣ５分足データ!E408-ＲＴＣ５分足データ!B403,"") -> 20 | E101: =IF(ＲＴＣ５分足データ!C408<>"",IF(C101<=0,1,0),0) -> 0 | F101: =IF(ＲＴＣ５分足データ!C408<>"",IF(C101<=0,1,0),0) -> 0 | G101: =IF(ＲＴＣ５分足データ!C408<>"",IF(C101<=0,1,0),0) -> 0 | J101: =IF(ＲＴＣ５分足データ!C408<>"",IF(OR(C98>=0,C99>=0,C100>=0,C101>=0),1,0),0) -> 1
A102: 前日本体値幅 | C102: =リアルタイム更新データ!AF3 -> 70 | H102: =IF(C102<=0,1,0) -> 0 | K102: =IF(C102>=0,1,0) -> 1
A103: セットアップ | D103: =IF(SUM(D90,D92,D98,D100)=4,MAX(ＲＴＣ５分足データ!C403:C408),"") ->  | E103: =IF(SUM(E90,E91,E93,E94,E98,E101)=6,MIN(ＲＴＣ５分足データ!D403:D408),"") ->  | F103: =IF(SUM(F90,F91,F98,F101)=4,MIN(ＲＴＣ５分足データ!D403:D408),"") ->  | G103: =IF(SUM(G90,G91,G93,G98,G101)=5,MIN(ＲＴＣ５分足データ!D403:D408),"") ->  | H103: =IF(SUM(H90,H91,H98,H102)=4,MAX(ＲＴＣ５分足データ!C403:C408),"") ->  | I103: =IF(SUM(I90,I91,I95,I98,I99,I100)=6,MAX(ＲＴＣ５分足データ!C403:C408),"") ->  | J103: =IF(SUM(J90,J91,J96,J98,J99,J100,J101)=7,MAX(ＲＴＣ５分足データ!C403:C408),"") ->  | K103: =IF(SUM(K90,K91,K97,K102)=4,MAX(ＲＴＣ５分足データ!C403:C408),"") -> 
A104: シグナル | D104: =IF(AND(D103<>"",MAX(ＲＴＣ５分足データ!$C$409:$C$460)>D103),D103+10,"") ->  | E104: =IF(AND(E103<>"",MIN(ＲＴＣ５分足データ!$D$409:$D$460)<E103),E103-10,"") ->  | F104: =IF(AND(F103<>"",MIN(ＲＴＣ５分足データ!$D$409:$D$460)<F103),F103-10,"") ->  | G104: =IF(AND(G103<>"",MIN(ＲＴＣ５分足データ!$D$409:$D$460)<G103),G103-10,"") ->  | H104: =IF(AND(H103<>"",MAX(ＲＴＣ５分足データ!$C$409:$C$460)>H103),H103+10,"") ->  | I104: =IF(AND(I103<>"",MAX(ＲＴＣ５分足データ!$C$409:$C$460)>I103),I103+10,"") ->  | J104: =IF(AND(J103<>"",MAX(ＲＴＣ５分足データ!$C$409:$C$460)>J103),J103+10,"") ->  | K104: =IF(AND(K103<>"",MAX(ＲＴＣ５分足データ!$C$409:$C$460)>K103),K103+10,"") ->  | L104: =COUNTIF(E104:G104,">0") -> 0 | M104: =COUNTIF(D104,">0")+COUNTIF(H104:K104,">0") -> 0
A106: 30MRBO Ｇap-downパターン | D106: 1 | E106: 2 | F106: 3 | G106: 4 | H106: 5 | I106: 6 | J106: short | K106: long
A107: ギャップ値幅 | C107: =C90 -> -90 | D107: =IF(C107<=0,1,0) -> 1 | E107: =IF(C107<=0,1,0) -> 1 | F107: =IF(C107<=0,1,0) -> 1 | G107: =IF(C107<=0,1,0) -> 1 | H107: =IF(C107<=-10,1,0) -> 1 | I107: =IF(C107<=-10,1,0) -> 1
A108: 前日レンジブレイク | C108: I | I108: =IF(C108="L",1,0) -> 0
A110: Ｂ１～Ｐ | C110: Y | D110: =IF(FB監視!B5<>"",IF(C110="Y",1,0),0) -> 1 | E110: =IF(FB監視!B5<>"",IF(C110="Y",1,0),0) -> 1
A111: Ｓ１～ＨＢＯＰ | C111: N
A112: Ｐ～Ｓ２ | C112: N | I112: =IF(FB監視!B5<>"",IF(C112="Y",1,0),0) -> 0
A115: Ｂ２～Ｂ１ | C115: =IF(AND(FB監視!$P$38>=FB監視!$B$17,FB監視!$P$38<=FB監視!$B$16),"Y","N") -> N | F115: =IF(FB監視!B5<>"",IF(C115="Y",1,0),0) -> 0
A116: ～Ｂ２ | C116: =IF(FB監視!$P$38<=FB監視!$B$17,"Y","N") -> N | G116: =IF(FB監視!B5<>"",IF(C116="Y",1,0),0) -> 0
A117: Ｐ～Ｓ１ | C117: =IF(AND(FB監視!$P$38>=FB監視!$B$15,FB監視!$P$38<=FB監視!$B$14),"Y","N") -> N | H117: =IF(FB監視!B5<>"",IF(C117="Y",1,0),0) -> 0
A118: 始値～５分 | C118: =C98 -> -30 | D118: =IF(ＲＴＣ５分足データ!C404<>"",IF(C118<=-20,1,0),0) -> 1 | E118: =IF(ＲＴＣ５分足データ!C404<>"",IF(C118>=0,1,0),0) -> 0 | F118: =IF(ＲＴＣ５分足データ!C404<>"",IF(C118>=0,1,0),0) -> 0 | H118: =IF(ＲＴＣ５分足データ!C404<>"",IF(C118<=0,1,0),0) -> 1 | I118: =IF(ＲＴＣ５分足データ!C404<>"",IF(C118>=0,1,0),0) -> 0
A119: 始値～１０分 | C119: =C99 -> -30 | E119: =IF(ＲＴＣ５分足データ!C404<>"",IF(C119>=0,1,0),0) -> 0 | F119: =IF(ＲＴＣ５分足データ!C404<>"",IF(C119<=0,1,0),0) -> 1 | I119: =IF(ＲＴＣ５分足データ!C404<>"",IF(C119>=0,1,0),0) -> 0
A120: 始値～１５分 | C120: =C100 -> -20 | E120: =IF(ＲＴＣ５分足データ!C405<>"",IF(C120<=0,1,0),0) -> 1 | G120: =IF(ＲＴＣ５分足データ!C405<>"",IF(C120<=-10,1,0),0) -> 1 | I120: =IF(ＲＴＣ５分足データ!C405<>"",IF(C120>=0,1,0),0) -> 0
A121: 始値～３０分 | C121: =C101 -> 20
A122: 前日本体値幅 | C122: =C102 -> 70
A123: セットアップ | D123: =IF(SUM(D107,D110,D118)=3,MIN(ＲＴＣ５分足データ!D403:D408),"") -> 27550 | E123: =IF(SUM(E107,E110,E118,E119,E120)=5,MIN(ＲＴＣ５分足データ!D403:D408),"") ->  | F123: =IF(SUM(F107,F115,F118,F119)=4,MIN(ＲＴＣ５分足データ!D403:D408),"") ->  | G123: =IF(SUM(G107,G116,G120)=6,MIN(ＲＴＣ５分足データ!D403:D408),"") ->  | H123: =IF(SUM(H107,H117,H118)=6,MIN(ＲＴＣ５分足データ!D403:D408),"") ->  | I123: =IF(SUM(I107,I108,I112,I118,I119,I120)=6,MAX(ＲＴＣ５分足データ!C403:C408),"") -> 
A124: シグナル | D124: =IF(AND(D123<>"",MIN(ＲＴＣ５分足データ!$D$409:$D$460)<D123),D123-10,"") ->  | E124: =IF(AND(E123<>"",MIN(ＲＴＣ５分足データ!$D$409:$D$460)<E123),E123-10,"") ->  | F124: =IF(AND(F123<>"",MIN(ＲＴＣ５分足データ!$D$409:$D$460)<F123),F123-10,"") ->  | G124: =IF(AND(G123<>"",MIN(ＲＴＣ５分足データ!$D$409:$D$460)<G123),G123-10,"") ->  | H124: =IF(AND(H123<>"",MIN(ＲＴＣ５分足データ!$D$409:$D$460)<H123),H123-10,"") ->  | I124: =IF(AND(I123<>"",MAX(ＲＴＣ５分足データ!$C$409:$C$460)>I123),I123+10,"") ->  | J124: =COUNTIF(D124:H124,">0") -> 0 | K124: =COUNTIF(I124,">0") -> 0
A126: 120MRBO Ｇap-upパターン | D126: 1 | E126: 2 | F126: 3 | G126: 4 | H126: 5 | I126: 6 | J126: 7 | K126: 8 | L126: short | M126: long
A127: ギャップ値幅 | C127: =FB監視!$P$5 -> -90 | D127: =IF(C127>=0,1,0) -> 0 | E127: =IF(C127>=0,1,0) -> 0 | F127: =IF(C127>=50,1,0) -> 0 | G127: =IF(C127>=0,1,0) -> 0 | H127: =IF(C127>=0,1,0) -> 0 | I127: =IF(C127>=0,1,0) -> 0 | J127: =IF(C127>=0,1,0) -> 0 | K127: =IF(C127>=0,1,0) -> 0
A128: 前日レンジブレイク | C128: =IF(FB監視!$P$38>FB監視!$B$9,"H",IF(FB監視!$P$38<FB監視!$B$10,"L","I")) -> I | D128: =IF($C$128="I",1,0) -> 1 | E128: =IF($C$128="I",1,0) -> 1 | F128: =IF($C$128="I",1,0) -> 1 | G128: =IF($C$128="I",1,0) -> 1 | H128: =IF($C$128="H",1,0) -> 0 | I128: =IF($C$128="H",1,0) -> 0 | J128: =IF($C$128="H",1,0) -> 0 | K128: =IF($C$128="H",1,0) -> 0
A129: Ｐ～ | C129: =IF(FB監視!$P$38>=FB監視!$B$15,"Y","N") -> N | E129: =IF($C$129="Y",1,0) -> 0 | G129: =IF($C$129="Y",1,0) -> 0 | H129: =IF($C$129="Y",1,0) -> 0
A130: Ｓ２～ | C130: =IF(FB監視!$P$38>=FB監視!$B$13,"Y","N") -> N | K130: =IF($C$130="Y",1,0) -> 0
A131: 始値～５分 | C131: =C98 -> -30 | E131: =IF(ＲＴＣ５分足データ!C404<>"",IF(C131<=-10,1,0),0) -> 1
A133: 始値～１５分 | C133: =C100 -> -20 | H133: =IF(AND(ＲＴＣ５分足データ!C405<>"",C133>=0),1,0) -> 0
A134: 始値～３０分 | C134: =C101 -> 20
A135: 始値～６０分 | C135: =IF(ＲＴＣ５分足データ!C414<>"",ＲＴＣ５分足データ!E414-ＲＴＣ５分足データ!B403,"") -> 50 | F135: =IF(ＲＴＣ５分足データ!C414<>"",IF(C135>=0,1,0),0) -> 1 | H135: =IF(AND(ＲＴＣ５分足データ!C414<>"",C135>=0),1,0) -> 1
A136: 始値～９０分 | C136: =IF(ＲＴＣ５分足データ!C420<>"",ＲＴＣ５分足データ!E420-ＲＴＣ５分足データ!B403,"") -> 20 | D136: =IF(ＲＴＣ５分足データ!C420<>"",IF($C$136<=0,1,0),0) -> 0
A137: 始値～１２０分 | C137: =IF(ＲＴＣ５分足データ!C427<>"",ＲＴＣ５分足データ!E427-ＲＴＣ５分足データ!B403,"") -> 70 | D137: =IF(ＲＴＣ５分足データ!C427<>"",IF($C$137>=0,1,0),0) -> 1 | F137: =IF(ＲＴＣ５分足データ!C427<>"",IF(C137>=0,1,0),0) -> 1
A138: ＲＩＳ５日 | C138: =FB監視!P12 -> 58.62068966 | J138: =IF(C138<=70,1,0) -> 1
A139: ＲＳＩ９日 | C139: =FB監視!P13 -> 67.77777778 | J139: =IF(C139<=60,1,0) -> 0
A140: 前日ギャップ値幅 | C140: =リアルタイム更新データ!AE3 -> 70 | G140: =IF(C140>=0,1,0) -> 1 | I140: =IF(C140>=0,1,0) -> 1
A141: 前日本体値幅 | C141: =C122 -> 70 | G141: =IF(C141<=0,1,0) -> 0 | I141: =IF(C141<=0,1,0) -> 0
A142: セットアップ | D142: =IF(ＲＴＣ５分足データ!B427<>"",IF(SUM(D127,D128,D136,D137)=4,MAX(ＲＴＣ５分足データ!C403:C427),""),"") ->  | E142: =IF(ＲＴＣ５分足データ!B427<>"",IF(SUM(E127,E128,E129,E131)=4,MAX(ＲＴＣ５分足データ!C403:C427),""),"") ->  | F142: =IF(ＲＴＣ５分足データ!B427<>"",IF(SUM(F127,F128,F135,F137)=4,MAX(ＲＴＣ５分足データ!C403:C427),""),"") ->  | G142: =IF(ＲＴＣ５分足データ!B427<>"",IF(SUM(G127,G128,G129,G140,G141)=5,MAX(ＲＴＣ５分足データ!C403:C427),""),"") ->  | H142: =IF(ＲＴＣ５分足データ!B427<>"",IF(OR(H133=1,H135=1),IF(SUM(H127,H128,H129)=3,MAX(ＲＴＣ５分足データ!C403:C427),""),""),"") ->  | I142: =IF(ＲＴＣ５分足データ!B427<>"",IF(SUM(I127,I128,I140,I141)=4,MAX(ＲＴＣ５分足データ!C403:C427),""),"") ->  | J142: =IF(ＲＴＣ５分足データ!B427<>"",IF(OR(J138=1,J139=1),IF(SUM(J127,J128)=2,MAX(ＲＴＣ５分足データ!C403:C427),""),""),"") ->  | K142: =IF(ＲＴＣ５分足データ!B427<>"",IF(SUM(K127,K128,K130)=3,MAX(ＲＴＣ５分足データ!C403:C427),""),"") -> 
A143: シグナル | D143: =IF(AND(D142<>"",MAX(ＲＴＣ５分足データ!$C$428:$C$460)>D142),D142+10,"") ->  | E143: =IF(AND(E142<>"",MAX(ＲＴＣ５分足データ!$C$428:$C$460)>E142),E142+10,"") ->  | F143: =IF(AND(F142<>"",MAX(ＲＴＣ５分足データ!$C$428:$C$460)>F142),F142+10,"") ->  | G143: =IF(AND(G142<>"",MAX(ＲＴＣ５分足データ!$C$428:$C$460)>G142),G142+10,"") ->  | H143: =IF(AND(H142<>"",MAX(ＲＴＣ５分足データ!$C$428:$C$460)>H142),H142+10,"") ->  | I143: =IF(AND(I142<>"",MAX(ＲＴＣ５分足データ!$C$428:$C$460)>I142),I142+10,"") ->  | J143: =IF(AND(J142<>"",MAX(ＲＴＣ５分足データ!$C$428:$C$460)>J142),J142+10,"") ->  | K143: =IF(AND(K142<>"",MAX(ＲＴＣ５分足データ!$C$428:$C$460)>K142),K142+10,"") ->  | M143: =COUNTIF(D143:K143,">0") -> 0
A145: 120MRBO Ｇap-downパターン | D145: 1 | E145: 2 | F145: 3 | G145: 4 | H145: 5 | I145: 6 | J145: 7 | K145: 8
A146: ギャップ値幅 | C146: =C127 -> -90 | D146: =IF(C146<=0,1,0) -> 1 | E146: =IF(C146<=0,1,0) -> 1 | F146: =IF(C146<=0,1,0) -> 1 | G146: =IF(C146<=0,1,0) -> 1 | H146: =IF(C146<=-10,1,0) -> 1 | I146: =IF(D146<=-10,1,0) -> 0 | J146: =IF(E146<=-10,1,0) -> 0 | K146: =IF(F146<=-10,1,0) -> 0
A147: 前日レンジブレイク | C147: =C128 -> I | D147: =IF($C$128="I",1,0) -> 1 | E147: =IF($C$128="I",1,0) -> 1 | F147: =IF($C$128="I",1,0) -> 1 | G147: =IF($C$128="I",1,0) -> 1 | H147: =IF($C$128="L",1,0) -> 0 | I147: =IF($C$128="L",1,0) -> 0 | J147: =IF($C$128="L",1,0) -> 0 | K147: =IF($C$128="L",1,0) -> 0
A148: ～Ｐ | C148: =IF(FB監視!$P$38<=FB監視!$B$15,"Y","N") -> Y | H148: =IF(FB監視!$B$5<>"",IF($C$148="Y",1,0),0) -> 1
A149: Ｂ１～Ｐ | C149: =C110 -> Y | D149: =IF(FB監視!$B$5<>"",IF(C149="Y",1,0),0) -> 1
A150: Ｂ１～Ｓ１ | C150: =IF(AND(FB監視!$P$38<=FB監視!$B$14,FB監視!$P$38>=FB監視!$B16),"Y","N") -> Y | E150: =IF(FB監視!$B$5<>"",IF(C150="Y",1,0),0) -> 1 | F150: =IF(FB監視!$B$5<>"",IF($C$150="Y",1,0),0) -> 1 | G150: =IF(FB監視!$B$5<>"",IF($C$150="Y",1,0),0) -> 1
A151: ＬＢＯＰ～Ｂ１ | C151: =IF(AND(FB監視!$P$38<=FB監視!$B$16,FB監視!$P$38>=FB監視!$B18),"Y","N") -> N | I151: =IF(FB監視!$B$5<>"",IF($C$151="Y",1,0),0) -> 0 | K151: =IF(FB監視!$B$5<>"",IF($C$151="Y",1,0),0) -> 0
A152: ＬＢＯＰ～Ｐ | C152: =IF(AND(FB監視!$P$38<=FB監視!$B$15,FB監視!$P$38>=FB監視!$B18),"Y","N") -> Y | J152: =IF(FB監視!$B$5<>"",IF($C$152="Y",1,0),0) -> 1
A153: 始値～５分 | C153: =C136 -> 20 | H153: =IF(ＲＴＣ５分足データ!C404<>"",IF(C153<=0,1,0),0) -> 0
A154: 始値～３０分 | C154: =C137 -> 70 | H154: =IF(ＲＴＣ５分足データ!C408<>"",IF(C154>=0,1,0),0) -> 1
A155: 始値～６０分 | C155: =C138 -> 58.62068966 | D155: =IF(ＲＴＣ５分足データ!C414<>"",IF($C$155<=0,1,0),0) -> 0
A156: 始値～９０分 | C156: =C139 -> 67.77777778 | K156: =IF(ＲＴＣ５分足データ!C420<>"",IF($C$156>=0,1,0),0) -> 1
A157: 前日本体値幅 | C157: =C141 -> 70 | E157: =IF(C157<=0,1,0) -> 0
A158: ＲＩＳ５日 | C158: =C138 -> 58.62068966 | F158: =IF(AND(C158>=0,C158<=40),1,IF(AND(C158>=50,C158<=70),1,0)) -> 1 | I158: =IF(AND(C158>=0,C158<=30),1,IF(AND(C158>=60,C158<=70),1,IF(AND(C158>=80,C158<=100),1,0))) -> 0
A159: ＲＳＩ９日 | C159: =C139 -> 67.77777778 | G159: =IF(AND(C159>=0,C159<=30),1,IF(AND(C159>=40,C159<=50),1,IF(AND(C159>=60,C159<=70),1,0))) -> 1 | J159: =IF(AND(C159>=0,C159<=40),1,0) -> 0
A160: セットアップ | D160: =IF(ＲＴＣ５分足データ!$B$427<>"",IF(SUM(D146,D147,,D155,D149)=4,MIN(ＲＴＣ５分足データ!$D$403:$D$414),""),"") ->  | E160: =IF(ＲＴＣ５分足データ!$B$427<>"",IF(SUM(E146,E147,E150,E157)=4,MIN(ＲＴＣ５分足データ!$D$403:$D$427),""),"") ->  | F160: =IF(ＲＴＣ５分足データ!$B$427<>"",IF(SUM(F146,F147,F150,F158)=4,MIN(ＲＴＣ５分足データ!$D$403:$D$427),""),"") -> 27550 | G160: =IF(ＲＴＣ５分足データ!$B$427<>"",IF(SUM(G146,G147,G150,G159)=4,MIN(ＲＴＣ５分足データ!$D$403:$D$427),""),"") -> 27550 | H160: =IF(ＲＴＣ５分足データ!$B$427<>"",IF(SUM(H146,H147,H148,H153,H154)=5,MIN(ＲＴＣ５分足データ!$D$403:$D$427),""),"") ->  | I160: =IF(ＲＴＣ５分足データ!$B$427<>"",IF(SUM(I146,I147,I151,I158)=4,MIN(ＲＴＣ５分足データ!$D$403:$D$427),""),"") ->  | J160: =IF(ＲＴＣ５分足データ!$B$427<>"",IF(SUM(J146,J147,J152,J159)=4,MIN(ＲＴＣ５分足データ!$D$403:$D$427),""),"") ->  | K160: =IF(ＲＴＣ５分足データ!$B$427<>"",IF(SUM(K146,K147,K151,K156)=4,MIN(ＲＴＣ５分足データ!$D$403:$D$427),""),"") -> 
A161: シグナル | D161: =IF(AND(D160<>"",MIN(ＲＴＣ５分足データ!$D$428:$D$460)<D160),D160-10,"") ->  | E161: =IF(AND(E160<>"",MIN(ＲＴＣ５分足データ!$D$428:$D$460)<E160),E160-10,"") ->  | F161: =IF(AND(F160<>"",MIN(ＲＴＣ５分足データ!$D$428:$D$460)<F160),F160-10,"") ->  | G161: =IF(AND(G160<>"",MIN(ＲＴＣ５分足データ!$D$428:$D$460)<G160),G160-10,"") ->  | H161: =IF(AND(H160<>"",MIN(ＲＴＣ５分足データ!$D$428:$D$460)<H160),H160-10,"") ->  | I161: =IF(AND(I160<>"",MIN(ＲＴＣ５分足データ!$D$428:$D$460)<I160),I160-10,"") ->  | J161: =IF(AND(J160<>"",MIN(ＲＴＣ５分足データ!$D$428:$D$460)<J160),J160-10,"") ->  | K161: =IF(AND(K160<>"",MIN(ＲＴＣ５分足データ!$D$428:$D$460)<K160),K160-10,"") ->  | L161: =COUNTIF(D161:K161,">0") -> 0

Sheet FB監視
A1: =TODAY() -> 2022-11-02 | U1: search price | V1: gap | W1: GUR | X1: GDR | Y1: BGU | Z1: BGD
U2: 20050 | V2: 1000 | W2: 1 | X2: 0 | Y2: 0 | Z2: 0
A3: 支持・抵抗線 | E3: ＦＢ監視（夕場なし） | U3: 20040 | V3: 990 | W3: 1 | X3: 0 | Y3: 0 | Z3: 0
A4: 現在値 | B4: =IFERROR(IF(P39<>"F",IF(B5>0,[2]!FQUOTE("N225","202212","現在値"),P37),P37),P37) -> 27640 | C4: 年初来高値 | D4: 29370 | E4: 日付 | F4: 高値 | G4: ＦＢ売り対象値 | H4: サイン発動 | I4: Ｏｏｐｓ | J4: 日付 | K4: 安値 | L4: ＦＢ買い対象値 | M4: サイン発動 | N4: Ｏｏｐｓ | O4: 現在値－始値 | P4: =IF(B5<>" ",B4-B5,"") -> 40 | U4: 20030 | V4: 980 | W4: 1 | X4: 0 | Y4: 0 | Z4: 0
A5: 当日始値 | B5: =IFERROR(IF(P39<>"F",[2]!FQUOTE("N225","202212","日中始値"),P37),P37) -> 27600 | C5: 40日高値 | D5: 28450 | E5: =リアルタイム更新データ!A3 -> 2022-11-01 | F5: =リアルタイム更新データ!E3 -> 27700 | G5: X | I5: =IF(G5="X",IF($B$5<>" ",IF(AND($B$5>F5,$B$4<F5),"X",""),""),"") ->  | J5: =E5 -> 2022-11-01 | K5: =リアルタイム更新データ!F3 -> 27520 | L5: X | N5: =IF(L5="X",IF(AND($B$5<K5,$B$4>K5),"X",""),"") ->  | O5: ギャップ値幅 | P5: =IF(B5<>" ",リアルタイム更新データ!AE2,B4-B11) -> -90 | U5: 20020 | V5: 970 | W5: 1 | X5: 0 | Y5: 0 | Z5: 0
A6: 当日高値 | B6: =IFERROR(IF(P39<>"F",[2]!FQUOTE("N225","202212","日中高値"),P37),P37) -> 27690 | C6: 日足＋３σ | D6: 28380.92618 | E6: =リアルタイム更新データ!A3 -> 2022-11-01 | F6: =リアルタイム更新データ!E3 -> 27700 | G6: =IF(F6>=F5,"X","") -> X | I6: =IF(G6="X",IF($B$5<>" ",IF(AND($B$5>F6,$B$4<F6),"X",""),""),"") ->  | J6: =E6 -> 2022-11-01 | K6: =リアルタイム更新データ!F3 -> 27520 | L6: =IF(K6<=K5,"X","") -> X | N6: =IF(L6="X",IF(AND($B$5<K6,$B$4>K6),"X",""),"") ->  | O6: 当日最大値幅 | P6: =IF(B5<>" ",B6-B7," ") -> 140 | U6: 20010 | V6: 960 | W6: 1 | X6: 0 | Y6: 0 | Z6: 0
A7: 当日安値 | B7: =IFERROR(IF(P39<>"F",[2]!FQUOTE("N225","202212","日中安値"),P37),P37) -> 27550 | C7: ＯＰ価格５ | D7: 28000 | E7: =リアルタイム更新データ!A4 -> 2022-10-31 | F7: =リアルタイム更新データ!E4 -> 27590 | G7: =IF(F7>=MAX(F$5:F6),"X","") ->  | I7: =IF(G7="X",IF($B$5<>" ",IF(AND($B$5>F7,$B$4<F7),"X",""),""),"") ->  | J7: 2022-10-31 | K7: =リアルタイム更新データ!F4 -> 27400 | L7: =IF(K7<=MIN(K$5:K6),"X","") -> X | O7: 前日比 | P7: =IFERROR([2]!FQUOTE("N225","202212","前日比"),0) -> -50 | U7: 20000 | V7: 950 | W7: 1 | X7: 0 | Y7: 0 | Z7: 0
A8: 前日始値 | B8: =リアルタイム更新データ!D3 -> 27620 | C8: HBOP | D8: 27933.33333 | E8: =リアルタイム更新データ!A5 -> 2022-10-28 | F8: =リアルタイム更新データ!E5 -> 27270 | G8: =IF(F8>=MAX(F$5:F7),"X","") ->  | I8: =IF(G8="X",IF($B$5<>" ",IF(AND($B$5>F8,$B$4<F8),"X",""),""),"") ->  | J8: 2022-10-28 | K8: =リアルタイム更新データ!F5 -> 26960 | L8: =IF(K8<=MIN(K$5:K7),"X","") -> X | O8: 225現物 | P8: 9537.23 | U8: 19990 | V8: 940 | W8: 1 | X8: 0 | Y8: 0 | Z8: 0
A9: 前日高値 | B9: =リアルタイム更新データ!E3 -> 27700 | C9: 日足＋２σ | D9: 27891.01745 | E9: =リアルタイム更新データ!A6 -> 2022-10-27 | F9: =リアルタイム更新データ!E6 -> 27440 | G9: =IF(F9>=MAX(F$5:F8),"X","") ->  | I9: =IF(G9="X",IF($B$5<>" ",IF(AND($B$5>F9,$B$4<F9),"X",""),""),"") ->  | J9: 2022-10-27 | K9: =リアルタイム更新データ!F6 -> 27270 | L9: =IF(K9<=MIN(K$5:K8),"X","") ->  | O9: 225先物－現物 | P9: =IF(B4<>" ",IF(P8<>" ",B4-P8,""),"") -> 18102.77 | U9: 19980 | V9: 930 | W9: 1 | X9: 0 | Y9: 0 | Z9: 0
A10: 前日安値 | B10: =リアルタイム更新データ!F3 -> 27520 | C10: ＯＰ価格３ | D10: 27750 | E10: =リアルタイム更新データ!A7 -> 2022-10-26 | F10: =リアルタイム更新データ!E7 -> 27590 | G10: =IF(F10>=MAX(F$5:F9),"X","") ->  | I10: =IF(G10="X",IF($B$5<>" ",IF(AND($B$5>F10,$B$4<F10),"X",""),""),"") ->  | J10: 2022-10-26 | K10: =リアルタイム更新データ!F7 -> 27400 | L10: =IF(K10<=MIN(K$5:K9),"X","") ->  | O10: 出来高 | P10: =IFERROR([2]!FQUOTE("N225","202212","出来高"),0) -> 47706 | Q10: =P10/リアルタイム更新データ!BU2 -> 0.825301448 | U10: 19970 | V10: 920 | W10: 1 | X10: 0 | Y10: 0 | Z10: 0
A11: 前日終値 | B11: =リアルタイム更新データ!G3 -> 27690 | C11: 日足先行スパン２ | D11: 27710 | E11: =リアルタイム更新データ!A8 -> 2022-10-25 | F11: =リアルタイム更新データ!E8 -> 27330 | G11: =IF(F11>=MAX(F$5:F10),"X","") ->  | J11: 2022-10-25 | K11: =リアルタイム更新データ!F8 -> 27080 | L11: =IF(K11<=MIN(K$5:K10),"X","") ->  | O11: 売買代金 | P11: =IFERROR([2]!FQUOTE("N225","202212","売買代金"),"") -> 1318506882 | U11: 19960 | V11: 910 | W11: 1 | X11: 0 | Y11: 0 | Z11: 0
A12: HBOP | B12: =リアルタイム更新データ!BA3 -> 27933.33333 | C12: 20日高値 | D12: 27700 | E12: =リアルタイム更新データ!A9 -> 2022-10-24 | F12: =リアルタイム更新データ!E9 -> 27310 | G12: =IF(F12>=MAX(F$5:F11),"X","") ->  | J12: 2022-10-24 | K12: =リアルタイム更新データ!F9 -> 26960 | L12: =IF(K12<=MIN(K$5:K11),"X","") -> X | O12: RSI 5日 | P12: =リアルタイム更新データ!BJ2 -> 58.62068966 | U12: 19950 | V12: 900 | W12: 1 | X12: 0 | Y12: 0 | Z12: 0
A13: S2 | B13: =リアルタイム更新データ!BB3 -> 27816.66667 | C13: 5日高値 | D13: 27700 | E13: =リアルタイム更新データ!A10 -> 2022-10-21 | F13: =リアルタイム更新データ!E10 -> 26980 | G13: =IF(F13>=MAX(F$5:F12),"X","") ->  | J13: 2022-10-21 | K13: =リアルタイム更新データ!F10 -> 26870 | L13: =IF(K13<=MIN(K$5:K12),"X","") -> X | O13: RSI 9日 | P13: =リアルタイム更新データ!BK2 -> 67.77777778 | U13: 19940 | V13: 890 | W13: 1 | X13: 0 | Y13: 0 | Z13: 0
A14: S1 | B14: =リアルタイム更新データ!BC3 -> 27753.33333 | C14: 前日高値 | D14: 27700 | E14: =リアルタイム更新データ!A11 -> 2022-10-20 | F14: =リアルタイム更新データ!E11 -> 27090 | G14: =IF(F14>=MAX(F$5:F13),"X","") ->  | J14: 2022-10-20 | K14: =リアルタイム更新データ!F11 -> 26860 | L14: =IF(K14<=MIN(K$5:K13),"X","") -> X | O14: ５ＥＭＡ | P14: =リアルタイム更新データ!BX2 -> 27493.49522 | U14: 19930 | V14: 880 | W14: 1 | X14: 0 | Y14: 0 | Z14: 0
A15: Pivot | B15: =リアルタイム更新データ!BD3 -> 27636.66667 | C15: 週足先行スパン２ | D15: 27645 | E15: =リアルタイム更新データ!A12 -> 2022-10-19 | F15: =リアルタイム更新データ!E12 -> 27370 | G15: =IF(F15>=MAX(F$5:F14),"X","") ->  | J15: 2022-10-19 | K15: =リアルタイム更新データ!F12 -> 27180 | L15: =IF(K15<=MIN(K$5:K14),"X","") ->  | O15: ２０ＥＭＡ | P15: =リアルタイム更新データ!BY2 -> 27191.02796 | U15: 19920 | V15: 870 | W15: 1 | X15: 0 | Y15: 0 | Z15: 0
A16: B1 | B16: =リアルタイム更新データ!BE3 -> 27573.33333 | C16: Pivot | D16: 27636.66667 | E16: =リアルタイム更新データ!A13 -> 2022-10-18 | F16: =リアルタイム更新データ!E13 -> 27270 | G16: =IF(F16>=MAX(F$5:F15),"X","") ->  | J16: 2022-10-18 | K16: =リアルタイム更新データ!F13 -> 26910 | L16: =IF(K16<=MIN(K$5:K15),"X","") ->  | O16: ＭＡＣＤ | P16: =リアルタイム更新データ!BZ2 -> 302.4672598 | U16: 19910 | V16: 860 | W16: 1 | X16: 0 | Y16: 0 | Z16: 0
A17: B2 | B17: =リアルタイム更新データ!BF3 -> 27456.66667 | C17: 75日ＭＡ | D17: 27549.86667 | E17: =リアルタイム更新データ!A14 -> 2022-10-17 | F17: =リアルタイム更新データ!E14 -> 26820 | G17: =IF(F17>=MAX(F$5:F16),"X","") ->  | J17: 2022-10-17 | K17: =リアルタイム更新データ!F14 -> 26650 | L17: =IF(K17<=MIN(K$5:K16),"X","") -> X | O17: シグナル | P17: =リアルタイム更新データ!CA2 -> 154.7410089 | U17: 19900 | V17: 850 | W17: 1 | X17: 0 | Y17: 0 | Z17: 0
A18: LBOP | B18: =リアルタイム更新データ!BG3 -> 27393.33333 | C18: 前日安値 | D18: 27520 | E18: =リアルタイム更新データ!A15 -> 2022-10-14 | F18: =リアルタイム更新データ!E15 -> 27180 | G18: =IF(F18>=MAX(F$5:F17),"X","") ->  | J18: 2022-10-14 | K18: =リアルタイム更新データ!F15 -> 26720 | L18: =IF(K18<=MIN(K$5:K17),"X","") ->  | O18: ＯＳＣＩ | P18: =リアルタイム更新データ!CB2 -> 147.726251 | U18: 19890 | V18: 840 | W18: 1 | X18: 0 | Y18: 0 | Z18: 0
A19: 日足＋３σ | B19: =リアルタイム更新データ!CC2 -> 28399.48469 | C19: ５２週ＭＡ | D19: 27500.56604 | E19: =リアルタイム更新データ!A16 -> 2022-10-13 | F19: =リアルタイム更新データ!E16 -> 26430 | G19: =IF(F19>=MAX(F$5:F18),"X","") ->  | J19: 2022-10-13 | K19: =リアルタイム更新データ!F16 -> 26210 | L19: =IF(K19<=MIN(K$5:K18),"X","") -> X | O19: CME-前日終値 | P19: =#REF!-B11 ->  | T19: 27250 | U19: 19880 | V19: 830 | W19: 1 | X19: 0 | Y19: 0 | Z19: 0
A20: 日足＋２σ | B20: =リアルタイム更新データ!CD2 -> 27904.5898 | C20: ＯＰ価格１ | D20: 27500 | E20: =リアルタイム更新データ!A17 -> 2022-10-12 | F20: =リアルタイム更新データ!E17 -> 26500 | G20: =IF(F20>=MAX(F$5:F19),"X","") ->  | I20: =IF(G20="X",IF($B$5<>" ",IF(AND($B$5>F20,$B$4<F20),"X",""),""),"") ->  | J20: 2022-10-12 | K20: =リアルタイム更新データ!F17 -> 26300 | L20: =IF(K20<=MIN(K$5:K19),"X","") ->  | O20: 売気配値 | Q20: 買気配値 | T20: 27170 | U20: 19870 | V20: 820 | W20: 1 | X20: 0 | Y20: 0 | Z20: 0
A21: 日足＋１σ | B21: =リアルタイム更新データ!CE2 -> 27409.6949 | C21: 日足先行スパン１ | D21: 27492.5 | E21: =リアルタイム更新データ!A18 -> 2022-10-11 | F21: =リアルタイム更新データ!E18 -> 26720 | G21: =IF(F21>=MAX(F$5:F20),"X","") ->  | J21: 2022-10-11 | K21: =リアルタイム更新データ!F18 -> 26360 | L21: =IF(K21<=MIN(K$5:K20),"X","") ->  | O21: =IFERROR([2]!FBOARD("N225","202212","売気配数量-2"),0) -> 123 | P21: =IFERROR([2]!FBOARD("N225","202212","気配値-2"),0) -> 27710 | T21: 27161.13208 | U21: 19860 | V21: 810 | W21: 1 | X21: 0 | Y21: 0 | Z21: 0
A22: 日足－１σ | B22: =リアルタイム更新データ!CG2 -> 26419.9051 | C22: VA下限 | D22: 27480 | E22: =リアルタイム更新データ!A19 -> 2022-10-07 | F22: =リアルタイム更新データ!E19 -> 27190 | G22: =IF(F22>=MAX(F$5:F21),"X","") ->  | J22: 2022-10-07 | K22: =リアルタイム更新データ!F19 -> 26910 | L22: =IF(K22<=MIN(K$5:K21),"X","") ->  | O22: =IFERROR([2]!FBOARD("N225","202212","売気配数量-1"),0) -> 238 | P22: =IFERROR([2]!FBOARD("N225","202212","気配値-1"),0) -> 27700 | T22: 27075.39728 | U22: 19850 | V22: 800 | W22: 1 | X22: 0 | Y22: 0 | Z22: 0
A23: 日足－２σ | B23: =リアルタイム更新データ!CH2 -> 25925.0102 | C23: 5日MA | D23: 27420 | E23: =リアルタイム更新データ!A20 -> 2022-10-06 | F23: =リアルタイム更新データ!E20 -> 27400 | G23: =IF(F23>=MAX(F$5:F22),"X","") ->  | J23: 2022-10-06 | K23: =リアルタイム更新データ!F20 -> 27100 | L23: =IF(K23<=MIN(K$5:K22),"X","") ->  | O23: =IFERROR([2]!FBOARD("N225","202212","売気配数量0"),0) -> 212 | P23: =IFERROR([2]!FBOARD("N225","202212","気配値0"),0) -> 27690 | T23: 27073.33333 | U23: 19840 | V23: 790 | W23: 1 | X23: 0 | Y23: 0 | Z23: 0
A24: 日足－３σ | B24: =リアルタイム更新データ!CI2 -> 25430.11531 | C24: 日足＋１σ | D24: 27401.10873 | E24: =リアルタイム更新データ!A21 -> 2022-10-05 | F24: =リアルタイム更新データ!E21 -> 27190 | G24: =IF(F24>=MAX(F$5:F23),"X","") ->  | J24: 2022-10-05 | K24: =リアルタイム更新データ!F21 -> 27010 | L24: =IF(K24<=MIN(K$5:K23),"X","") ->  | O24: =IFERROR([2]!FBOARD("N225","202212","売気配数量1"),0) -> 153 | P24: =IFERROR([2]!FBOARD("N225","202212","気配値1"),0) -> 27680 | T24: 27000 | U24: 19830 | V24: 780 | W24: 1 | X24: 0 | Y24: 0 | Z24: 0
A25: 5日高値 | B25: =MAX(リアルタイム更新データ!E3:E7) -> 27700 | C25: 窓上限２ | D25: 27400 | O25: =IFERROR([2]!FBOARD("N225","202212","売気配数量2"),0) -> 149 | P25: =IFERROR([2]!FBOARD("N225","202212","気配値2"),0) -> 27670 | T25: 26990 | U25: 19820 | V25: 770 | W25: 1 | X25: 0 | Y25: 0 | Z25: 0
A26: 20日高値 | B26: =MAX(リアルタイム更新データ!E3:E22) -> 27700 | C26: LBOP | D26: 27393.33333 | O26: =IFERROR([2]!FBOARD("N225","202212","売気配数量3"),0) -> 99 | P26: =IFERROR([2]!FBOARD("N225","202212","気配値3"),0) -> 27660 | T26: 26910 | U26: 19810 | V26: 760 | W26: 1 | X26: 0 | Y26: 0 | Z26: 0
A27: 40日高値 | B27: =リアルタイム更新データ!AK3 -> 28450 | C27: 週足基準線 | D27: 27340 | O27: =IFERROR([2]!FBOARD("N225","202212","売気配数量4"),0) -> 81 | P27: =IFERROR([2]!FBOARD("N225","202212","気配値4"),0) -> 27650 | T27: 26910 | U27: 19800 | V27: 750 | W27: 1 | X27: 0 | Y27: 0 | Z27: 0
A28: 5日安値 | B28: =MIN(リアルタイム更新データ!F3:F7) -> 26960 | C28: １３週ＭＡ | D28: 27310 | O28: =IFERROR([2]!FBOARD("N225","202212","売気配数量5"),0) -> 28 | P28: =IFERROR([2]!FBOARD("N225","202212","気配値5"),0) -> 27640 | T28: 26910 | U28: 19790 | V28: 740 | W28: 1 | X28: 0 | Y28: 0 | Z28: 0
A29: 20日安値 | B29: =MIN(リアルタイム更新データ!F3:F22) -> 26210 | C29: 100日ＭＡ | D29: 27287.4 | O29: =IFERROR([2]!FBOARD("N225","202212","売気配数量6"),0) -> 0 | P29: =IFERROR([2]!FBOARD("N225","202212","気配値6"),0) -> 27630 | Q29: =IFERROR([2]!FBOARD("N225","202212","買気配数量6"),0) -> 171 | T29: 26910 | U29: 19780 | V29: 730 | W29: 1 | X29: 0 | Y29: 0 | Z29: 0
A30: 40日安値 | B30: =リアルタイム更新データ!AL3 -> 25610 | C30: 日足転換線 | D30: 27285 | P30: =IFERROR([2]!FBOARD("N225","202212","気配値7"),0) -> 27620 | Q30: =IFERROR([2]!FBOARD("N225","202212","買気配数量7"),0) -> 158 | T30: 26850 | U30: 19770 | V30: 720 | W30: 1 | X30: 0 | Y30: 0 | Z30: 0
A31: 日足転換線 | B31: =リアルタイム更新データ!AW2 -> 27285 | C31: 窓下限２ | D31: 27270 | P31: =IFERROR([2]!FBOARD("N225","202212","気配値8"),0) -> 27610 | Q31: =IFERROR([2]!FBOARD("N225","202212","買気配数量8"),0) -> 188 | T31: 26784.89592 | U31: 19760 | V31: 710 | W31: 1 | X31: 0 | Y31: 0 | Z31: 0
A32: 日足基準線 | B32: =リアルタイム更新データ!AV2 -> 26655 | C32: ２６週ＭＡ | D32: 27254.44444 | P32: =IFERROR([2]!FBOARD("N225","202212","気配値9"),0) -> 27600 | Q32: =IFERROR([2]!FBOARD("N225","202212","買気配数量9"),0) -> 130 | U32: 19750 | V32: 700 | W32: 1 | X32: 0 | Y32: 0 | Z32: 0
A33: 日足先行スパン１ | B33: =リアルタイム更新データ!AX2 -> 27492.5 | C33: ＯＰ価格２ | D33: 27250 | P33: =IFERROR([2]!FBOARD("N225","202212","気配値10"),0) -> 27590 | Q33: =IFERROR([2]!FBOARD("N225","202212","買気配数量10"),0) -> 112 | U33: 19740 | V33: 690 | W33: 0 | X33: 0 | Y33: 0 | Z33: 0
A34: 日足先行スパン２ | B34: =リアルタイム更新データ!AY2 -> 27710 | C34: CME終値 | D34: 27170 | P34: =IFERROR([2]!FBOARD("N225","202212","気配値11"),0) -> 27580 | Q34: =IFERROR([2]!FBOARD("N225","202212","買気配数量11"),0) -> 132 | U34: 19730 | V34: 680 | W34: 0 | X34: 0 | Y34: 0 | Z34: 0
A35: 5日MA | B35: =IF(B5=" ",AVERAGE(リアルタイム更新データ!G3:G5,B4),リアルタイム更新データ!X2) -> 27438 | C35: 200日ＭＡ | D35: 27136.35 | P35: =IFERROR([2]!FBOARD("N225","202212","気配値12"),0) -> 27570 | Q35: =IFERROR([2]!FBOARD("N225","202212","買気配数量12"),0) -> 104 | U35: 19720 | V35: 670 | W35: 0 | X35: 0 | Y35: 0 | Z35: 0
A36: 25日MA | B36: =IF(B5=" ",AVERAGE(リアルタイム更新データ!G3:G25,B4),リアルタイム更新データ!Y2) -> 26914.8 | C36: 週足転換線 | D36: 27030 | P36: =IFERROR([2]!FBOARD("N225","202212","気配値13"),0) -> 27560 | Q36: =IFERROR([2]!FBOARD("N225","202212","買気配数量13"),0) -> 113 | U36: 19710 | V36: 660 | W36: 0 | X36: 0 | Y36: 0 | Z36: 0
A37: 75日ＭＡ | B37: =IF(B5=" ",AVERAGE(リアルタイム更新データ!G3:G75,B4),リアルタイム更新データ!Z2) -> 27551.06667 | C37: ＯＰ価格４ | D37: 27000 | O37: CME | P37: =IF(O37="気配値",P29,IF(O37="CME",B43,Q37)) -> 27170 | Q37: 18050 | U37: 19700 | V37: 650 | W37: 0 | X37: 0 | Y37: 0 | Z37: 0
A38: 100日ＭＡ | B38: =リアルタイム更新データ!AA2 -> 27288.3 | C38: 5日安値 | D38: 26960 | O38: 暫定始値 | P38: =IF(B5<>0,B5,P37) -> 27600 | U38: 19690 | V38: 640 | W38: 0 | X38: 0 | Y38: 0 | Z38: 0
A39: 200日ＭＡ | B39: =リアルタイム更新データ!AB2 -> 27136.8 | C39: 25日MA | D39: 26911.2 | O39: 強制 | U39: 19680 | V39: 630 | W39: 0 | X39: 0 | Y39: 0 | Z39: 0
A40: CME始値 | C40: 週足先行スパン１ | D40: 26900 | O40: 売買最終日 | P40: =[2]!FQUOTE("N225","202212","現在値時刻") -> 15:15:01 | U40: 19670 | V40: 620 | W40: 0 | X40: 0 | Y40: 0 | Z40: 0
A41: CME高値 | C41: 窓上限１ | D41: 26860 | O41: 残存日数 | P41: =[2]!FQUOTE("N225","202212","残存日数") -> 37 | U41: 19660 | V41: 610 | W41: 0 | X41: 0 | Y41: 0 | Z41: 0
A42: CME安値 | C42: 窓下限１ | D42: 26820 | O42: 清算値 | P42: =[2]!FQUOTE("N225","202212","清算指数") -> 27640 | U42: 19650 | V42: 600 | W42: 0 | X42: 0 | Y42: 0 | Z42: 0
A43: CME終値 | B43: 27170 | C43: 日足基準線 | D43: 26655 | O43: 前ＳＱ | U43: 19640 | V43: 590 | W43: 0 | X43: 0 | Y43: 0 | Z43: 0
A44: 週足転換線 | B44: =週足!AW2 -> 27030 | C44: 窓上限３ | D44: 26650 | O44: 最新日付 | U44: 19630 | V44: 580 | W44: 0 | X44: 0 | Y44: 0 | Z44: 0
A45: 週足基準線 | B45: =週足!AV2 -> 27340 | C45: 窓下限３ | D45: 26430 | O45: リアルタイム | P45: =リアルタイム更新データ!A2 -> 2022-11-02 | U45: 19620 | V45: 570 | W45: 0 | X45: 0 | Y45: 0 | Z45: 0
A46: 週足先行スパン１ | B46: =週足!AX2 -> 26900 | C46: 日足－１σ | D46: 26421.29127 | U46: 19610 | V46: 560 | W46: 0 | X46: 0 | Y46: 0 | Z46: 0
A47: 週足先行スパン２ | B47: =週足!AY2 -> 27645 | C47: 20日安値 | D47: 26210 | U47: 19600 | V47: 550 | W47: 0 | X47: 0 | Y47: 0 | Z47: 0
A48: １３週ＭＡ | B48: =IF(B5=" ",AVERAGE(週足!G3:G6,B4),週足!W2) -> 27262.72727 | C48: 日足－２σ | D48: 25931.38255 | U48: 19590 | V48: 540 | W48: 0 | X48: 0 | Y48: 0 | Z48: 0
A49: ２６週ＭＡ | B49: =IF(B5=" ",AVERAGE(週足!G3:G6,B4),週足!X2) -> 27235.18519 | C49: 40日安値 | D49: 25610 | F49: GUR short | I49: =SUM(I50:I69) -> 0 | K49: ＧＤＲ long | N49: =SUM(N50:N69) -> 0 | U49: 19580 | V49: 530 | W49: 0 | X49: 0 | Y49: 0 | Z49: 0
A50: ５２週ＭＡ | B50: =IF(B5=" ",AVERAGE(週足!G3:G6,B4),週足!Y2) -> 27490.75472 | C50: 日足－３σ | D50: 25441.47382 | F50: 1 | G50: 当日６０円以上のＧＵ、前日７０円以上の窓開けＧＵ、前日の５日ＭＡ乖離率が０～３．５％ | I50: =IF(AND(P38<>" ",P5>=60,リアルタイム更新データ!AE3>=70,リアルタイム更新データ!D3>リアルタイム更新データ!E4,リアルタイム更新データ!CN3>0,リアルタイム更新データ!CN3<0.035),1,0) -> 0 | K50: 1 | L50: 当日ギャップダウン幅が５０円以下、前日窓開けギャップダウン、前々日は２０～２２０円の陰線 | N50: =IF(AND(P38<>" ",P5<=-10,P5>=-50,リアルタイム更新データ!AG2="L",リアルタイム更新データ!AF3<=-20,リアルタイム更新データ!AF3>=-220),1,0) -> 0 | U50: 19570 | V50: 520 | W50: 0 | X50: 0 | Y50: 0 | Z50: 0
A51: 夜場高値 | B51: =[2]!FQUOTE("N225","202212","夜間高値") -> 0 | C51: 年初来安値 | D51: 24550 | F51: 2 | G51: 当日ギャップアップ幅０円以上でＰ以上で寄り付き、前日が前々日の高値ブレイクの寄り付き、前日の５日ＭＡ乖離率が０．６％以上 | I51: =IF(AND(P38<>" ",P5>=0,P38>B15,リアルタイム更新データ!CN3>0.006,リアルタイム更新データ!D3>リアルタイム更新データ!E4),1,0) -> 0 | K51: 2 | L51: 当日０円以下のギャップダウン、前日０円以下の陰線、ＲＳＩ５日５０以下、ＲＳＩ９日６０以下、２５日ＭＡ乖離率が０．７％以上 | N51: =IF(AND(P5<=0,リアルタイム更新データ!AF3<=0,リアルタイム更新データ!BJ2<=50,リアルタイム更新データ!BK2<=60,リアルタイム更新データ!CW2>0.007),1,0) -> 0 | U51: 19560 | V51: 510 | W51: 0 | X51: 0 | Y51: 0 | Z51: 0
A52: 夜場安値 | B52: =[2]!FQUOTE("N225","202212","夜間安値") -> 0 | C52: VA上限 | F52: 3 | G52: 当日ギャップアップ幅が１４０円以上、前日５日ＭＡ乖離率が０．８％以上、前日２５日ＭＡ乖離率が０．７％以上 | I52: =IF(AND(P38<>" ",P5>=140,リアルタイム更新データ!CN3>=0.008,リアルタイム更新データ!CW3>=0.007),1,0) -> 0 | K52: 3 | L52: 当日ギャップダウン幅が３１０円以上、前日ＭＡ並びがＳ | N52: =IF(AND(P38<>" ",P5<=-310,リアルタイム更新データ!AI3="S"),1,0) -> 0 | U52: 19550 | V52: 500 | W52: 0 | X52: 0 | Y52: 0 | Z52: 0
A53: VA上限 | F53: 4 | G53: 当日９０円以上のギャップアップ、当日始値の下２桁が８０円～９０円で、前日５日ＭＡ乖離率が0％以上 | I53: =IF(AND(P38<>" ",P5>=90,RIGHT(P38,2)*1>=80,P38>B14,リアルタイム更新データ!CN3>=0),1,0) -> 0 | K53: 4 | L53: ＧＤ幅０円以上でＰ～Ｓ1間で寄り付き、前日ＧＤで窓開け、前日ＭＡ並びがＳ | N53: =IF(AND(P38<>" ",P5<=0,P38<B14,P38>B15,リアルタイム更新データ!D3<リアルタイム更新データ!F4,リアルタイム更新データ!AI3="S"),1,0) -> 0 | U53: 19540 | V53: 490 | W53: 0 | X53: 0 | Y53: 0 | Z53: 0
A54: VA下限 | B54: =MP!Y2 -> 27480 | F54: 5 | G54: 当日はＧＵ幅１０円以上で前日レンジ内での寄りつき、前日は１５０円以下の陽線、その前２日間は陽線もしくはドウジ線 | I54: =IF(AND(P38<>" ",P38<=B9,P5>0,リアルタイム更新データ!AF3>=0,リアルタイム更新データ!AF3<=150,リアルタイム更新データ!AF4>=0,リアルタイム更新データ!AF5>=0),1,0) -> 0 | K54: 5 | L54: 当日０円以上のＧＤで５日ＭＡをブレイクして、Ｂ１～Ｐの間での寄り付き、前日寄り付きはＩで、ＭＡ並びはＬ | N54: =IF(AND(P38<>" ",B11>リアルタイム更新データ!X3,P38<リアルタイム更新データ!DD2,P38>B16,P38<B15,リアルタイム更新データ!AG3="I",リアルタイム更新データ!AI3="L"),1,0) -> 0 | U54: 19530 | V54: 480 | W54: 0 | X54: 0 | Y54: 0 | Z54: 0
A55: Ｍｏｄｅ | B55: =MP!Y3 -> 27550 | F55: 6 | G55: 当日GU幅２０円以上、当日始値下２けた０～６０、前日ＧＵ窓開け、２０円以上の陰線、ＲＳＩ５日１０以上、５日ＭＡ乖離率－２以上 | I55: =IF(AND(P38<>" ",P5>=20,RIGHT(P38,2)*1<=60,リアルタイム更新データ!AG3="H",リアルタイム更新データ!AF3<=-20,リアルタイム更新データ!BJ3>=10,リアルタイム更新データ!CN3>=-0.02),1,0) -> 0 | K55: 6 | L55: 当日ＧＤ幅が１０～１１０円、前日ＧＤ幅が９０円以上、５日ＭＡ乖離率が２．５％以下、２５日ＭＡ乖離率が１．５％以下 | N55: =IF(AND(P38<>" ",P5<=-10,P5>=-110,リアルタイム更新データ!AE3<=-90,リアルタイム更新データ!CN3<0.025,リアルタイム更新データ!CW3<0.015),1,0) -> 0 | U55: 19520 | V55: 470 | W55: 0 | X55: 0 | Y55: 0 | Z55: 0
A56: 窓上限１ | B56: =mado!E1 -> 26860 | F56: 7 | G56: 当日ＧＵ窓開け、前日ＧＤ窓開け、前日５日ＭＡ乖離率－１．２％以下、前日ＭＡ並びがＳ | I56: =IF(AND(P38<>" ",P38>B9,P38<B9,リアルタイム更新データ!AG3="L",リアルタイム更新データ!CN3<-0.012,リアルタイム更新データ!AI3="S"),1,0) -> 0 | K56: 7 | L56: 当日０円以上のＧＤで基準線をブレイク、前日５日ＭＡかい離率が－０．６％以下、前日ＭＡ並びがL | N56: =IF(AND(P38<>" ",P5<=0,B11>リアルタイム更新データ!AV3,P38<リアルタイム更新データ!CZ2,リアルタイム更新データ!CN3<-0.006,リアルタイム更新データ!AI3="L"),1,0) -> 0 | U56: 19510 | V56: 460 | W56: 0 | X56: 0 | Y56: 0 | Z56: 0
A57: 窓上限２ | B57: =mado!E2 -> 27400 | F57: 8 | G57: 当日窓開けＧＵ，ＨＢＯＰより下で寄りつき、前日ＲＳＩ５日が１７以下、前日２５日ＭＡ乖離率が０％以下 | I57: =IF(AND(P38<>" ",P38>B9,P38<B12,リアルタイム更新データ!BJ3<=17,リアルタイム更新データ!CW3<=0),1,0) -> 0 | K57: 8 | L57: 当日０円以上のＧＤで基準線をブレイク、前日５日ＭＡかい離率が１．５％以上 | N57: =IF(AND(P38<>" ",P5<=0,B11>リアルタイム更新データ!AV3,P38<リアルタイム更新データ!CZ2,リアルタイム更新データ!CN3>0.015),1,0) -> 0 | U57: 19500 | V57: 450 | W57: 0 | X57: 0 | Y57: 0 | Z57: 0
A58: 窓上限３ | B58: =mado!E3 -> 26650 | F58: 9 | G58: 当日ＧＵ２０円以上、前日５日ＭＡ乖離率１．７％以上、２５日ＭＡ乖離率０．５％以上、前日安値は前々日安値より高い | I58: =IF(AND(P38<>" ",P5>=20,リアルタイム更新データ!CN3>0.017,リアルタイム更新データ!CW3>0.005,リアルタイム更新データ!F3>リアルタイム更新データ!F4),1,0) -> 0 | K58: 9 | L58: 当日２６０円までのＧＤで窓開けてＬ～Ｂ２で寄り付き、前日ＧＤ窓開け、０円以上の陰線、ＲＳＩ５日が５７以下、５日ＭＡ乖離率は０．４％以下 | N58: =IF(AND(P5>=-260,P38<B10,P38>B18,P38<B16,リアルタイム更新データ!AG3="L",リアルタイム更新データ!AF3<=0,リアルタイム更新データ!BJ3<57,リアルタイム更新データ!CN3<0.004),1,0) -> 0 | U58: 19490 | V58: 440 | W58: 0 | X58: 0 | Y58: 0 | Z58: 0
A59: 窓下限１ | B59: =mado!G1 -> 26820 | F59: 10 | G59: 当日ギャップアップでピボット以上で寄り付き、前日＋２σ乖離率０．２７％以上 | I59: =IF(AND(P38<>" ",P5>=0,P38>B15,リアルタイム更新データ!DG3>=0.0027),1,0) -> 0 | K59: 10 | L59: 当日０円以上のＧＤ、前日０円以上のＧＤ，終値位置はＬ、ＲＳＩ５日は４０以下、－２σ乖離率－０．２％以下 | N59: =IF(AND(P38<>" ",P5<=0,リアルタイム更新データ!AE3<=0,リアルタイム更新データ!AH3="L",リアルタイム更新データ!BJ3<=40,リアルタイム更新データ!DK3<=-0.002),1,0) -> 0 | U59: 19480 | V59: 430 | W59: 0 | X59: 0 | Y59: 0 | Z59: 0
A60: 窓下限２ | B60: =mado!G2 -> 27270 | F60: 11 | G60: 当日１２０円以上ＧＵ、前日ＲＳＩ５日が９０以上、同ＲＳＩ９日が５０以上、ＭＡ並びがＬ | I60: =IF(AND(P38<>" ",P5>=120,リアルタイム更新データ!BJ3>=90,リアルタイム更新データ!BK3>=50),1,0) -> 0 | K60: 11 | L60: 当日ＧＤ窓開け、前日ＲＳＩ５日が２８以下、同ＲＳＩ９日が２０以下 | N60: =IF(AND(P38<>" ",P38<B10,リアルタイム更新データ!BJ3<=28,リアルタイム更新データ!BK3<=20),1,0) -> 0 | U60: 19470 | V60: 420 | W60: 0 | X60: 0 | Y60: 0 | Z60: 0
A61: 窓下限３ | B61: =mado!G3 -> 26430 | F61: 12 | G61: 当日４０円以上ＧＵ、前日ＲＳＩ５日が６以下 | I61: =IF(AND(P38<>" ",P5>=40,リアルタイム更新データ!BJ3<=6),1,0) -> 0 | K61: 12 | L61: 当日１０円以上ＧＤ、前日は０円以上のＧＵ、ＭＡ並びがＬ、ＲＳＩ５日が７３以上、同ＲＳＩ９日が５５以上 | N61: =IF(AND(P38<>" ",P5<-10,リアルタイム更新データ!AE3>=0,リアルタイム更新データ!AI3="L",リアルタイム更新データ!BJ3>=73,リアルタイム更新データ!BK3>=55),1,0) -> 0 | U61: 19460 | V61: 410 | W61: 0 | X61: 0 | Y61: 0 | Z61: 0
A62: SQ値 | F62: 13 | G62: 当日１０円以上のＧＵでピボット以上で寄り付き，前日ＧＵ窓開け、前日終値でも高値ブレイク | I62: =IF(AND(P38<>" ",P5>=10,P38>B15,リアルタイム更新データ!AG3="H",リアルタイム更新データ!AH3="H"),1,0) -> 0 | K62: 13 | L62: 当日０円以上のＧＤで２００日ＭＡをブレイク、前日は０円以上の陽線、５日ＭＡ乖離率が０％以下 | N62: =IF(AND(P38<>" ",P5<=0,P38<リアルタイム更新データ!DC2,B11>リアルタイム更新データ!AB3,リアルタイム更新データ!AF3>=0,リアルタイム更新データ!CN3<=0),1,0) -> 0 | U62: 19450 | V62: 400 | W62: 0 | X62: 0 | Y62: 0 | Z62: 0
A63: ＯＰ価格１ | B63: =FLOOR(B4,250) -> 27500 | F63: 14 | G63: 当日４０円以上のＧＵでＳ２以下で寄り付き、前日と前々日は０円以上のＧＤで、前日安値は前々日安値を更新、前日ＭＡ並びがＳ | I63: =IF(AND(P38<>" ",P5>=40,P38<B13,リアルタイム更新データ!AE3<=0,リアルタイム更新データ!AE4<=0,リアルタイム更新データ!F3<リアルタイム更新データ!F4,リアルタイム更新データ!AI2="S"),1,0) -> 0 | K63: 14 | L63: 当日ＧＤで＋２σを下放れ | N63: =IF(AND(P38<>" ",P5<=0,リアルタイム更新データ!G3>リアルタイム更新データ!CD3,リアルタイム更新データ!D2<リアルタイム更新データ!DN2),1,0) -> 0 | U63: 19440 | V63: 390 | W63: 0 | X63: 0 | Y63: 0 | Z63: 0
A64: ＯＰ価格２ | B64: =B63-250 -> 27250 | F64: 15 | G64: 当日９０円以上のＧＵで＋２σを上放れ | I64: =IF(AND(P38<>" ",P5>=0,リアルタイム更新データ!G3<リアルタイム更新データ!CD3,リアルタイム更新データ!D2>リアルタイム更新データ!DN2),1,0) -> 0 | K64: 15 | L64: 当日９０円以上のＧＤで－２σを下放れ、前日５日ＭＡ乖離率が－１．２％以下 | N64: =IF(AND(P38<>" ",P5<=-90,リアルタイム更新データ!G3>リアルタイム更新データ!CH3,P38<リアルタイム更新データ!DR2,リアルタイム更新データ!CN3<-0.012),1,0) -> 0 | U64: 19430 | V64: 380 | W64: 0 | X64: 0 | Y64: 0 | Z64: 0
A65: ＯＰ価格３ | B65: =B63+250 -> 27750 | F65: 16 | G65: 当日ＧＵで転換線を上放れ、前日２５日ＭＡ乖離率が２％以下、前日５日ＭＡ乖離率が０．６％以上、ＲＳＩ５日が７５以下 | I65: =IF(AND(P38<>" ",P5>=0,リアルタイム更新データ!G3<リアルタイム更新データ!AW3,リアルタイム更新データ!D2>リアルタイム更新データ!DA2,リアルタイム更新データ!CW3<=0),1,0) -> 0 | K65: 16 | L65: 当日０円以上のＧＤ、前日１０円以上の陰線、５日ＭＡ乖離率が－３％以下、－３σ乖離率が０％以上 | N65: =IF(AND(P38<>" ",P5<=0,リアルタイム更新データ!AF3<0,リアルタイム更新データ!CN3<-0.03,リアルタイム更新データ!DL3>0),1,0) -> 0 | U65: 19420 | V65: 370 | W65: 0 | X65: 0 | Y65: 0 | Z65: 0
A66: ＯＰ価格４ | B66: =B63-500 -> 27000 | F66: 17 | G66: 当日２２０円以上のＧＵで２５日ＭＡを上放れ、ＨＢＯＰ以下で寄り付き | I66: =IF(AND(P38<>" ",P5>=220,P38<B12,リアルタイム更新データ!G3<リアルタイム更新データ!Y3,リアルタイム更新データ!D2>リアルタイム更新データ!DP2),1,0) -> 0 | K66: 17 | L66: 当日９０円以上の窓開けＧＤ、前日は０円以上の陰線、２５日ＭＡ乖離率が－１．９％以下、５日ＭＡ乖離率が－１．３％以下、－３σ乖離率が０％以上 | N66: =IF(AND(P38<>" ",P38<B10,リアルタイム更新データ!X3<リアルタイム更新データ!Y3,リアルタイム更新データ!AW3<リアルタイム更新データ!AV3,リアルタイム更新データ!CW3<-0.025,リアルタイム更新データ!CN3<-0.005,リアルタイム更新データ!DS3>0),1,0) -> 0 | U66: 19410 | V66: 360 | W66: 0 | X66: 0 | Y66: 0 | Z66: 0
A67: ＯＰ価格５ | B67: =B63+500 -> 28000 | F67: 18 | G67: 当日１０円以上のＧＵ，前日窓開けＧＵ，長短ＭＡ並びがＳ、５日ＭＡ乖離率が-１％以上２．３以下、２５日ＭＡ乖離率が-１．３％以下 | I67: =IF(AND(P38<>" ",P5>0,リアルタイム更新データ!AG3="H",リアルタイム更新データ!CN3>-0.01,リアルタイム更新データ!CN3<0.023,リアルタイム更新データ!CW3<-0.013,リアルタイム更新データ!X3<リアルタイム更新データ!Y3),1,0) -> 0 | K67: 18 | L67: 当日０円以上のＧＤで転換線をブレイク、前日５日ＭＡかい離率が－０．７％以下 | N67: =IF(AND(P38<>" ",P5<=0,B11>リアルタイム更新データ!AW3,P38<リアルタイム更新データ!DA2,リアルタイム更新データ!CN3<-0.007),1,0) -> 0 | U67: 19400 | V67: 350 | W67: 0 | X67: 0 | Y67: 0 | Z67: 0
A68: 年初来高値 | B68: =[2]!IDX("N225F1","年初来高値")*1 -> 29370 | F68: 19 | G68: 当日１０円以上のＧＵ，前日窓開けＧＤ、前々日とその前の日は０円以上のＧＤ、前々日は０円以上の陰線 | I68: =IF(AND(P38<>" ",P5>=10,リアルタイム更新データ!AG3="L",リアルタイム更新データ!AE4<=0,リアルタイム更新データ!AE5<=0,リアルタイム更新データ!AF4<=0),1,0) -> 0 | K68: 19 | L68: 当日０円以上のＧＤで先行スパン１をブレイク、前日５日ＭＡかい離率が－１．２％以下 | N68: =IF(AND(P38<>" ",P5<=0,B11>リアルタイム更新データ!AX3,P38<リアルタイム更新データ!AX2,リアルタイム更新データ!CN3<-0.012),1,0) -> 0 | U68: 19390 | V68: 340 | W68: 0 | X68: 0 | Y68: 0 | Z68: 0
A69: 年初来安値 | B69: =[2]!IDX("N225F1","年初来安値")*1 -> 24550 | F69: 20 | G69: 当日ＧＵで－２σをブレイク、前日はＧＤで窓開け、ＭＡ並びがＳ、前々日は０円以上の陰線 | K69: 20 | L69: 当日０円以上のＧＤで先行スパン２をブレイク、前日５日ＭＡかい離率が－１．３％以下 | U69: 19380 | V69: 330 | W69: 0 | X69: 0 | Y69: 0 | Z69: 0
U70: 19370 | V70: 320 | W70: 0 | X70: 0 | Y70: 0 | Z70: 0
U71: 19360 | V71: 310 | W71: 0 | X71: 0 | Y71: 1 | Z71: 0
U72: 19350 | V72: 300 | W72: 0 | X72: 0 | Y72: 1 | Z72: 0
U73: 19340 | V73: 290 | W73: 0 | X73: 0 | Y73: 1 | Z73: 0
U74: 19330 | V74: 280 | W74: 0 | X74: 0 | Y74: 1 | Z74: 0
F75: IRB short | I75: =SUM(I76:I83) -> 2 | K75: IRB long | N75: =SUM(N76:N87) -> 0 | U75: 19320 | V75: 270 | W75: 0 | X75: 0 | Y75: 1 | Z75: 0
F76: 当日ＧＵ窓開け、前日陰線でＧＤ | I76: =IF(AND(リアルタイム更新データ!AE3<0,リアルタイム更新データ!AF3<0,AG2="H "),1,"") ->  | K76: 当日ＧＵで窓開け、ＧＵ幅１４０円以上２１０円以下 | N76: =IF(AND(B5<>" ",P5>=140,P5<=210,リアルタイム更新データ!AG2="H"),1,"") ->  | U76: 19310 | V76: 260 | W76: 0 | X76: 0 | Y76: 1 | Z76: 0
F77: 当日ＧＤでＢ２以下 | I77: =IF(AND(B5<>" ",P5<0,B5<B17),1,"") ->  | K77: 当日ＧＵでＳ２以下 | N77: =IF(AND(B5<>" ",P5>0,B5<=B13),1,"") ->  | U77: 19300 | V77: 250 | W77: 0 | X77: 0 | Y77: 1 | Z77: 0
F78: 当日ＧＤか同値、前日陰線でＧＤ | I78: =IF(AND(B5<>" ",P5<=0,リアルタイム更新データ!AF3<0,リアルタイム更新データ!AE3<0),1,"") ->  | K78: 当日ＧＤで窓開け、ＧＤ幅９０～３００ | N78: =IF(AND(B5<>" ",リアルタイム更新データ!AG2="L",P5<=-90,P5>=-300),1,"") ->  | U78: 19290 | V78: 240 | W78: 0 | X78: 0 | Y78: 1 | Z78: 0
F79: 当日ＧＤ幅９０～３００ | I79: =IF(AND(B5<>" ",P5<=-90,P5>=-300),1,"") -> 1 | K79: 当日ＧＵで窓開け、Ｓ２以下、最初の５分足陰線か同時、最初の１５分足陽線か同時 | N79: =IF(AND(B5<>" ",リアルタイム更新データ!AG2="H",ＲＴＣ５分足データ!E403-ＲＴＣ５分足データ!B403<=0,ＲＴＣ５分足データ!E405-ＲＴＣ５分足データ!B403>=0,ＲＴＣ５分足データ!B407>0),1,"") ->  | U79: 19280 | V79: 230 | W79: 0 | X79: 0 | Y79: 1 | Z79: 0
F80: 当日ＧＤか同値、最初の１５分足陰線か同値 | I80: =IF(AND(B5<>"",P5<=0,ＲＴＣ５分足データ!E405-ＲＴＣ５分足データ!B403<=0),1,"") -> 1 | K80: 当日ＧＤで窓開け、前日窓開けでないＧＵか同値、ドウジ線か陽線 | N80: =IF(AND(B5<>" ",リアルタイム更新データ!AG2="L",リアルタイム更新データ!AE3>=0,リアルタイム更新データ!AF3>=0),1,"") ->  | U80: 19270 | V80: 220 | W80: 0 | X80: 0 | Y80: 0 | Z80: 0
F81: 当日ＧＤか同値、 前日と前々日がＧＤか同値 | I81: =IF(AND(B5<>" ",P5<=0,リアルタイム更新データ!AE3<=0,リアルタイム更新データ!AE4<=0),1,"") ->  | K81: 当日ＧＵか同値、 前日窓開けでないＧＵか同値、前々日ＧＵか同値 | N81: =IF(AND(B5<>" ",P5>=0,リアルタイム更新データ!AE3>=0,リアルタイム更新データ!AG3="I",リアルタイム更新データ!AE4>=0),1,"") ->  | U81: 19260 | V81: 210 | W81: 0 | X81: 0 | Y81: 0 | Z81: 0
F82: 当日ＧＤ＋５分足が同時線か陽線＋最初の１５分足が陰線か同時線 | I82: =IF(AND(B5<>" ",P5<=0,ＲＴＣ５分足データ!E403-ＲＴＣ５分足データ!B403>=0,ＲＴＣ５分足データ!E405-ＲＴＣ５分足データ!B403<=0),1,"") ->  | K82: 当日ＧＵか同値、 前日窓開けでないＧＵか同値、ＭＡ並びが長＞短、ＲＳＩ５日が８０以下 | N82: =IF(AND(B5<>" ",P5>=0,リアルタイム更新データ!AE3>=0,リアルタイム更新データ!AG3="I",リアルタイム更新データ!AI3="S",リアルタイム更新データ!BJ3<=80),1,"") ->  | U82: 19250 | V82: 200 | W82: 0 | X82: 0 | Y82: 0 | Z82: 0
F83: 前日ＧＤか同値で陽線、前々日ＧＤか同値で陰線かドウジ線 | I83: =IF(AND(B5<>" ",リアルタイム更新データ!AE3<=0,リアルタイム更新データ!AF3>0,リアルタイム更新データ!AE4<=0,リアルタイム更新データ!AF4<=0),1,"") ->  | K83: 当日ＧＵで窓開け、前日まで ３日連続陰線か同時 | N83: =IF(AND(B5<>" ",リアルタイム更新データ!AG2="H",リアルタイム更新データ!AF3<=0,リアルタイム更新データ!AF4<=0,リアルタイム更新データ!AF5<=0),1,"") ->  | U83: 19240 | V83: 190 | W83: 0 | X83: 0 | Y83: 0 | Z83: 0
K84: 当日ＧＵか同値、前日まで ３日連続ＧＵか同値、ＲＳＩ５日が７０以下 | N84: =IF(AND(B5<>" ",P5>=0,リアルタイム更新データ!AE3>=0,リアルタイム更新データ!AE4>=0,リアルタイム更新データ!AE5>=0,リアルタイム更新データ!BJ3<=70),1,"") ->  | U84: 19230 | V84: 180 | W84: 0 | X84: 0 | Y84: 0 | Z84: 0
K85: 当日ＧＵか同値、 前日窓開けでないＧＵか同値、陰線か同時線、ＲＳＩ５日が６５以上 | N85: =IF(AND(B5<>" ",P5>=0,リアルタイム更新データ!AE3>=0,リアルタイム更新データ!AG3="I",リアルタイム更新データ!AF3<=0,リアルタイム更新データ!BJ3>=65),1,"") ->  | U85: 19220 | V85: 170 | W85: 0 | X85: 0 | Y85: 0 | Z85: 0
K86: 当日ＧＵか同値、 前日窓開けでないＧＵか同値、陰線か同時線、ＲＳＩ５日が４０以下 | N86: =IF(AND(B5<>" ",P5>=0,リアルタイム更新データ!AE3>=0,リアルタイム更新データ!AG3="I",リアルタイム更新データ!AF3<=0,リアルタイム更新データ!BJ3<=40),1,"") ->  | U86: 19210 | V86: 160 | W86: 0 | X86: 0 | Y86: 0 | Z86: 0
K87: 前日窓開けでないＧＤか同値、１０円以上の陰線 | N87: =IF(AND(B6<>" ",リアルタイム更新データ!AE3<=0,リアルタイム更新データ!AG3="I",リアルタイム更新データ!AF3<=-10),1,"") ->  | U87: 19200 | V87: 150 | W87: 0 | X87: 0 | Y87: 0 | Z87: 0
U88: 19190 | V88: 140 | W88: 0 | X88: 0 | Y88: 0 | Z88: 0
U89: 19180 | V89: 130 | W89: 0 | X89: 0 | Y89: 0 | Z89: 0
F90: ＢＧＵ（買い） | I90: =SUM(I91:I101) -> 0 | K90: ＢGD（売り） | N90: =SUM(N91:N102) -> 0 | U90: 19170 | V90: 120 | W90: 0 | X90: 0 | Y90: 0 | Z90: 0
F91: 1 | G91: 当日窓開け、前日はレンジ内で寄り付いて、１０円以上の陰線、５日ＭＡ乖離率が０％以下、ＭＡ並びがＳ、ＲＳＩ５日が１５以上 | I91: =IF(AND(P38<>" ",P38>B9,リアルタイム更新データ!AG3="I",リアルタイム更新データ!AF3<=-10,リアルタイム更新データ!CN3<0,リアルタイム更新データ!AI3="S",リアルタイム更新データ!BJ3>=15),1,0) -> 0 | K91: 1 | L91: 当日２６０円までのＧＤで５日ＭＡを下放れ、前日は前々日のレンジ内で寄り付いて、０円以上の陽線、前日２５日ＭＡ乖離率が０％以上、前日＋１σ乖離率が０％以下、 | N91: =IF(AND(P38<>" ",P5<=0,P5>=-260,B11>リアルタイム更新データ!X3,P38<リアルタイム更新データ!DD2,リアルタイム更新データ!AF3>=0,リアルタイム更新データ!AG3="I",リアルタイム更新データ!CW3>0,リアルタイム更新データ!DH2<0),1,0) -> 0 | U91: 19160 | V91: 110 | W91: 0 | X91: 0 | Y91: 0 | Z91: 0
F92: 2 | G92: 当日０円以上のＧＵで－２σを上放れ、前日は前々日レンジ内で寄り付き、前々日は１０円以上の陰線 | I92: =IF(AND(B5<>" ",P5>=0,P38>リアルタイム更新データ!DR2,リアルタイム更新データ!G3<リアルタイム更新データ!CH3,リアルタイム更新データ!AF4<=-10,リアルタイム更新データ!AG3="I"),1,0) -> 0 | K92: 2 | L92: 当日４０円以上のＧDで２５日ＭＡを下放れ、前日はその前の日のレンジ内で寄り付き | N92: =IF(AND(P38<>" ",P5<=-40,B11>リアルタイム更新データ!Y3,P38<リアルタイム更新データ!DP2,リアルタイム更新データ!D3>=リアルタイム更新データ!F4,リアルタイム更新データ!D3<=リアルタイム更新データ!E4),1,0) -> 0 | U92: 19150 | V92: 100 | W92: 0 | X92: 0 | Y92: 0 | Z92: 0
F93: 3 | G93: 当日５０円以上のＧＵで前日のレンジ内で寄り付き、前日は０円以上のＧＤで前々日のレンジ内で寄り付き、０円以上の陰線、前日２５日ＭＡ乖離率が０．９％以下、前日－１σ乖離率が０％以上、 | I93: =IF(AND(B5<>" ",P5>=50,リアルタイム更新データ!AG2="I",リアルタイム更新データ!CG3>=0,リアルタイム更新データ!CW3<0.009,リアルタイム更新データ!AE3<=0,リアルタイム更新データ!AG3="I",リアルタイム更新データ!AF3<=0),1,0) -> 0 | K93: 3 | L93: 当日８０円以上のＧＤでＢ１より下で寄り付き，前日＋１σ乖離率が０％以下、前日－１σ乖離率が０％以上、０円以上の陽線で前々日の高値をザラ場で更新、ＲＳＩ５日が７０以下 | N93: =IF(AND(P38<>" ",P5<=-80,P38<B16,リアルタイム更新データ!DH3<0,リアルタイム更新データ!DJ3>0,リアルタイム更新データ!AF3>=0,リアルタイム更新データ!E3>リアルタイム更新データ!E4,リアルタイム更新データ!BJ2<70),1,0) -> 0 | U93: 19140 | V93: 90 | W93: 0 | X93: 0 | Y93: 0 | Z93: 0
F94: 4 | G94: 当日４０円以上のＧＵで５日MAブレイク、前日は前々日のレンジ内で寄り付き、０円以上の陰線、ＭＡ並びがＬ、ＲＳＩ５日が４０以上、ＲＳＩ９日が６５以下。 | I94: =IF(AND(B5<>" ",P5>=40,P38>リアルタイム更新データ!DD2,リアルタイム更新データ!G3<リアルタイム更新データ!X3,リアルタイム更新データ!AG3="I",リアルタイム更新データ!AF3<=0,リアルタイム更新データ!AI3="L",リアルタイム更新データ!BJ3>40,リアルタイム更新データ!BK3<65),1,0) -> 0 | K94: 4 | L94: 当日ＧＤでＢ２～ＬＢＯＰで寄り付き、前日は前々日レンジ内で寄り付き、３０円以上の陰線、前日２５日ＭＡ乖離率－２％以上、 | N94: =IF(AND(P38<>" ",P38>B18,P38<B17,リアルタイム更新データ!AG3="I",リアルタイム更新データ!AF3<=-30,リアルタイム更新データ!CW3>-0.02),1,0) -> 0 | U94: 19130 | V94: 80 | W94: 0 | X94: 0 | Y94: 0 | Z94: 0
F95: 5 | G95: 当日０円以上のＧＵで２５日MAブレイク、前日は前々日のレンジ内で寄り付き、ＭＡ並びがＬ、ＲＳＩ５日が５０以上 | I95: =IF(AND(B5<>" ",P5>=0,P38>リアルタイム更新データ!DP2,リアルタイム更新データ!G3<リアルタイム更新データ!Y3,リアルタイム更新データ!AG3="I",リアルタイム更新データ!AI3="L",リアルタイム更新データ!BJ3>=50),1,0) -> 0 | K95: 5 | L95: 当日０円以上のＧＤで７５日ＭＡをブレイク、前日は前々日レンジ内で寄り付き、前日ＭＡ並びがＬ | N95: =IF(AND(P38<>" ",P5<=0,P38<リアルタイム更新データ!DB2,リアルタイム更新データ!G3>リアルタイム更新データ!Z3,リアルタイム更新データ!AI3="L",リアルタイム更新データ!AG3="I"),1,0) -> 0 | U95: 19120 | V95: 70 | W95: 0 | X95: 0 | Y95: 0 | Z95: 0
F96: 6 | G96: 当日１８０円以下のＧＵで転換線ブレイク、前日５日ＭＡ乖離率０.５％以下、ＲＳＩ５日２０以上、ＭＡ並びがＬ | I96: =IF(AND(B5<>" ",P5>=0,P5<=180,リアルタイム更新データ!AI3="L",P38>リアルタイム更新データ!DA2,リアルタイム更新データ!G3<リアルタイム更新データ!AW3,リアルタイム更新データ!CN3<0.005,リアルタイム更新データ!BJ3>=20),1,0) -> 0 | K96: 6 | L96: 当日０円以上のＧＤで１００日ＭＡブレイク，前日４０円以上の陽線 | N96: =IF(AND(P38<>" ",P5<=0,リアルタイム更新データ!G3>リアルタイム更新データ!AA3,P38<リアルタイム更新データ!CX2,リアルタイム更新データ!AF3>=40),1,0) -> 0 | U96: 19110 | V96: 60 | W96: 0 | X96: 0 | Y96: 0 | Z96: 0
F97: 7 | G97: 当日０円以上のＧＵで基準線ブレイク、前日２５日ＭＡ乖離率０．４％以下、ＲＳＩ５日５０以上、ＭＡ並びＬ | I97: =IF(AND(B5<>" ",P5>=0,P38>リアルタイム更新データ!CZ2,リアルタイム更新データ!G3<リアルタイム更新データ!AV3,リアルタイム更新データ!CW3<0.004,リアルタイム更新データ!BJ3>50,リアルタイム更新データ!AI3="L"),1,0) -> 0 | K97: 7 | L97: 当日０円以上１５０円以下のＧＤで転換線ブレイク，前日０円以上の陽線で前々日のレンジ内で寄り付き、５日ＭＡ乖離率が０％以上 | N97: =IF(AND(P38<>" ",P5<=0,P5>=-150,リアルタイム更新データ!G3>リアルタイム更新データ!AW3,P38<リアルタイム更新データ!DA2,リアルタイム更新データ!AF3>=0,リアルタイム更新データ!AG3="I",リアルタイム更新データ!CN3>0),1,0) -> 0 | U97: 19100 | V97: 50 | W97: 0 | X97: 0 | Y97: 0 | Z97: 0
F98: 8 | G98: 当日１２０円以下のＧＵで窓開け、前日ＭＡ並びはＳ、ＲＳＩ５日は５０以下、前日と前々日はそれぞれ前の日のレンジ内で寄り付き。 | I98: =IF(AND(B5<>" ",P5>=0,P5>=120,リアルタイム更新データ!AG2="H",リアルタイム更新データ!AG3="I",リアルタイム更新データ!AG4="I",リアルタイム更新データ!AI3="S",リアルタイム更新データ!BJ3<=50),1,0) -> 0 | K98: 8 | L98: 当日０円以上１５０円以下のＧＤで転換線ブレイク，前日０円以上の陽線で前々日の高値ブレイクで寄り付き、５日ＭＡ乖離率が０％以上 | N98: =IF(AND(P38<>" ",P5<=0,P5>=-150,リアルタイム更新データ!G3>リアルタイム更新データ!AW3,P38<リアルタイム更新データ!DA2,リアルタイム更新データ!AF3>=0,リアルタイム更新データ!AG3="H",リアルタイム更新データ!CN3>0,リアルタイム更新データ!BJ3<=50),1,0) -> 0 | U98: 19090 | V98: 40 | W98: 0 | X98: 0 | Y98: 0 | Z98: 0
F99: 9 | G99: 当日０円以上のＧＵで７５日MAブレイク、前日は前々日のレンジ内で寄り付き、０円以上の陰線、ＲＳＩ５日が３０以上、ＲＳＩ９日が７０以下 | I99: =IF(AND(B5<>" ",P5>=0,P38>リアルタイム更新データ!DB2,リアルタイム更新データ!G3<リアルタイム更新データ!Z3,リアルタイム更新データ!AG3="I",リアルタイム更新データ!AF3<=0,リアルタイム更新データ!BJ3>30,リアルタイム更新データ!BK3<=70),1,0) -> 0 | K99: 9 | L99: 当日１００円以上のＧＤで基準線ブレイク，前日０円以上の陽線で前々日のレンジ内もしくは高値ブレイクで寄り付き、５日ＭＡ乖離率が０％以上 | N99: =IF(AND(P38<>" ",P5<=-100,リアルタイム更新データ!G3>リアルタイム更新データ!AV3,P38<リアルタイム更新データ!CZ2,リアルタイム更新データ!AF3>=0,リアルタイム更新データ!AG3<>"L",リアルタイム更新データ!CN3>0),1,0) -> 0 | U99: 19080 | V99: 30 | W99: 0 | X99: 0 | Y99: 0 | Z99: 0
F100: 10 | G100: 当日３１０円以下のＧＵでＨＢＯＰブレイク、前日５日ＭＡ乖離率が０％以下、ＭＡ並びがＳ | I100: =IF(AND(B5<>" ",P5>=0,P5<=310,P38>B12,リアルタイム更新データ!CN3<0,リアルタイム更新データ!AI3="S"),1,0) -> 0 | K100: 10 | L100: 当日は０円以上のＧＤで５日・２５日ＭＡをブレイク、前日は前々日のレンジ内もしくは高値ブレイクで寄り付き。 | N100: =IF(AND(P38<>" ",P5<=0,リアルタイム更新データ!AG3<>"L",リアルタイム更新データ!G3>リアルタイム更新データ!X3,リアルタイム更新データ!G3>リアルタイム更新データ!Y3,P38<リアルタイム更新データ!DD2,P38<リアルタイム更新データ!DP2),1,0) -> 0 | U100: 19070 | V100: 20 | W100: 0 | X100: 0 | Y100: 0 | Z100: 0
F101: 11 | K101: 11 | L101: 当日ＧＤ，前日２０円以上ＧＤでＭＡ並びがＳ、前々日０円以上のＧＤ、前々前日０円以上のＧＵ | N101: =IF(AND(P38<>" ",P5<=0,リアルタイム更新データ!AE3<=-20,リアルタイム更新データ!AE4<=0,リアルタイム更新データ!AE5>=0,リアルタイム更新データ!AI3="S"),1,0) -> 0 | U101: 19060 | V101: 10 | W101: 0 | X101: 0 | Y101: 0 | Z101: 0
K102: 12 | U102: 19050 | V102: 0 | W102: 0 | X102: 0 | Y102: 0 | Z102: 0
U103: 19040 | V103: -10 | W103: 0 | X103: 0 | Y103: 0 | Z103: 0
U104: 19030 | V104: -20 | W104: 0 | X104: 0 | Y104: 0 | Z104: 0
U105: 19020 | V105: -30 | W105: 0 | X105: 0 | Y105: 0 | Z105: 0
U106: 19010 | V106: -40 | W106: 0 | X106: 0 | Y106: 0 | Z106: 0
U107: 19000 | V107: -50 | W107: 0 | X107: 0 | Y107: 0 | Z107: 0
U108: 18990 | V108: -60 | W108: 0 | X108: 0 | Y108: 0 | Z108: 0
U109: 18980 | V109: -70 | W109: 0 | X109: 0 | Y109: 0 | Z109: 0
U110: 18970 | V110: -80 | W110: 0 | X110: 0 | Y110: 0 | Z110: 0
U111: 18960 | V111: -90 | W111: 0 | X111: 0 | Y111: 0 | Z111: 0
U112: 18950 | V112: -100 | W112: 0 | X112: 0 | Y112: 0 | Z112: 1
U113: 18940 | V113: -110 | W113: 0 | X113: 0 | Y113: 0 | Z113: 1
U114: 18930 | V114: -120 | W114: 0 | X114: 0 | Y114: 0 | Z114: 1
U115: 18920 | V115: -130 | W115: 0 | X115: 0 | Y115: 0 | Z115: 1
U116: 18910 | V116: -140 | W116: 0 | X116: 0 | Y116: 0 | Z116: 1
U117: 18900 | V117: -150 | W117: 0 | X117: 0 | Y117: 0 | Z117: 1
U118: 18890 | V118: -160 | W118: 0 | X118: 0 | Y118: 0 | Z118: 1
U119: 18880 | V119: -170 | W119: 0 | X119: 0 | Y119: 0 | Z119: 1
U120: 18870 | V120: -180 | W120: 0 | X120: 0 | Y120: 0 | Z120: 1
U121: 18860 | V121: -190 | W121: 0 | X121: 0 | Y121: 0 | Z121: 1
U122: 18850 | V122: -200 | W122: 0 | X122: 0 | Y122: 0 | Z122: 1
U123: 18840 | V123: -210 | W123: 0 | X123: 0 | Y123: 0 | Z123: 1
U124: 18830 | V124: -220 | W124: 0 | X124: 0 | Y124: 0 | Z124: 1
U125: 18820 | V125: -230 | W125: 0 | X125: 0 | Y125: 0 | Z125: 1
U126: 18810 | V126: -240 | W126: 0 | X126: 0 | Y126: 0 | Z126: 1
U127: 18800 | V127: -250 | W127: 0 | X127: 0 | Y127: 0 | Z127: 1
U128: 18790 | V128: -260 | W128: 0 | X128: 0 | Y128: 0 | Z128: 1
U129: 18780 | V129: -270 | W129: 0 | X129: 0 | Y129: 0 | Z129: 1
U130: 18770 | V130: -280 | W130: 0 | X130: 0 | Y130: 0 | Z130: 1
U131: 18760 | V131: -290 | W131: 0 | X131: 0 | Y131: 0 | Z131: 1
U132: 18750 | V132: -300 | W132: 0 | X132: 0 | Y132: 0 | Z132: 1
U133: 18740 | V133: -310 | W133: 0 | X133: 1 | Y133: 0 | Z133: 1
U134: 18730 | V134: -320 | W134: 0 | X134: 1 | Y134: 0 | Z134: 1
U135: 18720 | V135: -330 | W135: 0 | X135: 1 | Y135: 0 | Z135: 1
A136: 気配値 | B136: F | U136: 18710 | V136: -340 | W136: 0 | X136: 1 | Y136: 0 | Z136: 1
A137: CME | U137: 18700 | V137: -350 | W137: 0 | X137: 1 | Y137: 0 | Z137: 1
U138: 18690 | V138: -360 | W138: 0 | X138: 1 | Y138: 0 | Z138: 1
U139: 18680 | V139: -370 | W139: 0 | X139: 1 | Y139: 0 | Z139: 1
U140: 18670 | V140: -380 | W140: 0 | X140: 1 | Y140: 0 | Z140: 1
U141: 18660 | V141: -390 | W141: 0 | X141: 1 | Y141: 0 | Z141: 1
U142: 18650 | V142: -400 | W142: 0 | X142: 1 | Y142: 0 | Z142: 1
U143: 18640 | V143: -410 | W143: 0 | X143: 1 | Y143: 0 | Z143: 1
U144: 18630 | V144: -420 | W144: 0 | X144: 1 | Y144: 0 | Z144: 1
U145: 18620 | V145: -430 | W145: 0 | X145: 1 | Y145: 0 | Z145: 1
U146: 18610 | V146: -440 | W146: 0 | X146: 1 | Y146: 0 | Z146: 1
U147: 18600 | V147: -450 | W147: 0 | X147: 1 | Y147: 0 | Z147: 1
U148: 18590 | V148: -460 | W148: 0 | X148: 1 | Y148: 0 | Z148: 1
U149: 18580 | V149: -470 | W149: 0 | X149: 1 | Y149: 0 | Z149: 1
U150: 18570 | V150: -480 | W150: 0 | X150: 1 | Y150: 0 | Z150: 1
U151: 18560 | V151: -490 | W151: 0 | X151: 1 | Y151: 0 | Z151: 1
U152: 18550 | V152: -500 | W152: 0 | X152: 1 | Y152: 0 | Z152: 1
U153: 18540 | V153: -510 | W153: 0 | X153: 1 | Y153: 0 | Z153: 1
U154: 18530 | V154: -520 | W154: 0 | X154: 1 | Y154: 0 | Z154: 1
U155: 18520 | V155: -530 | W155: 0 | X155: 1 | Y155: 0 | Z155: 1
U156: 18510 | V156: -540 | W156: 0 | X156: 1 | Y156: 0 | Z156: 1
U157: 18500 | V157: -550 | W157: 0 | X157: 1 | Y157: 0 | Z157: 1
U158: 18490 | V158: -560 | W158: 0 | X158: 1 | Y158: 0 | Z158: 1
U159: 18480 | V159: -570 | W159: 0 | X159: 1 | Y159: 0 | Z159: 1
U160: 18470 | V160: -580 | W160: 0 | X160: 1 | Y160: 0 | Z160: 1
U161: 18460 | V161: -590 | W161: 0 | X161: 1 | Y161: 0 | Z161: 1
U162: 18450 | V162: -600 | W162: 0 | X162: 1 | Y162: 0 | Z162: 1
U163: 18440 | V163: -610 | W163: 0 | X163: 1 | Y163: 0 | Z163: 1
U164: 18430 | V164: -620 | W164: 0 | X164: 1 | Y164: 0 | Z164: 1
U165: 18420 | V165: -630 | W165: 0 | X165: 1 | Y165: 0 | Z165: 1
U166: 18410 | V166: -640 | W166: 0 | X166: 1 | Y166: 0 | Z166: 1
U167: 18400 | V167: -650 | W167: 0 | X167: 1 | Y167: 0 | Z167: 1
U168: 18390 | V168: -660 | W168: 0 | X168: 1 | Y168: 0 | Z168: 1
U169: 18380 | V169: -670 | W169: 0 | X169: 1 | Y169: 0 | Z169: 1
U170: 18370 | V170: -680 | W170: 0 | X170: 1 | Y170: 0 | Z170: 1
U171: 18360 | V171: -690 | W171: 0 | X171: 1 | Y171: 0 | Z171: 1
U172: 18350 | V172: -700 | W172: 0 | X172: 1 | Y172: 0 | Z172: 1
U173: 18340 | V173: -710 | W173: 0 | X173: 1 | Y173: 0 | Z173: 1
U174: 18330 | V174: -720 | W174: 0 | X174: 1 | Y174: 0 | Z174: 1
U175: 18320 | V175: -730 | W175: 0 | X175: 1 | Y175: 0 | Z175: 1
U176: 18310 | V176: -740 | W176: 0 | X176: 1 | Y176: 0 | Z176: 1
U177: 18300 | V177: -750 | W177: 0 | X177: 1 | Y177: 0 | Z177: 1
U178: 18290 | V178: -760 | W178: 0 | X178: 1 | Y178: 0 | Z178: 1
U179: 18280 | V179: -770 | W179: 0 | X179: 1 | Y179: 0 | Z179: 1
U180: 18270 | V180: -780 | W180: 0 | X180: 1 | Y180: 0 | Z180: 1
U181: 18260 | V181: -790 | W181: 0 | X181: 1 | Y181: 0 | Z181: 1
U182: 18250 | V182: -800 | W182: 0 | X182: 1 | Y182: 0 | Z182: 1
U183: 18240 | V183: -810 | W183: 0 | X183: 1 | Y183: 0 | Z183: 1
U184: 18230 | V184: -820 | W184: 0 | X184: 1 | Y184: 0 | Z184: 1
U185: 18220 | V185: -830 | W185: 0 | X185: 1 | Y185: 0 | Z185: 1
U186: 18210 | V186: -840 | W186: 0 | X186: 1 | Y186: 0 | Z186: 1
U187: 18200 | V187: -850 | W187: 0 | X187: 1 | Y187: 0 | Z187: 1
U188: 18190 | V188: -860 | W188: 0 | X188: 1 | Y188: 0 | Z188: 1
U189: 18180 | V189: -870 | W189: 0 | X189: 1 | Y189: 0 | Z189: 1
U190: 18170 | V190: -880 | W190: 0 | X190: 1 | Y190: 0 | Z190: 1
U191: 18160 | V191: -890 | W191: 0 | X191: 1 | Y191: 0 | Z191: 1
U192: 18150 | V192: -900 | W192: 0 | X192: 1 | Y192: 0 | Z192: 1
U193: 18140 | V193: -910 | W193: 0 | X193: 1 | Y193: 0 | Z193: 1
U194: 18130 | V194: -920 | W194: 0 | X194: 1 | Y194: 0 | Z194: 1
U195: 18120 | V195: -930 | W195: 0 | X195: 1 | Y195: 0 | Z195: 1
U196: 18110 | V196: -940 | W196: 0 | X196: 1 | Y196: 0 | Z196: 1
U197: 18100 | V197: -950 | W197: 0 | X197: 1 | Y197: 0 | Z197: 1
U198: 18090 | V198: -960 | W198: 0 | X198: 1 | Y198: 0 | Z198: 1
U199: 18080 | V199: -970 | W199: 0 | X199: 1 | Y199: 0 | Z199: 1
U200: 18070 | V200: -980 | W200: 0 | X200: 1 | Y200: 0 | Z200: 1
... 2 more rows

Sheet MP
H1: 09:00:00 | I1: 09:30:00 | J1: 10:00:00 | K1: 10:30:00 | L1: 11:00:00 | M1: 11:30:00 | N1: 12:00:00 | O1: 12:30:00 | P1: 13:00:00 | Q1: 13:30:00 | R1: 14:00:00 | S1: 14:30:00 | T1: 中心価格 | U1: =(C3+D3)/2 -> 27495 | V1: TPO | W1: =SUM(U5:U80) -> 84 | X1: ＶＡ上限 | Y1: 27570
B2: 始値 | C2: 高値 | D2: 安値 | E2: 終値 | G2: 高値 | H2: =MAX($C5:$C10) -> 27550 | I2: =MAX($C11:$C16) -> 27520 | J2: =MAX($C17:$C22) -> 27500 | K2: =MAX($C23:$C28) -> 27460 | L2: =MAX($C29:$C34) -> 27570 | M2: =MAX($C35:$C40) -> 27570 | N2: =MAX($C41:$C46) -> 27570 | O2: =MAX($C47:$C52) -> 27590 | P2: =MAX($C53:$C58) -> 27570 | Q2: =MAX($C59:$C64) -> 27560 | R2: =MAX($C65:$C70) -> 27550 | S2: =MAX($C71:$C80) -> 27580 | U2: =MAX(U5:U80) -> 9 | V2: SP | W2: =COUNTIF(U5:U80,"=1") -> 4 | X2: ＶＡ下限 | Y2: 27480
B3: =B5 -> 27480 | C3: =MAX(C5:C83) -> 27590 | D3: =MIN(D5:D83) -> 27400 | E3: =E83 -> 27550 | G3: 安値 | H3: =IF(SUM(B5:E5)<>0,SMALL(D5:D10,COUNTIF(D5:D10,"0")+1),0) -> 27450 | I3: =IF(SUM(B11:E11)<>0,SMALL(D11:D16,COUNTIF(D11:D16,"0")+1),0) -> 27430 | J3: =IF(SUM(B17:E17)<>0,SMALL(D17:D22,COUNTIF(D17:D22,"0")+1),0) -> 27440 | K3: =IF(SUM(B23:E23)<>0,SMALL(D23:D28,COUNTIF(D23:D28,"0")+1),0) -> 27400 | L3: =IF(SUM(B29:E29)<>0,SMALL(D29:D34,COUNTIF(D29:D34,"0")+1),0) -> 27450 | M3: =IF(SUM(B35:E35)<>0,SMALL(D35:D40,COUNTIF(D35:D40,"0")+1),0) -> 27530 | N3: =IF(SUM(B41:E41)<>0,SMALL(D41:D46,COUNTIF(D41:D46,"0")+1),0) -> 27520 | O3: =IF(SUM(B47:E47)<>0,SMALL(D47:D52,COUNTIF(D47:D52,"0")+1),0) -> 27550 | P3: =IF(SUM(B53:E53)<>0,SMALL(D53:D58,COUNTIF(D53:D58,"0")+1),0) -> 27540 | Q3: =IF(SUM(B59:E59)<>0,SMALL(D59:D64,COUNTIF(D59:D64,"0")+1),0) -> 27520 | R3: =IF(SUM(B65:E65)<>0,SMALL(D65:D70,COUNTIF(D65:D70,"0")+1),0) -> 27510 | S3: =IF(SUM(B71:E71)<>0,SMALL(D71:D80,COUNTIF(D71:D80,"0")+1),0) -> 27530 | V3: 有効TPO | W3: =W1-W2 -> 80 | X3: mode | Y3: 27550
A4: 時刻 | B4: 始値 | C4: 高値 | D4: 安値 | E4: 終値 | H4: A | I4: B | J4: C | K4: D | L4: E | M4: F | N4: G | O4: H | P4: I | Q4: J | R4: K | S4: L | V4: 最大ＴＰO価格数 | W4: =COUNTIF(Y5:Y204,"=M") -> 1
A5: 08:45:00 | B5: 27480 | C5: 27490 | D5: 27450 | E5: 27460 | F5: 1155 | G5: =C3 -> 27590 | H5: =IF(AND($G5<=$H$2,$G5>=$H$3),$H$4,"") ->  | I5: =IF(AND($G5<=$I$2,$G5>=$I$3),$I$4,"") ->  | J5: =IF(AND($G5<=$J$2,$G5>=$J$3),$J$4,"") ->  | K5: =IF(AND($G5<=$K$2,$G5>=$K$3),$K$4,"") ->  | L5: =IF(AND($G5<=$L$2,$G5>=$L$3),$L$4,"") ->  | M5: =IF(AND($G5<=$M$2,$G5>=$M$3),$M$4,"") ->  | N5: =IF(AND($G5<=$N$2,$G5>=$N$3),$N$4,"") ->  | O5: =IF(AND($G5<=$O$2,$G5>=$O$3),$O$4,"") -> H | P5: =IF(AND($G5<=$P$2,$G5>=$P$3),$P$4,"") ->  | Q5: =IF(AND($G5<=$Q$2,$G5>=$Q$3),$Q$4,"") ->  | R5: =IF(AND($G5<=$R$2,$G5>=$R$3),$R$4,"") ->  | S5: =IF(AND($G5<=$S$2,$G5>=$S$3),$S$4,"") ->  | T5: =H5&I5&J5&K5&L5&M5&N5&O5&P5&Q5&R5&S5 -> H | U5: =LEN(T5) -> 1 | V5: =U5/$W$3 -> 0.0125 | W5: =IF(G5<>"",ABS(G5-$U$1),"") -> 95 | X5: =IF(G5<>"",ABS(G5-$E$3),"") -> 40 | Y5: =IF(U5=$U$2,"M","") -> 
A6: 08:50:00 | B6: 27460 | C6: 27470 | D6: 27450 | E6: 27460 | F6: 426 | G6: =IF(G5-10>=$D$3,G5-10,"") -> 27580 | O6: H | S6: L | T6: =H6&I6&J6&K6&L6&M6&N6&O6&P6&Q6&R6&S6 -> HL | U6: =LEN(T6) -> 2 | V6: 0.025 | W6: 85 | X6: =IF(G6<>"",ABS(G6-$E$3),"") -> 30 | Y6: =IF(U6=$U$2,"M","") -> 
A7: 08:55:00 | B7: 27470 | C7: 27490 | D7: 27460 | E7: 27490 | F7: 247 | G7: =IF(G6<>"",IF(G6-10>=$D$3,G6-10,""),"") -> 27570 | L7: E | M7: F | N7: G | O7: H | P7: I | S7: L | T7: EFGHIL | U7: 6 | V7: 0.075 | W7: 75 | X7: 20
A8: 09:00:00 | B8: 27480 | C8: 27530 | D8: 27470 | E8: 27510 | F8: 2679 | G8: =IF(G7<>"",IF(G7-10>=$D$3,G7-10,""),"") -> 27560 | L8: E | M8: F | N8: G | O8: H | P8: I | Q8: J | S8: L | T8: EFGHIJL | U8: 7 | V8: 0.0875 | W8: 65 | X8: 10
A9: 09:05:00 | B9: 27510 | C9: 27550 | D9: 27490 | E9: 27500 | F9: 1318 | G9: 27550 | H9: A | L9: E | M9: F | N9: G | O9: H | P9: I | Q9: J | R9: K | S9: L | T9: AEFGHIJKL | U9: 9 | V9: 0.1125 | W9: 55 | X9: 0 | Y9: M
A10: 09:10:00 | B10: 27500 | C10: 27500 | D10: 27480 | E10: 27500 | F10: 578 | G10: 27540 | H10: A | L10: E | M10: F | N10: G | P10: I | Q10: J | R10: K | S10: L | T10: AEFGIJKL | U10: 8 | V10: 0.1 | W10: 45 | X10: 10
A11: 09:15:00 | B11: 27500 | C11: 27520 | D11: 27490 | E11: 27500 | F11: 804 | G11: 27530 | H11: A | L11: E | M11: F | N11: G | Q11: J | R11: K | S11: L | T11: AEFGJKL | U11: 7 | V11: 0.0875 | W11: 35 | X11: 20
A12: 09:20:00 | B12: 27500 | C12: 27500 | D12: 27430 | E12: 27440 | F12: 1164 | G12: 27520 | H12: A | I12: B | L12: E | N12: G | Q12: J | R12: K | T12: ABEGJK | U12: 6 | V12: 0.075 | W12: 25 | X12: 30
A13: 09:25:00 | B13: 27440 | C13: 27480 | D13: 27440 | E13: 27450 | F13: 838 | G13: 27510 | H13: A | I13: B | L13: E | R13: K | T13: ABEK | U13: 4 | V13: 0.05 | W13: 15 | X13: 40
A14: 09:30:00 | B14: 27440 | C14: 27480 | D14: 27430 | E14: 27450 | F14: 857 | G14: 27500 | H14: A | I14: B | J14: C | L14: E | T14: ABCE | U14: 4 | V14: 0.05 | W14: 5 | X14: 50
A15: 09:35:00 | B15: 27450 | C15: 27460 | D15: 27430 | E15: 27450 | F15: 581 | G15: 27490 | H15: A | I15: B | J15: C | L15: E | T15: ABCE | U15: 4 | V15: 0.05 | W15: 5 | X15: 60
A16: 09:40:00 | B16: 27450 | C16: 27470 | D16: 27440 | E16: 27440 | F16: 310 | G16: 27480 | H16: A | I16: B | J16: C | L16: E | T16: ABCE | U16: 4 | V16: 0.05 | W16: 15 | X16: 70
A17: 09:45:00 | B17: 27440 | C17: 27480 | D17: 27440 | E17: 27480 | F17: 613 | G17: 27470 | H17: A | I17: B | J17: C | L17: E | T17: ABCE | U17: =LEN(T17) -> 4 | V17: 0.05 | W17: 25 | X17: 80
A18: 09:50:00 | B18: 27470 | C18: 27490 | D18: 27470 | E18: 27490 | F18: 355 | G18: 27460 | H18: A | I18: B | J18: C | K18: D | L18: E | T18: ABCDE | U18: =IF(G18<>"",LEN(T18),"") -> 5 | V18: =IF(G18<>"",U18/$W$3,"") -> 0.0625 | W18: 35 | X18: 90
A19: 09:55:00 | B19: 27490 | C19: 27500 | D19: 27480 | E19: 27480 | F19: 365 | G19: 27450 | H19: A | I19: B | J19: C | K19: D | L19: E | T19: ABCDE | U19: =IF(G19<>"",LEN(T19),"") -> 5 | V19: =IF(G19<>"",U19/$W$3,"") -> 0.0625 | W19: =IF(G19<>"",ABS(G19-$U$1),"") -> 45 | X19: 100
A20: 10:00:00 | B20: 27490 | C20: 27490 | D20: 27460 | E20: 27480 | F20: 427 | G20: 27440 | I20: B | J20: C | K20: D | T20: BCD | U20: 3 | V20: 0.0375 | W20: 55 | X20: 110
A21: 10:05:00 | B21: 27480 | C21: 27490 | D21: 27470 | E21: 27470 | F21: 316 | G21: 27430 | I21: B | K21: D | T21: BD | U21: 2 | V21: 0.025 | W21: 65 | X21: 120
A22: 10:10:00 | B22: 27470 | C22: 27480 | D22: 27450 | E22: 27460 | F22: 449 | G22: 27420 | K22: D | T22: D | U22: 1 | V22: 0.0125 | W22: 75 | X22: 130
A23: 10:15:00 | B23: 27460 | C23: 27460 | D23: 27400 | E23: 27430 | F23: 1218 | G23: 27410 | K23: D | T23: D | U23: 1 | V23: 0.0125 | W23: 85 | X23: 140
A24: 10:20:00 | B24: 27430 | C24: 27440 | D24: 27410 | E24: 27430 | F24: 614 | G24: 27400 | K24: D | T24: D | U24: 1 | V24: 0.0125 | W24: 95 | X24: 150
A25: 10:25:00 | B25: 27430 | C25: 27460 | D25: 27420 | E25: 27430 | F25: 405
A26: 10:30:00 | B26: 27430 | C26: 27440 | D26: 27400 | E26: 27410 | F26: 930
A27: 10:35:00 | B27: 27410 | C27: 27450 | D27: 27410 | E27: 27440 | F27: 520 | P27: =IF(AND($G27<=$P$2,$G27>=$P$3),$P$4,"") -> 
A28: 10:40:00 | B28: 27450 | C28: 27450 | D28: 27440 | E28: 27450 | F28: 364
A29: 10:45:00 | B29: 27450 | C29: 27510 | D29: 27450 | E29: 27500 | F29: 682
A30: 10:50:00 | B30: 27500 | C30: 27550 | D30: 27500 | E30: 27550 | F30: 897
A31: 10:55:00 | B31: 27550 | C31: 27570 | D31: 27530 | E31: 27530 | F31: 1107
A32: 11:00:00 | B32: 27530 | C32: 27550 | D32: 27530 | E32: 27530 | F32: 522
A33: 11:05:00 | B33: 27530 | C33: 27540 | D33: 27520 | E33: 27540 | F33: 377
A34: 11:10:00 | B34: 27540 | C34: 27550 | D34: 27520 | E34: 27530 | F34: 667
A35: 11:15:00 | B35: 27540 | C35: 27560 | D35: 27530 | E35: 27550 | F35: 764
A36: 11:20:00 | B36: 27550 | C36: 27560 | D36: 27550 | E36: 27550 | F36: 203
A37: 11:25:00 | B37: 27550 | C37: 27560 | D37: 27540 | E37: 27540 | F37: 373 | H37: =IF(AND($G37<=$H$2,$G37>=$H$3),$H$4,"") ->  | I37: =IF(AND($G37<=$I$2,$G37>=$I$3),$I$4,"") ->  | J37: =IF(AND($G37<=$J$2,$G37>=$J$3),$J$4,"") ->  | K37: =IF(AND($G37<=$K$2,$G37>=$K$3),$K$4,"") ->  | L37: =IF(AND($G37<=$L$2,$G37>=$L$3),$L$4,"") ->  | M37: =IF(AND($G37<=$M$2,$G37>=$M$3),$M$4,"") ->  | N37: =IF(AND($G37<=$N$2,$G37>=$N$3),$N$4,"") ->  | O37: =IF(AND($G37<=$O$2,$G37>=$O$3),$O$4,"") ->  | P37: =IF(AND($G37<=$P$2,$G37>=$P$3),$P$4,"") ->  | Q37: =IF(AND($G37<=$Q$2,$G37>=$Q$3),$Q$4,"") ->  | R37: =IF(AND($G37<=$R$2,$G37>=$R$3),$R$4,"") ->  | S37: =IF(AND($G37<=$S$2,$G37>=$S$3),$S$4,"") -> 
A38: 11:30:00 | B38: 27540 | C38: 27570 | D38: 27540 | E38: 27570 | F38: 274
A39: 11:35:00 | B39: 27570 | C39: 27570 | D39: 27560 | E39: 27560 | F39: 133
A40: 11:40:00 | B40: 27560 | C40: 27560 | D40: 27550 | E40: 27550 | F40: 190
A41: 11:45:00 | B41: 27550 | C41: 27560 | D41: 27530 | E41: 27550 | F41: 375
A42: 11:50:00 | B42: 27550 | C42: 27550 | D42: 27530 | E42: 27540 | F42: 235
A43: 11:55:00 | B43: 27540 | C43: 27540 | D43: 27520 | E43: 27540 | F43: 180
A44: 12:00:00 | B44: 27530 | C44: 27540 | D44: 27520 | E44: 27540 | F44: 172
A45: 12:05:00 | B45: 27550 | C45: 27560 | D45: 27550 | E45: 27550 | F45: 131
A46: 12:10:00 | B46: 27560 | C46: 27570 | D46: 27550 | E46: 27560 | F46: 217
A47: 12:15:00 | B47: 27560 | C47: 27570 | D47: 27560 | E47: 27570 | F47: 231
A48: 12:20:00 | B48: 27560 | C48: 27580 | D48: 27560 | E48: 27580 | F48: 181
A49: 12:25:00 | B49: 27570 | C49: 27580 | D49: 27560 | E49: 27560 | F49: 359
A50: 12:30:00 | B50: 27560 | C50: 27590 | D50: 27550 | E50: 27580 | F50: 619
A51: 12:35:00 | B51: 27570 | C51: 27580 | D51: 27570 | E51: 27570 | F51: 487
A52: 12:40:00 | B52: 27570 | C52: 27570 | D52: 27560 | E52: 27560 | F52: 131
A53: 12:45:00 | B53: 27570 | C53: 27570 | D53: 27560 | E53: 27560 | F53: 244
A54: 12:50:00 | B54: 27560 | C54: 27570 | D54: 27560 | E54: 27560 | F54: 358
A55: 12:55:00 | B55: 27560 | C55: 27570 | D55: 27550 | E55: 27560 | F55: 378
A56: 13:00:00 | B56: 27560 | C56: 27570 | D56: 27550 | E56: 27560 | F56: 794
A57: 13:05:00 | B57: 27560 | C57: 27570 | D57: 27550 | E57: 27560 | F57: 339
A58: 13:10:00 | B58: 27560 | C58: 27560 | D58: 27540 | E58: 27550 | F58: 385
A59: 13:15:00 | B59: 27550 | C59: 27560 | D59: 27540 | E59: 27540 | F59: 149
A60: 13:20:00 | B60: 27540 | C60: 27550 | D60: 27540 | E60: 27540 | F60: 138
A61: 13:25:00 | B61: 27530 | C61: 27550 | D61: 27530 | E61: 27540 | F61: 91
A62: 13:30:00 | B62: 27540 | C62: 27540 | D62: 27530 | E62: 27530 | F62: 282
A63: 13:35:00 | B63: 27530 | C63: 27540 | D63: 27530 | E63: 27530 | F63: 37
A64: 13:40:00 | B64: 27530 | C64: 27530 | D64: 27520 | E64: 27530 | F64: 263
A65: 13:45:00 | B65: 27530 | C65: 27530 | D65: 27530 | E65: 27530 | F65: 179
A66: 13:50:00 | B66: 27520 | C66: 27530 | D66: 27510 | E66: 27510 | F66: 160
A67: 13:55:00 | B67: 27520 | C67: 27520 | D67: 27510 | E67: 27510 | F67: 36
A68: 14:00:00 | B68: 27520 | C68: 27540 | D68: 27510 | E68: 27540 | F68: 540
A69: 14:05:00 | B69: 27530 | C69: 27550 | D69: 27530 | E69: 27540 | F69: 601 | H69: =IF(AND($G69<=$H$2,$G69>=$H$3),$H$4,"") ->  | I69: =IF(AND($G69<=$I$2,$G69>=$I$3),$I$4,"") ->  | J69: =IF(AND($G69<=$J$2,$G69>=$J$3),$J$4,"") ->  | K69: =IF(AND($G69<=$K$2,$G69>=$K$3),$K$4,"") ->  | L69: =IF(AND($G69<=$L$2,$G69>=$L$3),$L$4,"") ->  | M69: =IF(AND($G69<=$M$2,$G69>=$M$3),$M$4,"") ->  | N69: =IF(AND($G69<=$N$2,$G69>=$N$3),$N$4,"") ->  | O69: =IF(AND($G69<=$O$2,$G69>=$O$3),$O$4,"") ->  | P69: =IF(AND($G69<=$P$2,$G69>=$P$3),$P$4,"") ->  | Q69: =IF(AND($G69<=$Q$2,$G69>=$Q$3),$Q$4,"") ->  | R69: =IF(AND($G69<=$R$2,$G69>=$R$3),$R$4,"") ->  | S69: =IF(AND($G69<=$S$2,$G69>=$S$3),$S$4,"") -> 
A70: 14:10:00 | B70: 27540 | C70: 27540 | D70: 27530 | E70: 27530 | F70: 86 | T70: =H70&I70&J70&K70&L70&M70&N70&O70&P70&Q70&R70&S70 ->  | X70: =IF(G70<>"",ABS(G70-$E$3),"") ->  | Y70: =IF(U70=$U$2,"M","") -> 
A71: 14:15:00 | B71: 27530 | C71: 27550 | D71: 27530 | E71: 27550 | F71: 103
A72: 14:20:00 | B72: 27550 | C72: 27550 | D72: 27540 | E72: 27550 | F72: 281 | G72: =IF(G71<>"",IF(G71-10>=$D$3,G71-10,""),"") -> 
A73: 14:25:00 | B73: 27550 | C73: 27550 | D73: 27540 | E73: 27540 | F73: 251
A74: 14:30:00 | B74: 27540 | C74: 27560 | D74: 27540 | E74: 27550 | F74: 534
A75: 14:35:00 | B75: 27550 | C75: 27560 | D75: 27540 | E75: 27550 | F75: 191
A76: 14:40:00 | B76: 27540 | C76: 27550 | D76: 27540 | E76: 27540 | F76: 249
A77: 14:45:00 | B77: 27550 | C77: 27550 | D77: 27530 | E77: 27530 | F77: 511
A78: 14:50:00 | B78: 27530 | C78: 27550 | D78: 27530 | E78: 27550 | F78: 475
A79: 14:55:00 | B79: 27550 | C79: 27580 | D79: 27540 | E79: 27580 | F79: 1791
A80: 15:00:00 | B80: 27570 | C80: 27580 | D80: 27540 | E80: 27540 | F80: 2025
A81: 15:05:00 | B81: 27550 | C81: 27560 | D81: 27540 | E81: 27560 | F81: 917 | T81: =H81&I81&J81&K81&L81&M81&N81&O81&P81&Q81&R81&S81 -> 
A82: 15:10:00 | B82: 27560 | C82: 27560 | D82: 27540 | E82: 27560 | F82: 0 | T82: =H82&I82&J82&K82&L82&M82&N82&O82&P82&Q82&R82&S82 -> 
A83: 15:15:00 | B83: 27550 | C83: 27550 | D83: 27540 | E83: 27550 | F83: 1709 | T83: =H83&I83&J83&K83&L83&M83&N83&O83&P83&Q83&R83&S83 ->  | U83: =IF(G83<>"",LEN(T83),"") ->  | V83: =IF(G83<>"",U83/$W$3,"") ->  | W83: =IF(G83<>"",ABS(G83-$U$1),"") -> 
T84: =H84&I84&J84&K84&L84&M84&N84&O84&P84&Q84&R84&S84 -> 
T85: =H85&I85&J85&K85&L85&M85&N85&O85&P85&Q85&R85&S85 -> 
T86: =H86&I86&J86&K86&L86&M86&N86&O86&P86&Q86&R86&S86 -> 
H133: =IF(AND($G133<=$H$2,$G133>=$H$3),$H$4,"") ->  | I133: =IF(AND($G133<=$I$2,$G133>=$I$3),$I$4,"") ->  | J133: =IF(AND($G133<=$J$2,$G133>=$J$3),$J$4,"") ->  | K133: =IF(AND($G133<=$K$2,$G133>=$K$3),$K$4,"") ->  | L133: =IF(AND($G133<=$L$2,$G133>=$L$3),$L$4,"") ->  | M133: =IF(AND($G133<=$M$2,$G133>=$M$3),$M$4,"") ->  | N133: =IF(AND($G133<=$N$2,$G133>=$N$3),$N$4,"") ->  | O133: =IF(AND($G133<=$O$2,$G133>=$O$3),$O$4,"") ->  | P133: =IF(AND($G133<=$P$2,$G133>=$P$3),$P$4,"") ->  | Q133: =IF(AND($G133<=$Q$2,$G133>=$Q$3),$Q$4,"") ->  | R133: =IF(AND($G133<=$R$2,$G133>=$R$3),$R$4,"") ->  | S133: =IF(AND($G133<=$S$2,$G133>=$S$3),$S$4,"") -> 
X134: =IF(G134<>"",ABS(G134-$E$3),"") ->  | Y134: =IF(U134=$U$2,"M","") -> 
G136: =IF(G135<>"",IF(G135-10>=$D$3,G135-10,""),"") -> 
U147: =IF(G147<>"",LEN(T147),"") ->  | V147: =IF(G147<>"",U147/$W$3,"") ->  | W147: =IF(G147<>"",ABS(G147-$U$1),"") -> 
T150: =H150&I150&J150&K150&L150&M150&N150&O150&P150&Q150&R150&S150 -> 
H197: =IF(AND($G197<=$H$2,$G197>=$H$3),$H$4,"") ->  | I197: =IF(AND($G197<=$I$2,$G197>=$I$3),$I$4,"") ->  | J197: =IF(AND($G197<=$J$2,$G197>=$J$3),$J$4,"") ->  | K197: =IF(AND($G197<=$K$2,$G197>=$K$3),$K$4,"") ->  | L197: =IF(AND($G197<=$L$2,$G197>=$L$3),$L$4,"") ->  | M197: =IF(AND($G197<=$M$2,$G197>=$M$3),$M$4,"") ->  | N197: =IF(AND($G197<=$N$2,$G197>=$N$3),$N$4,"") ->  | O197: =IF(AND($G197<=$O$2,$G197>=$O$3),$O$4,"") ->  | P197: =IF(AND($G197<=$P$2,$G197>=$P$3),$P$4,"") ->  | Q197: =IF(AND($G197<=$Q$2,$G197>=$Q$3),$Q$4,"") ->  | R197: =IF(AND($G197<=$R$2,$G197>=$R$3),$R$4,"") ->  | S197: =IF(AND($G197<=$S$2,$G197>=$S$3),$S$4,"") -> 
X198: =IF(G198<>"",ABS(G198-$E$3),"") ->  | Y198: =IF(U198=$U$2,"M","") -> 
G200: =IF(G199<>"",IF(G199-10>=$D$3,G199-10,""),"") -> 
G201: =IF(G200<>"",IF(G200-10>=$D$3,G200-10,""),"") -> 
G202: =IF(G201<>"",IF(G201-10>=$D$3,G201-10,""),"") -> 
G203: =IF(G202<>"",IF(G202-10>=$D$3,G202-10,""),"") -> 
G204: =IF(G203<>"",IF(G203-10>=$D$3,G203-10,""),"") -> 

Sheet ＲＴＣ５分足データ
H1: =FB監視!P40 -> 15:15:01 | I1: =FLOOR(H1,J1) -> 15:15:00 | J1: 00:05:00 | K1: =I1/J1+298 -> 481 | L1: 9430 | M1: 460 | N1: 15:10:00 | DO1: 119 | DR1: 122 | DS1: 123 | DT1: 124 | DU1: 130 | DV1: 126 | DW1: 127 | DX1: 128 | DY1: 129 | DZ1: 130 | EA1: 131 | EB1: 132 | EC1: 133 | ED1: 134 | EE1: 135 | EF1: 136
A2: 現在値 | B2: =FB監視!B4 -> 27640 | C2: =IFERROR([2]!FBOARD("N225","202212","気配値6"),0) -> 27630 | Q2: 買い | R2: 売り | PH2: ナベ買い | PJ2: ナベ売り | PL2: セスタ買い | PN2: セスタ売り | PP2: 買いOBQ | PR2: 買いWOBQ | PT2: 買いＴOBQ | PV2: 売りOBQ | PX2: 売りWOBQ | PZ2: 売りＴOBQ | QB2: 買いＴＰ | QD2: 売りＴＰ | QH2: 短期トレンド転換 | QI2: 下落⇒上昇 | QJ2: 中期トレンド転換 | QK2: 下落⇒上昇 | QL2: 長期トレンド転換 | QM2: 下落⇒上昇 | QN2: 短期トレンド転換 | QO2: 上昇⇒下落 | QP2: 中期トレンド転換 | QQ2: 上昇⇒下落 | QR2: 長期トレンド転換 | QS2: 上昇⇒下落 | QT2: 短中Ｘ買い | QV2: 短中Ｘ売り | QX2: full買い | QZ2: full売り | RB2: rush買い | RD2: rush売り | RF2: 短期下限 | RH2: 短期上限 | RJ2: 押し目買い | RL2: 戻り売り
P3: 連続足本数 | Q3: =ＲＴＣ!AA3 -> 4 | R3: =ＲＴＣ!AB3 -> 4 | S3: ON
A4: 四本値更新 | B4: ON | P4: 転換・基準線並び | Q4: =ＲＴＣ!AA4 -> 1 | R4: =ＲＴＣ!AB4 -> 1 | S4: OFF | PB4: 選択 | PC4: 価格スタイル | PD4: 最小利確 | PE4: 損切 | PG4: 最小利確 | PH4: =OFFSET($PB$4,MATCH("x",$PB$5:$PB$7),2) -> 30 | PJ4: =OFFSET($PB$4,MATCH("x",$PB$5:$PB$7),2) -> 30 | PL4: =OFFSET($PB$4,MATCH("x",$PB$5:$PB$7),2) -> 30 | PN4: =OFFSET($PB$4,MATCH("x",$PB$5:$PB$7),2) -> 30 | PP4: =OFFSET($PB$4,MATCH("x",$PB$5:$PB$7),2) -> 30 | PR4: =OFFSET($PB$4,MATCH("x",$PB$5:$PB$7),2) -> 30 | PT4: =OFFSET($PB$4,MATCH("x",$PB$5:$PB$7),2) -> 30 | PV4: =OFFSET($PB$4,MATCH("x",$PB$5:$PB$7),2) -> 30 | PX4: =OFFSET($PB$4,MATCH("x",$PB$5:$PB$7),2) -> 30 | PZ4: =OFFSET($PB$4,MATCH("x",$PB$5:$PB$7),2) -> 30 | QH4: =OFFSET($PB$4,MATCH("x",$PB$5:$PB$7),2) -> 30 | QJ4: =OFFSET($PB$4,MATCH("x",$PB$5:$PB$7),2) -> 30 | QL4: =OFFSET($PB$4,MATCH("x",$PB$5:$PB$7),2) -> 30 | QN4: =OFFSET($PB$4,MATCH("x",$PB$5:$PB$7),2) -> 30 | QP4: =OFFSET($PB$4,MATCH("x",$PB$5:$PB$7),2) -> 30 | QR4: =OFFSET($PB$4,MATCH("x",$PB$5:$PB$7),2) -> 30 | QT4: =OFFSET($PB$4,MATCH("x",$PB$5:$PB$7),2) -> 30 | QV4: =OFFSET($PB$4,MATCH("x",$PB$5:$PB$7),2) -> 30 | QX4: =OFFSET($PB$4,MATCH("x",$PB$5:$PB$7),2) -> 30 | QZ4: =OFFSET($PB$4,MATCH("x",$PB$5:$PB$7),2) -> 30 | RB4: 30 | RD4: 30 | RF4: =OFFSET($PB$4,MATCH("x",$PB$5:$PB$7),2) -> 30 | RH4: =OFFSET($PB$4,MATCH("x",$PB$5:$PB$7),2) -> 30 | RJ4: 50 | RL4: 50
A5: 前回当日出来高 | B5: 28748 | OY5: 表示位置 | OZ5: 50 | PB5: x | PC5: 整数 | PD5: 30 | PE5: 60 | PG5: 発動数 | PH5: =ROWS(PH403:PH403:OFFSET(PH403,[4]ＲＴＣ!$Q$2,0))-COUNTIF(PH403:PH403:OFFSET(PH403,[4]ＲＴＣ!$Q$2,0),"") -> 0 | PJ5: =ROWS(PJ403:PJ481)-COUNTIF(PJ403:PJ481,"") -> 2 | PL5: =ROWS(PL403:PL481)-COUNTIF(PL403:PL481,"") -> 0 | PN5: =ROWS(PN403:PN481)-COUNTIF(PN403:PN481,"") -> 0 | PP5: =ROWS(PP403:PP403:OFFSET(PP403,[4]ＲＴＣ!$Q$2,0))-COUNTIF(PP403:PP403:OFFSET(PP403,[4]ＲＴＣ!$Q$2,0),"") -> 0 | PR5: =ROWS(PR403:PR481)-COUNTIF(PR403:PR481,"") -> 0 | PT5: =ROWS(PT403:PT481)-COUNTIF(PT403:PT481,"") -> 0 | PV5: =ROWS(PV403:PV481)-COUNTIF(PV403:PV481,"") -> 0 | PX5: =ROWS(PX403:PX481)-COUNTIF(PX403:PX481,"") -> 0 | PZ5: =ROWS(PZ403:PZ481)-COUNTIF(PZ403:PZ481,"") -> 0 | QH5: =ROWS(QH403:QH481)-COUNTIF(QH403:QH481,"") -> 0 | QJ5: =ROWS(QJ403:QJ481)-COUNTIF(QJ403:QJ481,"") -> 0 | QL5: =ROWS(QL403:QL481)-COUNTIF(QL403:QL481,"") -> 0 | QN5: =ROWS(QN403:QN481)-COUNTIF(QN403:QN481,"") -> 0 | QP5: =ROWS(QP403:QP481)-COUNTIF(QP403:QP481,"") -> 0 | QR5: =ROWS(QR403:QR481)-COUNTIF(QR403:QR481,"") -> 0 | QT5: =ROWS(QT403:QT481)-COUNTIF(QT403:QT481,"") -> 0 | QV5: =ROWS(QV403:QV481)-COUNTIF(QV403:QV481,"") -> 0 | QX5: =ROWS(QX403:QX481)-COUNTIF(QX403:QX481,"") -> 0 | QZ5: =ROWS(QZ403:QZ481)-COUNTIF(QZ403:QZ481,"") -> 0 | RB5: =ROWS(RB403:RB481)-COUNTIF(RB403:RB481,"") -> 0 | RD5: =ROWS(RD403:RD481)-COUNTIF(RD403:RD481,"") -> 0 | RF5: =ROWS(RF403:RF481)-COUNTIF(RF403:RF481,"") -> 0 | RH5: =ROWS(RH403:RH481)-COUNTIF(RH403:RH481,"") -> 0 | RJ5: =ROWS(RJ403:RJ481)-COUNTIF(RJ403:RJ481,"") -> 1 | RL5: =ROWS(RL403:RL481)-COUNTIF(RL403:RL481,"") -> 1
A6: 当日出来高 | B6: =ＲＴＣ!A5 -> 28748 | AP6: =MAX(AP403:AP460) -> 0 | AQ6: =MIN(AQ403:AQ460) -> 0 | CP6: 最大・最小値期間 | CZ6: トレンド期間基準値 | PC6: 小数点３桁 | PD6: 0.015 | PE6: 0.03 | PG6: 利益額 | PH6: =COUNTIF(PH403:OFFSET(PH403,[4]ＲＴＣ!$Q$2,0),">"&PH4) -> 0 | PI6: =SUMIF(PH403:PH403:OFFSET(PH403,[4]ＲＴＣ!$Q$2,0),">="&PH4,PH403:PH403:OFFSET(PH403,[4]ＲＴＣ!$Q$2,0)) -> 0 | PJ6: =COUNTIF(PJ403:PJ481,">"&PJ4) -> 2 | PK6: =SUMIF(PJ403:PJ481,">="&PJ4,PJ403:PJ481) -> 110 | PL6: =COUNTIF(PL403:PL481,">"&PL4) -> 0 | PM6: =SUMIF(PL403:PL481,">="&PL4,PL403:PL481) -> 0 | PN6: =COUNTIF(PN403:PN481,">"&PN4) -> 0 | PO6: =SUMIF(PN403:PN481,">="&PN4,PN403:PN481) -> 0 | PP6: =COUNTIF(PP403:OFFSET(PP403,[4]ＲＴＣ!$Q$2,0),">"&PP4) -> 0 | PQ6: =SUMIF(PP403:PP403:OFFSET(PP403,[4]ＲＴＣ!$Q$2,0),">="&PP4,PP403:PP403:OFFSET(PP403,[4]ＲＴＣ!$Q$2,0)) -> 0 | PR6: =COUNTIF(PR403:PR481,">"&PR4) -> 0 | PS6: =SUMIF(PR403:PR481,">="&PR4,PR403:PR481) -> 0 | PT6: =COUNTIF(PT403:PT481,">"&PT4) -> 0 | PU6: =SUMIF(PT403:PT481,">="&PT4,PT403:PT481) -> 0 | PV6: =COUNTIF(PV403:PV481,">"&PV4) -> 0 | PW6: =SUMIF(PV403:PV481,">="&PV4,PV403:PV481) -> 0 | PX6: =COUNTIF(PX403:PX481,">"&PX4) -> 0 | PY6: =SUMIF(PX403:PX481,">="&PX4,PX403:PX481) -> 0 | PZ6: =COUNTIF(PZ403:PZ481,">"&PZ4) -> 0 | QA6: =SUMIF(PZ403:PZ481,">="&PZ4,PZ403:PZ481) -> 0 | QH6: =COUNTIF(QH403:QH481,">20") -> 0 | QI6: =SUMIF(QH403:QH481,">="&QH4,QH403:QH481) -> 0 | QJ6: =COUNTIF(QJ403:QJ481,">20") -> 0 | QK6: =SUMIF(QJ403:QJ481,">="&QJ4,QJ403:QJ481) -> 0 | QL6: =COUNTIF(QL403:QL481,">20") -> 0 | QM6: =SUMIF(QL403:QL481,">="&QL4,QL403:QL481) -> 0 | QN6: =COUNTIF(QN403:QN481,">20") -> 0 | QO6: =SUMIF(QN403:QN481,">="&QN4,QN403:QN481) -> 0 | QP6: =COUNTIF(QP403:QP481,">20") -> 0 | QQ6: =SUMIF(QP403:QP481,">="&QP4,QP403:QP481) -> 0 | QR6: =COUNTIF(QR403:QR481,">20") -> 0 | QS6: =SUMIF(QR403:QR481,">="&QR4,QR403:QR481) -> 0 | QT6: =COUNTIF(QT403:QT481,">20") -> 0 | QU6: =SUMIF(QT403:QT481,">="&QT4,QT403:QT481) -> 0 | QV6: =COUNTIF(QV403:QV481,">20") -> 0 | QW6: =SUMIF(QV403:QV481,">="&QV4,QV403:QV481) -> 0 | QX6: =COUNTIF(QX403:QX481,">20") -> 0 | QY6: =SUMIF(QX403:QX481,">="&QX4,QX403:QX481) -> 0 | QZ6: =COUNTIF(QZ403:QZ481,">20") -> 0 | RA6: =SUMIF(QZ403:QZ481,">="&QZ4,QZ403:QZ481) -> 0 | RB6: =COUNTIF(RB403:RB481,">20") -> 0 | RC6: =SUMIF(RB403:RB481,">="&RB4,RB403:RB481) -> 0 | RD6: =COUNTIF(RD403:RD481,">20") -> 0 | RE6: =SUMIF(RD403:RD481,">="&RD4,RD403:RD481) -> 0 | RF6: =COUNTIF(RF403:RF481,">20") -> 0 | RG6: =SUMIF(RF403:RF481,">="&RF4,RF403:RF481) -> 0 | RH6: =COUNTIF(RH403:RH481,">20") -> 0 | RI6: =SUMIF(RH403:RH481,">="&RH4,RH403:RH481) -> 0 | RJ6: =COUNTIF(RJ403:RJ481,">20") -> 1 | RK6: =SUMIF(RJ403:RJ481,">="&RJ4,RJ403:RJ481) -> 50 | RL6: =COUNTIF(RL403:RL481,">20") -> 0 | RM6: =SUMIF(RL403:RL481,">="&RL4,RL403:RL481) -> 0
A7: 当日値幅 | B7: =FB監視!P6 -> 140 | CP7: 5 | CQ7: 5 | CZ7: 10 | OY7: 青スパ | PC7: 小数点５桁 | PD7: 0.00015 | PE7: 0.0003 | PG7: 損失額 | PH7: =PH5-PH6 -> 0 | PI7: =PH7*PE8 -> 0 | PJ7: =PJ5-PJ6 -> 0 | PK7: =PJ7*PK8 -> 0 | PL7: =PL5-PL6 -> 0 | PM7: =PL7*PM8 -> 0 | PN7: =PN5-PN6 -> 0 | PO7: =PN7*PO8 -> 0 | PP7: =PP5-PP6 -> 0 | PQ7: =PP7*PQ8 -> 0 | PR7: =PR5-PR6 -> 0 | PS7: =PR7*PS8 -> 0 | PT7: =PT5-PT6 -> 0 | PU7: =PT7*PU8 -> 0 | PV7: =PV5-PV6 -> 0 | PW7: =PV7*PW8 -> 0 | PX7: =PX5-PX6 -> 0 | PY7: =PX7*PY8 -> 0 | PZ7: =PZ5-PZ6 -> 0 | QA7: =PZ7*QA8 -> 0 | QH7: =QH5-QH6 -> 0 | QI7: =QH7*QI8 -> 0 | QJ7: =QJ5-QJ6 -> 0 | QK7: =QJ7*QK8 -> 0 | QL7: =QL5-QL6 -> 0 | QM7: =QL7*QM8 -> 0 | QN7: =QN5-QN6 -> 0 | QO7: =QN7*QO8 -> 0 | QP7: 0 | QQ7: =QP7*QQ8 -> 0 | QR7: 0 | QS7: =QR7*QS8 -> 0 | QT7: =QT5-QT6 -> 0 | QU7: =QT7*QU8 -> 0 | QV7: 0 | QW7: =QV7*QW8 -> 0 | QX7: 0 | QY7: =QX7*QY8 -> 0 | QZ7: 0 | RA7: =QZ7*RA8 -> 0 | RB7: =RB5-RB6 -> 0 | RC7: =RB7*RC8 -> 0 | RD7: =RD5-RD6 -> 0 | RE7: =RD7*RE8 -> 0 | RF7: =RF5-RF6 -> 0 | RG7: =RF7*RG8 -> 0 | RH7: =RH5-RH6 -> 0 | RI7: =RH7*RI8 -> 0 | RJ7: =RJ5-RJ6 -> 0 | RK7: =RJ7*RK8 -> 0 | RL7: =RL5-RL6 -> 1 | RM7: =RL7*RM8 -> -30
A8: 前回当日値幅 | B8: 180 | CP8: 表示位置 | CZ8: トレンド値幅基準値 | OU8: 70 | OY8: RCI基準値 | OZ8: -50 | PA8: 50 | PB8: 範囲 | PC8: 60 | PD8: 損切幅 | PE8: =OFFSET($PB$4,MATCH("x",$PB$5:$PB$7),3) -> 60 | PH8: =$PC$8 -> 60 | PI8: =$PE$8 -> 60 | PJ8: =OFFSET($PB$4,MATCH("x",$PB$5:$PB$7),3) -> 60 | PK8: -30 | PL8: =OFFSET($PB$4,MATCH("x",$PB$5:$PB$7),3) -> 60 | PM8: -30 | PN8: =OFFSET($PB$4,MATCH("x",$PB$5:$PB$7),3) -> 60 | PO8: -30 | PP8: =$PC$8 -> 60 | PQ8: =$PE$8*-1 -> -60 | PR8: =OFFSET($PB$4,MATCH("x",$PB$5:$PB$7),3) -> 60 | PS8: -30 | PT8: =OFFSET($PB$4,MATCH("x",$PB$5:$PB$7),3) -> 60 | PU8: -30 | PV8: =OFFSET($PB$4,MATCH("x",$PB$5:$PB$7),3) -> 60 | PW8: -30 | PX8: =OFFSET($PB$4,MATCH("x",$PB$5:$PB$7),3) -> 60 | PY8: -30 | PZ8: =OFFSET($PB$4,MATCH("x",$PB$5:$PB$7),3) -> 60 | QA8: -30 | QH8: 60 | QI8: -30 | QJ8: 60 | QK8: -30 | QL8: 60 | QM8: -30 | QN8: 60 | QO8: -30 | QP8: 60 | QQ8: -30 | QR8: 60 | QS8: -30 | QT8: 60 | QU8: -30 | QV8: 60 | QW8: -30 | QX8: 60 | QY8: -30 | QZ8: 60 | RA8: -30 | RB8: 60 | RC8: -30 | RD8: 60 | RE8: -30 | RF8: 100 | RG8: -30 | RH8: 100 | RI8: -30 | RJ8: 100 | RK8: -30 | RL8: 100 | RM8: -30
F9: =SUM(F211:F288) -> 42791 | Z9: 22270 | AA9: 3 | BV9: 日足 | CD9: 週足 | CP9: 0.9988 | CQ9: 1.0012 | CZ9: 80 | DL9: 0.35 | DM9: 1.25 | GN9: 18 | GO9: 18 | IC9: 現在レート順位（パラメーターの分だけ必要になります、20まで設定してありますのでこれだけの数が必要になります） | KD9: 短期上下端 | KE9: FLAG | KF9: 短期売買シグナル | KG9: 移動平均範囲 | KH9: 現在レート順位（パラメーターの分だけ必要になります、20まで設定してありますのでこれだけの数が必要になります） | MI9: 中期上下端 | MJ9: FLAG | MK9: 短期売買シグナル | ML9: 移動平均範囲 | MM9: 現在レート順位（パラメーターの分だけ必要になります、20まで設定してありますのでこれだけの数が必要になります） | ON9: 長期上下端 | OO9: FLAG | OP9: 短期売買シグナル | OQ9: 移動平均範囲 | OR9: トレンド転換 | OU9: cruz | OV9: full | OW9: rush | OY9: 傾き基準値 | OZ9: -2 | PA9: 2
A10: 時刻 | B10: 始値 | C10: 高値 | D10: 安値 | E10: 終値 | F10: 出来高 | H10: ２１本線 | I10: 青スパン | J10: 赤スパン | K10: ＋１シグマ | L10: ＋２シグマ | M10: -１シグマ | N10: -２シグマ | O10: 前日高値 | P10: 前日安値 | Q10: ＨＢＯＰ | R10: Ｓ２ | S10: Ｓ１ | T10: Ｐ | U10: B1 | V10: B2 | W10: LBOP | X10: ５日ＭＡ | Y10: ５日高値 | Z10: ２０日高値 | AA10: ４０日高値 | AB10: ５日安値 | AC10: ２０日安値 | AD10: ４０日安値 | AE10: 日足転換線 | AF10: 日足基準線 | AG10: 先行スパン１ | AH10: 先行スパン２ | AI10: ２５日ＭＡ | AJ10: 陽線 | AK10: 陰線 | AL10: ナベ買い | AM10: ナベ売り | AN10: 転基bull | AO10: 転基bear | AP10: ＦＢ売り | AQ10: ＦＢ買い | AR10: ＤＦＢ買い | AS10: ＤＦＢ売り | AT10: 75日ＭＡ | AU10: 100日ＭＡ | AV10: 200日ＭＡ | AW10: GUR | AX10: GDR | AY10: IRMax | AZ10: IRMin | BA10: IRBL | BB10: IRBS | BC10: 窓上限１ | BD10: 窓上限２ | BE10: 窓上限３ | BF10: 窓下限１ | BG10: 窓下限２ | BH10: 窓下限３ | BI10: 前日ＶＡ上限 | BJ10: 前日ＶＡ下限 | BK10: 前日Ｍｏｄｅ | BL10: Target-L | BM10: Target-S | BN10: レンジ上限 | BO10: レンジ下限 | BP10: 陽線孕み足数 | BQ10: 陰線孕み足数 | BR10: FB監視チェック | BS10: 陽線孕み足数2 | BT10: 陰線孕み足数2 | BU10: 孕みレンジ陰陽 | BV10: 日足＋２σ | BW10: 日足＋１σ | BX10: 日足－１σ | BY10: 日足－２σ | BZ10: SQ値 | CA10: ＯＰ価格１ | CB10: ＯＰ価格２ | CC10: ＯＰ価格３ | CD10: 週足転換線 | CE10: 週足基準線 | CF10: 週足先行スパン１ | CG10: 週足先行スパン２ | CH10: １３週ＭＡ | CI10: ２６週ＭＡ | CJ10: ５２週ＭＡ | CK10: ５分足遅行スパン | CL10: span model 並び | CM10: span modelブルベア転換 | CN10: 遅行スパンブルベア転換 | CP10: 突出安値 | CQ10: 突出高値 | CR10: 買いOBQ | CS10: 買いWOBQ | CT10: 買いＴOBQ | CU10: 売りOBQ | CV10: 売りWOBQ | CW10: 売りＴOBQ | CX10: 買いＴＰ | CY10: 売りＴＰ | CZ10: トレンド値幅条件 | DA10: 買いOBQまで残り時間 | DB10: 買いWOBQまで残り時間 | DC10: 買いＴOBQまで残り時間 | DD10: 売りOBQまで残り時間 | DE10: 売りWOBQまで残り時間 | DF10: 売りＴOBQまで残り時間 | DG10: 5MBB幅 | DH10: 5MBB幅拡大率 | DI10: 5MBBブレイク | DJ10: ５Ｍ－３σ | DK10: ５Ｍ＋３σ | DL10: ＢＢ収縮継続 | DM10: ＢＢ拡大 | EJ10: BGU | EK10: BGD | EL10: 30RMax | EM10: 30RMin | EN10: 30RBL | EO10: 30RBS | EP10: 120RMax | EQ10: 120RMin | ER10: 120RBL | ES10: 120RBS | ET10: 出来高前日比 | EU10: 30RBL | EV10: 30RBS | EW10: 120RBL | EX10: 120RBS | EY10: IRBL | EZ10: IRBS | FA10: 高値切り上げ継続時間 | FB10: 安値切り下げ継続時間 | FC10: 高値切り上げ回数 | FD10: 安値切り下げ回数 | FE10: セスタ売り | FF10: セスタ買い | FG10: OＲ４売り | FH10: OＲ４買い | FI10: 直近３０分高値 | FJ10: 直近３０分安値 | FM10: 突出安値 | FN10: 突出高値 | FO10: 買いOBQ | FP10: 買いWOBQ | FQ10: 買いＴOBQ | FR10: 売りOBQ | FS10: 売りWOBQ | FT10: 売りＴOBQ | FU10: 買いＴＰ | FV10: 売りＴＰ | FW10: 安値切り下げ条件 | FX10: 高値切り上げ条件 | FY10: 買いOBQ価格 | FZ10: 買いWOBQ価格 | GA10: 買いＴOBQ価格 | GB10: 売りOBQ価格 | GC10: 売りWOBQ価格 | GD10: 売りＴOBQ価格 | GE10: 買いＴＰ価格 | GF10: 売りＴＰ価格 | GH10: 買い指値変換 | GJ10: 売り指値変換 | GN10: ＢＢ売り | GO10: ＢＢ買い | IC10: 1 | ID10: 2 | IE10: 3 | IF10: 4 | IG10: 5 | IH10: 6 | II10: 7 | IJ10: 8 | IK10: 9 | IL10: 10 | IM10: 11 | IN10: 12 | IO10: 13 | IP10: 14 | IQ10: 15 | IR10: 16 | IS10: 17 | IT10: 18 | IU10: 19 | IV10: 20 | IW10: 21 | IX10: 22 | IY10: 23 | IZ10: 24 | JA10: 25 | JB10: 26 | JC10: 27 | JD10: 28 | JE10: 29 | JF10: 30 | JG10: 31 | JH10: 32 | JI10: 33 | JJ10: 34 | JK10: 35 | JL10: 36 | JM10: 37 | JN10: 38 | JO10: 39 | JP10: 40 | JQ10: 41 | JR10: 42 | JS10: 43 | JT10: 44 | JU10: 45 | JV10: 46 | JW10: 47 | JX10: 48 | JY10: 49 | JZ10: 50 | KA10: 51 | KB10: 52 | KC10: 合計 | KD10: 9 | KE10: 93 | KF10: 向き | KG10: 0 | KH10: 1 | KI10: 2 | KJ10: 3 | KK10: 4 | KL10: 5 | KM10: 6 | KN10: 7 | KO10: 8 | KP10: 9 | KQ10: 10 | KR10: 11 | KS10: 12 | KT10: 13 | KU10: 14 | KV10: 15 | KW10: 16 | KX10: 17 | KY10: 18 | KZ10: 19 | LA10: 20 | LB10: 21 | LC10: 22 | LD10: 23 | LE10: 24 | LF10: 25 | LG10: 26 | LH10: 27 | LI10: 28 | LJ10: 29 | LK10: 30 | LL10: 31 | LM10: 32 | LN10: 33 | LO10: 34 | LP10: 35 | LQ10: 36 | LR10: 37 | LS10: 38 | LT10: 39 | LU10: 40 | LV10: 41 | LW10: 42 | LX10: 43 | LY10: 44 | LZ10: 45 | MA10: 46 | MB10: 47 | MC10: 48 | MD10: 49 | ME10: 50 | MF10: 51 | MG10: 52 | MH10: 合計 | MI10: 24 | MJ10: 93 | MK10: 向き | ML10: 0 | MM10: 1 | MN10: 2 | MO10: 3 | MP10: 4 | MQ10: 5 | MR10: 6 | MS10: 7 | MT10: 8 | MU10: 9 | MV10: 10 | MW10: 11 | MX10: 12 | MY10: 13 | MZ10: 14 | NA10: 15 | NB10: 16 | NC10: 17 | ND10: 18 | NE10: 19 | NF10: 20 | NG10: 21 | NH10: 22 | NI10: 23 | NJ10: 24 | NK10: 25 | NL10: 26 | NM10: 27 | NN10: 28 | NO10: 29 | NP10: 30 | NQ10: 31 | NR10: 32 | NS10: 33 | NT10: 34 | NU10: 35 | NV10: 36 | NW10: 37 | NX10: 38 | NY10: 39 | NZ10: 40 | OA10: 41 | OB10: 42 | OC10: 43 | OD10: 44 | OE10: 45 | OF10: 46 | OG10: 47 | OH10: 48 | OI10: 49 | OJ10: 50 | OK10: 51 | OL10: 52 | OM10: 合計 | ON10: 48 | OO10: 85 | OP10: 向き | OQ10: 0 | OR10: 短期トレンド転換 | OS10: 中期 | OT10: 長期 | OU10: 短期中期転換 | OX10: ２１本線傾き | OZ10: 戻り売り | PA10: 押し目買い
A11: 17:20:00 | B11: 26240 | C11: 26250 | D11: 26210 | E11: 26210 | F11: 275 | Z11: 22270 | AA11: 2
A12: 17:25:00 | B12: 26210 | C12: 26230 | D12: 26210 | E12: 26220 | F12: 155 | Z12: 22270 | AA12: 3
A13: 17:30:00 | B13: 26220 | C13: 26230 | D13: 26210 | E13: 26230 | F13: 133 | Z13: 22270 | AA13: 2
A14: 17:35:00 | B14: 26230 | C14: 26230 | D14: 26190 | E14: 26200 | F14: 116 | Z14: 22270 | AA14: 1
A15: 17:40:00 | B15: 26200 | C15: 26240 | D15: 26200 | E15: 26240 | F15: 81 | Z15: 22270 | AA15: 1
A16: 17:45:00 | B16: 26240 | C16: 26240 | D16: 26230 | E16: 26230 | F16: 89 | Z16: 22270 | AA16: 1
A17: 17:50:00 | B17: 26230 | C17: 26230 | D17: 26220 | E17: 26230 | F17: 159 | Z17: 22270 | AA17: 3
A18: 17:55:00 | B18: 26230 | C18: 26230 | D18: 26210 | E18: 26220 | F18: 172 | Z18: 22270 | AA18: 2
A19: 18:00:00 | B19: 26220 | C19: 26240 | D19: 26210 | E19: 26240 | F19: 198 | Z19: 22270 | AA19: 1
A20: 18:05:00 | B20: 26240 | C20: 26270 | D20: 26240 | E20: 26270 | F20: 344 | Z20: 22270 | AA20: 4
A21: 18:10:00 | B21: 26270 | C21: 26290 | D21: 26260 | E21: 26270 | F21: 201 | Z21: 22270 | AA21: 1
A22: 18:15:00 | B22: 26270 | C22: 26280 | D22: 26240 | E22: 26240 | F22: 217 | Z22: 22270 | AA22: 1
A23: 18:20:00 | B23: 26250 | C23: 26260 | D23: 26240 | E23: 26260 | F23: 103 | Z23: 22270 | AA23: 2
A24: 18:25:00 | B24: 26250 | C24: 26270 | D24: 26250 | E24: 26260 | F24: 95 | Z24: 22270 | AA24: 1
A25: 18:30:00 | B25: 26260 | C25: 26270 | D25: 26260 | E25: 26260 | F25: 103 | Z25: 22270 | AA25: 4
A26: 18:35:00 | B26: 26260 | C26: 26280 | D26: 26260 | E26: 26270 | F26: 99 | Z26: 22270 | AA26: 1
A27: 18:40:00 | B27: 26270 | C27: 26310 | D27: 26260 | E27: 26310 | F27: 245 | Z27: 22270 | AA27: 1
A28: 18:45:00 | B28: 26310 | C28: 26330 | D28: 26310 | E28: 26310 | F28: 593 | Z28: 22270 | AA28: 1
A29: 18:50:00 | B29: 26310 | C29: 26310 | D29: 26280 | E29: 26290 | F29: 572 | P29: =IFERROR([2]!FBOARD("N225","202212","気配値6"),0) -> 27630 | Z29: 22270 | AA29: 1
A30: 18:55:00 | B30: 26290 | C30: 26290 | D30: 26270 | E30: 26280 | F30: 188 | Z30: 22270 | AA30: 1
A31: 19:00:00 | B31: 26290 | C31: 26290 | D31: 26240 | E31: 26240 | F31: 287 | Z31: 22270 | AA31: 2
A32: 19:05:00 | B32: 26240 | C32: 26250 | D32: 26230 | E32: 26250 | F32: 88 | Z32: 22270 | AA32: 6
A33: 19:10:00 | B33: 26240 | C33: 26250 | D33: 26240 | E33: 26240 | F33: 81 | Z33: 22270 | AA33: 25
A34: 19:15:00 | B34: 26240 | C34: 26260 | D34: 26240 | E34: 26260 | F34: 124 | Z34: 22270 | AA34: 3
A35: 19:20:00 | B35: 26260 | C35: 26270 | D35: 26260 | E35: 26270 | F35: 35 | I35: =IF(D10<>"",((MIN(D27:D35)+MAX(C27:C35))/2+(MIN(D10:D35)+MAX(C10:C35))/2)/2,I34) -> 26270 | Z35: 22270 | AA35: 3
A36: 19:25:00 | B36: 26270 | C36: 26270 | D36: 26250 | E36: 26250 | F36: 87 | I36: 26270 | Z36: 22270 | AA36: 4
A37: 19:30:00 | B37: 26250 | C37: 26280 | D37: 26240 | E37: 26270 | F37: 55 | I37: 26265 | Z37: 22270 | AA37: 6
A38: 19:35:00 | B38: 26270 | C38: 26280 | D38: 26260 | E38: 26260 | F38: 47 | I38: 26260 | Z38: 22270 | AA38: 2
A39: 19:40:00 | B39: 26260 | C39: 26270 | D39: 26260 | E39: 26270 | F39: 40 | I39: 26260
A40: 19:45:00 | B40: 26270 | C40: 26280 | D40: 26270 | E40: 26280 | F40: 64 | I40: 26260
A41: 19:50:00 | B41: 26280 | C41: 26310 | D41: 26280 | E41: 26310 | F41: 102 | I41: 26272.5
A42: 19:55:00 | B42: 26310 | C42: 26320 | D42: 26280 | E42: 26280 | F42: 294 | I42: 26275
A43: 20:00:00 | B43: 26290 | C43: 26300 | D43: 26290 | E43: 26290 | F43: 175 | I43: 26275
A44: 20:05:00 | B44: 26290 | C44: 26300 | D44: 26290 | E44: 26290 | F44: 94 | I44: 26275
A45: 20:10:00 | B45: 26290 | C45: 26310 | D45: 26290 | E45: 26310 | F45: 53 | I45: 26280
A46: 20:15:00 | B46: 26320 | C46: 26350 | D46: 26320 | E46: 26350 | F46: 576 | I46: 26297.5
A47: 20:20:00 | B47: 26350 | C47: 26350 | D47: 26340 | E47: 26340 | F47: 56 | I47: 26297.5
A48: 20:25:00 | B48: 26340 | C48: 26350 | D48: 26340 | E48: 26340 | F48: 212 | I48: 26300
A49: 20:30:00 | B49: 26350 | C49: 26350 | D49: 26340 | E49: 26340 | F49: 69 | I49: 26302.5
A50: 20:35:00 | B50: 26330 | C50: 26330 | D50: 26310 | E50: 26320 | F50: 124 | I50: 26302.5
A51: 20:40:00 | B51: 26330 | C51: 26340 | D51: 26330 | E51: 26340 | F51: 60 | I51: 26305
A52: 20:45:00 | B52: 26340 | C52: 26350 | D52: 26330 | E52: 26330 | F52: 168 | I52: 26305
A53: 20:50:00 | B53: 26330 | C53: 26340 | D53: 26330 | E53: 26340 | F53: 34 | I53: 26305
A54: 20:55:00 | B54: 26340 | C54: 26340 | D54: 26320 | E54: 26320 | F54: 59 | I54: 26310
A55: 21:00:00 | B55: 26320 | C55: 26320 | D55: 26280 | E55: 26290 | F55: 665 | I55: 26302.5
A56: 21:05:00 | B56: 26290 | C56: 26290 | D56: 26280 | E56: 26290 | F56: 122 | I56: 26302.5
A57: 21:10:00 | B57: 26300 | C57: 26300 | D57: 26270 | E57: 26280 | F57: 90 | I57: 26300
A58: 21:15:00 | B58: 26280 | C58: 26290 | D58: 26270 | E58: 26290 | F58: 89 | I58: 26302.5
A59: 21:20:00 | B59: 26290 | C59: 26310 | D59: 26280 | E59: 26310 | F59: 306 | I59: 26302.5
A60: 21:25:00 | B60: 26310 | C60: 26320 | D60: 26300 | E60: 26320 | F60: 120 | I60: 26302.5
A61: 21:30:00 | B61: 26310 | C61: 26310 | D61: 26250 | E61: 26250 | F61: 525 | I61: 26295
A62: 21:35:00 | B62: 26240 | C62: 26270 | D62: 26220 | E62: 26270 | F62: 346 | I62: 26282.5 | J62: =IF(D37<>"",(MIN(D11:D62)+MAX(C11:C62))/2,J61) -> 26270
A63: 21:40:00 | B63: 26270 | C63: 26270 | D63: 26250 | E63: 26250 | F63: 280 | I63: 26277.5 | J63: =IF(D38<>"",(MIN(D12:D63)+MAX(C12:C63))/2,J62) -> 26270
A64: 21:45:00 | B64: 26250 | C64: 26260 | D64: 26240 | E64: 26240 | F64: 411 | I64: 26277.5 | J64: 26270
A65: 21:50:00 | B65: 26240 | C65: 26250 | D65: 26230 | E65: 26250 | F65: 207 | I65: 26277.5 | J65: 26270
A66: 21:55:00 | B66: 26250 | C66: 26260 | D66: 26240 | E66: 26240 | F66: 73 | I66: 26277.5 | J66: 26275
A67: 22:00:00 | B67: 26240 | C67: 26250 | D67: 26240 | E67: 26250 | F67: 136 | I67: 26277.5 | J67: 26280
A68: 22:05:00 | B68: 26250 | C68: 26270 | D68: 26250 | E68: 26270 | F68: 154 | I68: 26277.5 | J68: 26280
A69: 22:10:00 | B69: 26270 | C69: 26280 | D69: 26270 | E69: 26280 | F69: 74 | I69: 26275 | J69: 26280
A70: 22:15:00 | B70: 26280 | C70: 26320 | D70: 26280 | E70: 26310 | F70: 314 | I70: 26277.5 | J70: 26280
A71: 22:20:00 | B71: 26320 | C71: 26340 | D71: 26290 | E71: 26290 | F71: 727 | I71: 26285 | J71: 26285
A72: 22:25:00 | B72: 26290 | C72: 26290 | D72: 26280 | E72: 26280 | F72: 137 | I72: 26285 | J72: 26285
A73: 22:30:00 | B73: 26280 | C73: 26290 | D73: 26260 | E73: 26260 | F73: 232 | I73: 26285 | J73: 26285
A74: 22:35:00 | B74: 26260 | C74: 26260 | D74: 26240 | E74: 26240 | F74: 403 | I74: 26287.5 | J74: 26285
A75: 22:40:00 | B75: 26240 | C75: 26240 | D75: 26180 | E75: 26180 | F75: 415 | I75: 26262.5 | J75: 26265
A76: 22:45:00 | B76: 26180 | C76: 26190 | D76: 26160 | E76: 26170 | F76: 479 | I76: 26252.5 | J76: 26255
A77: 22:50:00 | B77: 26170 | C77: 26210 | D77: 26170 | E77: 26190 | F77: 284 | I77: 26252.5 | J77: 26255
A78: 22:55:00 | B78: 26200 | C78: 26210 | D78: 26170 | E78: 26170 | F78: 206 | I78: 26250 | J78: 26255
A79: 23:00:00 | B79: 26170 | C79: 26180 | D79: 26120 | E79: 26120 | F79: 690 | I79: 26230 | J79: 26235
A80: 23:05:00 | B80: 26120 | C80: 26130 | D80: 26100 | E80: 26100 | F80: 636 | I80: 26207.5 | J80: 26225
A81: 23:10:00 | B81: 26090 | C81: 26110 | D81: 26050 | E81: 26060 | F81: 561 | I81: 26182.5 | J81: 26200
A82: 23:15:00 | B82: 26060 | C82: 26060 | D82: 26020 | E82: 26060 | F82: 507 | I82: 26160 | J82: 26185
A83: 23:20:00 | B83: 26060 | C83: 26100 | D83: 26060 | E83: 26080 | F83: 481 | I83: 26155 | J83: 26185
A84: 23:25:00 | B84: 26080 | C84: 26100 | D84: 26080 | E84: 26100 | F84: 172 | I84: 26147.5 | J84: 26185
A85: 23:30:00 | B85: 26110 | C85: 26110 | D85: 26060 | E85: 26060 | F85: 251 | I85: 26147.5 | J85: 26185
A86: 23:35:00 | B86: 26050 | C86: 26070 | D86: 26040 | E86: 26060 | F86: 355 | I86: 26147.5 | J86: 26185
A87: 23:40:00 | B87: 26060 | C87: 26110 | D87: 26060 | E87: 26100 | F87: 216 | I87: 26140 | J87: 26185
A88: 23:45:00 | B88: 26090 | C88: 26110 | D88: 26090 | E88: 26100 | F88: 172 | I88: 26127.5 | J88: 26185
A89: 23:50:00 | B89: 26100 | C89: 26160 | D89: 26100 | E89: 26150 | F89: 365 | I89: 26135 | J89: 26185
A90: 23:55:00 | B90: 26150 | C90: 26180 | D90: 26150 | E90: 26150 | F90: 223 | I90: 26140 | J90: 26185
A91: 00:00:00 | B91: 26140 | C91: 26170 | D91: 26140 | E91: 26150 | F91: 145 | I91: 26145 | J91: 26185
A92: 00:05:00 | B92: 26150 | C92: 26220 | D92: 26140 | E92: 26200 | F92: 578 | I92: 26155 | J92: 26185
A93: 00:10:00 | B93: 26210 | C93: 26210 | D93: 26160 | E93: 26160 | F93: 220 | I93: 26155 | J93: 26185
A94: 00:15:00 | B94: 26160 | C94: 26170 | D94: 26150 | E94: 26170 | F94: 107 | I94: 26155 | J94: 26185
A95: 00:20:00 | B95: 26150 | C95: 26150 | D95: 26130 | E95: 26130 | F95: 132 | I95: 26160 | J95: 26185
A96: 00:25:00 | B96: 26140 | C96: 26150 | D96: 26130 | E96: 26150 | F96: 82 | I96: 26167.5 | J96: 26185
A97: 00:30:00 | B97: 26150 | C97: 26180 | D97: 26140 | E97: 26170 | F97: 173 | I97: 26157.5 | J97: 26185
A98: 00:35:00 | B98: 26160 | C98: 26180 | D98: 26160 | E98: 26170 | F98: 120 | I98: 26165 | J98: 26185
A99: 00:40:00 | B99: 26170 | C99: 26190 | D99: 26160 | E99: 26190 | F99: 44 | I99: =IF(D74<>"",((MIN(D91:D99)+MAX(C91:C99))/2+(MIN(D74:D99)+MAX(C74:C99))/2)/2,I98) -> 26157.5 | J99: 26185
A100: 00:45:00 | B100: 26190 | C100: 26200 | D100: 26180 | E100: 26190 | F100: 109 | I100: 26152.5 | J100: 26185
A101: 00:50:00 | B101: 26190 | C101: 26230 | D101: 26190 | E101: 26230 | F101: 154 | I101: 26152.5 | J101: 26185
A102: 00:55:00 | B102: 26230 | C102: 26230 | D102: 26210 | E102: 26210 | F102: 189 | I102: 26152.5 | J102: 26185
A103: 01:00:00 | B103: 26210 | C103: 26210 | D103: 26190 | E103: 26210 | F103: 178 | I103: 26152.5 | J103: 26185
A104: 01:05:00 | B104: 26200 | C104: 26210 | D104: 26190 | E104: 26200 | F104: 106 | I104: 26152.5 | J104: 26180
A105: 01:10:00 | B105: 26200 | C105: 26200 | D105: 26190 | E105: 26190 | F105: 36 | I105: 26155 | J105: 26180
A106: 01:15:00 | B106: 26190 | C106: 26190 | D106: 26150 | E106: 26150 | F106: 99 | I106: 26157.5 | J106: 26180
A107: 01:20:00 | B107: 26150 | C107: 26150 | D107: 26140 | E107: 26140 | F107: 44 | I107: 26155 | J107: 26180
A108: 01:25:00 | B108: 26140 | C108: 26160 | D108: 26140 | E108: 26150 | F108: 113 | I108: 26160 | J108: 26180
A109: 01:30:00 | B109: 26150 | C109: 26170 | D109: 26150 | E109: 26160 | F109: 75 | I109: 26160 | J109: 26180
A110: 01:35:00 | B110: 26180 | C110: 26180 | D110: 26160 | E110: 26170 | F110: 66 | H110: =IF(E110<>"",AVERAGE(E90:E110),H109) -> 26173.33333 | I110: 26160 | J110: 26180 | K110: =IF(B110<>"",$H110+STDEVP(E90:E110),K109) -> 26199.39797 | L110: =IF(B110<>"",$H110+2*STDEVP(E90:E110),L109) -> 26225.4626 | M110: =IF(B110<>"",$H110-STDEVP(E90:E110),M109) -> 26147.2687 | N110: =IF(B110<>"",$H110-2*STDEVP(E90:E110),N109) -> 26121.20407
A111: 01:40:00 | B111: 26170 | C111: 26180 | D111: 26160 | E111: 26180 | F111: 36 | H111: 26174.7619 | I111: 26155 | J111: 26180 | K111: 26200.32584 | L111: 26225.88977 | M111: 26149.19797 | N111: 26123.63404
A112: 01:45:00 | B112: 26180 | C112: 26190 | D112: 26160 | E112: 26160 | F112: 41 | H112: 26175.2381 | I112: 26160 | J112: 26180 | K112: 26200.42673 | L112: 26225.61536 | M112: 26150.04946 | N112: 26124.86083
A113: 01:50:00 | B113: 26160 | C113: 26170 | D113: 26150 | E113: 26170 | F113: 57 | H113: 26173.80952 | I113: 26165 | J113: 26180 | K113: 26198.39682 | L113: 26222.98412 | M113: 26149.22223 | N113: 26124.63493
A114: 01:55:00 | B114: 26160 | C114: 26170 | D114: 26130 | E114: 26140 | F114: 146 | H114: 26172.85714 | I114: 26162.5 | J114: 26180 | K114: 26198.33222 | L114: 26223.8073 | M114: 26147.38206 | N114: 26121.90699
A115: 02:00:00 | B115: 26130 | C115: 26130 | D115: 26120 | E115: 26120 | F115: 52 | H115: 26170.47619 | I115: 26165 | J115: 26180 | K115: 26198.33232 | L115: 26226.18844 | M115: 26142.62007 | N115: 26114.76394
A116: 02:05:00 | B116: 26120 | C116: 26120 | D116: 26100 | E116: 26110 | F116: 77 | H116: 26169.52381 | I116: 26155 | J116: 26180 | K116: 26199.03994 | L116: 26228.55607 | M116: 26140.00768 | N116: 26110.49155
A117: 02:10:00 | B117: 26110 | C117: 26140 | D117: 26110 | E117: 26140 | F117: 87 | H117: 26169.04762 | I117: 26155 | J117: 26180 | K117: 26198.95299 | L117: 26228.85836 | M117: 26139.14225 | N117: 26109.23688
A118: 02:15:00 | B118: 26140 | C118: 26150 | D118: 26140 | E118: 26140 | F118: 30 | H118: 26167.61905 | I118: 26155 | J118: 26180 | K118: 26198.1547 | L118: 26228.69036 | M118: 26137.08339 | N118: 26106.54774
A119: 02:20:00 | B119: 26130 | C119: 26130 | D119: 26110 | E119: 26110 | F119: 116 | H119: 26164.7619 | I119: 26155 | J119: 26180 | K119: 26197.65698 | L119: 26230.55206 | M119: 26131.86683 | N119: 26098.97175
A120: 02:25:00 | B120: 26120 | C120: 26130 | D120: 26120 | E120: 26130 | F120: 104 | H120: 26161.90476 | I120: 26155 | J120: 26180 | K120: 26195.0881 | L120: 26228.27143 | M120: 26128.72143 | N120: 26095.53809
A121: 02:30:00 | B121: 26120 | C121: 26140 | D121: 26120 | E121: 26140 | F121: 38 | H121: 26159.52381 | I121: 26150 | J121: 26180 | K121: 26192.3982 | L121: 26225.27259 | M121: 26126.64942 | N121: 26093.77503
A122: 02:35:00 | B122: 26140 | C122: 26150 | D122: 26140 | E122: 26140 | F122: 41 | H122: 26155.2381 | I122: 26150 | J122: 26180 | K122: 26184.28962 | L122: 26213.34114 | M122: 26126.18657 | N122: 26097.13505
A123: 02:40:00 | B123: 26140 | C123: 26140 | D123: 26130 | E123: 26130 | F123: 24 | H123: 26151.42857 | I123: 26145 | J123: 26155 | K123: 26178.20555 | L123: 26204.98254 | M123: 26124.65159 | N123: 26097.87461
A124: 02:45:00 | B124: 26130 | C124: 26130 | D124: 26120 | E124: 26120 | F124: 47 | H124: 26147.14286 | I124: 26145 | J124: 26155 | K124: 26171.27402 | L124: 26195.40518 | M124: 26123.0117 | N124: 26098.88054
A125: 02:50:00 | B125: 26120 | C125: 26120 | D125: 26080 | E125: 26080 | F125: 157 | H125: =IF(E130<>"",AVERAGE(E105:E130),H124) -> 26125.76923 | I125: =IF(D100<>"",((MIN(D117:D130)+MAX(C117:C130))/2+(MIN(D100:D130)+MAX(C100:C130))/2)/2,I124) -> 26115 | J125: =IF(D100<>"",(MIN(D74:D130)+MAX(C74:C130))/2,J124) -> 26140 | K125: =IF(B130<>"",$H130+STDEVP(E105:E130),K124) -> 26157.62839 | L125: =IF(B130<>"",$H130+2*STDEVP(E105:E130),L124) -> 26197.16153 | M125: =IF(B130<>"",$H130-STDEVP(E105:E130),M124) -> 26078.56209 | N125: =IF(B130<>"",$H130-2*STDEVP(E105:E130),N124) -> 26039.02894
A126: 02:55:00 | B126: 26080 | C126: 26080 | D126: 26060 | E126: 26060 | F126: 90 | H126: =IF(E126<>"",AVERAGE(E106:E126),H130) -> 26135.2381 | I126: =IF(D101<>"",((MIN(D118:D126)+MAX(C118:C126))/2+(MIN(D101:D126)+MAX(C101:C126))/2)/2,I130) -> 26125 | J126: =IF(D101<>"",(MIN(D75:D126)+MAX(C75:C126))/2,J130) -> 26130 | K126: =IF(B126<>"",$H126+STDEVP(E106:E126),K130) -> 26163.45816 | L126: =IF(B126<>"",$H126+2*STDEVP(E106:E126),L130) -> 26191.67822 | M126: =IF(B126<>"",$H126-STDEVP(E106:E126),M130) -> 26107.01803 | N126: =IF(B126<>"",$H126-2*STDEVP(E106:E126),N130) -> 26078.79797
A127: 03:00:00 | B127: 26070 | C127: 26070 | D127: 26060 | E127: 26060 | F127: 172 | H127: 26130.95238 | I127: 26125 | J127: =IF(D102<>"",(MIN(D76:D127)+MAX(C76:C127))/2,J126) -> 26125 | K127: 26163.15779 | L127: 26195.36319 | M127: 26098.74697 | N127: 26066.54157
A128: 03:05:00 | B128: 26060 | C128: 26070 | D128: 26060 | E128: 26070 | F128: 59 | H128: 26127.61905 | I128: 26120 | J128: 26125 | K128: 26162.24697 | L128: 26196.87489 | M128: 26092.99113 | N128: 26058.3632
A129: 03:10:00 | B129: 26070 | C129: 26070 | D129: 26060 | E129: 26070 | F129: 137 | H129: 26123.80952 | I129: 26120 | J129: 26125 | K129: 26160.1251 | L129: 26196.44067 | M129: 26087.49395 | N129: 26051.17838
A130: 03:15:00 | B130: 26060 | C130: 26060 | D130: 26040 | E130: 26040 | F130: 172 | H130: 26118.09524 | I130: 26107.5 | J130: 26125 | K130: 26157.57025 | L130: 26197.04526 | M130: 26078.62023 | N130: 26039.14521
A131: 03:20:00 | B131: 26040 | C131: 26050 | D131: 26040 | E131: 26040 | F131: 91 | H131: 26111.90476 | I131: 26102.5 | J131: 26125 | K131: 26152.91801 | L131: 26193.93125 | M131: 26070.89152 | N131: 26029.87827
A132: 03:25:00 | B132: 26040 | C132: 26080 | D132: 26040 | E132: 26080 | F132: 134 | H132: 26107.14286 | I132: 26100 | J132: 26125 | K132: 26145.70547 | L132: 26184.26808 | M132: 26068.58025 | N132: 26030.01764
A133: 03:30:00 | B133: 26070 | C133: 26080 | D133: 26070 | E133: 26070 | F133: 111 | H133: 26102.85714 | I133: =IF(D108<>"",((MIN(D130:D133)+MAX(C130:C133))/2+(MIN(D108:D133)+MAX(C108:C133))/2)/2,I132) -> 26087.5 | J133: 26125 | K133: 26140.29189 | L133: 26177.72664 | M133: 26065.42239 | N133: 26027.98764
A134: 03:35:00 | B134: 26070 | C134: 26110 | D134: 26070 | E134: 26100 | F134: 121 | H134: 26099.52381 | I134: 26095 | J134: 26135 | K134: 26133.81614 | L134: 26168.10846 | M134: 26065.23148 | N134: 26030.93915
A135: 03:40:00 | B135: 26100 | C135: 26110 | D135: 26080 | E135: 26080 | F135: 65 | H135: 26096.66667 | I135: 26095 | J135: 26135 | K135: 26129.95235 | L135: 26163.23803 | M135: 26063.38099 | N135: 26030.09531
A136: 03:45:00 | B136: 26080 | C136: 26090 | D136: 26080 | E136: 26080 | F136: 79 | H136: 26094.7619 | I136: 26095 | J136: 26135 | K136: 26127.80143 | L136: 26160.84095 | M136: 26061.72238 | N136: 26028.68286
A137: 03:50:00 | B137: 26080 | C137: 26080 | D137: 26050 | E137: 26050 | F137: 126 | H137: 26091.90476 | I137: 26095 | J137: 26135 | K137: 26126.07786 | L137: 26160.25095 | M137: 26057.73167 | N137: 26023.55857
A138: 03:55:00 | B138: 26060 | C138: 26060 | D138: 26050 | E138: 26050 | F138: 118 | H138: 26087.61905 | I138: 26090 | J138: 26135 | K138: 26121.12878 | L138: 26154.63852 | M138: 26054.10931 | N138: 26020.59957
A139: 04:00:00 | B139: 26050 | C139: 26080 | D139: 26050 | E139: 26080 | F139: 104 | H139: 26084.7619 | I139: 26090 | J139: 26135 | K139: 26116.17604 | L139: 26147.59018 | M139: 26053.34777 | N139: 26021.93363
A140: 04:05:00 | B140: 26080 | C140: 26090 | D140: 26080 | E140: 26080 | F140: 95 | H140: 26083.33333 | I140: 26085 | J140: 26135 | K140: 26114.24539 | L140: 26145.15746 | M140: 26052.42127 | N140: 26021.50921
A141: 04:10:00 | B141: 26070 | C141: 26100 | D141: 26060 | E141: 26100 | F141: 178 | H141: 26081.90476 | I141: 26087.5 | J141: 26135 | K141: 26111.28228 | L141: 26140.6598 | M141: 26052.52724 | N141: 26023.14973
A142: 04:15:00 | B142: 26100 | C142: 26120 | D142: 26100 | E142: 26120 | F142: 137 | H142: 26080.95238 | I142: 26090 | J142: 26135 | K142: 26108.71065 | L142: 26136.46892 | M142: 26053.19411 | N142: 26025.43584
A143: 04:20:00 | B143: 26120 | C143: 26120 | D143: 26110 | E143: 26120 | F143: 44 | H143: 26080 | I143: 26090 | J143: 26135 | K143: 26106.00366 | L143: 26132.00733 | M143: 26053.99634 | N143: 26027.99267
A144: 04:25:00 | B144: 26110 | C144: 26110 | D144: 26090 | E144: 26100 | F144: 106 | H144: 26078.57143 | I144: 26090 | J144: 26135 | K144: 26102.53285 | L144: 26126.49427 | M144: 26054.61001 | N144: 26030.64859
A145: 04:30:00 | B145: 26100 | C145: 26140 | D145: 26100 | E145: 26140 | F145: 155 | H145: =IF(E145<>"",AVERAGE(E130:E145),H144) -> 26083.125 | I145: 26095 | J145: 26135 | K145: =IF(B145<>"",$H145+STDEVP(E130:E145),K144) -> 26111.56765 | L145: =IF(B145<>"",$H145+2*STDEVP(E130:E145),L144) -> 26140.0103 | M145: =IF(B145<>"",$H145-STDEVP(E130:E145),M144) -> 26054.68235 | N145: =IF(B145<>"",$H145-2*STDEVP(E130:E145),N144) -> 26026.2397
A146: 04:35:00 | B146: 26130 | C146: 26180 | D146: 26130 | E146: 26160 | F146: 214 | H146: 26083.33333 | I146: 26112.5 | J146: 26135 | K146: 26114.39906 | L146: 26145.46479 | M146: 26052.26761 | N146: 26021.20188
A147: 04:40:00 | B147: 26170 | C147: 26170 | D147: 26140 | E147: 26160 | F147: 45 | H147: 26088.09524 | I147: 26112.5 | J147: 26135 | K147: 26122.68385 | L147: 26157.27246 | M147: 26053.50663 | N147: 26018.91802
A148: 04:45:00 | B148: 26150 | C148: 26170 | D148: 26150 | E148: 26160 | F148: 76 | H148: 26092.85714 | I148: 26115 | J148: 26135 | K148: 26130.03661 | L148: 26167.21608 | M148: 26055.67767 | N148: 26018.4982
A149: 04:50:00 | B149: 26160 | C149: 26180 | D149: 26150 | E149: 26160 | F149: 132 | H149: 26097.14286 | I149: 26115 | J149: 26135 | K149: 26136.56038 | L149: 26175.97791 | M149: 26057.72533 | N149: 26018.3078
A150: 04:55:00 | B150: 26160 | C150: 26180 | D150: 26160 | E150: 26180 | F150: 225 | H150: 26102.38095 | I150: =IF(D130<>"",((MIN(D142:D150)+MAX(C142:C150))/2+(MIN(D130:D150)+MAX(C130:C150))/2)/2,I149) -> 26122.5 | J150: =IF(D130<>"",(MIN(D99:D150)+MAX(C99:C150))/2,J149) -> 26135 | K150: 26145.02061 | L150: 26187.66027 | M150: 26059.74129 | N150: 26017.10163
A151: 05:00:00 | B151: 26180 | C151: 26190 | D151: 26180 | E151: 26180 | F151: 65 | H151: 26109.04762 | I151: 26127.5 | J151: 26135 | K151: 26152.35216 | L151: 26195.65671 | M151: 26065.74308 | N151: 26022.43853
A152: 05:05:00 | B152: 26170 | C152: 26180 | D152: 26170 | E152: 26180 | F152: 14 | H152: 26115.71429 | I152: 26127.5 | J152: 26135 | K152: 26158.65072 | L152: 26201.58715 | M152: 26072.77785 | N152: 26029.84142
A153: 05:10:00 | B153: 26180 | C153: 26180 | D153: 26180 | E153: 26180 | F153: 2 | H153: 26120.47619 | I153: 26130 | J153: 26135 | K153: 26164.71323 | L153: 26208.95028 | M153: 26076.23915 | N153: 26032.0021
A154: 05:15:00 | B154: 26170 | C154: 26170 | D154: 26170 | E154: 26170 | F154: 37 | H154: 26125.2381 | I154: 26137.5 | J154: 26125 | K154: 26169.16651 | L154: 26213.09492 | M154: 26081.30969 | N154: 26037.38128
A155: 05:20:00 | B155: 26170 | C155: 26170 | D155: 26170 | E155: 26170 | F155: 6 | H155: 26128.57143 | I155: 26140 | J155: 26125 | K155: 26173.10988 | L155: 26217.64833 | M155: 26084.03298 | N155: 26039.49453
A156: 05:25:00 | B156: 26170 | C156: 26170 | D156: 26160 | E156: 26160 | F156: 7 | H156: 26132.38095 | I156: 26142.5 | J156: 26120 | K156: 26176.01414 | L156: 26219.64732 | M156: 26088.74777 | N156: 26045.11458
A157: 05:30:00 | B157: 26160 | C157: 26160 | D157: 26160 | E157: 26160 | F157: 10 | H157: 26136.19048 | I157: 26142.5 | J157: 26115 | K157: 26178.55805 | L157: 26220.92562 | M157: 26093.8229 | N157: 26051.45533
A158: 05:35:00 | B158: 26160 | C158: 26160 | D158: 26160 | E158: 26160 | F158: 0 | H158: 26141.42857 | I158: 26147.5 | J158: 26115 | K158: 26179.38666 | L158: 26217.34474 | M158: 26103.47048 | N158: 26065.5124
A159: 05:40:00 | B159: 26160 | C159: 26170 | D159: 26160 | E159: 26160 | F159: 5 | H159: 26146.66667 | I159: 26147.5 | J159: 26115 | K159: 26178.78747 | L159: 26210.90827 | M159: 26114.54586 | N159: 26082.42506
A160: 05:45:00 | B160: 26160 | C160: 26160 | D160: 26160 | E160: 26160 | F160: 5 | H160: 26150.47619 | I160: 26145 | J160: 26115 | K160: 26179.00791 | L160: 26207.53963 | M160: 26121.94447 | N160: 26093.41275
A161: 05:50:00 | B161: 26160 | C161: 26160 | D161: 26150 | E161: 26160 | F161: 23 | H161: 26154.28571 | I161: 26142.5 | J161: 26115 | K161: 26178.10476 | L161: 26201.92381 | M161: 26130.46667 | N161: 26106.64762
A162: 06:00:00 | B162: 26150 | C162: 26150 | D162: 26150 | E162: 26150 | F162: 27 | H162: 26156.66667 | I162: 26140 | J162: 26115 | K162: 26177.21471 | L162: 26197.76276 | M162: 26136.11862 | N162: 26115.57057
A163: 08:45:00 | B163: 26230 | C163: 26260 | D163: 26210 | E163: 26230 | F163: 1983 | H163: 26161.90476 | I163: =IF(D138<>"",((MIN(D155:D163)+MAX(C155:C163))/2+(MIN(D138:D163)+MAX(C138:C163))/2)/2,I162) -> 26180 | J163: 26150 | K163: 26186.12971 | L163: 26210.35466 | M163: 26137.67981 | N163: 26113.45487
A164: 08:50:00 | B164: 26220 | C164: 26240 | D164: 26190 | E164: 26220 | F164: 707 | H164: 26166.66667 | I164: 26180 | J164: 26150 | K164: 26191.98997 | L164: 26217.31328 | M164: 26141.34336 | N164: 26116.02005
A165: 08:55:00 | B165: 26220 | C165: 26240 | D165: 26220 | E165: 26220 | F165: 502 | H165: 26172.38095 | I165: 26182.5 | J165: 26150 | K165: 26195.45532 | L165: 26218.52968 | M165: 26149.30659 | N165: 26126.23222
A166: 09:00:00 | B166: 26220 | C166: 26260 | D166: 26110 | E166: 26150 | F166: 2831 | H166: 26172.85714 | I166: 26172.5 | J166: 26150 | K166: 26195.35431 | L166: 26217.85147 | M166: 26150.35998 | N166: 26127.86281
A167: 09:05:00 | B167: 26150 | C167: 26180 | D167: 26140 | E167: 26170 | F167: 1741 | H167: 26173.33333 | I167: 26180 | J167: 26150 | K167: 26195.65849 | L167: 26217.98365 | M167: 26151.00817 | N167: 26128.68302
A168: 09:10:00 | B168: 26170 | C168: 26210 | D168: 26150 | E168: 26150 | F168: 1189 | H168: 26172.85714 | I168: 26180 | J168: 26150 | K168: 26195.56499 | L168: 26218.27283 | M168: 26150.1493 | N168: 26127.44145
A169: 09:15:00 | B169: 26160 | C169: 26160 | D169: 26110 | E169: 26130 | F169: 976 | H169: 26171.42857 | I169: 26180 | J169: 26150 | K169: 26195.78421 | L169: 26220.13985 | M169: 26147.07293 | N169: 26122.71729
A170: 09:20:00 | B170: 26130 | C170: 26150 | D170: 26080 | E170: 26100 | F170: 999 | H170: 26168.57143 | I170: 26170 | J170: 26150 | K170: 26197.23794 | L170: 26225.90445 | M170: 26139.90492 | N170: 26111.23841
A171: 09:25:00 | B171: 26100 | C171: 26140 | D171: 26090 | E171: 26120 | F171: 760 | H171: 26165.71429 | I171: 26170 | J171: 26150 | K171: 26196.0413 | L171: 26226.36832 | M171: 26135.38727 | N171: 26105.06025
A172: 09:30:00 | B172: 26120 | C172: 26120 | D172: 26100 | E172: 26100 | F172: 607 | H172: 26161.90476 | I172: 26170 | J172: 26150 | K172: 26195.0881 | L172: 26228.27143 | M172: 26128.72143 | N172: 26095.53809
A173: 09:35:00 | B173: 26100 | C173: 26110 | D173: 26060 | E173: 26080 | F173: 1002 | H173: 26157.14286 | I173: 26160 | J173: 26150 | K173: 26194.32233 | L173: 26231.5018 | M173: 26119.96339 | N173: 26082.78392
A174: 09:40:00 | B174: 26080 | C174: 26110 | D174: 26050 | E174: 26060 | F174: 800 | H174: =IF(E174<>"",AVERAGE(E154:E174),H173) -> 26151.42857 | I174: 26155 | J174: 26150 | K174: =IF(B174<>"",$H174+STDEVP(E154:E174),K173) -> 26193.54923 | L174: =IF(B174<>"",$H174+2*STDEVP(E154:E174),L173) -> 26235.66988 | M174: =IF(B174<>"",$H174-STDEVP(E154:E174),M173) -> 26109.30792 | N174: =IF(B174<>"",$H174-2*STDEVP(E154:E174),N173) -> 26067.18726
A175: 09:45:00 | B175: 26070 | C175: 26070 | D175: 26030 | E175: 26040 | F175: 814 | H175: 26145.2381 | I175: 26132.5 | J175: 26145 | K175: 26193.3074 | L175: 26241.3767 | M175: 26097.1688 | N175: 26049.0995
A176: 09:50:00 | B176: 26040 | C176: 26040 | D176: 26000 | E176: 26030 | F176: 1503 | H176: 26138.57143 | I176: 26117.5 | J176: =IF(D151<>"",(MIN(D130:D176)+MAX(C130:C176))/2,J175) -> 26130 | K176: 26192.1381 | L176: 26245.70476 | M176: 26085.00476 | N176: 26031.4381
A177: 09:55:00 | B177: 26030 | C177: 26080 | D177: 26020 | E177: 26080 | F177: 663 | H177: 26134.7619 | I177: 26105 | J177: 26130 | K177: 26189.50103 | L177: 26244.24016 | M177: 26080.02278 | N177: 26025.28365
A178: 10:00:00 | B178: 26080 | C178: 26080 | D178: 26040 | E178: 26050 | F178: 711 | H178: 26129.52381 | I178: 26102.5 | J178: 26130 | K178: 26186.80143 | L178: 26244.07905 | M178: 26072.24619 | N178: 26014.96857
A179: 10:05:00 | B179: 26050 | C179: 26060 | D179: 26020 | E179: 26030 | F179: 537 | H179: 26123.33333 | I179: 26100 | J179: 26130 | K179: 26183.91255 | L179: 26244.49176 | M179: 26062.75412 | N179: 26002.1749
A180: 10:10:00 | B180: 26040 | C180: 26090 | D180: 26040 | E180: 26090 | F180: 1163 | H180: 26120 | I180: 26095 | J180: 26130 | K180: 26180.39552 | L180: 26240.79104 | M180: 26059.60448 | N180: 25999.20896
A181: 10:15:00 | B181: 26090 | C181: 26100 | D181: 26030 | E181: 26050 | F181: 693 | H181: 26114.7619 | I181: 26092.5 | J181: 26130 | K181: 26176.22185 | L181: 26237.68179 | M181: 26053.30196 | N181: 25991.84202
A182: 10:20:00 | B182: 26050 | C182: 26060 | D182: 26040 | E182: 26050 | F182: 321 | H182: 26109.52381 | I182: 26092.5 | J182: 26130 | K182: 26171.58953 | L182: 26233.65526 | M182: 26047.45808 | N182: 25985.39236
A183: 10:25:00 | B183: 26050 | C183: 26070 | D183: 26010 | E183: 26010 | F183: 633 | H183: 26102.85714 | I183: 26090 | J183: 26130 | K183: 26167.67505 | L183: 26232.49295 | M183: 26038.03924 | N183: 25973.22134
A184: 10:30:00 | B184: 26010 | C184: 26040 | D184: 25970 | E184: 25990 | F184: 1055 | H184: 26091.42857 | I184: 26075 | J184: 26115 | K184: 26153.93843 | L184: 26216.4483 | M184: 26028.91871 | N184: 25966.40885
A185: 10:35:00 | B185: 25990 | C185: 26020 | D185: 25980 | E185: 26010 | F185: 683 | H185: 26081.42857 | I185: 26075 | J185: 26115 | K185: 26139.18716 | L185: 26196.94575 | M185: 26023.66998 | N185: 25965.9114
A186: 10:40:00 | B186: 26010 | C186: 26020 | D186: 25990 | E186: 26010 | F186: 650 | H186: 26071.42857 | I186: 26075 | J186: 26115 | K186: 26122.07071 | L186: 26172.71284 | M186: 26020.78644 | N186: 25970.1443
A187: 10:45:00 | B187: 26010 | C187: 26020 | D187: 25990 | E187: 26020 | F187: 575 | H187: 26065.2381 | I187: 26075 | J187: 26115 | K187: 26113.80019 | L187: 26162.36228 | M187: 26016.676 | N187: 25968.11391
A188: 10:50:00 | B188: 26020 | C188: 26080 | D188: 26010 | E188: 26040 | F188: 825 | H188: 26059.04762 | I188: 26075 | J188: 26115 | K188: 26101.79881 | L188: 26144.55 | M188: 26016.29643 | N188: 25973.54524
A189: 10:55:00 | B189: 26040 | C189: 26050 | D189: 26000 | E189: 26010 | F189: 508 | H189: 26052.38095 | I189: 26075 | J189: 26115 | K189: 26091.16052 | L189: 26129.94009 | M189: 26013.60138 | N189: 25974.82182
A190: 11:00:00 | B190: 26010 | C190: 26020 | D190: 25980 | E190: 26010 | F190: 680 | H190: 26046.66667 | I190: 26070 | J190: 26115 | K190: 26082.3015 | L190: 26117.93633 | M190: 26011.03183 | N190: 25975.397
A191: 11:05:00 | B191: 26020 | C191: 26060 | D191: 26020 | E191: 26040 | F191: 501 | H191: 26043.80952 | I191: 26070 | J191: =IF(D166<>"",(MIN(D140:D191)+MAX(C140:C191))/2,J190) -> 26115 | K191: 26077.40037 | L191: 26110.99121 | M191: 26010.21868 | N191: 25976.62784
A192: 11:10:00 | B192: 26030 | C192: 26030 | D192: 26000 | E192: 26010 | F192: 461 | H192: 26038.57143 | I192: 26057.5 | J192: 26115 | K192: 26068.21787 | L192: 26097.86431 | M192: 26008.92499 | N192: 25979.27854
A193: 11:15:00 | B193: 26010 | C193: 26010 | D193: 25970 | E193: 25970 | F193: 389 | H193: 26032.38095 | I193: 26057.5 | J193: 26115 | K193: 26062.12666 | L193: 26091.87237 | M193: 26002.63524 | N193: 25972.88953
A194: 11:20:00 | B194: 25960 | C194: 25960 | D194: 25920 | E194: 25950 | F194: 1037 | H194: 26026.19048 | I194: 26020 | J194: 26090 | K194: 26058.77388 | L194: 26091.35728 | M194: 25993.60708 | N194: 25961.02367
A195: 11:25:00 | B195: 25940 | C195: 25960 | D195: 25930 | E195: 25960 | F195: 522 | H195: 26021.42857 | I195: 26017.5 | J195: 26090 | K195: 26055.97126 | L195: 26090.51395 | M195: 25986.88588 | N195: 25952.3432
A196: 11:30:00 | B196: 25960 | C196: 25970 | D196: 25950 | E196: 25950 | F196: 361 | H196: 26017.14286 | I196: 26015 | J196: 26090 | K196: 26054.57761 | L196: 26092.01236 | M196: 25979.70811 | N196: 25942.27336
A197: 11:35:00 | B197: 25960 | C197: 25970 | D197: 25950 | E197: 25960 | F197: 223 | H197: 26013.80952 | I197: 26005 | J197: 26090 | K197: 26053.02519 | L197: 26092.24086 | M197: 25974.59386 | N197: 25935.37819
A198: 11:40:00 | B198: 25960 | C198: 25960 | D198: 25940 | E198: 25960 | F198: 273 | H198: 26008.09524 | I198: 26002.5 | J198: 26090 | K198: 26045.9696 | L198: 26083.84396 | M198: 25970.22088 | N198: 25932.34652
A199: 11:45:00 | B199: 25950 | C199: 25980 | D199: 25950 | E199: 25980 | F199: 283 | H199: 26004.7619 | I199: 26002.5 | J199: 26090 | K199: 26041.87422 | L199: 26078.98654 | M199: 25967.64959 | N199: 25930.53727
A200: 11:50:00 | B200: 25980 | C200: 25990 | D200: 25960 | E200: 25960 | F200: 216 | H200: 26001.42857 | I200: 25992.5 | J200: 26090 | K200: 26039.261 | L200: 26077.09343 | M200: 25963.59614 | N200: 25925.76372
... 444 more rows

Sheet mado
A1: 期間 | B1: =FB監視!E24 -> 2022-10-05 | C1: =FB監視!E5 -> 2022-11-01 | D1: 窓上限１ | E1: 26860 | F1: 窓下限１ | G1: 26820
A2: 最高値 | B2: =MAX(FB監視!F5:F24) -> 27700 | D2: 窓上限２ | E2: 27400 | F2: 窓下限２ | G2: 27270
A3: 最安値 | B3: =MIN(FB監視!K5:K24) -> 26210 | D3: 窓上限３ | E3: 26650 | F3: 窓下限３ | G3: 26430
A4: 値幅 | B4: =B2-B3 -> 1490
A7: ００プレー注文価格
A10: 直近高値下二桁 | B10: 売り指値 | E10: 手法
A11: 0 | B11: 95
A12: 10
A13: 20
A14: 30
A15: 40
A16: 50
A17: 60
A18: 70
A19: 80
A20: 90
B1477: 9395

Sheet 週足
A1: 日付開始 | B1: 日付終了 | C1: 週番号 | D1: 始値 | E1: 高値 | F1: 安値 | G1: 終値 | H1: 出来高 | I1: 夕場込み始値 | J1: 夕場込み高値 | K1: 夕場込み安値 | L1: 夕場込み終値 | M1: 夕場始値 | N1: 夕場高値 | O1: 夕場安値 | P1: 夕場終値 | U1: 高値平均 | V1: 安値平均 | W1: 13WMA | X1: 26WMA | Y1: 52WMA | Z1: 75WMA | AA1: 100WMA | AB1: 200WMA | AC1: 高安値幅 | AD1: 5日値幅平均 | AE1: ギャップ | AF1: 本体値幅 | AG1: ５日HB | AH1: ５日LB | AI1: ２０日HB | AJ1: ２０日LB | AK1: ４０日高値 | AL1: ４０日安値 | AM1: HBタッチ | AN1: ＬＢタッチ | AO1: LSサイド | AP1: 連続陽線 | AQ1: 連続陰線 | AR1: LMA並び | AS1: SMA並び | AT1: 前日比＋ | AU1: 前日比－ | AV1: 基準線 | AW1: 転換線 | AX1: 先行スパン上限 | AY1: 先行スパン下限 | AZ1: 遅行線 | BA1: HBOP | BB1: S2 | BC1: S1 | BD1: P | BE1: B1 | BF1: B2 | BG1: LBOP | BH1: 上昇幅 | BI1: 下落幅 | BJ1: ＲＳＩ5日 | BK1: RSI9日 | BN1: ５日ＭＡ傾き | BO1: ２０日ＭＡ傾き | BP1: 傾き判定 | BQ1: 前４日レンジ幅 | BR1: 孕み足本数 | BU1: 5日間平均出来高 | BV1: 連続上昇日数 | BW1: 連続下落日数 | BX1: 5ＥＭＡ | BY1: 20ＥＭＡ | BZ1: ＭＡＣＤ | CA1: シグナル | CB1: ＯＳＣＩ | CC1: +3σ | CD1: +2σ | CE1: +1σ | CF1: 26ＭＡ | CG1: -1σ | CH1: -2σ | CI1: -3σ | CJ1: 本体値幅 | CK1: 高安値幅 | CL1: LB乖離率 | CM1: HB乖離率 | CN1: 20MA乖離率 | CO1: 上ヒゲ | CP1: 下ヒゲ | CQ1: 一目終値雲位置 | CR1: 一目始値位置 | CS1: 転換線・基準線位置 | CT1: 前４日ＲＢＯ | CU1: 前日安値～当日始値 | CV1: 前日高値～当日始値 | CY1: 前日包み足 | CZ1: 翌日基準線 | DA1: 翌日転換線 | DB1: 翌日先行スパン上限 | DC1: 翌日先行スパン下限 | DD1: 始値５日ＭＡ
A2: 2022-11-01 | B2: 2022-11-01 | C2: 45 | D2: 27480 | E2: 27700 | F2: 27170 | G2: 27170 | H2: 115670 | U2: =AVERAGE(E2:E6) -> 27448 | V2: =AVERAGE(F2:F6) -> 26520 | W2: =AVERAGE(G2:G12) -> 27262.72727 | X2: =AVERAGE(G2:G28) -> 27235.18519 | Y2: =AVERAGE(G2:G54) -> 27490.75472 | Z2: =AVERAGE(G2:G66) -> 27667.07692 | AA2: =AVERAGE(G2:G67) -> 27675.30303 | AB2: =AVERAGE(G2:G67) -> 27675.30303 | AC2: =IF(E2>F2,E2-F2,(E2-F2)*(-1)) -> 530 | AD2: =(SUM(AC2:AC6)-MAX(AC2:AC6)-MIN(AC2:AC6))/3 -> 773.3333333 | AE2: =D2-G3 -> 470 | AF2: =G2-D2 -> -310 | AG2: =MAX(E2:E6) -> 27700 | AH2: =MIN(F2:F6) -> 25610 | AI2: =MAX(AG2:AG21) -> 29230 | AJ2: =MIN(F2:F21) -> 25450 | AK2: =MAX(E2:E42) -> 29230 | AL2: =MIN(F2:F42) -> 24670 | AM2: =IF(U2>0,IF(E2>U2,1,AM3+1),"") -> 1 | AN2: =IF(V2>0,IF(F2<V2,1,AN3+1),"") -> 4 | AO2: =IF(W2>0,IF(G2>W2,"L","S"),"") -> S | AP2: =IF((G2-D2)>0,AP3+1,0) -> 0 | AQ2: =IF((G2-D2)<0,AQ3+1,0) -> 2 | AR2: =IF(W2>0,IF(G2>U2,IF(V2>W2,"L",""),""),"") ->  | AS2: =IF(W2>0,IF(G2<V2,IF(U2<W2,"S",""),""),"") ->  | AT2: =IF(G2>0,IF(G2-G3>0,G2-G3,""),"") -> 160 | AU2: =IF(G2>0,IF(G2-G3<0,ABS(G2-G3),""),"") ->  | AV2: =IF(F2>0,(MAX(E2:E27)+MIN(F2:F27))/2,(MAX(E3:E27,FB監視!P29)+MIN(F3:F27,FB監視!P29))/2) -> 27340 | AW2: =IF(F2>0,(MAX(E2:E10)+MIN(F2:F10))/2,(MAX(E3:E10,FB監視!P29)+MIN(F3:F10,FB監視!P29))/2) -> 27030 | AX2: =(AW28+AV28)/2 -> 26900 | AY2: =(MAX(E28:E67)+MIN(F28:F67))/2 -> 27645 | AZ2: =G28 -> 27110 | BA2: =2*BD2-2*F2+E2 -> 28053.33333 | BB2: =BD2+E2-F2 -> 27876.66667 | BC2: =2*BD2-F2 -> 27523.33333 | BD2: =SUM(E2:G2)/3 -> 27346.66667 | BE2: =2*BD2-E2 -> 26993.33333 | BF2: =BD2-E2+F2 -> 26816.66667 | BG2: =2*BD2-2*E2+F2 -> 26463.33333 | BH2: =IF(G2>D2,G2-D2,0) -> 0 | BI2: =IF(D2>G2,D2-G2,0) -> 310 | BJ2: =(SUM(AT2:AT6)/(SUM(AU2:AU6)+SUM(AT2:AT6)))*100 -> 87.17948718 | BK2: =(SUM(AT2:AT10)/(SUM(AU2:AU10)+SUM(AT2:AT10)))*100 -> 43.70179949 | BN2: =IF(U2>U3,IF(U3>U4,IF(U4>U5,U2/U5-1,""),),IF(U2<U3,IF(U3<U4,IF(U4<U5,U2/U5-1,""),""),"")) -> 0 | BO2: =IF(W2>W3,IF(W3>W4,IF(W4>W5,W2/W5-1,""),),IF(W2<W3,IF(W3<W4,IF(W4<W5,W2/W5-1,""),""),"")) -> -0.01497782887 | BP2: =IF(BN2<>"",IF(BO2<>"",IF(BN2>0.5%,IF(BO2>0.25%,"UP",""),IF(BN2<-0.5%,IF(BO2<-0.25%,"DW",""),"")),""),"") ->  | BQ2: =(MAX(E2:E5)-MIN(F2:F5)) -> 1490 | BR2: =IF(AND(E2<=E3,F2>=F3),1,0) -> 0 | BU2: =(SUM(H2:H6)-MAX(H2:H6)-MIN(H2:H6))/3 -> 332095 | BV2: =IF(G2>G3,IF(B2=B3,BV3+1,1),0) -> 1 | BW2: =IF(G2<G3,IF(B2=B3,BW3+1,1),0) -> 0 | BX2: =BX3+((G2-BX3)*2/(1+5)) ->  | BY2: =BY3+((G2-BY3)*2/(1+20)) ->  | BZ2: =BX2-BY2 ->  | CA2: =AVERAGE(BZ2:BZ10) ->  | CB2: =BZ2-CA2 ->  | CC2: =$CF2+3*STDEVP($G2:$G27) -> 29711.77762 | CD2: =$CF2+2*STDEVP($G2:$G27) -> 28887.85175 | CE2: =$CF2+STDEVP($G2:$G27) -> 28063.92587 | CF2: =AVERAGE(G2:G27) -> 27240 | CG2: =$CF2-STDEVP($G2:$G27) -> 26416.07413 | CH2: =$CF2-2*STDEVP($G2:$G27) -> 25592.14825 | CI2: =$CF2-3*STDEVP($G2:$G27) -> 24768.22238 | CJ2: =(G2-D2)/AD2 -> -0.400862069 | CK2: =(E2-F2)/AD2 -> 0.6853448276 | CL2: =(G2-V2)/AD2 -> 0.8405172414 | CM2: =(G2-U2)/AD2 -> -0.3594827586 | CN2: =(G2-W2)/AD2 -> -0.1199059561 | CO2: =IF(CJ2>=0,(E2-G2),(E2-D2)) -> 220 | CP2: =IF(CJ2>=0,(D2-F2),(G2-F2)) -> 0 | CQ2: =IF(AND(G2>AX2,G2>AY2),"L",IF(AND(G2<AX2,G2<AY2),"S","I")) -> I | CR2: =IF(AND(CS2="L",D2>AW2),"L",IF(AND(CS2="S",D2<AW2),"S","N")) -> N | CS2: =IF(AW2>AV2,"L",IF(AW2<AV2,"S","N")) -> S | CT2: =IF(D2>MAX(E3:E6),"H",IF(D2<MIN(F3:F6),"L","")) ->  | CU2: =(D2-F3) -> 520 | CV2: =(D2-E3) -> -110 | CY2: =IF(AND(CJ3>=0,D2>G3,G2<D3),"D",IF(AND(CJ3<=0,D2<G3,G2>D3),"U","")) ->  | CZ2: =IF(F2>0,(MAX(E2:E27)+MIN(F2:F27))/2,(MAX(FB監視!D2,E3:E26)+MIN(FB監視!D2,F3:F26))/2) -> 27340 | DA2: =IF(F2>0,(MAX(E2:E10)+MIN(F2:F10))/2,(MAX(FB監視!D2,E3:E9)+MIN(FB監視!D2,F3:F9))/2) -> 27030 | DB2: =(AW27+AV27)/2 -> 26975 | DC2: =(MAX(E28:E67)+MIN(F28:F67))/2 -> 27645 | DD2: =AVERAGE(D2,G3:G6) -> 27108
A3: 2022-10-24 | B3: 2022-10-28 | C3: 44 | D3: 27290 | E3: 27590 | F3: 26960 | G3: 27010 | H3: 342484 | U3: =AVERAGE(E3:E7) -> 27210 | V3: =AVERAGE(F3:F7) -> 26222 | W3: =AVERAGE(G3:G13) -> 27422.72727 | X3: =AVERAGE(G3:G29) -> 27224.07407 | Y3: =AVERAGE(G3:G55) -> 27546.98113 | Z3: =AVERAGE(G3:G67) -> 27683.07692 | AA3: =AVERAGE(G3:G67) -> 27683.07692 | AB3: =AVERAGE(G3:G67) -> 27683.07692 | AC3: =IF(E3>F3,E3-F3,(E3-F3)*(-1)) -> 630 | AD3: =(SUM(AC3:AC7)-MAX(AC3:AC7)-MIN(AC3:AC7))/3 -> 840 | AE3: =D3-G4 -> 390 | AF3: =G3-D3 -> -280 | AG3: =MAX(E3:E7) -> 27590 | AH3: =MIN(F3:F7) -> 25610 | AI3: =MAX(AG3:AG22) -> 29230 | AJ3: =MIN(F3:F22) -> 25450 | AK3: =MAX(E3:E43) -> 29230 | AL3: =MIN(F3:F43) -> 24670 | AM3: =IF(U3>0,IF(E3>U3,1,AM4+1),"") -> 1 | AN3: =IF(V3>0,IF(F3<V3,1,AN4+1),"") -> 3 | AO3: =IF(W3>0,IF(G3>W3,"L","S"),"") -> S | AP3: =IF((G3-D3)>0,AP4+1,0) -> 0 | AQ3: =IF((G3-D3)<0,AQ4+1,0) -> 1 | AR3: =IF(W3>0,IF(G3>U3,IF(V3>W3,"L",""),""),"") ->  | AS3: =IF(W3>0,IF(G3<V3,IF(U3<W3,"S",""),""),"") ->  | AT3: =IF(G3>0,IF(G3-G4>0,G3-G4,""),"") -> 110 | AU3: =IF(G3>0,IF(G3-G4<0,ABS(G3-G4),""),"") ->  | AV3: =IF(F3>0,(MAX(E3:E28)+MIN(F3:F28))/2,(MAX(E4:E28,FB監視!P30)+MIN(F4:F28,FB監視!P30))/2) -> 27340 | AW3: =IF(F3>0,(MAX(E3:E11)+MIN(F3:F11))/2,(MAX(E4:E11,FB監視!P30)+MIN(F4:F11,FB監視!P30))/2) -> 27030 | AX3: =(AW29+AV29)/2 -> 26970 | AY3: =(MAX(E29:E67)+MIN(F29:F67))/2 -> 27645 | AZ3: =G29 -> 26870 | BA3: =2*BD3-2*F3+E3 -> 28043.33333 | BB3: =BD3+E3-F3 -> 27816.66667 | BC3: =2*BD3-F3 -> 27413.33333 | BD3: =SUM(E3:G3)/3 -> 27186.66667 | BE3: =2*BD3-E3 -> 26783.33333 | BF3: =BD3-E3+F3 -> 26556.66667 | BG3: =2*BD3-2*E3+F3 -> 26153.33333 | BH3: =IF(G3>D3,G3-D3,0) -> 0 | BI3: =IF(D3>G3,D3-G3,0) -> 280 | BJ3: =(SUM(AT3:AT7)/(SUM(AU3:AU7)+SUM(AT3:AT7)))*100 -> 49.58677686 | BK3: =(SUM(AT3:AT11)/(SUM(AU3:AU11)+SUM(AT3:AT11)))*100 -> 32.90598291 | BN3: =IF(U3>U4,IF(U4>U5,IF(U5>U6,U3/U6-1,""),),IF(U3<U4,IF(U4<U5,IF(U5<U6,U3/U6-1,""),""),"")) -> -0.01505827843 | BO3: =IF(W3>W4,IF(W4>W5,IF(W5>W6,W3/W6-1,""),),IF(W3<W4,IF(W4<W5,IF(W5<W6,W3/W6-1,""),""),"")) -> -0.01146976897 | BP3: =IF(BN3<>"",IF(BO3<>"",IF(BN3>0.5%,IF(BO3>0.25%,"UP",""),IF(BN3<-0.5%,IF(BO3<-0.25%,"DW",""),"")),""),"") -> DW | BQ3: =(MAX(E3:E6)-MIN(F3:F6)) -> 1980 | BR3: =IF(AND(E3<=E4,F3>=F4),1,0) -> 0 | BU3: =(SUM(H3:H7)-MAX(H3:H7)-MIN(H3:H7))/3 -> 343006.6667 | BV3: =IF(G3>G4,IF(B3=B4,BV4+1,1),0) -> 1 | BW3: =IF(G3<G4,IF(B3=B4,BW4+1,1),0) -> 0 | BX3: =BX4+((G3-BX4)*2/(1+5)) ->  | BY3: =BY4+((G3-BY4)*2/(1+20)) ->  | BZ3: =BX3-BY3 ->  | CA3: =AVERAGE(BZ3:BZ11) ->  | CB3: =BZ3-CA3 ->  | CC3: 29710.30035 | CD3: 28886.09767 | CE3: 28061.89499 | CF3: =AVERAGE(G3:G28) -> 27237.69231 | CG3: 26413.48963 | CH3: 25589.28695 | CI3: 24765.08427 | CJ3: =(G3-D3)/AD3 -> -0.3333333333 | CK3: =(E3-F3)/AD3 -> 0.75 | CL3: =(G3-V3)/AD3 -> 0.9380952381 | CM3: =(G3-U3)/AD3 -> -0.2380952381 | CN3: =(G3-W3)/AD3 -> -0.4913419913 | CO3: =IF(CJ3>=0,(E3-G3),(E3-D3)) -> 300 | CP3: =IF(CJ3>=0,(D3-F3),(G3-F3)) -> 50 | CQ3: =IF(AND(G3>AX3,G3>AY3),"L",IF(AND(G3<AX3,G3<AY3),"S","I")) -> I | CR3: =IF(AND(CS3="L",D3>AW3),"L",IF(AND(CS3="S",D3<AW3),"S","N")) -> N | CS3: =IF(AW3>AV3,"L",IF(AW3<AV3,"S","N")) -> S | CT3: =IF(D3>MAX(E4:E7),"H",IF(D3<MIN(F4:F7),"L","")) ->  | CU3: =(D3-F4) -> 640 | CV3: =(D3-E4) -> -80 | CY3: =IF(AND(CJ4>=0,D3>G4,G3<D4),"D",IF(AND(CJ4<=0,D3<G4,G3>D4),"U","")) ->  | CZ3: =IF(F3>0,(MAX(E3:E28)+MIN(F3:F28))/2,(MAX(FB監視!D3,E4:E27)+MIN(FB監視!D3,F4:F27))/2) -> 27340 | DA3: =IF(F3>0,(MAX(E3:E11)+MIN(F3:F11))/2,(MAX(FB監視!D3,E4:E10)+MIN(FB監視!D3,F4:F10))/2) -> 27030 | DB3: =(AW28+AV28)/2 -> 26900 | DC3: =(MAX(E29:E67)+MIN(F29:F67))/2 -> 27645 | DD3: =AVERAGE(D3,G4:G7) -> 26870
A4: 2022-10-17 | B4: 2022-10-21 | C4: 43 | D4: 26700 | E4: 27370 | F4: 26650 | G4: 26900 | H4: 349699 | U4: 27230 | V4: 26174 | W4: 27561.81818 | X4: 27227.40741 | Y4: 27610 | Z4: =AVERAGE(G4:G67) -> 27693.59375 | AA4: =AVERAGE(G4:G67) -> 27693.59375 | AB4: =AVERAGE(G4:G67) -> 27693.59375 | AC4: =IF(E4>F4,E4-F4,(E4-F4)*(-1)) -> 720 | AD4: 923.3333333 | AE4: =D4-G5 -> -350 | AF4: =G4-D4 -> 200 | AG4: 27690 | AH4: 25610 | AI4: 29230 | AJ4: 25450 | AK4: 29230 | AL4: 24670 | AM4: =IF(U4>0,IF(E4>U4,1,AM5+1),"") -> 1 | AN4: =IF(V4>0,IF(F4<V4,1,AN5+1),"") -> 2 | AO4: =IF(W4>0,IF(G4>W4,"L","S"),"") -> S | AP4: =IF((G4-D4)>0,AP5+1,0) -> 3 | AQ4: =IF((G4-D4)<0,AQ5+1,0) -> 0 | AR4: =IF(W4>0,IF(G4>U4,IF(V4>W4,"L",""),""),"") ->  | AS4: =IF(W4>0,IF(G4<V4,IF(U4<W4,"S",""),""),"") ->  | AT4: =IF(G4>0,IF(G4-G5>0,G4-G5,""),"") ->  | AU4: =IF(G4>0,IF(G4-G5<0,ABS(G4-G5),""),"") -> 150 | AV4: =IF(F4>0,(MAX(E4:E29)+MIN(F4:F29))/2,(MAX(E5:E29,FB監視!P31)+MIN(F5:F29,FB監視!P31))/2) -> 27340 | AW4: =IF(F4>0,(MAX(E4:E12)+MIN(F4:F12))/2,(MAX(E5:E12,FB監視!P31)+MIN(F5:F12,FB監視!P31))/2) -> 27220 | AX4: =(AW30+AV30)/2 -> 26970 | AY4: =(MAX(E30:E67)+MIN(F30:F67))/2 -> 27645 | AZ4: =G30 -> 27100 | BA4: =2*BD4-2*F4+E4 -> 28016.66667 | BB4: =BD4+E4-F4 -> 27693.33333 | BC4: =2*BD4-F4 -> 27296.66667 | BD4: =SUM(E4:G4)/3 -> 26973.33333 | BE4: =2*BD4-E4 -> 26576.66667 | BF4: =BD4-E4+F4 -> 26253.33333 | BG4: =2*BD4-2*E4+F4 -> 25856.66667 | BH4: =IF(G4>D4,G4-D4,0) -> 200 | BI4: =IF(D4>G4,D4-G4,0) -> 0 | BJ4: 41.44486692 | BK4: 29.24335378 | BN4: =IF(U4>U5,IF(U5>U6,IF(U6>U7,U4/U7-1,""),),IF(U4<U5,IF(U5<U6,IF(U6<U7,U4/U7-1,""),""),"")) -> -0.0201511335 | BO4: =IF(W4>W5,IF(W5>W6,IF(W6>W7,W4/W7-1,""),),IF(W4<W5,IF(W5<W6,IF(W6<W7,W4/W7-1,""),""),"")) -> -0.009021376741 | BP4: =IF(BN4<>"",IF(BO4<>"",IF(BN4>0.5%,IF(BO4>0.25%,"UP",""),IF(BN4<-0.5%,IF(BO4<-0.25%,"DW",""),"")),""),"") -> DW | BQ4: 1790 | BR4: =IF(AND(E4<=E5,F4>=F5),1,0) -> 0 | BU4: 334500 | BV4: =IF(G4>G5,IF(B4=B5,BV5+1,1),0) -> 0 | BW4: =IF(G4<G5,IF(B4=B5,BW5+1,1),0) -> 1 | BX4: =BX5+((G4-BX5)*2/(1+5)) ->  | BY4: =BY5+((G4-BY5)*2/(1+20)) ->  | BZ4: =BX4-BY4 ->  | CB4: =BZ4-CA4 ->  | CC4: 29710.6908 | CD4: 28884.5631 | CE4: 28058.4354 | CF4: 27232.30769 | CG4: 26406.17999 | CH4: 25580.05229 | CI4: 24753.92458 | CJ4: =(G4-D4)/AD4 -> 0.2166064982 | CK4: =(E4-F4)/AD4 -> 0.7797833935 | CL4: =(G4-V4)/AD4 -> 0.7862815884 | CM4: =(G4-U4)/AD4 -> -0.357400722 | CN4: =(G4-W4)/AD4 -> -0.716770594 | CO4: =IF(CJ4>=0,(E4-G4),(E4-D4)) -> 470 | CP4: =IF(CJ4>=0,(D4-F4),(G4-F4)) -> 50 | CQ4: =IF(AND(G4>AX4,G4>AY4),"L",IF(AND(G4<AX4,G4<AY4),"S","I")) -> S | CR4: =IF(AND(CS4="L",D4>AW4),"L",IF(AND(CS4="S",D4<AW4),"S","N")) -> S | CS4: =IF(AW4>AV4,"L",IF(AW4<AV4,"S","N")) -> S | CU4: =(D4-F5) -> 490 | CV4: =(D4-E5) -> -480 | CY4: =IF(AND(CJ5>=0,D4>G5,G4<D5),"D",IF(AND(CJ5<=0,D4<G5,G4>D5),"U","")) ->  | CZ4: =IF(F4>0,(MAX(E4:E29)+MIN(F4:F29))/2,(MAX(FB監視!D4,E5:E28)+MIN(FB監視!D4,F5:F28))/2) -> 27340 | DA4: =IF(F4>0,(MAX(E4:E12)+MIN(F4:F12))/2,(MAX(FB監視!D4,E5:E11)+MIN(FB監視!D4,F5:F11))/2) -> 27220 | DB4: =(AW29+AV29)/2 -> 26970 | DC4: =(MAX(E30:E67)+MIN(F30:F67))/2 -> 27645 | DD4: 26778
A5: 2022-10-11 | B5: 2022-10-14 | C5: 42 | D5: 26700 | E5: 27180 | F5: 26210 | G5: 27050 | H5: 316964 | U5: 27446 | V5: 26302 | W5: 27677.27273 | X5: 27234.07407 | Y5: 27671.50943 | Z5: =AVERAGE(G5:G67) -> 27706.19048 | AA5: =AVERAGE(G5:G67) -> 27706.19048 | AB5: =AVERAGE(G5:G67) -> 27706.19048 | AC5: 970 | AD5: 1033.333333 | AE5: -400 | AF5: 350 | AG5: 28450 | AH5: 25610 | AI5: 29230 | AJ5: 25450 | AK5: 29370 | AL5: 24670 | AM5: 8 | AN5: 1 | AO5: S | AP5: 2 | AQ5: 0 | AU5: 50 | AV5: =IF(F5>0,(MAX(E5:E30)+MIN(F5:F30))/2,(MAX(E6:E30,FB監視!P32)+MIN(F6:F30,FB監視!P32))/2) -> 27340 | AW5: =IF(F5>0,(MAX(E5:E13)+MIN(F5:F13))/2,(MAX(E6:E13,FB監視!P32)+MIN(F6:F13,FB監視!P32))/2) -> 27420 | AX5: 27067.5 | AY5: =(MAX(E31:E67)+MIN(F31:F67))/2 -> 27645 | AZ5: 27080 | BA5: 28386.66667 | BB5: 27783.33333 | BC5: 27416.66667 | BD5: 26813.33333 | BE5: 26446.66667 | BF5: 25843.33333 | BG5: 25476.66667 | BH5: 350 | BI5: 0 | BJ5: 34.82428115 | BK5: 35.47758285 | BN5: -0.02859772068 | BO5: -0.007303792103 | BP5: DW | BQ5: 2080 | BR5: 1 | BU5: 281948 | BV5: 0 | BW5: 1 | CC5: 29711.77762 | CD5: 28887.85175 | CE5: 28063.92587 | CF5: 27240 | CG5: 26416.07413 | CH5: 25592.14825 | CI5: 24768.22238 | CJ5: 0.3387096774 | CK5: 0.9387096774 | CL5: 0.7238709677 | CM5: -0.3832258065 | CN5: -0.6070381232 | CO5: 130 | CP5: 490 | CQ5: S | CR5: N | CS5: L | CU5: 1090 | CV5: -700 | CZ5: =IF(F5>0,(MAX(E5:E30)+MIN(F5:F30))/2,(MAX(FB監視!D5,E6:E29)+MIN(FB監視!D5,F6:F29))/2) -> 27340 | DA5: =IF(F5>0,(MAX(E5:E13)+MIN(F5:F13))/2,(MAX(FB監視!D5,E6:E12)+MIN(FB監視!D5,F6:F12))/2) -> 27420 | DB5: 26970 | DC5: =(MAX(E31:E67)+MIN(F31:F67))/2 -> 27645 | DD5: 26838
A6: 2022-10-03 | B6: 2022-10-07 | C6: 41 | D6: 25850 | E6: 27400 | F6: 25610 | G6: 27100 | H6: 336837 | U6: 27626 | V6: 26512 | W6: 27740.90909 | X6: 27233.7037 | Y6: 27711.32075 | Z6: =AVERAGE(G6:G67) -> 27716.77419 | AA6: =AVERAGE(G6:G67) -> 27716.77419 | AB6: =AVERAGE(G6:G67) -> 27716.77419 | AC6: 1790 | AD6: 986.6666667 | AE6: -160 | AF6: 1250 | AG6: 28450 | AH6: 25610 | AI6: 29230 | AJ6: 25450 | AK6: 29370 | AL6: 24670 | AM6: 7 | AN6: 1 | AO6: S | AP6: 1 | AQ6: 0 | AT6: 1090 | AV6: =IF(F6>0,(MAX(E6:E31)+MIN(F6:F31))/2,(MAX(E7:E31,FB監視!P33)+MIN(F7:F31,FB監視!P33))/2) -> 27340 | AW6: =IF(F6>0,(MAX(E6:E14)+MIN(F6:F14))/2,(MAX(E7:E14,FB監視!P33)+MIN(F7:F14,FB監視!P33))/2) -> 27420 | AX6: 27067.5 | AY6: =(MAX(E32:E67)+MIN(F32:F67))/2 -> 27645 | AZ6: 27040 | BA6: 29586.66667 | BB6: 28493.33333 | BC6: 27796.66667 | BD6: 26703.33333 | BE6: 26006.66667 | BF6: 24913.33333 | BG6: 24216.66667 | BH6: 1250 | BI6: 0 | BJ6: 41.8128655 | BK6: 40.18348624 | BN6: -0.03277081437 | BQ6: 2840 | BR6: 0 | BU6: 224786.6667 | BV6: 1 | BW6: 0 | CC6: 29712.19371 | CD6: 28888.51376 | CE6: 28064.8338 | CF6: 27241.15385 | CG6: 26417.47389 | CH6: 25593.79394 | CI6: 24770.11398 | CJ6: 1.266891892 | CK6: 1.814189189 | CL6: 0.5959459459 | CM6: -0.5331081081 | CN6: -0.6495700246 | CO6: 300 | CP6: 240 | CQ6: I | CR6: N | CS6: L | CU6: 170 | CV6: -660 | CY6: U | CZ6: =IF(F6>0,(MAX(E6:E31)+MIN(F6:F31))/2,(MAX(FB監視!D6,E7:E30)+MIN(FB監視!D6,F7:F30))/2) -> 27340 | DA6: =IF(F6>0,(MAX(E6:E14)+MIN(F6:F14))/2,(MAX(FB監視!D6,E7:E13)+MIN(FB監視!D6,F7:F13))/2) -> 27420 | DB6: 27067.5 | DC6: =(MAX(E32:E67)+MIN(F32:F67))/2 -> 27645 | DD6: 26848
A7: 2022-09-26 | B7: 2022-09-30 | C7: 40 | D7: 26420 | E7: 26510 | F7: 25680 | G7: 26010 | H7: 503117 | U7: 27790 | V7: 26906 | W7: 27812.72727 | X7: 27254.44444 | Y7: 27721.50943 | Z7: =AVERAGE(G7:G67) -> 27726.88525 | AA7: =AVERAGE(G7:G67) -> 27726.88525 | AB7: =AVERAGE(G7:G67) -> 27726.88525 | AC7: 830 | AD7: 873.3333333 | AE7: -610 | AF7: -410 | AG7: 28450 | AH7: 25680 | AI7: 29230 | AJ7: 25450 | AK7: 29370 | AL7: 24670 | AM7: 6 | AN7: 1 | AO7: S | AP7: 0 | AQ7: 3 | AS7: S | AU7: 1020 | AV7: =IF(F7>0,(MAX(E7:E32)+MIN(F7:F32))/2,(MAX(E8:E32,FB監視!P34)+MIN(F8:F32,FB監視!P34))/2) -> 27340 | AW7: =IF(F7>0,(MAX(E7:E15)+MIN(F7:F15))/2,(MAX(E8:E15,FB監視!P34)+MIN(F8:F15,FB監視!P34))/2) -> 27455 | AX7: 27067.5 | AY7: =(MAX(E33:E67)+MIN(F33:F67))/2 -> 27645 | AZ7: 27660 | BA7: 27283.33333 | BB7: 26896.66667 | BC7: 26453.33333 | BD7: 26066.66667 | BE7: 25623.33333 | BF7: 25236.66667 | BG7: 24793.33333 | BH7: 0 | BI7: 410 | BJ7: 10.36585366 | BK7: 31.79916318 | BN7: -0.02764170749 | BQ7: 2770 | BR7: 0 | BU7: 179137 | BV7: 0 | BW7: 1 | CC7: 29711.31447 | CD7: 28887.15836 | CE7: 28063.00226 | CF7: 27238.84615 | CG7: 26414.69005 | CH7: 25590.53395 | CI7: 24766.37784 | CJ7: -0.4694656489 | CK7: 0.9503816794 | CL7: -1.025954198 | CM7: -2.038167939 | CN7: -2.064191534 | CO7: 90 | CP7: 330 | CQ7: S | CR7: N | CS7: L | CT7: L | CU7: -300 | CV7: -1270 | CZ7: =IF(F7>0,(MAX(E7:E32)+MIN(F7:F32))/2,(MAX(FB監視!D7,E8:E31)+MIN(FB監視!D7,F8:F31))/2) -> 27340 | DA7: =IF(F7>0,(MAX(E7:E15)+MIN(F7:F15))/2,(MAX(FB監視!D7,E8:E14)+MIN(FB監視!D7,F8:F14))/2) -> 27455 | DB7: 27067.5 | DC7: =(MAX(E33:E67)+MIN(F33:F67))/2 -> 27645 | DD7: 27292
A8: 2022-09-20 | B8: 2022-09-22 | C8: 39 | D8: 27550 | E8: 27690 | F8: 26720 | G8: 27030 | H8: 126138 | U8: 28254 | V8: 27422 | W8: 27880.90909 | X8: 27324.81481 | Y8: 27740.37736 | Z8: =AVERAGE(G8:G67) -> 27755.5 | AA8: =AVERAGE(G8:G67) -> 27755.5 | AB8: =AVERAGE(G8:G67) -> 27755.5 | AC8: 970 | AD8: 810 | AE8: 200 | AF8: -520 | AG8: 28830 | AH8: 26720 | AI8: 29230 | AJ8: 25450 | AK8: 29840 | AL8: 24670 | AM8: 5 | AN8: 1 | AO8: S | AP8: 0 | AQ8: 2 | AU8: 320 | AV8: =IF(F8>0,(MAX(E8:E33)+MIN(F8:F33))/2,(MAX(E9:E33,FB監視!P35)+MIN(F9:F33,FB監視!P35))/2) -> 27340 | AW8: =IF(F8>0,(MAX(E8:E16)+MIN(F8:F16))/2,(MAX(E9:E16,FB監視!P35)+MIN(F9:F16,FB監視!P35))/2) -> 27975 | AX8: 27020 | AY8: =(MAX(E34:E67)+MIN(F34:F67))/2 -> 27645 | AZ8: 27910 | BA8: 28543.33333 | BB8: 28116.66667 | BC8: 27573.33333 | BD8: 27146.66667 | BE8: 26603.33333 | BF8: 26176.66667 | BG8: 25633.33333 | BH8: 0 | BI8: 520 | BJ8: 13.17829457 | BK8: 38.97435897 | BN8: -0.0120979021 | BO8: 0.01141048049 | BQ8: 1730 | BR8: 0 | BU8: 157905.6667 | BV8: 0 | BW8: 1 | CC8: 29672.02006 | CD8: 28882.11593 | CE8: 28092.21181 | CF8: 27302.30769 | CG8: 26512.40357 | CH8: 25722.49945 | CI8: 24932.59533 | CJ8: -0.6419753086 | CK8: 1.197530864 | CL8: -0.4839506173 | CM8: -1.511111111 | CN8: -1.050505051 | CO8: 140 | CP8: 310 | CQ8: I | CR8: N | CS8: L | CU8: 260 | CV8: -900 | CZ8: =IF(F8>0,(MAX(E8:E33)+MIN(F8:F33))/2,(MAX(FB監視!D8,E9:E32)+MIN(FB監視!D8,F9:F32))/2) -> 27340 | DA8: =IF(F8>0,(MAX(E8:E16)+MIN(F8:F16))/2,(MAX(FB監視!D8,E9:E15)+MIN(FB監視!D8,F9:F15))/2) -> 27975 | DB8: 27067.5 | DC8: =(MAX(E34:E67)+MIN(F34:F67))/2 -> 27645 | DD8: 27834
A9: 2022-09-12 | B9: 2022-09-16 | C9: 38 | D9: 28250 | E9: 28450 | F9: 27290 | G9: 27350 | H9: 192043 | U9: 28562 | V9: 27804 | W9: 27842.72727 | X9: 27313.7037 | Y9: 27758.49057 | Z9: =AVERAGE(G9:G67) -> 27767.79661 | AA9: =AVERAGE(G9:G67) -> 27767.79661 | AB9: =AVERAGE(G9:G67) -> 27767.79661 | AC9: 1160 | AD9: 686.6666667 | AE9: 250 | AF9: -900 | AG9: 29230 | AH9: 27260 | AI9: 29230 | AJ9: 25450 | AK9: 29950 | AL9: 24670 | AM9: 4 | AN9: 1 | AO9: S | AP9: 0 | AQ9: 1 | AU9: 650 | AV9: =IF(F9>0,(MAX(E9:E34)+MIN(F9:F34))/2,(MAX(E10:E34,FB監視!P36)+MIN(F10:F34,FB監視!P36))/2) -> 27340 | AW9: =IF(F9>0,(MAX(E9:E17)+MIN(F9:F17))/2,(MAX(E10:E17,FB監視!P36)+MIN(F10:F17,FB監視!P36))/2) -> 27995 | AX9: 27170 | AY9: =(MAX(E35:E67)+MIN(F35:F67))/2 -> 27645 | AZ9: 26730 | BA9: 29263.33333 | BB9: 28856.66667 | BC9: 28103.33333 | BD9: 27696.66667 | BE9: 26943.33333 | BF9: 26536.66667 | BG9: 25783.33333 | BH9: 0 | BI9: 900 | BJ9: 27.54716981 | BK9: 56.26326964 | BO9: 0.01632653061 | BQ9: 1570 | BR9: 0 | BU9: 162421.3333 | BV9: 0 | BW9: 1 | CC9: 29725.16827 | CD9: 28928.83013 | CE9: 28132.49199 | CF9: 27336.15385 | CG9: 26539.8157 | CH9: 25743.47756 | CI9: 24947.13942 | CJ9: -1.310679612 | CK9: 1.689320388 | CL9: -0.6611650485 | CM9: -1.765048544 | CN9: -0.7175639894 | CO9: 200 | CP9: 60 | CQ9: I | CR9: L | CS9: L | CU9: 990 | CV9: 170 | CY9: D | CZ9: =IF(F9>0,(MAX(E9:E34)+MIN(F9:F34))/2,(MAX(FB監視!D9,E10:E33)+MIN(FB監視!D9,F10:F33))/2) -> 27340 | DA9: =IF(F9>0,(MAX(E9:E17)+MIN(F9:F17))/2,(MAX(FB監視!D9,E10:E16)+MIN(FB監視!D9,F10:F16))/2) -> 27995 | DB9: 27020 | DC9: =(MAX(E35:E67)+MIN(F35:F67))/2 -> 27645 | DD9: 28290
A10: 2022-09-05 | B10: 2022-09-09 | C10: 37 | D10: 27500 | E10: 28080 | F10: 27260 | G10: 28000 | H10: 145480 | U10: 28580 | V10: 27888 | W10: 27704.54545 | X10: 27230 | Y10: 27767.73585 | Z10: =AVERAGE(G10:G67) -> 27775 | AA10: =AVERAGE(G10:G67) -> 27775 | AB10: =AVERAGE(G10:G67) -> 27775 | AC10: 820 | AD10: 686.6666667 | AE10: -160 | AF10: 500 | AG10: 29230 | AH10: 27260 | AI10: 29230 | AJ10: 25450 | AK10: 29950 | AL10: 24670 | AM10: 3 | AN10: 1 | AO10: L | AP10: 1 | AQ10: 0 | AT10: 340 | AV10: =IF(F10>0,(MAX(E10:E35)+MIN(F10:F35))/2,(MAX(E11:E35,FB監視!P37)+MIN(F11:F35,FB監視!P37))/2) -> 27100 | AW10: =IF(F10>0,(MAX(E10:E18)+MIN(F10:F18))/2,(MAX(E11:E18,FB監視!P37)+MIN(F11:F18,FB監視!P37))/2) -> 27740 | AX10: 27187.5 | AY10: =(MAX(E36:E67)+MIN(F36:F67))/2 -> 27645 | AZ10: 25090 | BA10: 29120 | BB10: 28600 | BC10: 28300 | BD10: 27780 | BE10: 27480 | BF10: 26960 | BG10: 26660 | BH10: 500 | BI10: 0 | BJ10: 46.41350211 | BK10: 66.50831354 | BO10: 0.01383944908 | BQ10: 1970 | BR10: 0 | BU10: 143805 | BV10: 1 | BW10: 0 | CC10: 29726.72077 | CD10: 28921.91641 | CE10: 28117.11205 | CF10: 27312.30769 | CG10: 26507.50333 | CH10: 25702.69897 | CI10: 24897.89461 | CJ10: 0.7281553398 | CK10: 1.194174757 | CL10: 0.1631067961 | CM10: -0.8446601942 | CN10: 0.4302736099 | CO10: 80 | CP10: 240 | CQ10: L | CR10: N | CS10: L | CT10: L | CU10: -80 | CV10: -720 | CY10: U | CZ10: =IF(F10>0,(MAX(E10:E35)+MIN(F10:F35))/2,(MAX(FB監視!D10,E11:E34)+MIN(FB監視!D10,F11:F34))/2) -> 27100 | DA10: =IF(F10>0,(MAX(E10:E18)+MIN(F10:F18))/2,(MAX(FB監視!D10,E11:E17)+MIN(FB監視!D10,F11:F17))/2) -> 27740 | DB10: 27170 | DC10: =(MAX(E36:E67)+MIN(F36:F67))/2 -> 27645 | DD10: 28248
A11: 2022-08-29 | B11: 2022-09-02 | C11: 36 | D11: 27870 | E11: 28220 | F11: 27580 | G11: 27660 | H11: 199888 | U11: 28600 | V11: 27938 | W11: 27566.36364 | X11: 27159.62963 | Y11: 27755.4717 | Z11: =AVERAGE(G11:G67) -> 27771.05263 | AA11: =AVERAGE(G11:G67) -> 27771.05263 | AB11: =AVERAGE(G11:G67) -> 27771.05263 | AC11: 640 | AD11: 636.6666667 | AE11: -740 | AF11: -210 | AG11: 29230 | AH11: 27510 | AI11: 29230 | AJ11: 25450 | AK11: 29950 | AL11: 24670 | AM11: 2 | AN11: 1 | AO11: L | AP11: 0 | AQ11: 2 | AU11: 950 | AV11: =IF(F11>0,(MAX(E11:E36)+MIN(F11:F36))/2,(MAX(E12:E36,FB監視!P38)+MIN(F12:F36,FB監視!P38))/2) -> 26950 | AW11: =IF(F11>0,(MAX(E11:E19)+MIN(F11:F19))/2,(MAX(E12:E19,FB監視!P38)+MIN(F12:F19,FB監視!P38))/2) -> 27575 | AX11: 27872.5 | AY11: =(MAX(E37:E67)+MIN(F37:F67))/2 -> 28185 | AZ11: 26100 | BA11: 28700 | BB11: 28460 | BC11: 28060 | BD11: 27820 | BE11: 27420 | BF11: 27180 | BG11: 26780 | BH11: 0 | BI11: 210 | BJ11: 48.16326531 | BK11: 69.67741935 | BN11: 0.02347552247 | BO11: 0.01262314243 | BP11: UP | BQ11: 1650 | BR11: 0 | BU11: 152088.3333 | BV11: 0 | BW11: 1 | CC11: 29895.2834 | CD11: 28996.9838 | CE11: 28098.68421 | CF11: 27200.38462 | CG11: 26302.08502 | CH11: 25403.78543 | CI11: 24505.48583 | CJ11: -0.3298429319 | CK11: 1.005235602 | CL11: -0.4366492147 | CM11: -1.476439791 | CN11: 0.1470728225 | CO11: 350 | CP11: 80 | CQ11: S | CR11: L | CS11: L | CU11: -390 | CV11: -960 | CZ11: =IF(F11>0,(MAX(E11:E36)+MIN(F11:F36))/2,(MAX(FB監視!D11,E12:E35)+MIN(FB監視!D11,F12:F35))/2) -> 26950 | DA11: =IF(F11>0,(MAX(E11:E19)+MIN(F11:F19))/2,(MAX(FB監視!D11,E12:E18)+MIN(FB監視!D11,F12:F18))/2) -> 27575 | DB11: 27187.5 | DC11: =(MAX(E37:E67)+MIN(F37:F67))/2 -> 28185 | DD11: 28424
A12: 2022-08-22 | B12: 2022-08-26 | C12: 35 | D12: 28660 | E12: 28830 | F12: 28260 | G12: 28610 | H12: 136194 | U12: 28560 | V12: 27920 | W12: 27395.45455 | X12: 27116.66667 | Y12: 27753.58491 | Z12: =AVERAGE(G12:G67) -> 27773.03571 | AA12: =AVERAGE(G12:G67) -> 27773.03571 | AB12: =AVERAGE(G12:G67) -> 27773.03571 | AC12: =IF(E12>F12,E12-F12,(E12-F12)*(-1)) -> 570 | AD12: 613.3333333 | AE12: =D12-G13 -> -270 | AF12: =G12-D12 -> -50 | AG12: 29230 | AH12: 27490 | AI12: 29230 | AJ12: 25450 | AK12: 29950 | AL12: 24670 | AM12: =IF(U12>0,IF(E12>U12,1,AM13+1),"") -> 1 | AN12: =IF(V12>0,IF(F12<V12,1,AN13+1),"") -> 8 | AO12: =IF(W12>0,IF(G12>W12,"L","S"),"") -> L | AP12: =IF((G12-D12)>0,AP13+1,0) -> 0 | AQ12: =IF((G12-D12)<0,AQ13+1,0) -> 1 | AR12: =IF(W12>0,IF(G12>U12,IF(V12>W12,"L",""),""),"") -> L | AS12: =IF(W12>0,IF(G12<V12,IF(U12<W12,"S",""),""),"") ->  | AT12: =IF(G12>0,IF(G12-G13>0,G12-G13,""),"") ->  | AU12: =IF(G12>0,IF(G12-G13<0,ABS(G12-G13),""),"") -> 320 | AV12: =IF(F12>0,(MAX(E12:E37)+MIN(F12:F37))/2,(MAX(E13:E37,FB監視!P39)+MIN(F13:F37,FB監視!P39))/2) -> 26950 | AW12: =IF(F12>0,(MAX(E12:E20)+MIN(F12:F20))/2,(MAX(E13:E20,FB監視!P39)+MIN(F13:F20,FB監視!P39))/2) -> 27520 | AX12: =(AW38+AV38)/2 -> 27872.5 | AY12: =(MAX(E38:E67)+MIN(F38:F67))/2 -> 28185 | AZ12: =G38 -> 26500 | BA12: =2*BD12-2*F12+E12 -> 29443.33333 | BB12: =BD12+E12-F12 -> 29136.66667 | BC12: =2*BD12-F12 -> 28873.33333 | BD12: =SUM(E12:G12)/3 -> 28566.66667 | BE12: =2*BD12-E12 -> 28303.33333 | BF12: =BD12-E12+F12 -> 27996.66667 | BG12: =2*BD12-2*E12+F12 -> 27733.33333 | BH12: =IF(G12>D12,G12-D12,0) -> 0 | BI12: =IF(D12>G12,D12-G12,0) -> 50 | BJ12: 71.95121951 | BK12: 74.48275862 | BN12: =IF(U12>U13,IF(U13>U14,IF(U14>U15,U12/U15-1,""),),IF(U12<U13,IF(U13<U14,IF(U14<U15,U12/U15-1,""),""),"")) -> 0.03448275862 | BO12: =IF(W12>W13,IF(W13>W14,IF(W14>W15,W12/W15-1,""),),IF(W12<W13,IF(W13<W14,IF(W14<W15,W12/W15-1,""),""),"")) -> 0.01219266425 | BP12: =IF(BN12<>"",IF(BO12<>"",IF(BN12>0.5%,IF(BO12>0.25%,"UP",""),IF(BN12<-0.5%,IF(BO12<-0.25%,"DW",""),"")),""),"") -> UP | BQ12: 1720 | BR12: =IF(AND(E12<=E13,F12>=F13),1,0) -> 0 | BU12: 151890 | BV12: =IF(G12>G13,IF(B12=B13,BV13+1,1),0) -> 0 | BW12: =IF(G12<G13,IF(B12=B13,BW13+1,1),0) -> 1 | BX12: =BX13+((G12-BX13)*2/(1+5)) ->  | BY12: =BY13+((G12-BY13)*2/(1+20)) ->  | BZ12: =BX12-BY12 ->  | CB12: =BZ12-CA12 ->  | CC12: 29892.85529 | CD12: 28975.36507 | CE12: 28057.87484 | CF12: 27140.38462 | CG12: 26222.89439 | CH12: 25305.40416 | CI12: 24387.91394 | CJ12: =(G12-D12)/AD12 -> -0.08152173913 | CK12: =(E12-F12)/AD12 -> 0.9293478261 | CL12: =(G12-V12)/AD12 -> 1.125 | CM12: =(G12-U12)/AD12 -> 0.08152173913 | CN12: =(G12-W12)/AD12 -> 1.980237154 | CO12: =IF(CJ12>=0,(E12-G12),(E12-D12)) -> 170 | CP12: =IF(CJ12>=0,(D12-F12),(G12-F12)) -> 350 | CQ12: =IF(AND(G12>AX12,G12>AY12),"L",IF(AND(G12<AX12,G12<AY12),"S","I")) -> L | CR12: =IF(AND(CS12="L",D12>AW12),"L",IF(AND(CS12="S",D12<AW12),"S","N")) -> L | CS12: =IF(AW12>AV12,"L",IF(AW12<AV12,"S","N")) -> L | CU12: =(D12-F13) -> 30 | CV12: =(D12-E13) -> -570 | CY12: =IF(AND(CJ13>=0,D12>G13,G12<D13),"D",IF(AND(CJ13<=0,D12<G13,G12>D13),"U","")) ->  | CZ12: =IF(F12>0,(MAX(E12:E37)+MIN(F12:F37))/2,(MAX(FB監視!D12,E13:E36)+MIN(FB監視!D12,F13:F36))/2) -> 26950 | DA12: =IF(F12>0,(MAX(E12:E20)+MIN(F12:F20))/2,(MAX(FB監視!D12,E13:E19)+MIN(FB監視!D12,F13:F19))/2) -> 27520 | DB12: =(AW37+AV37)/2 -> 27872.5 | DC12: =(MAX(E38:E67)+MIN(F38:F67))/2 -> 28185 | DD12: 28410
A13: 2022-08-15 | B13: 2022-08-19 | C13: 34 | D13: 28700 | E13: 29230 | F13: 28630 | G13: 28930 | H13: 149741 | U13: 28382 | V13: 27620 | W13: 27326.36364 | X13: 27060.37037 | Y13: 27740.75472 | Z13: =AVERAGE(G13:G67) -> 27757.81818 | AA13: =AVERAGE(G13:G67) -> 27757.81818 | AB13: =AVERAGE(G13:G67) -> 27757.81818 | AC13: 600 | AD13: 700 | AE13: 160 | AF13: 230 | AG13: 29230 | AH13: 26760 | AI13: 29230 | AJ13: 25450 | AK13: 29950 | AL13: 24670 | AM13: 1 | AN13: 7 | AO13: L | AP13: 5 | AQ13: 0 | AR13: L | AT13: 390 | AV13: =IF(F13>0,(MAX(E13:E38)+MIN(F13:F38))/2,(MAX(E14:E38,FB監視!P40)+MIN(F14:F38,FB監視!P40))/2) -> 26950 | AW13: =IF(F13>0,(MAX(E13:E21)+MIN(F13:F21))/2,(MAX(E14:E21,FB監視!P40)+MIN(F14:F21,FB監視!P40))/2) -> 27340 | AX13: 28007.5 | AY13: =(MAX(E39:E67)+MIN(F39:F67))/2 -> 28320 | AZ13: 27090 | BA13: 29830 | BB13: 29530 | BC13: 29230 | BD13: 28930 | BE13: 28630 | BF13: 28330 | BG13: 28030 | BH13: 230 | BI13: 0 | BJ13: 94.28571429 | BK13: 83.29809725 | BN13: 0.03636894764 | BO13: 0.01441009719 | BP13: UP | BQ13: 1740 | BR13: 0 | BU13: 163268.6667 | BV13: 1 | BW13: 0 | CC13: 29688.14003 | CD13: 28811.83694 | CE13: 27935.53386 | CF13: 27059.23077 | CG13: 26182.92768 | CH13: 25306.62459 | CI13: 24430.32151 | CJ13: 0.3285714286 | CK13: 0.8571428571 | CL13: 1.871428571 | CM13: 0.7828571429 | CN13: 2.290909091 | CO13: 300 | CP13: 70 | CQ13: L | CR13: L | CS13: L | CT13: H | CU13: 990 | CV13: 160 | CZ13: =IF(F13>0,(MAX(E13:E38)+MIN(F13:F38))/2,(MAX(FB監視!D13,E14:E37)+MIN(FB監視!D13,F14:F37))/2) -> 26950 | DA13: =IF(F13>0,(MAX(E13:E21)+MIN(F13:F21))/2,(MAX(FB監視!D13,E14:E20)+MIN(FB監視!D13,F14:F20))/2) -> 27340 | DB13: 27872.5 | DC13: =(MAX(E39:E67)+MIN(F39:F67))/2 -> 28320 | DD13: 28210
A14: 2022-08-08 | B14: 2022-08-12 | C14: 33 | D14: 28050 | E14: 28540 | F14: 27710 | G14: 28540 | H14: 133239 | U14: 27944 | V14: 27144 | W14: 27222.72727 | X14: 27014.81481 | Y14: 27727.16981 | Z14: =AVERAGE(G14:G67) -> 27736.11111 | AA14: =AVERAGE(G14:G67) -> 27736.11111 | AB14: =AVERAGE(G14:G67) -> 27736.11111 | AC14: 830 | AD14: 763.3333333 | AE14: -120 | AF14: 490 | AG14: 28540 | AH14: 26250 | AI14: 28540 | AJ14: 25450 | AK14: 30230 | AL14: 24670 | AM14: 1 | AN14: 6 | AO14: L | AP14: 4 | AQ14: 0 | AT14: 370 | AV14: =IF(F14>0,(MAX(E14:E39)+MIN(F14:F39))/2,(MAX(E15:E39,FB監視!P41)+MIN(F15:F39,FB監視!P41))/2) -> 26605 | AW14: =IF(F14>0,(MAX(E14:E22)+MIN(F14:F22))/2,(MAX(E15:E22,FB監視!P41)+MIN(F15:F22,FB監視!P41))/2) -> 26995 | AX14: 28125 | AY14: =(MAX(E40:E67)+MIN(F40:F67))/2 -> 28320 | AZ14: 27700 | BA14: 29646.66667 | BB14: 29093.33333 | BC14: 28816.66667 | BD14: 28263.33333 | BE14: 27986.66667 | BF14: 27433.33333 | BG14: 27156.66667 | BH14: 490 | BI14: 0 | BJ14: 93.66515837 | BK14: 55.38221529 | BN14: 0.03198168255 | BO14: 0.01522240304 | BP14: UP | BQ14: 1780 | BR14: 0 | BU14: 170785.3333 | BV14: 1 | BW14: 0 | CC14: 29366.4766 | CD14: 28573.80491 | CE14: 27781.13322 | CF14: 26988.46154 | CG14: 26195.78985 | CH14: 25403.11817 | CI14: 24610.44648 | CJ14: 0.6419213974 | CK14: 1.087336245 | CL14: 1.828820961 | CM14: 0.7807860262 | CN14: 1.725684796 | CO14: 0 | CP14: 340 | CQ14: L | CR14: L | CS14: L | CU14: 540 | CV14: -130 | CZ14: =IF(F14>0,(MAX(E14:E39)+MIN(F14:F39))/2,(MAX(FB監視!D14,E15:E38)+MIN(FB監視!D14,F15:F38))/2) -> 26605 | DA14: =IF(F14>0,(MAX(E14:E22)+MIN(F14:F22))/2,(MAX(FB監視!D14,E15:E21)+MIN(FB監視!D14,F15:F21))/2) -> 26995 | DB14: 28007.5 | DC14: =(MAX(E40:E67)+MIN(F40:F67))/2 -> 28320 | DD14: 27724
A15: 2022-08-01 | B15: 2022-08-05 | C15: 32 | D15: 27920 | E15: 28180 | F15: 27510 | G15: 28170 | H15: 170330 | U15: 27608 | V15: 26786 | W15: 27065.45455 | X15: 26972.96296 | Y15: 27720.9434 | Z15: =AVERAGE(G15:G67) -> 27720.9434 | AA15: =AVERAGE(G15:G67) -> 27720.9434 | AB15: =AVERAGE(G15:G67) -> 27720.9434 | AC15: 670 | AD15: 800 | AE15: 170 | AF15: 250 | AG15: 28180 | AH15: 25920 | AI15: 28400 | AJ15: 25450 | AK15: 30230 | AL15: 24670 | AM15: 1 | AN15: 5 | AO15: L | AP15: 3 | AQ15: 0 | AT15: 420 | AV15: =IF(F15>0,(MAX(E15:E40)+MIN(F15:F40))/2,(MAX(E16:E40,FB監視!P42)+MIN(F16:F40,FB監視!P42))/2) -> 26535 | AW15: =IF(F15>0,(MAX(E15:E23)+MIN(F15:F23))/2,(MAX(E16:E23,FB監視!P42)+MIN(F16:F23,FB監視!P42))/2) -> 26925 | AX15: 28152.5 | AY15: =(MAX(E41:E67)+MIN(F41:F67))/2 -> 28320 | AZ15: 27410 | BA15: 29066.66667 | BB15: 28623.33333 | BC15: 28396.66667 | BD15: 27953.33333 | BE15: 27726.66667 | BF15: 27283.33333 | BG15: 27056.66667 | BH15: 250 | BI15: 0 | BJ15: 94.65648855 | BK15: 53.1147541 | BN15: 0.02502413307 | BO15: 0.01203344891 | BP15: UP | BQ15: 1930 | BR15: 0 | BU15: 182826 | BV15: 1 | BW15: 0 | CC15: 29189.43135 | CD15: 28445.00551 | CE15: 27700.57968 | CF15: 26956.15385 | CG15: 26211.72801 | CH15: 25467.30218 | CI15: 24722.87634 | CJ15: 0.3125 | CK15: 0.8375 | CL15: 1.73 | CM15: 0.7025 | CN15: 1.380681818 | CO15: 10 | CP15: 410 | CQ15: I | CR15: L | CS15: L | CU15: 430 | CV15: -100 | CZ15: =IF(F15>0,(MAX(E15:E40)+MIN(F15:F40))/2,(MAX(FB監視!D15,E16:E39)+MIN(FB監視!D15,F16:F39))/2) -> 26535 | DA15: =IF(F15>0,(MAX(E15:E23)+MIN(F15:F23))/2,(MAX(FB監視!D15,E16:E22)+MIN(FB監視!D15,F16:F22))/2) -> 26925 | DB15: 28125 | DC15: =(MAX(E41:E67)+MIN(F41:F67))/2 -> 28320 | DD15: 27386
A16: 2022-07-25 | B16: 2022-07-29 | C16: 31 | D16: 27650 | E16: 28020 | F16: 27490 | G16: 27750 | H16: 169735 | U16: 27386 | V16: 26446 | W16: 26938.18182 | X16: 26918.88889 | Y16: =AVERAGE(G16:G67) -> 27712.30769 | Z16: =AVERAGE(G16:G67) -> 27712.30769 | AA16: =AVERAGE(G16:G67) -> 27712.30769 | AB16: =AVERAGE(G16:G67) -> 27712.30769 | AC16: 530 | AD16: 970 | AE16: -240 | AF16: 100 | AG16: 28020 | AH16: 25810 | AI16: 28400 | AJ16: 24970 | AK16: 30620 | AL16: 24670 | AM16: 1 | AN16: 4 | AO16: L | AP16: 2 | AQ16: 0 | AU16: 140 | AV16: =IF(F16>0,(MAX(E16:E41)+MIN(F16:F41))/2,(MAX(E17:E41,FB監視!P43)+MIN(F17:F41,FB監視!P43))/2) -> 26535 | AW16: =IF(F16>0,(MAX(E16:E24)+MIN(F16:F24))/2,(MAX(E17:E24,FB監視!P43)+MIN(F17:F24,FB監視!P43))/2) -> 26925 | AX16: 28152.5 | AY16: =(MAX(E42:E67)+MIN(F42:F67))/2 -> 28320 | AZ16: 26710 | BA16: 28546.66667 | BB16: 28283.33333 | BC16: 28016.66667 | BD16: 27753.33333 | BE16: 27486.66667 | BF16: 27223.33333 | BG16: 26956.66667 | BH16: 100 | BI16: 0 | BJ16: 72.28070175 | BK16: 57.05705706 | BQ16: 2100 | BR16: 0 | BU16: 212320.6667 | BV16: 0 | BW16: 1 | CC16: 29057.91043 | CD16: 28347.58131 | CE16: 27637.25219 | CF16: 26926.92308 | CG16: 26216.59396 | CH16: 25506.26484 | CI16: 24795.93572 | CJ16: 0.1030927835 | CK16: 0.5463917526 | CL16: 1.344329897 | CM16: 0.375257732 | CN16: 0.8369259606 | CO16: 270 | CP16: 160 | CQ16: S | CR16: L | CS16: L | CU16: 890 | CV16: -290 | CZ16: =IF(F16>0,(MAX(E16:E41)+MIN(F16:F41))/2,(MAX(FB監視!D16,E17:E40)+MIN(FB監視!D16,F17:F40))/2) -> 26535 | DA16: =IF(F16>0,(MAX(E16:E24)+MIN(F16:F24))/2,(MAX(FB監視!D16,E17:E23)+MIN(FB監視!D16,F17:F23))/2) -> 26925 | DB16: 28152.5 | DC16: =(MAX(E42:E67)+MIN(F42:F67))/2 -> 28320 | DD16: 26948
A17: 2022-07-19 | B17: 2022-07-22 | C17: 30 | D17: 26900 | E17: 27940 | F17: 26760 | G17: 27890 | H17: 172291 | U17: 27078 | V17: 26038 | W17: 26814.54545 | X17: 26910.37037 | Y17: =AVERAGE(G17:G67) -> 27711.56863 | Z17: =AVERAGE(G17:G67) -> 27711.56863 | AA17: =AVERAGE(G17:G67) -> 27711.56863 | AB17: =AVERAGE(G17:G67) -> 27711.56863 | AC17: 1180 | AD17: 1050 | AE17: 140 | AF17: 990 | AG17: 27940 | AH17: 25450 | AI17: 28400 | AJ17: 24670 | AK17: 30620 | AL17: 24670 | AM17: 1 | AN17: 3 | AO17: L | AP17: 1 | AQ17: 0 | AT17: 1130 | AV17: =IF(F17>0,(MAX(E17:E42)+MIN(F17:F42))/2,(MAX(E18:E42,FB監視!P44)+MIN(F18:F42,FB監視!P44))/2) -> 26535 | AW17: =IF(F17>0,(MAX(E17:E25)+MIN(F17:F25))/2,(MAX(E18:E25,FB監視!P44)+MIN(F18:F25,FB監視!P44))/2) -> 26925 | AX17: 28645 | AY17: =(MAX(E43:E67)+MIN(F43:F67))/2 -> 28765 | AZ17: 27520 | BA17: 29480 | BB17: 28710 | BC17: 28300 | BD17: 27530 | BE17: 27120 | BF17: 26350 | BG17: 25940 | BH17: 990 | BI17: 0 | BJ17: 80.93841642 | BK17: 58.53658537 | BN17: 0 | BO17: 0 | BQ17: 2130 | BR17: 0 | BU17: 236680 | BV17: 1 | BW17: 0 | CC17: 28962.61374 | CD17: 28270.71685 | CE17: 27578.81996 | CF17: 26886.92308 | CG17: 26195.02619 | CH17: 25503.1293 | CI17: 24811.23242 | CJ17: 0.9428571429 | CK17: 1.123809524 | CL17: 1.763809524 | CM17: 0.7733333333 | CN17: 1.024242424 | CO17: 50 | CP17: 140 | CQ17: S | CR17: N | CS17: L | CU17: 650 | CV17: -140 | CZ17: =IF(F17>0,(MAX(E17:E42)+MIN(F17:F42))/2,(MAX(FB監視!D17,E18:E41)+MIN(FB監視!D17,F18:F41))/2) -> 26535 | DA17: =IF(F17>0,(MAX(E17:E25)+MIN(F17:F25))/2,(MAX(FB監視!D17,E18:E24)+MIN(FB監視!D17,F18:F24))/2) -> 26925 | DB17: 28152.5 | DC17: =(MAX(E43:E67)+MIN(F43:F67))/2 -> 28765 | DD17: 26516
A18: 2022-07-11 | B18: 2022-07-15 | C18: 29 | D18: 26880 | E18: 27040 | F18: 26250 | G18: 26760 | H18: 205857 | U18: 26934 | V18: 25808 | W18: 26743.63636 | X18: 26921.48148 | Y18: =AVERAGE(G18:G67) -> 27708 | Z18: =AVERAGE(G18:G67) -> 27708 | AA18: =AVERAGE(G18:G67) -> 27708 | AB18: =AVERAGE(G18:G67) -> 27708 | AC18: 790 | AD18: 1076.666667 | AE18: 270 | AF18: -120 | AG18: 27220 | AH18: 25450 | AI18: 28400 | AJ18: 24670 | AK18: 30620 | AL18: 24670 | AM18: 1 | AN18: 2 | AO18: L | AP18: 0 | AQ18: 1 | AT18: 150 | AV18: =IF(F18>0,(MAX(E18:E43)+MIN(F18:F43))/2,(MAX(E19:E43,FB監視!P45)+MIN(F19:F43,FB監視!P45))/2) -> 26695 | AW18: =IF(F18>0,(MAX(E18:E26)+MIN(F18:F26))/2,(MAX(E19:E26,FB監視!P45)+MIN(F19:F26,FB監視!P45))/2) -> 26925 | AX18: 28832.5 | AY18: =(MAX(E44:E67)+MIN(F44:F67))/2 -> 28765 | AZ18: 28190 | BA18: 27906.66667 | BB18: 27473.33333 | BC18: 27116.66667 | BD18: 26683.33333 | BE18: 26326.66667 | BF18: 25893.33333 | BG18: 25536.66667 | BH18: 0 | BI18: 120 | BJ18: 37.47126437 | BK18: 53.18416523 | BO18: -0.006249366618 | BQ18: 1620 | BR18: 0 | BU18: 269506.6667 | BV18: 1 | BW18: 0 | CC18: 28896.82559 | CD18: 28222.11449 | CE18: 27547.4034 | CF18: 26872.69231 | CG18: 26197.98121 | CH18: 25523.27012 | CI18: 24848.55903 | CJ18: -0.1114551084 | CK18: 0.73374613 | CL18: 0.8842105263 | CM18: -0.1616099071 | CN18: 0.01519842387 | CO18: 160 | CP18: 510 | CQ18: S | CR18: N | CS18: L | CU18: 960 | CV18: 20 | CZ18: =IF(F18>0,(MAX(E18:E43)+MIN(F18:F43))/2,(MAX(FB監視!D18,E19:E42)+MIN(FB監視!D18,F19:F42))/2) -> 26695 | DA18: =IF(F18>0,(MAX(E18:E26)+MIN(F18:F26))/2,(MAX(FB監視!D18,E19:E25)+MIN(FB監視!D18,F19:F25))/2) -> 26925 | DB18: 28645 | DC18: =(MAX(E44:E67)+MIN(F44:F67))/2 -> 28765 | DD18: 26316
A19: 2022-07-04 | B19: 2022-07-08 | C19: 28 | D19: 26180 | E19: 26860 | F19: 25920 | G19: 26610 | H19: 304337 | U19: 27206 | V19: 26060 | W19: 26753.63636 | X19: 26984.07407 | Y19: =AVERAGE(G19:G67) -> 27727.34694 | Z19: =AVERAGE(G19:G67) -> 27727.34694 | AA19: =AVERAGE(G19:G67) -> 27727.34694 | AB19: =AVERAGE(G19:G67) -> 27727.34694 | AC19: 940 | AD19: 1076.666667 | AE19: 350 | AF19: 430 | AG19: 28400 | AH19: 25450 | AI19: 28400 | AJ19: 24670 | AK19: 30620 | AL19: 24670 | AM19: 5 | AN19: 1 | AO19: S | AP19: 1 | AQ19: 0 | AT19: 780 | AV19: =IF(F19>0,(MAX(E19:E44)+MIN(F19:F44))/2,(MAX(E20:E44,FB監視!P46)+MIN(F20:F44,FB監視!P46))/2) -> 26730 | AW19: =IF(F19>0,(MAX(E19:E27)+MIN(F19:F27))/2,(MAX(E20:E27,FB監視!P46)+MIN(F20:F27,FB監視!P46))/2) -> 26925 | AX19: 28665 | AY19: =(MAX(E45:E67)+MIN(F45:F67))/2 -> 28765 | AZ19: 28450 | BA19: 27946.66667 | BB19: 27403.33333 | BC19: 27006.66667 | BD19: 26463.33333 | BE19: 26066.66667 | BF19: 25523.33333 | BG19: 25126.66667 | BH19: 430 | BI19: 0 | BJ19: 36.15023474 | BK19: 46.0815047 | BO19: -0.007754813042 | BQ19: 1770 | BR19: 1 | BU19: 269506.6667 | BV19: 1 | BW19: 0 | CC19: 29087.82544 | CD19: 28367.78106 | CE19: 27647.73669 | CF19: 26927.69231 | CG19: 26207.64793 | CH19: 25487.60355 | CI19: 24767.55918 | CJ19: 0.399380805 | CK19: 0.8730650155 | CL19: 0.5108359133 | CM19: -0.5535603715 | CN19: -0.1334083873 | CO19: 250 | CP19: 260 | CQ19: S | CR19: N | CS19: L | CU19: 370 | CV19: -890 | CZ19: =IF(F19>0,(MAX(E19:E44)+MIN(F19:F44))/2,(MAX(FB監視!D19,E20:E43)+MIN(FB監視!D19,F20:F43))/2) -> 26730 | DA19: =IF(F19>0,(MAX(E19:E27)+MIN(F19:F27))/2,(MAX(FB監視!D19,E20:E26)+MIN(FB監視!D19,F20:F26))/2) -> 26925 | DB19: 28832.5 | DC19: =(MAX(E45:E67)+MIN(F45:F67))/2 -> 28765 | DD19: 26424
A20: 2022-06-27 | B20: 2022-07-01 | C20: 27 | D20: 26750 | E20: 27070 | F20: 25810 | G20: 25830 | H20: 258814 | U20: 27394 | V20: 26288 | W20: 26798.18182 | X20: 27067.77778 | Y20: =AVERAGE(G20:G67) -> 27750.625 | Z20: =AVERAGE(G20:G67) -> 27750.625 | AA20: =AVERAGE(G20:G67) -> 27750.625 | AB20: =AVERAGE(G20:G67) -> 27750.625 | AC20: =IF(E20>F20,E20-F20,(E20-F20)*(-1)) -> 1260 | AD20: 1060 | AE20: =D20-G21 -> 270 | AF20: =G20-D20 -> -920 | AG20: 28400 | AH20: 25450 | AI20: 28720 | AJ20: 24670 | AK20: 30620 | AL20: 24670 | AM20: =IF(U20>0,IF(E20>U20,1,AM21+1),"") -> 4 | AN20: =IF(V20>0,IF(F20<V20,1,AN21+1),"") -> 1 | AO20: =IF(W20>0,IF(G20>W20,"L","S"),"") -> S | AP20: =IF((G20-D20)>0,AP21+1,0) -> 0 | AQ20: =IF((G20-D20)<0,AQ21+1,0) -> 1 | AR20: =IF(W20>0,IF(G20>U20,IF(V20>W20,"L",""),""),"") ->  | AS20: =IF(W20>0,IF(G20<V20,IF(U20<W20,"S",""),""),"") ->  | AT20: =IF(G20>0,IF(G20-G21>0,G20-G21,""),"") ->  | AU20: =IF(G20>0,IF(G20-G21<0,ABS(G20-G21),""),"") -> 650 | AV20: =IF(F20>0,(MAX(E20:E45)+MIN(F20:F45))/2,(MAX(E21:E45,FB監視!P47)+MIN(F21:F45,FB監視!P47))/2) -> 27020 | AW20: =IF(F20>0,(MAX(E20:E28)+MIN(F20:F28))/2,(MAX(E21:E28,FB監視!P47)+MIN(F21:F28,FB監視!P47))/2) -> 26925 | AX20: =(AW46+AV46)/2 -> 28735 | AY20: =(MAX(E46:E67)+MIN(F46:F67))/2 -> 28765 | AZ20: =G46 -> 28870 | BA20: =2*BD20-2*F20+E20 -> 27923.33333 | BB20: =BD20+E20-F20 -> 27496.66667 | BC20: =2*BD20-F20 -> 26663.33333 | BD20: =SUM(E20:G20)/3 -> 26236.66667 | BE20: =2*BD20-E20 -> 25403.33333 | BF20: =BD20-E20+F20 -> 24976.66667 | BG20: =2*BD20-2*E20+F20 -> 24143.33333 | BH20: =IF(G20>D20,G20-D20,0) -> 0 | BI20: =IF(D20>G20,D20-G20,0) -> 920 | BJ20: 39.01345291 | BK20: 41.09589041 | BN20: =IF(U20>U21,IF(U21>U22,IF(U22>U23,U20/U23-1,""),),IF(U20<U21,IF(U21<U22,IF(U22<U23,U20/U23-1,""),""),"")) -> 0 | BO20: =IF(W20>W21,IF(W21>W22,IF(W22>W23,W20/W23-1,""),),IF(W20<W21,IF(W21<W22,IF(W22<W23,W20/W23-1,""),""),"")) -> -0.01236305156 | BP20: =IF(BN20<>"",IF(BO20<>"",IF(BN20>0.5%,IF(BO20>0.25%,"UP",""),IF(BN20<-0.5%,IF(BO20<-0.25%,"DW",""),"")),""),"") ->  | BQ20: 2950 | BR20: =IF(AND(E20<=E21,F20>=F21),1,0) -> 0 | BU20: 227972.6667 | BV20: =IF(G20>G21,IF(B20=B21,BV21+1,1),0) -> 0 | BW20: =IF(G20<G21,IF(B20=B21,BW21+1,1),0) -> 1 | BX20: =BX21+((G20-BX21)*2/(1+5)) ->  | BY20: =BY21+((G20-BY21)*2/(1+20)) ->  | BZ20: =BX20-BY20 ->  | CB20: =BZ20-CA20 ->  | CC20: 29319.74307 | CD20: 28545.98256 | CE20: 27772.22205 | CF20: 26998.46154 | CG20: 26224.70103 | CH20: 25450.94052 | CI20: 24677.18001 | CJ20: =(G20-D20)/AD20 -> -0.8679245283 | CK20: =(E20-F20)/AD20 -> 1.188679245 | CL20: =(G20-V20)/AD20 -> -0.4320754717 | CM20: =(G20-U20)/AD20 -> -1.475471698 | CN20: =(G20-W20)/AD20 -> -0.9133790738 | CO20: =IF(CJ20>=0,(E20-G20),(E20-D20)) -> 320 | CP20: =IF(CJ20>=0,(D20-F20),(G20-F20)) -> 20 | CQ20: =IF(AND(G20>AX20,G20>AY20),"L",IF(AND(G20<AX20,G20<AY20),"S","I")) -> S | CR20: =IF(AND(CS20="L",D20>AW20),"L",IF(AND(CS20="S",D20<AW20),"S","N")) -> S | CS20: =IF(AW20>AV20,"L",IF(AW20<AV20,"S","N")) -> S | CU20: =(D20-F21) -> 1300 | CV20: =(D20-E21) -> 270 | CY20: =IF(AND(CJ21>=0,D20>G21,G20<D21),"D",IF(AND(CJ21<=0,D20<G21,G20>D21),"U","")) -> D | CZ20: =IF(F20>0,(MAX(E20:E45)+MIN(F20:F45))/2,(MAX(FB監視!D20,E21:E44)+MIN(FB監視!D20,F21:F44))/2) -> 27020 | DA20: =IF(F20>0,(MAX(E20:E28)+MIN(F20:F28))/2,(MAX(FB監視!D20,E21:E27)+MIN(FB監視!D20,F21:F27))/2) -> 26925 | DB20: =(AW45+AV45)/2 -> 28665 | DC20: =(MAX(E46:E67)+MIN(F46:F67))/2 -> 28765 | DD20: 26930
A21: 2022-06-20 | B21: 2022-06-24 | C21: 26 | D21: 26060 | E21: 26480 | F21: 25450 | G21: 26480 | H21: 245369 | U21: 27392 | V21: 26442 | W21: 26911.81818 | X21: 27174.44444 | Y21: =AVERAGE(G21:G67) -> 27791.48936 | Z21: =AVERAGE(G21:G67) -> 27791.48936 | AA21: =AVERAGE(G21:G67) -> 27791.48936 | AB21: =AVERAGE(G21:G67) -> 27791.48936 | AC21: 1030 | AD21: 886.6666667 | AE21: 280 | AF21: 420 | AG21: 28400 | AH21: 25450 | AI21: 28790 | AJ21: 24670 | AK21: 30620 | AL21: 24670 | AM21: 3 | AN21: 1 | AO21: S | AP21: 1 | AQ21: 0 | AT21: 700 | AV21: =IF(F21>0,(MAX(E21:E46)+MIN(F21:F46))/2,(MAX(E22:E46,FB監視!P48)+MIN(F22:F46,FB監視!P48))/2) -> 27020 | AW21: =IF(F21>0,(MAX(E21:E29)+MIN(F21:F29))/2,(MAX(E22:E29,FB監視!P48)+MIN(F22:F29,FB監視!P48))/2) -> 26925 | AX21: 28735 | AY21: =(MAX(E47:E67)+MIN(F47:F67))/2 -> 28765 | AZ21: 28710 | BA21: 27853.33333 | BB21: 27166.66667 | BC21: 26823.33333 | BD21: 26136.66667 | BE21: 25793.33333 | BF21: 25106.66667 | BG21: 24763.33333 | BH21: 420 | BI21: 0 | BJ21: 46.23376623 | BK21: 44.2804428 | BO21: -0.008374367735 | BQ21: 2950 | BR21: 0 | BU21: 202310.6667 | BV21: 1 | BW21: 0 | CC21: 29565.92785 | CD21: 28749.0801 | CE21: 27932.23236 | CF21: 27115.38462 | CG21: 26298.53687 | CH21: 25481.68913 | CI21: 24664.84138 | CJ21: 0.4736842105 | CK21: 1.161654135 | CL21: 0.04285714286 | CM21: -1.028571429 | CN21: -0.487012987 | CO21: 0 | CP21: 610 | CQ21: S | CR21: S | CS21: S | CU21: 450 | CV21: -1160 | CZ21: =IF(F21>0,(MAX(E21:E46)+MIN(F21:F46))/2,(MAX(FB監視!D21,E22:E45)+MIN(FB監視!D21,F22:F45))/2) -> 27020 | DA21: =IF(F21>0,(MAX(E21:E29)+MIN(F21:F29))/2,(MAX(FB監視!D21,E22:E28)+MIN(FB監視!D21,F22:F28))/2) -> 26925 | DB21: 28735 | DC21: =(MAX(E47:E67)+MIN(F47:F67))/2 -> 28765 | DD21: 26858
A22: 2022-06-13 | B22: 2022-06-17 | C22: 25 | D22: 27200 | E22: 27220 | F22: 25610 | G22: 25780 | H22: 323207 | U22: 27508 | V22: 26576 | W22: 26962.72727 | X22: 27290 | Y22: =AVERAGE(G22:G67) -> 27820 | Z22: =AVERAGE(G22:G67) -> 27820 | AA22: =AVERAGE(G22:G67) -> 27820 | AB22: =AVERAGE(G22:G67) -> 27820 | AC22: 1610 | AD22: 856.6666667 | AE22: -650 | AF22: -1420 | AG22: 28400 | AH22: 25610 | AI22: 29370 | AJ22: 24670 | AK22: 30620 | AL22: 24670 | AM22: 2 | AN22: 1 | AO22: S | AP22: 0 | AQ22: 1 | AU22: 2070 | AV22: =IF(F22>0,(MAX(E22:E47)+MIN(F22:F47))/2,(MAX(E23:E47,FB監視!P49)+MIN(F23:F47,FB監視!P49))/2) -> 27020 | AW22: =IF(F22>0,(MAX(E22:E30)+MIN(F22:F30))/2,(MAX(E23:E30,FB監視!P49)+MIN(F23:F30,FB監視!P49))/2) -> 27005 | AX22: 28832.5 | AY22: =(MAX(E48:E67)+MIN(F48:F67))/2 -> 28765 | AZ22: 29600 | BA22: 28406.66667 | BB22: 27813.33333 | BC22: 26796.66667 | BD22: 26203.33333 | BE22: 25186.66667 | BF22: 24593.33333 | BG22: 23576.66667 | BH22: 0 | BI22: 1420 | BJ22: 41.35977337 | BK22: 36.28691983 | BN22: 0.01987246033 | BQ22: 2790 | BR22: 0 | BU22: 197522.6667 | BV22: 0 | BW22: 1 | CC22: 29785.60877 | CD22: 28924.12379 | CE22: 28062.63882 | CF22: 27201.15385 | CG22: 26339.66887 | CH22: 25478.1839 | CI22: 24616.69892 | CJ22: -1.657587549 | CK22: 1.879377432 | CL22: -0.9291828794 | CM22: -2.017120623 | CN22: -1.380615493 | CO22: 20 | CP22: 170 | CQ22: S | CR22: N | CS22: S | CU22: -310 | CV22: -1200 | CZ22: =IF(F22>0,(MAX(E22:E47)+MIN(F22:F47))/2,(MAX(FB監視!D22,E23:E46)+MIN(FB監視!D22,F23:F46))/2) -> 27020 | DA22: =IF(F22>0,(MAX(E22:E30)+MIN(F22:F30))/2,(MAX(FB監視!D22,E23:E29)+MIN(FB監視!D22,F23:F29))/2) -> 27005 | DB22: 28735 | DC22: =(MAX(E48:E67)+MIN(F48:F67))/2 -> 28765 | DD22: 27284
A23: 2022-06-06 | B23: 2022-06-10 | C23: 24 | D23: 27590 | E23: 28400 | F23: 27510 | G23: 27850 | H23: 158583 | U23: 27414 | V23: 26590 | W23: 27133.63636 | X23: 27432.22222 | Y23: =AVERAGE(G23:G67) -> 27865.33333 | Z23: =AVERAGE(G23:G67) -> 27865.33333 | AA23: =AVERAGE(G23:G67) -> 27865.33333 | AB23: =AVERAGE(G23:G67) -> 27865.33333 | AC23: 890 | AD23: 856.6666667 | AE23: -200 | AF23: 260 | AG23: 28400 | AH23: 25680 | AI23: 29370 | AJ23: 24670 | AK23: 30620 | AL23: 24670 | AM23: 1 | AN23: 4 | AO23: L | AP23: 2 | AQ23: 0 | AT23: 60 | AV23: =IF(F23>0,(MAX(E23:E48)+MIN(F23:F48))/2,(MAX(E24:E48,FB監視!P50)+MIN(F24:F48,FB監視!P50))/2) -> 27255 | AW23: =IF(F23>0,(MAX(E23:E31)+MIN(F23:F31))/2,(MAX(E24:E31,FB監視!P50)+MIN(F24:F31,FB監視!P50))/2) -> 27040 | AX23: 28832.5 | AY23: =(MAX(E49:E67)+MIN(F49:F67))/2 -> 28765 | AZ23: 29620 | BA23: 29220 | BB23: 28810 | BC23: 28330 | BD23: 27920 | BE23: 27440 | BF23: 27030 | BG23: 26550 | BH23: 260 | BI23: 0 | BJ23: 66.97247706 | BK23: 64.94464945 | BQ23: 2280 | BR23: 0 | BU23: 197522.6667 | BV23: 1 | BW23: 0 | CC23: 30136.97272 | CD23: 29207.34079 | CE23: 28277.70886 | CF23: 27348.07692 | CG23: 26418.44499 | CH23: 25488.81306 | CI23: 24559.18112 | CJ23: 0.3035019455 | CK23: 1.038910506 | CL23: 1.470817121 | CM23: 0.5089494163 | CN23: 0.8362221436 | CO23: 550 | CP23: 80 | CQ23: S | CR23: N | CS23: S | CU23: 530 | CV23: -210 | CZ23: =IF(F23>0,(MAX(E23:E48)+MIN(F23:F48))/2,(MAX(FB監視!D23,E24:E47)+MIN(FB監視!D23,F24:F47))/2) -> 27255 | DA23: =IF(F23>0,(MAX(E23:E31)+MIN(F23:F31))/2,(MAX(FB監視!D23,E24:E30)+MIN(FB監視!D23,F24:F30))/2) -> 27040 | DB23: 28832.5 | DC23: =(MAX(E49:E67)+MIN(F49:F67))/2 -> 28765 | DD23: 27070
A24: 2022-05-30 | B24: 2022-06-03 | C24: 23 | D24: 27210 | E24: 27800 | F24: 27060 | G24: 27790 | H24: 179735 | U24: 27156 | V24: 26396 | W24: 27139.09091 | X24: 27466.66667 | Y24: =AVERAGE(G24:G67) -> 27865.68182 | Z24: =AVERAGE(G24:G67) -> 27865.68182 | AA24: =AVERAGE(G24:G67) -> 27865.68182 | AB24: =AVERAGE(G24:G67) -> 27865.68182 | AC24: 740 | AD24: 750 | AE24: 400 | AF24: 580 | AG24: 27800 | AH24: 25680 | AI24: 29370 | AJ24: 24670 | AK24: 30620 | AL24: 24670 | AM24: 1 | AN24: 3 | AO24: L | AP24: 1 | AQ24: 0 | AT24: 980 | AV24: =IF(F24>0,(MAX(E24:E49)+MIN(F24:F49))/2,(MAX(E25:E49,FB監視!P51)+MIN(F25:F49,FB監視!P51))/2) -> 27310 | AW24: =IF(F24>0,(MAX(E24:E32)+MIN(F24:F32))/2,(MAX(E25:E32,FB監視!P51)+MIN(F25:F32,FB監視!P51))/2) -> 26825 | AX24: 28832.5 | AY24: =(MAX(E50:E67)+MIN(F50:F67))/2 -> 28765 | AZ24: 28780 | BA24: 28780 | BB24: 28290 | BC24: 28040 | BD24: 27550 | BE24: 27300 | BF24: 26810 | BG24: 26560 | BH24: 580 | BI24: 0 | BJ24: 69.49152542 | BK24: 51.98776758 | BN24: 0 | BO24: 0.01169174461 | BQ24: 2120 | BR24: 0 | BU24: 197522.6667 | BV24: 1 | BW24: 0 | CC24: 30487.91943 | CD24: 29463.99757 | CE24: 28440.07571 | CF24: 27416.15385 | CG24: 26392.23199 | CH24: 25368.31013 | CI24: 24344.38826 | CJ24: 0.7733333333 | CK24: 0.9866666667 | CL24: 1.858666667 | CM24: 0.8453333333 | CN24: 0.8678787879 | CO24: 10 | CP24: 150 | CQ24: S | CR24: N | CS24: S | CT24: H | CU24: 630 | CV24: 150 | CZ24: =IF(F24>0,(MAX(E24:E49)+MIN(F24:F49))/2,(MAX(FB監視!D24,E25:E48)+MIN(FB監視!D24,F25:F48))/2) -> 27310 | DA24: =IF(F24>0,(MAX(E24:E32)+MIN(F24:F32))/2,(MAX(FB監視!D24,E25:E31)+MIN(FB監視!D24,F25:F31))/2) -> 26825 | DB24: 28832.5 | DC24: =(MAX(E50:E67)+MIN(F50:F67))/2 -> 28765 | DD24: 26858
A25: 2022-05-23 | B25: 2022-05-27 | C25: 22 | D25: 26930 | E25: 27060 | F25: 26580 | G25: 26810 | H25: 181828 | U25: 26972 | V25: 26192 | W25: 27042.72727 | X25: 27506.66667 | Y25: =AVERAGE(G25:G67) -> 27867.44186 | Z25: =AVERAGE(G25:G67) -> 27867.44186 | AA25: =AVERAGE(G25:G67) -> 27867.44186 | AB25: =AVERAGE(G25:G67) -> 27867.44186 | AC25: 480 | AD25: 783.3333333 | AE25: 160 | AF25: -120 | AG25: 27110 | AH25: 25680 | AI25: 29840 | AJ25: 24670 | AK25: 30620 | AL25: 24670 | AM25: 1 | AN25: 2 | AO25: S | AP25: 0 | AQ25: 1 | AT25: 40 | AV25: =IF(F25>0,(MAX(E25:E50)+MIN(F25:F50))/2,(MAX(E26:E50,FB監視!P52)+MIN(F26:F50,FB監視!P52))/2) -> 27310 | AW25: =IF(F25>0,(MAX(E25:E33)+MIN(F25:F33))/2,(MAX(E26:E33,FB監視!P52)+MIN(F26:F33,FB監視!P52))/2) -> 26995 | AX25: 28832.5 | AY25: =(MAX(E51:E67)+MIN(F51:F67))/2 -> 28765 | AZ25: 28870 | BA25: 27533.33333 | BB25: 27296.66667 | BC25: 27053.33333 | BD25: 26816.66667 | BE25: 26573.33333 | BF25: 26336.66667 | BG25: 26093.33333 | BH25: 0 | BI25: 120 | BJ25: 40.99378882 | BK25: 28.34645669 | BN25: -0.01382084095 | BQ25: 1430 | BR25: 1 | BU25: 208058 | BV25: 1 | BW25: 0 | CC25: 30619.38304 | CD25: 29564.33228 | CE25: 28509.28153 | CF25: 27454.23077 | CG25: 26399.18001 | CH25: 25344.12925 | CI25: 24289.0785 | CJ25: -0.1531914894 | CK25: 0.6127659574 | CL25: 0.7889361702 | CM25: -0.2068085106 | CN25: -0.297098646 | CO25: 130 | CP25: 230 | CQ25: S | CR25: S | CS25: S | CU25: 810 | CV25: -130 | CZ25: =IF(F25>0,(MAX(E25:E50)+MIN(F25:F50))/2,(MAX(FB監視!D25,E26:E49)+MIN(FB監視!D25,F26:F49))/2) -> 27310 | DA25: =IF(F25>0,(MAX(E25:E33)+MIN(F25:F33))/2,(MAX(FB監視!D25,E26:E32)+MIN(FB監視!D25,F26:F32))/2) -> 26995 | DB25: 28832.5 | DC25: =(MAX(E51:E67)+MIN(F51:F67))/2 -> 28765 | DD25: 26814
A26: 2022-05-16 | B26: 2022-05-20 | C26: 21 | D26: 26770 | E26: 27060 | F26: 26120 | G26: 26770 | H26: 231005 | U26: 27076 | V26: 26188 | W26: 26886.36364 | X26: 27592.22222 | Y26: =AVERAGE(G26:G67) -> 27892.61905 | Z26: =AVERAGE(G26:G67) -> 27892.61905 | AA26: =AVERAGE(G26:G67) -> 27892.61905 | AB26: =AVERAGE(G26:G67) -> 27892.61905 | AC26: 940 | AD26: 933.3333333 | AE26: 380 | AF26: 0 | AG26: 27580 | AH26: 25680 | AI26: 29950 | AJ26: 24670 | AK26: 30620 | AL26: 24670 | AM26: 7 | AN26: 1 | AO26: S | AP26: 0 | AQ26: 0 | AT26: 380 | AV26: =IF(F26>0,(MAX(E26:E51)+MIN(F26:F51))/2,(MAX(E27:E51,FB監視!P53)+MIN(F27:F51,FB監視!P53))/2) -> 27310 | AW26: =IF(F26>0,(MAX(E26:E34)+MIN(F26:F34))/2,(MAX(E27:E34,FB監視!P53)+MIN(F27:F34,FB監視!P53))/2) -> 26995 | AX26: 28765 | AY26: =(MAX(E52:E67)+MIN(F52:F67))/2 -> 28765 | AZ26: 29120 | BA26: 28120 | BB26: 27590 | BC26: 27180 | BD26: 26650 | BE26: 26240 | BF26: 25710 | BG26: 25300 | BH26: 0 | BI26: 0 | BJ26: 40.25157233 | BK26: 50.54347826 | BN26: -0.01862993838 | BO26: 0 | BQ26: 1430 | BR26: 0 | BU26: 210181.6667 | BV26: 1 | BW26: 0 | CC26: 30775.66103 | CD26: 29694.92787 | CE26: 28614.1947 | CF26: 27533.46154 | CG26: 26452.72837 | CH26: 25371.99521 | CI26: 24291.26205 | CJ26: 0 | CK26: 1.007142857 | CL26: 0.6235714286 | CM26: -0.3278571429 | CN26: -0.1246753247 | CO26: 290 | CP26: 650 | CQ26: S | CR26: S | CS26: S | CU26: 1090 | CV26: 20 | CZ26: =IF(F26>0,(MAX(E26:E51)+MIN(F26:F51))/2,(MAX(FB監視!D26,E27:E50)+MIN(FB監視!D26,F27:F50))/2) -> 27310 | DA26: =IF(F26>0,(MAX(E26:E34)+MIN(F26:F34))/2,(MAX(FB監視!D26,E27:E33)+MIN(FB監視!D26,F27:F33))/2) -> 26995 | DB26: 28832.5 | DC26: =(MAX(E52:E67)+MIN(F52:F67))/2 -> 28765 | DD26: 26848
A27: 2022-05-09 | B27: 2022-05-13 | C27: 20 | D27: 26720 | E27: 26750 | F27: 25680 | G27: 26390 | H27: 275826 | U27: 27106 | V27: 26216 | W27: 26825.45455 | X27: 27642.22222 | Y27: =AVERAGE(G27:G67) -> 27920 | Z27: =AVERAGE(G27:G67) -> 27920 | AA27: =AVERAGE(G27:G67) -> 27920 | AB27: =AVERAGE(G27:G67) -> 27920 | AC27: 1070 | AD27: 936.6666667 | AE27: -390 | AF27: -330 | AG27: 27580 | AH27: 25680 | AI27: 29950 | AJ27: 24670 | AK27: 30620 | AL27: 24670 | AM27: 6 | AN27: 1 | AO27: S | AP27: 0 | AQ27: 1 | AU27: 720 | AV27: =IF(F27>0,(MAX(E27:E52)+MIN(F27:F52))/2,(MAX(E28:E52,FB監視!P54)+MIN(F28:F52,FB監視!P54))/2) -> 27310 | AW27: =IF(F27>0,(MAX(E27:E35)+MIN(F27:F35))/2,(MAX(E28:E35,FB監視!P54)+MIN(F28:F35,FB監視!P54))/2) -> 26640 | AX27: 28765 | AY27: =(MAX(E53:E67)+MIN(F53:F67))/2 -> 28765 | AZ27: 28120 | BA27: 27936.66667 | BB27: 27343.33333 | BC27: 26866.66667 | BD27: 26273.33333 | BE27: 25796.66667 | BF27: 25203.33333 | BG27: 24726.66667 | BH27: 0 | BI27: 330 | BJ27: 24 | BK27: 63.15789474 | BN27: -0.02629499246 | BQ27: 1900 | BR27: 0 | BU27: 200811.3333 | BV27: 0 | BW27: 1 | CC27: 30956.69397 | CD27: 29845.7447 | CE27: 28734.79543 | CF27: 27623.84615 | CG27: 26512.89688 | CH27: 25401.94761 | CI27: 24290.99834 | CJ27: -0.3523131673 | CK27: 1.142348754 | CL27: 0.1857651246 | CM27: -0.7644128114 | CN27: -0.4648980912 | CO27: 30 | CP27: 710 | CQ27: S | CR27: N | CS27: S | CU27: 180 | CV27: -390 | CZ27: =IF(F27>0,(MAX(E27:E52)+MIN(F27:F52))/2,(MAX(FB監視!D27,E28:E51)+MIN(FB監視!D27,F28:F51))/2) -> 27310 | DA27: =IF(F27>0,(MAX(E27:E35)+MIN(F27:F35))/2,(MAX(FB監視!D27,E28:E34)+MIN(FB監視!D27,F28:F34))/2) -> 26640 | DB27: 28765 | DC27: =(MAX(E53:E67)+MIN(F53:F67))/2 -> 28765 | DD27: 26976
A28: 2022-05-02 | B28: 2022-05-06 | C28: 19 | D28: 26620 | E28: 27110 | F28: 26540 | G28: 27110 | H28: 99040 | U28: 27350 | V28: 26432 | W28: 26835.45455 | X28: 27732.22222 | Y28: =AVERAGE(G28:G67) -> 27958.25 | Z28: =AVERAGE(G28:G67) -> 27958.25 | AA28: =AVERAGE(G28:G67) -> 27958.25 | AB28: =AVERAGE(G28:G67) -> 27958.25 | AC28: =IF(E28>F28,E28-F28,(E28-F28)*(-1)) -> 570 | AD28: 936.6666667 | AE28: =D28-G29 -> -250 | AF28: =G28-D28 -> 490 | AG28: 27970 | AH28: 26040 | AI28: 29950 | AJ28: 24670 | AK28: =MAX(E28:E67) -> 30620 | AL28: =MIN(F28:F67) -> 24670 | AM28: =IF(U28>0,IF(E28>U28,1,AM29+1),"") -> 5 | AN28: =IF(V28>0,IF(F28<V28,1,AN29+1),"") -> 2 | AO28: =IF(W28>0,IF(G28>W28,"L","S"),"") -> L | AP28: =IF((G28-D28)>0,AP29+1,0) -> 4 | AQ28: =IF((G28-D28)<0,AQ29+1,0) -> 0 | AR28: =IF(W28>0,IF(G28>U28,IF(V28>W28,"L",""),""),"") ->  | AS28: =IF(W28>0,IF(G28<V28,IF(U28<W28,"S",""),""),"") ->  | AT28: =IF(G28>0,IF(G28-G29>0,G28-G29,""),"") -> 240 | AU28: =IF(G28>0,IF(G28-G29<0,ABS(G28-G29),""),"") ->  | AV28: =IF(F28>0,(MAX(E28:E53)+MIN(F28:F53))/2,(MAX(E29:E53,FB監視!P55)+MIN(F29:F53,FB監視!P55))/2) -> 27310 | AW28: =IF(F28>0,(MAX(E28:E36)+MIN(F28:F36))/2,(MAX(E29:E36,FB監視!P55)+MIN(F29:F36,FB監視!P55))/2) -> 26490 | AX28: =(AW54+AV54)/2 -> 28765 | AY28: =(MAX(E54:E67)+MIN(F54:F67))/2 -> 28765 | AZ28: =G54 -> 28820 | BA28: =2*BD28-2*F28+E28 -> 27870 | BB28: =BD28+E28-F28 -> 27490 | BC28: =2*BD28-F28 -> 27300 | BD28: =SUM(E28:G28)/3 -> 26920 | BE28: =2*BD28-E28 -> 26730 | BF28: =BD28-E28+F28 -> 26350 | BG28: =2*BD28-2*E28+F28 -> 26160 | BH28: =IF(G28>D28,G28-D28,0) -> 490 | BI28: =IF(D28>G28,D28-G28,0) -> 0 | BJ28: 26.08695652 | BK28: 59.65583174 | BN28: =IF(U28>U29,IF(U29>U30,IF(U30>U31,U28/U31-1,""),),IF(U28<U29,IF(U29<U30,IF(U30<U31,U28/U31-1,""),""),"")) ->  | BO28: =IF(W28>W29,IF(W29>W30,IF(W30>W31,W28/W31-1,""),),IF(W28<W29,IF(W29<W30,IF(W30<W31,W28/W31-1,""),""),"")) -> 0 | BP28: =IF(BN28<>"",IF(BO28<>"",IF(BN28>0.5%,IF(BO28>0.25%,"UP",""),IF(BN28<-0.5%,IF(BO28<-0.25%,"DW",""),"")),""),"") ->  | BQ28: 1540 | BR28: =IF(AND(E28<=E29,F28>=F29),1,0) -> 0 | BU28: 184853.6667 | BV28: =IF(G28>G29,IF(B28=B29,BV29+1,1),0) -> 1 | BW28: =IF(G28<G29,IF(B28=B29,BW29+1,1),0) -> 0 | BX28: =BX29+((G28-BX29)*2/(1+5)) ->  | BY28: =BY29+((G28-BY29)*2/(1+20)) ->  | BZ28: =BX28-BY28 ->  | CB28: =BZ28-CA28 ->  | CC28: 30950.17971 | CD28: 29863.58134 | CE28: 28776.98298 | CF28: 27690.38462 | CG28: 26603.78625 | CH28: 25517.18789 | CI28: 24430.58952 | CJ28: =(G28-D28)/AD28 -> 0.5231316726 | CK28: =(E28-F28)/AD28 -> 0.6085409253 | CL28: =(G28-V28)/AD28 -> 0.7238434164 | CM28: =(G28-U28)/AD28 -> -0.256227758 | CN28: =(G28-W28)/AD28 -> 0.2931090262 | CO28: =IF(CJ28>=0,(E28-G28),(E28-D28)) -> 0 | CP28: =IF(CJ28>=0,(D28-F28),(G28-F28)) -> 80 | CQ28: =IF(AND(G28>AX28,G28>AY28),"L",IF(AND(G28<AX28,G28<AY28),"S","I")) -> S | CR28: =IF(AND(CS28="L",D28>AW28),"L",IF(AND(CS28="S",D28<AW28),"S","N")) -> N | CS28: =IF(AW28>AV28,"L",IF(AW28<AV28,"S","N")) -> S | CU28: =(D28-F29) -> 580 | CV28: =(D28-E29) -> -260 | CY28: =IF(AND(CJ29>=0,D28>G29,G28<D29),"D",IF(AND(CJ29<=0,D28<G29,G28>D29),"U","")) ->  | CZ28: =IF(F28>0,(MAX(E28:E53)+MIN(F28:F53))/2,(MAX(FB監視!D28,E29:E52)+MIN(FB監視!D28,F29:F52))/2) -> 27310 | DA28: =IF(F28>0,(MAX(E28:E36)+MIN(F28:F36))/2,(MAX(FB監視!D28,E29:E35)+MIN(FB監視!D28,F29:F35))/2) -> 26490 | DB28: =(AW53+AV53)/2 -> 28765 | DC28: =(MAX(E54:E67)+MIN(F54:F67))/2 -> 28765 | DD28: 26942
A29: 2022-04-25 | B29: 2022-04-28 | C29: 18 | D29: 26590 | E29: 26880 | F29: 26040 | G29: 26870 | H29: 211341 | U29: 27590 | V29: 26602 | W29: 26833.63636 | X29: 27844.81481 | Y29: =AVERAGE(G29:G67) -> 27980 | Z29: =AVERAGE(G29:G67) -> 27980 | AA29: =AVERAGE(G29:G67) -> 27980 | AB29: =AVERAGE(G29:G67) -> 27980 | AC29: 840 | AD29: 963.3333333 | AE29: -510 | AF29: 280 | AG29: 28310 | AH29: 26040 | AI29: 29950 | AJ29: 24670 | AK29: =MAX(E29:E67) -> 30620 | AL29: =MIN(F29:F67) -> 24670 | AM29: 4 | AN29: 1 | AO29: L | AP29: 3 | AQ29: 0 | AU29: 230 | AV29: =IF(F29>0,(MAX(E29:E54)+MIN(F29:F54))/2,(MAX(E30:E54,FB監視!P56)+MIN(F30:F54,FB監視!P56))/2) -> 27450 | AW29: =IF(F29>0,(MAX(E29:E37)+MIN(F29:F37))/2,(MAX(E30:E37,FB監視!P56)+MIN(F30:F37,FB監視!P56))/2) -> 26490 | AX29: 28765 | AY29: =(MAX(E55:E67)+MIN(F55:F67))/2 -> 28765 | AZ29: 30150 | BA29: 27993.33333 | BB29: 27436.66667 | BC29: 27153.33333 | BD29: 26596.66667 | BE29: 26313.33333 | BF29: 25756.66667 | BG29: 25473.33333 | BH29: 280 | BI29: 0 | BJ29: 5.172413793 | BK29: 53.432282 | BQ29: 1930 | BR29: 0 | BU29: 193401 | BV29: 0 | BW29: 1 | CC29: 31059.55151 | CD29: 29958.41895 | CE29: 28857.2864 | CF29: 27756.15385 | CG29: 26655.02129 | CH29: 25553.88874 | CI29: 24452.75619 | CJ29: 0.2906574394 | CK29: 0.8719723183 | CL29: 0.278200692 | CM29: -0.7474048443 | CN29: 0.03774771941 | CO29: 10 | CP29: 550 | CQ29: S | CR29: N | CS29: S | CU29: 30 | CV29: -990 | CZ29: =IF(F29>0,(MAX(E29:E54)+MIN(F29:F54))/2,(MAX(FB監視!D29,E30:E53)+MIN(FB監視!D29,F30:F53))/2) -> 27450 | DA29: =IF(F29>0,(MAX(E29:E37)+MIN(F29:F37))/2,(MAX(FB監視!D29,E30:E36)+MIN(FB監視!D29,F30:F36))/2) -> 26490 | DB29: 28765 | DC29: =(MAX(E55:E67)+MIN(F55:F67))/2 -> 28765 | DD29: 27094
A30: 2022-04-18 | B30: 2022-04-22 | C30: 17 | D30: 26820 | E30: 27580 | F30: 26560 | G30: 27100 | H30: 188199 | U30: 27838 | V30: 26772 | W30: 26909.09091 | X30: 27973.7037 | Y30: =AVERAGE(G30:G67) -> 28009.21053 | Z30: =AVERAGE(G30:G67) -> 28009.21053 | AA30: =AVERAGE(G30:G67) -> 28009.21053 | AB30: =AVERAGE(G30:G67) -> 28009.21053 | AC30: 1020 | AD30: 1060 | AE30: -260 | AF30: 280 | AG30: 28310 | AH30: 26260 | AI30: 29950 | AJ30: 24670 | AK30: =MAX(E30:E67) -> 30620 | AL30: =MIN(F30:F67) -> 24670 | AM30: 3 | AN30: 1 | AO30: L | AP30: 2 | AQ30: 0 | AT30: 20 | AV30: =IF(F30>0,(MAX(E30:E55)+MIN(F30:F55))/2,(MAX(E31:E55,FB監視!P57)+MIN(F31:F55,FB監視!P57))/2) -> 27450 | AW30: =IF(F30>0,(MAX(E30:E38)+MIN(F30:F38))/2,(MAX(E31:E38,FB監視!P57)+MIN(F31:F38,FB監視!P57))/2) -> 26490 | AX30: 28765 | AY30: =(MAX(E56:E67)+MIN(F56:F67))/2 -> 28765 | AZ30: 30350 | BA30: 28620 | BB30: 28100 | BC30: 27600 | BD30: 27080 | BE30: 26580 | BF30: 26060 | BG30: 25560 | BH30: 280 | BI30: 0 | BJ30: 58.76777251 | BK30: 50.08695652 | BN30: 0.02405826957 | BQ30: 2050 | BR30: 0 | BU30: 180259 | BV30: 1 | BW30: 0 | CC30: 31415.1555 | CD30: 30237.53956 | CE30: 29059.92363 | CF30: 27882.30769 | CG30: 26704.69176 | CH30: 25527.07582 | CI30: 24349.45989 | CJ30: 0.2641509434 | CK30: 0.9622641509 | CL30: 0.3094339623 | CM30: -0.6962264151 | CN30: 0.180102916 | CO30: 480 | CP30: 260 | CQ30: S | CR30: N | CS30: S | CU30: 560 | CV30: -390 | CZ30: =IF(F30>0,(MAX(E30:E55)+MIN(F30:F55))/2,(MAX(FB監視!D30,E31:E54)+MIN(FB監視!D30,F31:F54))/2) -> 27450 | DA30: =IF(F30>0,(MAX(E30:E38)+MIN(F30:F38))/2,(MAX(FB監視!D30,E31:E37)+MIN(FB監視!D30,F31:F37))/2) -> 26490 | DB30: 28765 | DC30: =(MAX(E56:E67)+MIN(F56:F67))/2 -> 28765 | DD30: 27302
A31: 2022-04-11 | B31: 2022-04-15 | C31: 16 | D31: 26910 | E31: 27210 | F31: 26260 | G31: 27080 | H31: 202894 | U31: 27668 | V31: 26454 | W31: 26937.27273 | X31: 28087.03704 | Y31: =AVERAGE(G31:G67) -> 28033.78378 | Z31: =AVERAGE(G31:G67) -> 28033.78378 | AA31: =AVERAGE(G31:G67) -> 28033.78378 | AB31: =AVERAGE(G31:G67) -> 28033.78378 | AC31: 950 | AD31: 1130 | AE31: -130 | AF31: 170 | AG31: 28310 | AH31: 24970 | AI31: 30230 | AJ31: 24670 | AK31: =MAX(E31:E67) -> 30620 | AL31: =MIN(F31:F67) -> 24670 | AM31: 2 | AN31: 1 | AO31: L | AP31: 1 | AQ31: 0 | AT31: 40 | AV31: =IF(F31>0,(MAX(E31:E56)+MIN(F31:F56))/2,(MAX(E32:E56,FB監視!P58)+MIN(F32:F56,FB監視!P58))/2) -> 27645 | AW31: =IF(F31>0,(MAX(E31:E39)+MIN(F31:F39))/2,(MAX(E32:E39,FB監視!P58)+MIN(F32:F39,FB監視!P58))/2) -> 26490 | AX31: 28580 | AY31: =(MAX(E57:E67)+MIN(F57:F67))/2 -> 28580 | AZ31: 30160 | BA31: 28390 | BB31: 27800 | BC31: 27440 | BD31: 26850 | BE31: 26490 | BF31: 25900 | BG31: 25540 | BH31: 170 | BI31: 0 | BJ31: 76.67560322 | BK31: 45.11041009 | BN31: 0.02778603269 | BO31: 0 | BQ31: 2050 | BR31: 0 | BU31: 183656.6667 | BV31: 1 | BW31: 0 | CC31: 31780.42925 | CD31: 30522.72207 | CE31: 29265.01488 | CF31: 28007.30769 | CG31: 26749.60051 | CH31: 25491.89332 | CI31: 24234.18613 | CJ31: 0.1504424779 | CK31: 0.8407079646 | CL31: 0.5539823009 | CM31: -0.5203539823 | CN31: 0.126307321 | CO31: 130 | CP31: 650 | CQ31: S | CR31: N | CS31: S | CU31: 150 | CV31: -1060 | CZ31: =IF(F31>0,(MAX(E31:E56)+MIN(F31:F56))/2,(MAX(FB監視!D31,E32:E55)+MIN(FB監視!D31,F32:F55))/2) -> 27645 | DA31: =IF(F31>0,(MAX(E31:E39)+MIN(F31:F39))/2,(MAX(FB監視!D31,E32:E38)+MIN(FB監視!D31,F32:F38))/2) -> 26490 | DB31: 28765 | DC31: =(MAX(E57:E67)+MIN(F57:F67))/2 -> 28580 | DD31: 27250
A32: 2022-04-04 | B32: 2022-04-08 | C32: 15 | D32: 27610 | E32: 27970 | F32: 26760 | G32: 27040 | H32: 163468 | U32: 27374 | V32: 26136 | W32: 26903.63636 | X32: 28164.07407 | Y32: =AVERAGE(G32:G67) -> 28060.27778 | Z32: =AVERAGE(G32:G67) -> 28060.27778 | AA32: =AVERAGE(G32:G67) -> 28060.27778 | AB32: =AVERAGE(G32:G67) -> 28060.27778 | AC32: 1210 | AD32: 1170 | AE32: -50 | AF32: -570 | AG32: 28310 | AH32: 24670 | AI32: 30230 | AJ32: 24670 | AK32: =MAX(E32:E67) -> 30620 | AL32: =MIN(F32:F67) -> 24670 | AM32: 1 | AN32: 4 | AO32: L | AP32: 0 | AQ32: 2 | AU32: 620 | AV32: =IF(F32>0,(MAX(E32:E57)+MIN(F32:F57))/2,(MAX(E33:E57,FB監視!P59)+MIN(F33:F57,FB監視!P59))/2) -> 27645 | AW32: =IF(F32>0,(MAX(E32:E40)+MIN(F32:F40))/2,(MAX(E33:E40,FB監視!P59)+MIN(F33:F40,FB監視!P59))/2) -> 26490 | AX32: 28050 | AY32: =(MAX(E58:E67)+MIN(F58:F67))/2 -> 28050 | AZ32: 29160 | BA32: 28963.33333 | BB32: 28466.66667 | BC32: 27753.33333 | BD32: 27256.66667 | BE32: 26543.33333 | BF32: 26046.66667 | BG32: 25333.33333 | BH32: 0 | BI32: 570 | BJ32: 60 | BK32: 47.19271624 | BN32: 0.02172290236 | BO32: -0.005210259168 | BQ32: 3340 | BR32: 0 | BU32: 183656.6667 | BV32: 0 | BW32: 1 | CC32: 32052.16664 | CD32: 30743.3675 | CE32: 29434.56837 | CF32: 28125.76923 | CG32: 26816.9701 | CH32: 25508.17096 | CI32: 24199.37182 | CJ32: -0.4871794872 | CK32: 1.034188034 | CL32: 0.7726495726 | CM32: -0.2854700855 | CN32: 0.1165501166 | CO32: 360 | CP32: 280 | CQ32: S | CR32: N | CS32: S | CU32: 220 | CV32: -700 | CZ32: =IF(F32>0,(MAX(E32:E57)+MIN(F32:F57))/2,(MAX(FB監視!D32,E33:E56)+MIN(FB監視!D32,F33:F56))/2) -> 27645 | DA32: =IF(F32>0,(MAX(E32:E40)+MIN(F32:F40))/2,(MAX(FB監視!D32,E33:E39)+MIN(FB監視!D32,F33:F39))/2) -> 26490 | DB32: 28580 | DC32: =(MAX(E58:E67)+MIN(F58:F67))/2 -> 28050 | DD32: 27000
A33: 2022-03-28 | B33: 2022-04-01 | C33: 14 | D33: 27900 | E33: 28310 | F33: 27390 | G33: 27660 | H33: 189110 | U33: 27184 | V33: 25936 | W33: 26947.27273 | X33: 28186.2963 | Y33: =AVERAGE(G33:G67) -> 28089.42857 | Z33: =AVERAGE(G33:G67) -> 28089.42857 | AA33: =AVERAGE(G33:G67) -> 28089.42857 | AB33: =AVERAGE(G33:G67) -> 28089.42857 | AC33: 920 | AD33: 1186.666667 | AE33: -10 | AF33: -240 | AG33: 28310 | AH33: 24670 | AI33: 30620 | AJ33: 24670 | AK33: =MAX(E33:E67) -> 30620 | AL33: =MIN(F33:F67) -> 24670 | AM33: 1 | AN33: 3 | AO33: L | AP33: 0 | AQ33: 1 | AU33: 250 | AV33: =IF(F33>0,(MAX(E33:E58)+MIN(F33:F58))/2,(MAX(E34:E58,FB監視!P60)+MIN(F34:F58,FB監視!P60))/2) -> 27645 | AW33: =IF(F33>0,(MAX(E33:E41)+MIN(F33:F41))/2,(MAX(E34:E41,FB監視!P60)+MIN(F34:F41,FB監視!P60))/2) -> 26490 | AX33: 27875 | AY33: =(MAX(E59:E67)+MIN(F59:F67))/2 -> 27875 | AZ33: 27640 | BA33: 29103.33333 | BB33: 28706.66667 | BC33: 28183.33333 | BD33: 27786.66667 | BE33: 27263.33333 | BF33: 26866.66667 | BG33: 26343.33333 | BH33: 0 | BI33: 240 | BJ33: 62.94642857 | BK33: 57.12143928 | BO33: -0.01071321296 | BQ33: 3640 | BR33: 0 | BU33: 196473 | BV33: 0 | BW33: 1 | CC33: 32121.24926 | CD33: 30816.60207 | CE33: 29511.95488 | CF33: 28207.30769 | CG33: 26902.6605 | CH33: 25598.01331 | CI33: 24293.36612 | CJ33: -0.202247191 | CK33: 0.7752808989 | CL33: 1.452808989 | CM33: 0.4011235955 | CN33: 0.6006128703 | CO33: 410 | CP33: 270 | CQ33: S | CR33: N | CS33: S | CU33: 1010 | CV33: -220 | CZ33: =IF(F33>0,(MAX(E33:E58)+MIN(F33:F58))/2,(MAX(FB監視!D33,E34:E57)+MIN(FB監視!D33,F34:F57))/2) -> 27645 | DA33: =IF(F33>0,(MAX(E33:E41)+MIN(F33:F41))/2,(MAX(FB監視!D33,E34:E40)+MIN(FB監視!D33,F34:F40))/2) -> 26490 | DB33: 28050 | DC33: =(MAX(E59:E67)+MIN(F59:F67))/2 -> 27875 | DD33: 26746
A34: 2022-03-22 | B34: 2022-03-25 | C34: 13 | D34: 26990 | E34: 28120 | F34: 26890 | G34: 27910 | H34: 134662 | U34: 26920 | V34: 25608 | W34: 26995.45455 | X34: 28162.22222 | Y34: =AVERAGE(G34:G67) -> 28102.05882 | Z34: =AVERAGE(G34:G67) -> 28102.05882 | AA34: =AVERAGE(G34:G67) -> 28102.05882 | AB34: =AVERAGE(G34:G67) -> 28102.05882 | AC34: 1230 | AD34: 1243.333333 | AE34: 260 | AF34: 920 | AG34: 28120 | AH34: 24670 | AI34: 30620 | AJ34: 24670 | AK34: =MAX(E34:E67) -> 30620 | AL34: =MIN(F34:F67) -> 24670 | AM34: 1 | AN34: 2 | AO34: L | AP34: 2 | AQ34: 0 | AT34: 1180 | AV34: =IF(F34>0,(MAX(E34:E59)+MIN(F34:F59))/2,(MAX(E35:E59,FB監視!P61)+MIN(F35:F59,FB監視!P61))/2) -> 27645 | AW34: =IF(F34>0,(MAX(E34:E42)+MIN(F34:F42))/2,(MAX(E35:E42,FB監視!P61)+MIN(F35:F42,FB監視!P61))/2) -> 26395 | AX34: 27875 | AY34: =(MAX(E60:E67)+MIN(F60:F67))/2 -> 27875 | AZ34: 27010 | BA34: 29620 | BB34: 28870 | BC34: 28390 | BD34: 27640 | BE34: 27160 | BF34: 26410 | BG34: 25930 | BH34: 920 | BI34: 0 | BJ34: 58.50622407 | BK34: 52.69709544 | BN34: 0 | BO34: -0.02077493817 | BQ34: 3450 | BR34: 0 | BU34: 203814 | BV34: 1 | BW34: 0 | CC34: 32121.46501 | CD34: 30816.48949 | CE34: 29511.51398 | CF34: 28206.53846 | CG34: 26901.56295 | CH34: 25596.58743 | CI34: 24291.61192 | CJ34: 0.7399463807 | CK34: 0.9892761394 | CL34: 1.851474531 | CM34: 0.7962466488 | CN34: 0.7355593468 | CO34: 210 | CP34: 100 | CQ34: L | CR34: N | CS34: S | CU34: 2020 | CV34: 260 | CZ34: =IF(F34>0,(MAX(E34:E59)+MIN(F34:F59))/2,(MAX(FB監視!D34,E35:E58)+MIN(FB監視!D34,F35:F58))/2) -> 27645 | DA34: =IF(F34>0,(MAX(E34:E42)+MIN(F34:F42))/2,(MAX(FB監視!D34,E35:E41)+MIN(FB監視!D34,F35:F41))/2) -> 26395 | DB34: 27875 | DC34: =(MAX(E60:E67)+MIN(F60:F67))/2 -> 27875 | DD34: 26282
A35: 2022-03-14 | B35: 2022-03-18 | C35: 12 | D35: 25070 | E35: 26730 | F35: 24970 | G35: 26730 | H35: 198392 | U35: 26792 | V35: 25570 | W35: 27044.54545 | X35: 28165.18519 | Y35: =AVERAGE(G35:G67) -> 28107.87879 | Z35: =AVERAGE(G35:G67) -> 28107.87879 | AA35: =AVERAGE(G35:G67) -> 28107.87879 | AB35: =AVERAGE(G35:G67) -> 28107.87879 | AC35: 1760 | AD35: 1190 | AE35: -20 | AF35: 1660 | AG35: 27480 | AH35: 24670 | AI35: 30620 | AJ35: 24670 | AK35: =MAX(E35:E67) -> 30620 | AL35: =MIN(F35:F67) -> 24670 | AM35: 14 | AN35: 1 | AO35: S | AP35: 1 | AQ35: 0 | AT35: 1640 | AV35: =IF(F35>0,(MAX(E35:E60)+MIN(F35:F60))/2,(MAX(E36:E60,FB監視!P62)+MIN(F36:F60,FB監視!P62))/2) -> 27645 | AW35: =IF(F35>0,(MAX(E35:E43)+MIN(F35:F43))/2,(MAX(E36:E43,FB監視!P62)+MIN(F36:F43,FB監視!P62))/2) -> 26695 | AX35: 28045 | AY35: =(MAX(E61:E67)+MIN(F61:F67))/2 -> 28045 | AZ35: 27990 | BA35: 29076.66667 | BB35: 27903.33333 | BC35: 27316.66667 | BD35: 26143.33333 | BE35: 25556.66667 | BF35: 24383.33333 | BG35: 23796.66667 | BH35: 1660 | BI35: 0 | BJ35: 38.58823529 | BK35: 39.13690476 | BN35: -0.02560372418 | BO35: -0.03018744906 | BP35: DW | BQ35: 2350 | BR35: 0 | BU35: 203814 | BV35: 1 | BW35: 0 | CC35: 32144.45586 | CD35: 30820.27827 | CE35: 29496.10067 | CF35: 28171.92308 | CG35: 26847.74548 | CH35: 25523.56789 | CI35: 24199.39029 | CJ35: 1.394957983 | CK35: 1.478991597 | CL35: 0.974789916 | CM35: -0.05210084034 | CN35: -0.2643239114 | CO35: 0 | CP35: 100 | CQ35: S | CR35: S | CS35: S | CU35: 400 | CV35: -670 | CY35: U | CZ35: =IF(F35>0,(MAX(E35:E60)+MIN(F35:F60))/2,(MAX(FB監視!D35,E36:E59)+MIN(FB監視!D35,F36:F59))/2) -> 27645 | DA35: =IF(F35>0,(MAX(E35:E43)+MIN(F35:F43))/2,(MAX(FB監視!D35,E36:E42)+MIN(FB監視!D35,F36:F42))/2) -> 26695 | DB35: 27875 | DC35: =(MAX(E61:E67)+MIN(F61:F67))/2 -> 28045 | DD35: 25970
A36: 2022-03-07 | B36: 2022-03-11 | C36: 11 | D36: 25550 | E36: 25740 | F36: 24670 | G36: 25090 | H36: 201917 | U36: 27018 | V36: 25990 | W36: 27239.09091 | X36: 28206.2963 | Y36: =AVERAGE(G36:G67) -> 28150.9375 | Z36: =AVERAGE(G36:G67) -> 28150.9375 | AA36: =AVERAGE(G36:G67) -> 28150.9375 | AB36: =AVERAGE(G36:G67) -> 28150.9375 | AC36: =IF(E36>F36,E36-F36,(E36-F36)*(-1)) -> 1070 | AD36: 1033.333333 | AE36: =D36-G37 -> -550 | AF36: =G36-D36 -> -460 | AG36: 27860 | AH36: 24670 | AI36: 30620 | AJ36: 24670 | AK36: =MAX(E36:E67) -> 30620 | AL36: =MIN(F36:F67) -> 24670 | AM36: =IF(U36>0,IF(E36>U36,1,AM37+1),"") -> 13 | AN36: =IF(V36>0,IF(F36<V36,1,AN37+1),"") -> 1 | AO36: =IF(W36>0,IF(G36>W36,"L","S"),"") -> S | AP36: =IF((G36-D36)>0,AP37+1,0) -> 0 | AQ36: =IF((G36-D36)<0,AQ37+1,0) -> 3 | AR36: =IF(W36>0,IF(G36>U36,IF(V36>W36,"L",""),""),"") ->  | AS36: =IF(W36>0,IF(G36<V36,IF(U36<W36,"S",""),""),"") -> S | AT36: =IF(G36>0,IF(G36-G37>0,G36-G37,""),"") ->  | AU36: =IF(G36>0,IF(G36-G37<0,ABS(G36-G37),""),"") -> 1010 | AV36: =IF(F36>0,(MAX(E36:E61)+MIN(F36:F61))/2,(MAX(E37:E61,FB監視!P63)+MIN(F37:F61,FB監視!P63))/2) -> 27645 | AW36: =IF(F36>0,(MAX(E36:E44)+MIN(F36:F44))/2,(MAX(E37:E44,FB監視!P63)+MIN(F37:F44,FB監視!P63))/2) -> 26730 | AX36: =(AW62+AV62)/2 -> 28045 | AY36: =(MAX(E62:E67)+MIN(F62:F67))/2 -> 28045 | AZ36: =G62 -> 27840 | BA36: =2*BD36-2*F36+E36 -> 26733.33333 | BB36: =BD36+E36-F36 -> 26236.66667 | BC36: =2*BD36-F36 -> 25663.33333 | BD36: =SUM(E36:G36)/3 -> 25166.66667 | BE36: =2*BD36-E36 -> 24593.33333 | BF36: =BD36-E36+F36 -> 24096.66667 | BG36: =2*BD36-2*E36+F36 -> 23523.33333 | BH36: =IF(G36>D36,G36-D36,0) -> 0 | BI36: =IF(D36>G36,D36-G36,0) -> 460 | BJ36: 10 | BK36: 18.53932584 | BN36: =IF(U36>U37,IF(U37>U38,IF(U38>U39,U36/U39-1,""),),IF(U36<U37,IF(U37<U38,IF(U38<U39,U36/U39-1,""),""),"")) -> -0.02959557503 | BO36: =IF(W36>W37,IF(W37>W38,IF(W38>W39,W36/W39-1,""),),IF(W36<W37,IF(W37<W38,IF(W38<W39,W36/W39-1,""),""),"")) -> -0.03304611611 | BP36: =IF(BN36<>"",IF(BO36<>"",IF(BN36>0.5%,IF(BO36>0.25%,"UP",""),IF(BN36<-0.5%,IF(BO36<-0.25%,"DW",""),"")),""),"") -> DW | BQ36: 2810 | BR36: =IF(AND(E36<=E37,F36>=F37),1,0) -> 0 | BU36: 194898.3333 | BV36: =IF(G36>G37,IF(B36=B37,BV37+1,1),0) -> 0 | BW36: =IF(G36<G37,IF(B36=B37,BW37+1,1),0) -> 1 | BX36: =BX37+((G36-BX37)*2/(1+5)) ->  | BY36: =BY37+((G36-BY37)*2/(1+20)) ->  | BZ36: =BX36-BY36 ->  | CB36: =BZ36-CA36 ->  | CC36: 32100.02806 | CD36: 30806.81358 | CE36: 29513.5991 | CF36: 28220.38462 | CG36: 26927.17013 | CH36: 25633.95565 | CI36: 24340.74117 | CJ36: =(G36-D36)/AD36 -> -0.4451612903 | CK36: =(E36-F36)/AD36 -> 1.035483871 | CL36: =(G36-V36)/AD36 -> -0.8709677419 | CM36: =(G36-U36)/AD36 -> -1.865806452 | CN36: =(G36-W36)/AD36 -> -2.079765396 | CO36: =IF(CJ36>=0,(E36-G36),(E36-D36)) -> 190 | CP36: =IF(CJ36>=0,(D36-F36),(G36-F36)) -> 420 | CQ36: =IF(AND(G36>AX36,G36>AY36),"L",IF(AND(G36<AX36,G36<AY36),"S","I")) -> S | CR36: =IF(AND(CS36="L",D36>AW36),"L",IF(AND(CS36="S",D36<AW36),"S","N")) -> S | CS36: =IF(AW36>AV36,"L",IF(AW36<AV36,"S","N")) -> S | CT36: L | CU36: =(D36-F37) -> -210 | CV36: =(D36-E37) -> -1470 | CY36: =IF(AND(CJ37>=0,D36>G37,G36<D37),"D",IF(AND(CJ37<=0,D36<G37,G36>D37),"U","")) ->  | CZ36: =IF(F36>0,(MAX(E36:E61)+MIN(F36:F61))/2,(MAX(FB監視!D36,E37:E60)+MIN(FB監視!D36,F37:F60))/2) -> 27645 | DA36: =IF(F36>0,(MAX(E36:E44)+MIN(F36:F44))/2,(MAX(FB監視!D36,E37:E43)+MIN(FB監視!D36,F37:F43))/2) -> 26730 | DB36: =(AW61+AV61)/2 -> 28045 | DC36: =(MAX(E62:E67)+MIN(F62:F67))/2 -> 28045 | DD36: 26588
A37: 2022-02-28 | B37: 2022-03-04 | C37: 10 | D37: 26480 | E37: 27020 | F37: 25760 | G37: 26100 | H37: 218562 | U37: 27378 | V37: 26358 | W37: 27568.18182 | X37: 28290 | Y37: =AVERAGE(G37:G67) -> 28249.67742 | Z37: =AVERAGE(G37:G67) -> 28249.67742 | AA37: =AVERAGE(G37:G67) -> 28249.67742 | AB37: =AVERAGE(G37:G67) -> 28249.67742 | AC37: 1260 | AD37: 1020 | AE37: -20 | AF37: -380 | AG37: 27860 | AH37: 25750 | AI37: 30620 | AJ37: 25750 | AK37: =MAX(E37:E67) -> 30620 | AL37: =MIN(F37:F67) -> 25750 | AM37: 12 | AN37: 1 | AO37: S | AP37: 0 | AQ37: 2 | AS37: S | AU37: 400 | AV37: =IF(F37>0,(MAX(E37:E62)+MIN(F37:F62))/2,(MAX(E38:E62,FB監視!P64)+MIN(F38:F62,FB監視!P64))/2) -> 28185 | AW37: =IF(F37>0,(MAX(E37:E45)+MIN(F37:F45))/2,(MAX(E38:E45,FB監視!P64)+MIN(F38:F45,FB監視!P64))/2) -> 27560 | AX37: 28045 | AY37: =(MAX(E63:E67)+MIN(F63:F67))/2 -> 28045 | AZ37: 27350 | BA37: 28086.66667 | BB37: 27553.33333 | BC37: 26826.66667 | BD37: 26293.33333 | BE37: 25566.66667 | BF37: 25033.33333 | BG37: 24306.66667 | BH37: 0 | BI37: 380 | BJ37: 38.22393822 | BK37: 20.84210526 | BN37: -0.02583262169 | BO37: -0.02667223007 | BP37: DW | BQ37: 2110 | BR37: 0 | BU37: 182127.6667 | BV37: 0 | BW37: 1 | CC37: 31733.34725 | CD37: 30597.61611 | CE37: 29461.88498 | CF37: 28326.15385 | CG37: 27190.42271 | CH37: 26054.69158 | CI37: 24918.96045 | CJ37: -0.3725490196 | CK37: 1.235294118 | CL37: -0.2529411765 | CM37: -1.252941176 | CN37: -1.439393939 | CO37: 540 | CP37: 340 | CQ37: S | CR37: S | CS37: S | CU37: 730 | CV37: -510 | CZ37: =IF(F37>0,(MAX(E37:E62)+MIN(F37:F62))/2,(MAX(FB監視!D37,E38:E61)+MIN(FB監視!D37,F38:F61))/2) -> 28185 | DA37: =IF(F37>0,(MAX(E37:E45)+MIN(F37:F45))/2,(MAX(FB監視!D37,E38:E44)+MIN(FB監視!D37,F38:F44))/2) -> 27560 | DB37: 28045 | DC37: =(MAX(E63:E67)+MIN(F63:F67))/2 -> 28045 | DD37: 27036
A38: 2022-02-21 | B38: 2022-02-25 | C38: 9 | D38: 26710 | E38: 26990 | F38: 25750 | G38: 26500 | H38: 211133 | U38: 27496 | V38: 26410 | W38: 27886.36364 | X38: 28344.07407 | Y38: =AVERAGE(G38:G67) -> 28321.33333 | Z38: =AVERAGE(G38:G67) -> 28321.33333 | AA38: =AVERAGE(G38:G67) -> 28321.33333 | AB38: =AVERAGE(G38:G67) -> 28321.33333 | AC38: 1240 | AD38: 1020 | AE38: -380 | AF38: -210 | AG38: 27860 | AH38: 25750 | AI38: 30620 | AJ38: 25750 | AK38: =MAX(E38:E67) -> 30620 | AL38: =MIN(F38:F67) -> 25750 | AM38: 11 | AN38: 1 | AO38: S | AP38: 0 | AQ38: 1 | AU38: 590 | AV38: =IF(F38>0,(MAX(E38:E63)+MIN(F38:F63))/2,(MAX(E39:E63,FB監視!P65)+MIN(F39:F63,FB監視!P65))/2) -> 28185 | AW38: =IF(F38>0,(MAX(E38:E46)+MIN(F38:F46))/2,(MAX(E39:E46,FB監視!P65)+MIN(F39:F46,FB監視!P65))/2) -> 27560 | AX38: 28055 | AY38: =(MAX(E64:E67)+MIN(F64:F67))/2 -> 28055 | AZ38: 27560 | BA38: 28316.66667 | BB38: 27653.33333 | BC38: 27076.66667 | BD38: 26413.33333 | BE38: 25836.66667 | BF38: 25173.33333 | BG38: 24596.66667 | BH38: 0 | BI38: 210 | BJ38: 33 | BK38: 25.49889135 | BN38: -0.03203548546 | BO38: -0.01912192626 | BP38: DW | BQ38: 2110 | BR38: 0 | BU38: 182127.6667 | BV38: 0 | BW38: 1 | CC38: 31568.37392 | CD38: 30503.65953 | CE38: 29438.94515 | CF38: 28374.23077 | CG38: 27309.51639 | CH38: 26244.802 | CI38: 25180.08762 | CJ38: -0.2058823529 | CK38: 1.215686275 | CL38: 0.08823529412 | CM38: -0.9764705882 | CN38: -1.359180036 | CO38: 280 | CP38: 750 | CQ38: S | CR38: S | CS38: S | CU38: 10 | CV38: -770 | CZ38: =IF(F38>0,(MAX(E38:E63)+MIN(F38:F63))/2,(MAX(FB監視!D38,E39:E62)+MIN(FB監視!D38,F39:F62))/2) -> 28185 | DA38: =IF(F38>0,(MAX(E38:E46)+MIN(F38:F46))/2,(MAX(FB監視!D38,E39:E45)+MIN(FB監視!D38,F39:F45))/2) -> 27560 | DB38: 28045 | DC38: =(MAX(E64:E67)+MIN(F64:F67))/2 -> 28055 | DD38: 27124
A39: 2022-02-14 | B39: 2022-02-18 | C39: 8 | D39: 27020 | E39: 27480 | F39: 26700 | G39: 27090 | H39: 171645 | U39: 27842 | V39: 26680 | W39: 28170 | X39: 28397.03704 | Y39: =AVERAGE(G39:G67) -> 28384.13793 | Z39: =AVERAGE(G39:G67) -> 28384.13793 | AA39: =AVERAGE(G39:G67) -> 28384.13793 | AB39: =AVERAGE(G39:G67) -> 28384.13793 | AC39: 780 | AD39: 1136.666667 | AE39: -680 | AF39: 70 | AG39: 28720 | AH39: 26020 | AI39: 30620 | AJ39: 26020 | AK39: =MAX(E39:E67) -> 30620 | AL39: =MIN(F39:F67) -> 26020 | AM39: 10 | AN39: 3 | AO39: S | AP39: 3 | AQ39: 0 | AU39: 610 | AV39: =IF(F39>0,(MAX(E39:E64)+MIN(F39:F64))/2,(MAX(E40:E64,FB監視!P66)+MIN(F40:F64,FB監視!P66))/2) -> 28320 | AW39: =IF(F39>0,(MAX(E39:E47)+MIN(F39:F47))/2,(MAX(E40:E47,FB監視!P66)+MIN(F40:F47,FB監視!P66))/2) -> 27695 | AX39: 28110 | AY39: =(MAX(E65:E67)+MIN(F65:F67))/2 -> 28110 | AZ39: 27930 | BA39: 28260 | BB39: 27870 | BC39: 27480 | BD39: 27090 | BE39: 26700 | BF39: 26310 | BG39: 25920 | BH39: 70 | BI39: 0 | BJ39: 32.14285714 | BK39: 23.90852391 | BN39: -0.03036846138 | BO39: -0.01453377433 | BP39: DW | BQ39: 1840 | BR39: 0 | BU39: 190141 | BV39: 0 | BW39: 1 | CC39: 31448.33689 | CD39: 30437.22459 | CE39: 29426.1123 | CF39: 28415 | CG39: 27403.8877 | CH39: 26392.77541 | CI39: 25381.66311 | CJ39: 0.06158357771 | CK39: 0.6862170088 | CL39: 0.3607038123 | CM39: -0.6615835777 | CN39: -0.9501466276 | CO39: 390 | CP39: 320 | CQ39: S | CR39: S | CS39: S | CU39: -50 | CV39: -840 | CZ39: =IF(F39>0,(MAX(E39:E64)+MIN(F39:F64))/2,(MAX(FB監視!D39,E40:E63)+MIN(FB監視!D39,F40:F63))/2) -> 28320 | DA39: =IF(F39>0,(MAX(E39:E47)+MIN(F39:F47))/2,(MAX(FB監視!D39,E40:E46)+MIN(FB監視!D39,F40:F46))/2) -> 27695 | DB39: 28055 | DC39: =(MAX(E65:E67)+MIN(F65:F67))/2 -> 28110 | DD39: 27272
A40: 2022-02-07 | B40: 2022-02-10 | C40: 7 | D40: 27270 | E40: 27860 | F40: 27070 | G40: 27700 | H40: 99004 | U40: 28104 | V40: 26910 | W40: 28323.63636 | X40: 28438.51852 | Y40: =AVERAGE(G40:G67) -> 28430.35714 | Z40: =AVERAGE(G40:G67) -> 28430.35714 | AA40: =AVERAGE(G40:G67) -> 28430.35714 | AB40: =AVERAGE(G40:G67) -> 28430.35714 | AC40: 790 | AD40: 1186.666667 | AE40: -140 | AF40: 430 | AG40: 28790 | AH40: 26020 | AI40: 30620 | AJ40: 26020 | AK40: =MAX(E40:E67) -> 30620 | AL40: =MIN(F40:F67) -> 26020 | AM40: 9 | AN40: 2 | AO40: S | AP40: 2 | AQ40: 0 | AT40: 290 | AV40: =IF(F40>0,(MAX(E40:E65)+MIN(F40:F65))/2,(MAX(E41:E65,FB監視!P67)+MIN(F41:F65,FB監視!P67))/2) -> 28320 | AW40: =IF(F40>0,(MAX(E40:E48)+MIN(F40:F48))/2,(MAX(E41:E48,FB監視!P67)+MIN(F41:F48,FB監視!P67))/2) -> 27930 | AX40: 28070 | AY40: =(MAX(E66:E67)+MIN(F66:F67))/2 -> 28070 | AZ40: 28210 | BA40: 28806.66667 | BB40: 28333.33333 | BC40: 28016.66667 | BD40: 27543.33333 | BE40: 27226.66667 | BF40: 26753.33333 | BG40: 26436.66667 | BH40: 430 | BI40: 0 | BJ40: 36.26373626 | BK40: 27.25118483 | BN40: -0.02949098695 | BO40: -0.01358239671 | BP40: DW | BQ40: 2700 | BR40: 0 | BU40: 177442 | BV40: 1 | BW40: 0 | CC40: 31391.02071 | CD40: 30409.78303 | CE40: 29428.54536 | CF40: 28447.30769 | CG40: 27466.07002 | CH40: 26484.83235 | CI40: 25503.59468 | CJ40: 0.3623595506 | CK40: 0.6657303371 | CL40: 0.6657303371 | CM40: -0.3404494382 | CN40: -0.5255362615 | CO40: 160 | CP40: 200 | CQ40: S | CR40: S | CS40: S | CU40: 760 | CV40: -270 | CZ40: =IF(F40>0,(MAX(E40:E65)+MIN(F40:F65))/2,(MAX(FB監視!D40,E41:E64)+MIN(FB監視!D40,F41:F64))/2) -> 28320 | DA40: =IF(F40>0,(MAX(E40:E48)+MIN(F40:F48))/2,(MAX(FB監視!D40,E41:E47)+MIN(FB監視!D40,F41:F47))/2) -> 27930 | DB40: 28110 | DC40: =(MAX(E66:E67)+MIN(F66:F67))/2 -> 28070 | DD40: 27420
A41: 2022-01-31 | B41: 2022-02-04 | C41: 6 | D41: 26620 | E41: 27540 | F41: 26510 | G41: 27410 | H41: 163605 | U41: 28406 | V41: 27148 | W41: 28430 | X41: 28457.40741 | Y41: =AVERAGE(G41:G67) -> 28457.40741 | Z41: =AVERAGE(G41:G67) -> 28457.40741 | AA41: =AVERAGE(G41:G67) -> 28457.40741 | AB41: =AVERAGE(G41:G67) -> 28457.40741 | AC41: 1030 | AD41: 1243.333333 | AE41: -90 | AF41: 790 | AG41: 29370 | AH41: 26020 | AI41: 30620 | AJ41: 26020 | AK41: =MAX(E41:E67) -> 30620 | AL41: =MIN(F41:F67) -> 26020 | AM41: 8 | AN41: 1 | AO41: S | AP41: 1 | AQ41: 0 | AT41: 700 | AV41: =IF(F41>0,(MAX(E41:E66)+MIN(F41:F66))/2,(MAX(E42:E66,FB監視!P68)+MIN(F42:F66,FB監視!P68))/2) -> 28320 | AW41: =IF(F41>0,(MAX(E41:E49)+MIN(F41:F49))/2,(MAX(E42:E49,FB監視!P68)+MIN(F42:F49,FB監視!P68))/2) -> 27985 | AX41: 28070 | AY41: =(MAX(E67:E67)+MIN(F67:F67))/2 -> 28070 | AZ41: 28210 | BA41: 28826.66667 | BB41: 28183.33333 | BC41: 27796.66667 | BD41: 27153.33333 | BE41: 26766.66667 | BF41: 26123.33333 | BG41: 25736.66667 | BH41: 790 | BI41: 0 | BJ41: 24.47552448 | BK41: 35.639413 | BN41: -0.02659173463 | BO41: -0.01393662305 | BP41: DW | BQ41: 2770 | BR41: 1 | BU41: 180530 | BV41: 1 | BW41: 0 | CC41: 31380.36794 | CD41: 30409.21965 | CE41: 29438.07136 | CF41: 28466.92308 | CG41: 27495.77479 | CH41: 26524.6265 | CI41: 25553.47822 | CJ41: 0.6353887399 | CK41: 0.8284182306 | CL41: 0.2107238606 | CM41: -0.8010723861 | CN41: -0.8203753351 | CO41: 130 | CP41: 110 | CQ41: S | CR41: S | CS41: S | CU41: 600 | CV41: -990 | CY41: U | CZ41: =IF(F41>0,(MAX(E41:E66)+MIN(F41:F66))/2,(MAX(FB監視!D41,E42:E65)+MIN(FB監視!D41,F42:F65))/2) -> 28320 | DA41: =IF(F41>0,(MAX(E41:E49)+MIN(F41:F49))/2,(MAX(FB監視!D41,E42:E48)+MIN(FB監視!D41,F42:F48))/2) -> 27985 | DB41: 28070 | DC41: =(MAX(E67:E67)+MIN(F67:F67))/2 -> 28070 | DD41: 27498
A42: 2022-01-24 | B42: 2022-01-28 | C42: 5 | D42: 27280 | E42: 27610 | F42: 26020 | G42: 26710 | H42: 266003 | U42: 28714 | V42: 27556 | W42: 28585.45455 | X42: =AVERAGE(G42:G67) -> 28497.69231 | Y42: =AVERAGE(G42:G67) -> 28497.69231 | Z42: =AVERAGE(G42:G67) -> 28497.69231 | AA42: =AVERAGE(G42:G67) -> 28497.69231 | AB42: =AVERAGE(G42:G67) -> 28497.69231 | AC42: 1590 | AD42: 1213.333333 | AE42: -240 | AF42: -570 | AG42: 29370 | AH42: 26020 | AI42: 30620 | AJ42: 26020 | AK42: =MAX(E42:E67) -> 30620 | AL42: =MIN(F42:F67) -> 26020 | AM42: 7 | AN42: 1 | AO42: S | AP42: 0 | AQ42: 4 | AU42: 810 | AV42: =IF(F42>0,(MAX(E42:E67)+MIN(F42:F67))/2,(MAX(E43:E67,FB監視!P69)+MIN(F43:F67,FB監視!P69))/2) -> 28320 | AW42: =IF(F42>0,(MAX(E42:E50)+MIN(F42:F50))/2,(MAX(E43:E50,FB監視!P69)+MIN(F43:F50,FB監視!P69))/2) -> 27985 | AX42: =(#REF!+#REF!)/2 ->  | AY42: =(MAX(#REF!)+MIN(#REF!))/2 ->  | AZ42: =#REF! ->  | BA42: 29130 | BB42: 28370 | BC42: 27540 | BD42: 26780 | BE42: 25950 | BF42: 25190 | BG42: 24360 | BH42: 0 | BI42: 570 | BJ42: 6.896551724 | BK42: 24.03846154 | BN42: -0.02379819134 | BO42: -0.01463445207 | BP42: DW | BQ42: 3350 | BR42: 0 | BU42: 170511 | BV42: 0 | BW42: 1 | CC42: 31346.51767 | CD42: 30396.90921 | CE42: 29447.30076 | CF42: 28497.69231 | CG42: 27548.08386 | CH42: 26598.4754 | CI42: 25648.86695 | CJ42: -0.4697802198 | CK42: 1.31043956 | CL42: -0.6972527473 | CM42: -1.651648352 | CN42: -1.545704296 | CO42: 330 | CP42: 690 | CR42: S | CS42: S | CU42: 180 | CV42: -1440 | CZ42: =IF(F42>0,(MAX(E42:E67)+MIN(F42:F67))/2,(MAX(FB監視!D42,E43:E66)+MIN(FB監視!D42,F43:F66))/2) -> 28320 | DA42: =IF(F42>0,(MAX(E42:E50)+MIN(F42:F50))/2,(MAX(FB監視!D42,E43:E49)+MIN(FB監視!D42,F43:F49))/2) -> 27985 | DB42: 28070 | DC42: =(MAX(#REF!)+MIN(#REF!))/2 ->  | DD42: 28062
A43: 2022-01-17 | B43: 2022-01-21 | C43: 4 | D43: 28330 | E43: 28720 | F43: 27100 | G43: 27520 | H43: 235173 | U43: 28958 | V43: 28034 | W43: 28713.63636 | X43: =AVERAGE(G43:G67) -> 28569.2 | Y43: =AVERAGE(G43:G67) -> 28569.2 | Z43: =AVERAGE(G43:G67) -> 28569.2 | AA43: =AVERAGE(G43:G67) -> 28569.2 | AB43: =AVERAGE(G43:G67) -> 28569.2 | AC43: 1620 | AD43: 860 | AE43: 140 | AF43: -810 | AG43: 29370 | AH43: 27100 | AI43: 30620 | AJ43: 26910 | AK43: =MAX(E43:E67) -> 30620 | AL43: =MIN(F43:F67) -> 26910 | AM43: 6 | AN43: 1 | AO43: S | AP43: 0 | AQ43: 3 | AU43: 670 | AV43: =IF(F43>0,(MAX(E43:E67)+MIN(F43:F67))/2,(MAX(E44:E67,FB監視!P70)+MIN(F44:F67,FB監視!P70))/2) -> 28765 | AW43: =IF(F43>0,(MAX(E43:E51)+MIN(F43:F51))/2,(MAX(E44:E51,FB監視!P70)+MIN(F44:F51,FB監視!P70))/2) -> 28525 | AX43: =(#REF!+#REF!)/2 ->  | AY43: =(MAX(#REF!)+MIN(#REF!))/2 ->  | AZ43: =#REF! ->  | BA43: 30080 | BB43: 29400 | BC43: 28460 | BD43: 27780 | BE43: 26840 | BF43: 26160 | BG43: 25220 | BH43: 0 | BI43: 810 | BJ43: 6.666666667 | BK43: 27.77777778 | BO43: -0.0160742656 | BQ43: 2270 | BR43: 0 | BU43: 121818 | BV43: 0 | BW43: 1 | CC43: =$CF43+3*STDEVP($G43:$G67) -> 31260.65207 | CD43: =$CF43+2*STDEVP($G43:$G67) -> 30363.50138 | CE43: =$CF43+STDEVP($G43:$G67) -> 29466.35069 | CF43: =AVERAGE(G43:G67) -> 28569.2 | CG43: =$CF43-STDEVP($G43:$G67) -> 27672.04931 | CH43: =$CF43-2*STDEVP($G43:$G67) -> 26774.89862 | CI43: =$CF43-3*STDEVP($G43:$G67) -> 25877.74793 | CJ43: -0.9418604651 | CK43: 1.88372093 | CL43: -0.5976744186 | CM43: -1.672093023 | CN43: -1.38794926 | CO43: 390 | CP43: 420 | CR43: S | CS43: S | CU43: 480 | CV43: -460 | CZ43: =IF(F43>0,(MAX(E43:E67)+MIN(F43:F67))/2,(MAX(FB監視!D43,E44:E67)+MIN(FB監視!D43,F44:F67))/2) -> 28765 | DA43: =IF(F43>0,(MAX(E43:E51)+MIN(F43:F51))/2,(MAX(FB監視!D43,E44:E50)+MIN(FB監視!D43,F44:F50))/2) -> 28525 | DB43: =(#REF!+#REF!)/2 ->  | DC43: =(MAX(#REF!)+MIN(#REF!))/2 ->  | DD43: 28510
A44: 2022-01-11 | B44: 2022-01-14 | C44: 3 | D44: 28300 | E44: 28790 | F44: 27850 | G44: 28190 | H44: 133548 | U44: =AVERAGE(E44:E48) -> 29182 | V44: =AVERAGE(F44:F48) -> 28408 | W44: =AVERAGE(G44:G54) -> 28831.81818 | X44: =AVERAGE(G44:G67) -> 28612.91667 | Y44: =AVERAGE(G44:G67) -> 28612.91667 | Z44: =AVERAGE(G44:G67) -> 28612.91667 | AA44: =AVERAGE(G44:G67) -> 28612.91667 | AB44: =AVERAGE(G44:G67) -> 28612.91667 | AC44: =IF(E44>F44,E44-F44,(E44-F44)*(-1)) -> 940 | AD44: =(SUM(AC44:AC48)-MAX(AC44:AC48)-MIN(AC44:AC48))/3 -> 780 | AE44: =D44-G45 -> -150 | AF44: =G44-D44 -> -110 | AG44: =MAX(E44:E48) -> 29840 | AH44: =MIN(F44:F48) -> 27850 | AI44: =MAX(AG44:AG63) -> 30620 | AJ44: =MIN(F44:F63) -> 26910 | AK44: =MAX(E44:E67) -> 30620 | AL44: =MIN(F44:F67) -> 26910 | AM44: =IF(U44>0,IF(E44>U44,1,AM45+1),"") -> 5 | AN44: =IF(V44>0,IF(F44<V44,1,AN45+1),"") -> 1 | AO44: =IF(W44>0,IF(G44>W44,"L","S"),"") -> S | AP44: =IF((G44-D44)>0,AP45+1,0) -> 0 | AQ44: =IF((G44-D44)<0,AQ45+1,0) -> 2 | AR44: =IF(W44>0,IF(G44>U44,IF(V44>W44,"L",""),""),"") ->  | AS44: =IF(W44>0,IF(G44<V44,IF(U44<W44,"S",""),""),"") ->  | AT44: =IF(G44>0,IF(G44-G45>0,G44-G45,""),"") ->  | AU44: =IF(G44>0,IF(G44-G45<0,ABS(G44-G45),""),"") -> 260 | AV44: =IF(F44>0,(MAX(E44:E67)+MIN(F44:F67))/2,(MAX(E45:E67,FB監視!P71)+MIN(F45:F67,FB監視!P71))/2) -> 28765 | AW44: =IF(F44>0,(MAX(E44:E52)+MIN(F44:F52))/2,(MAX(E45:E52,FB監視!P71)+MIN(F45:F52,FB監視!P71))/2) -> 28900 | AX44: =(#REF!+#REF!)/2 ->  | AY44: =(MAX(#REF!)+MIN(#REF!))/2 ->  | AZ44: =#REF! ->  | BA44: =2*BD44-2*F44+E44 -> 29643.33333 | BB44: =BD44+E44-F44 -> 29216.66667 | BC44: =2*BD44-F44 -> 28703.33333 | BD44: =SUM(E44:G44)/3 -> 28276.66667 | BE44: =2*BD44-E44 -> 27763.33333 | BF44: =BD44-E44+F44 -> 27336.66667 | BG44: =2*BD44-2*E44+F44 -> 26823.33333 | BH44: =IF(G44>D44,G44-D44,0) -> 0 | BI44: =IF(D44>G44,D44-G44,0) -> 110 | BJ44: =(SUM(AT44:AT48)/(SUM(AU44:AU48)+SUM(AT44:AT48)))*100 -> 9.142857143 | BK44: =(SUM(AT44:AT52)/(SUM(AU44:AU52)+SUM(AT44:AT52)))*100 -> 50.89058524 | BN44: =IF(U44>U45,IF(U45>U46,IF(U46>U47,U44/U47-1,""),),IF(U44<U45,IF(U45<U46,IF(U46<U47,U44/U47-1,""),""),"")) ->  | BO44: =IF(W44>W45,IF(W45>W46,IF(W46>W47,W44/W47-1,""),),IF(W44<W45,IF(W45<W46,IF(W46<W47,W44/W47-1,""),""),"")) -> -0.01597890164 | BP44: =IF(BN44<>"",IF(BO44<>"",IF(BN44>0.5%,IF(BO44>0.25%,"UP",""),IF(BN44<-0.5%,IF(BO44<-0.25%,"DW",""),"")),""),"") ->  | BQ44: =(MAX(E44:E47)-MIN(F44:F47)) -> 1520 | BR44: =IF(AND(E44<=E45,F44>=F45),1,0) -> 0 | BU44: =(SUM(H44:H48)-MAX(H44:H48)-MIN(H44:H48))/3 -> 115842.6667 | BV44: =IF(G44>G45,IF(B44=B45,BV45+1,1),0) -> 0 | BW44: =IF(G44<G45,IF(B44=B45,BW45+1,1),0) -> 1 | BX44: =BX45+((G44-BX45)*2/(1+5)) ->  | BY44: =BY45+((G44-BY45)*2/(1+20)) ->  | BZ44: =BX44-BY44 ->  | CA44: =AVERAGE(BZ44:BZ52) ->  | CB44: =BZ44-CA44 ->  | CC44: =$CF44+3*STDEVP($G44:$G67) -> 31280.45035 | CD44: =$CF44+2*STDEVP($G44:$G67) -> 30391.27245 | CE44: =$CF44+STDEVP($G44:$G67) -> 29502.09456 | CF44: =AVERAGE(G44:G67) -> 28612.91667 | CG44: =$CF44-STDEVP($G44:$G67) -> 27723.73877 | CH44: =$CF44-2*STDEVP($G44:$G67) -> 26834.56088 | CI44: =$CF44-3*STDEVP($G44:$G67) -> 25945.38299 | CJ44: =(G44-D44)/AD44 -> -0.141025641 | CK44: =(E44-F44)/AD44 -> 1.205128205 | CL44: =(G44-V44)/AD44 -> -0.2794871795 | CM44: =(G44-U44)/AD44 -> -1.271794872 | CN44: =(G44-W44)/AD44 -> -0.8228438228 | CO44: =IF(CJ44>=0,(E44-G44),(E44-D44)) -> 490 | CP44: =IF(CJ44>=0,(D44-F44),(G44-F44)) -> 340 | CQ44: =IF(AND(G44>AX44,G44>AY44),"L",IF(AND(G44<AX44,G44<AY44),"S","I")) ->  | CR44: =IF(AND(CS44="L",D44>AW44),"L",IF(AND(CS44="S",D44<AW44),"S","N")) -> N | CS44: =IF(AW44>AV44,"L",IF(AW44<AV44,"S","N")) -> L | CT44: =IF(D44>MAX(E45:E48),"H",IF(D44<MIN(F45:F48),"L","")) ->  | CU44: =(D44-F45) -> 40 | CV44: =(D44-E45) -> -1070 | CY44: =IF(AND(CJ45>=0,D44>G45,G44<D45),"D",IF(AND(CJ45<=0,D44<G45,G44>D45),"U","")) ->  | CZ44: =IF(F44>0,(MAX(E44:E67)+MIN(F44:F67))/2,(MAX(FB監視!D44,E45:E67)+MIN(FB監視!D44,F45:F67))/2) -> 28765 | DA44: =IF(F44>0,(MAX(E44:E52)+MIN(F44:F52))/2,(MAX(FB監視!D44,E45:E51)+MIN(FB監視!D44,F45:F51))/2) -> 28900 | DB44: =(#REF!+#REF!)/2 ->  | DC44: =(MAX(#REF!)+MIN(#REF!))/2 ->  | DD44: =AVERAGE(D44,G45:G48) -> 28786
A45: 2022-01-04 | B45: 2022-01-07 | C45: 2 | D45: 29040 | E45: 29370 | F45: 28260 | G45: 28450 | H45: 142812 | U45: 29414 | V45: 28716 | W45: 29010 | X45: =AVERAGE(G45:G67) -> 28631.30435 | Y45: =AVERAGE(G45:G67) -> 28631.30435 | Z45: =AVERAGE(G45:G67) -> 28631.30435 | AA45: =AVERAGE(G45:G67) -> 28631.30435 | AB45: =AVERAGE(G45:G67) -> 28631.30435 | AC45: 1110 | AD45: 653.3333333 | AE45: 170 | AF45: -590 | AG45: 29950 | AH45: 28260 | AI45: 30620 | AJ45: 26910 | AK45: =MAX(E45:E67) -> 30620 | AL45: =MIN(F45:F67) -> 26910 | AM45: 4 | AN45: 1 | AO45: S | AP45: 0 | AQ45: 1 | AU45: 420 | AV45: =IF(F45>0,(MAX(E45:E67)+MIN(F45:F67))/2,(MAX(E46:E67,FB監視!P72)+MIN(F46:F67,FB監視!P72))/2) -> 28765 | AW45: =IF(F45>0,(MAX(E45:E53)+MIN(F45:F53))/2,(MAX(E46:E53,FB監視!P72)+MIN(F46:F53,FB監視!P72))/2) -> 28565 | AX45: =(#REF!+#REF!)/2 ->  | AY45: =(MAX(#REF!)+MIN(#REF!))/2 ->  | AZ45: =#REF! ->  | BA45: 30236.66667 | BB45: 29803.33333 | BC45: 29126.66667 | BD45: 28693.33333 | BE45: 28016.66667 | BF45: 27583.33333 | BG45: 26906.66667 | BH45: 0 | BI45: 590 | BJ45: 42.91845494 | BK45: 45.76659039 | BN45: 0 | BO45: -0.01127807901 | BQ45: 1580 | BR45: 0 | BU45: 108394 | BV45: 0 | BW45: 1 | CC45: =$CF45+3*STDEVP($G45:$G67) -> 31342.77714 | CD45: =$CF45+2*STDEVP($G45:$G67) -> 30438.95287 | CE45: =$CF45+STDEVP($G45:$G67) -> 29535.12861 | CF45: =AVERAGE(G45:G67) -> 28631.30435 | CG45: =$CF45-STDEVP($G45:$G67) -> 27727.48008 | CH45: =$CF45-2*STDEVP($G45:$G67) -> 26823.65582 | CI45: =$CF45-3*STDEVP($G45:$G67) -> 25919.83156 | CJ45: -0.9030612245 | CK45: 1.698979592 | CL45: -0.4071428571 | CM45: -1.475510204 | CN45: -0.8571428571 | CO45: 330 | CP45: 190 | CR45: N | CS45: S | CU45: 490 | CV45: -40 | CY45: D | CZ45: =IF(F45>0,(MAX(E45:E67)+MIN(F45:F67))/2,(MAX(FB監視!D45,E46:E67)+MIN(FB監視!D45,F46:F67))/2) -> 28765 | DA45: =IF(F45>0,(MAX(E45:E53)+MIN(F45:F53))/2,(MAX(FB監視!D45,E46:E52)+MIN(FB監視!D45,F46:F52))/2) -> 28565 | DB45: =(#REF!+#REF!)/2 ->  | DC45: =(MAX(#REF!)+MIN(#REF!))/2 ->  | DD45: 29168
A46: 2021-12-27 | B46: 2021-12-30 | C46: 53 | D46: 28740 | E46: 29080 | F46: 28550 | G46: 28870 | H46: 89094 | U46: 29374 | V46: 28738 | W46: 29182.72727 | X46: =AVERAGE(G46:G67) -> 28639.54545 | Y46: =AVERAGE(G46:G67) -> 28639.54545 | Z46: =AVERAGE(G46:G67) -> 28639.54545 | AA46: =AVERAGE(G46:G67) -> 28639.54545 | AB46: =AVERAGE(G46:G67) -> 28639.54545 | AC46: 530 | AD46: 630 | AE46: 30 | AF46: 130 | AG46: 29950 | AH46: 28370 | AI46: 30620 | AJ46: 26910 | AK46: =MAX(E46:E67) -> 30620 | AL46: =MIN(F46:F67) -> 26910 | AM46: 3 | AN46: 1 | AO46: S | AP46: 2 | AQ46: 0 | AT46: 160 | AV46: =IF(F46>0,(MAX(E46:E67)+MIN(F46:F67))/2,(MAX(E47:E67,FB監視!P73)+MIN(F47:F67,FB監視!P73))/2) -> 28765 | AW46: =IF(F46>0,(MAX(E46:E54)+MIN(F46:F54))/2,(MAX(E47:E54,FB監視!P73)+MIN(F47:F54,FB監視!P73))/2) -> 28705 | AX46: =(#REF!+#REF!)/2 ->  | AY46: =(MAX(#REF!)+MIN(#REF!))/2 ->  | AZ46: =#REF! ->  | BA46: 29646.66667 | BB46: 29363.33333 | BC46: 29116.66667 | BD46: 28833.33333 | BE46: 28586.66667 | BF46: 28303.33333 | BG46: 28056.66667 | BH46: 130 | BI46: 0 | BJ46: 50 | BK46: 37.87878788 | BQ46: 1540 | BR46: 0 | BU46: 108394 | BV46: 1 | BW46: 0 | CC46: =$CF46+3*STDEVP($G46:$G67) -> 31409.42122 | CD46: =$CF46+2*STDEVP($G46:$G67) -> 30486.1293 | CE46: =$CF46+STDEVP($G46:$G67) -> 29562.83738 | CF46: =AVERAGE(G46:G67) -> 28639.54545 | CG46: =$CF46-STDEVP($G46:$G67) -> 27716.25353 | CH46: =$CF46-2*STDEVP($G46:$G67) -> 26792.96161 | CI46: =$CF46-3*STDEVP($G46:$G67) -> 25869.66969 | CJ46: 0.2063492063 | CK46: 0.8412698413 | CL46: 0.2095238095 | CM46: -0.8 | CN46: -0.4963924964 | CO46: 210 | CP46: 190 | CR46: N | CS46: S | CU46: 330 | CV46: -90 | CZ46: =IF(F46>0,(MAX(E46:E67)+MIN(F46:F67))/2,(MAX(FB監視!D46,E47:E67)+MIN(FB監視!D46,F47:F67))/2) -> 28765 | DA46: =IF(F46>0,(MAX(E46:E54)+MIN(F46:F54))/2,(MAX(FB監視!D46,E47:E53)+MIN(FB監視!D46,F47:F53))/2) -> 28705 | DB46: =(#REF!+#REF!)/2 ->  | DC46: =(MAX(#REF!)+MIN(#REF!))/2 ->  | DD46: 29090
A47: 2021-12-22 | B47: 2021-12-24 | C47: 52 | D47: 28600 | E47: 28830 | F47: 28410 | G47: 28710 | H47: 43604 | U47: 29456 | V47: 28728 | W47: 29300 | X47: =AVERAGE(G47:G67) -> 28628.57143 | Y47: =AVERAGE(G47:G67) -> 28628.57143 | Z47: =AVERAGE(G47:G67) -> 28628.57143 | AA47: =AVERAGE(G47:G67) -> 28628.57143 | AB47: =AVERAGE(G47:G67) -> 28628.57143 | AC47: 420 | AD47: 743.3333333 | AE47: -1000 | AF47: 110 | AG47: 29950 | AH47: 28370 | AI47: 30620 | AJ47: 26910 | AK47: =MAX(E47:E67) -> 30620 | AL47: =MIN(F47:F67) -> 26910 | AM47: 2 | AN47: 1 | AO47: S | AP47: 1 | AQ47: 0 | AU47: 890 | AV47: =IF(F47>0,(MAX(E47:E67)+MIN(F47:F67))/2,(MAX(E48:E67,FB監視!P74)+MIN(F48:F67,FB監視!P74))/2) -> 28765 | AW47: =IF(F47>0,(MAX(E47:E55)+MIN(F47:F55))/2,(MAX(E48:E55,FB監視!P74)+MIN(F48:F55,FB監視!P74))/2) -> 28705 | AX47: =(#REF!+#REF!)/2 ->  | AY47: =(MAX(#REF!)+MIN(#REF!))/2 ->  | AZ47: =#REF! ->  | BA47: 29310 | BB47: 29070 | BC47: 28890 | BD47: 28650 | BE47: 28470 | BF47: 28230 | BG47: 28050 | BH47: 110 | BI47: 0 | BJ47: 40.19138756 | BK47: 34.58646617 | BQ47: 1580 | BR47: 0 | BU47: 127446.3333 | BV47: 0 | BW47: 1 | CC47: =$CF47+3*STDEVP($G47:$G67) -> 31459.42116 | CD47: =$CF47+2*STDEVP($G47:$G67) -> 30515.80458 | CE47: =$CF47+STDEVP($G47:$G67) -> 29572.18801 | CF47: =AVERAGE(G47:G67) -> 28628.57143 | CG47: =$CF47-STDEVP($G47:$G67) -> 27684.95485 | CH47: =$CF47-2*STDEVP($G47:$G67) -> 26741.33827 | CI47: =$CF47-3*STDEVP($G47:$G67) -> 25797.7217 | CJ47: 0.1479820628 | CK47: 0.5650224215 | CL47: -0.02421524664 | CM47: -1.003587444 | CN47: -0.7937219731 | CO47: 120 | CP47: 190 | CR47: S | CS47: S | CU47: -370 | CV47: -1240 | CZ47: =IF(F47>0,(MAX(E47:E67)+MIN(F47:F67))/2,(MAX(FB監視!D47,E48:E67)+MIN(FB監視!D47,F48:F67))/2) -> 28765 | DA47: =IF(F47>0,(MAX(E47:E55)+MIN(F47:F55))/2,(MAX(FB監視!D47,E48:E54)+MIN(FB監視!D47,F48:F54))/2) -> 28705 | DB47: =(#REF!+#REF!)/2 ->  | DC47: =(MAX(#REF!)+MIN(#REF!))/2 ->  | DD47: 29094
A48: 2021-11-08 | B48: 2021-11-12 | C48: 46 | D48: 29820 | E48: 29840 | F48: 28970 | G48: 29600 | H48: 124886 | U48: 29520 | V48: 28626 | W48: 29340.90909 | X48: =AVERAGE(G48:G67) -> 28624.5 | Y48: =AVERAGE(G48:G67) -> 28624.5 | Z48: =AVERAGE(G48:G67) -> 28624.5 | AA48: =AVERAGE(G48:G67) -> 28624.5 | AB48: =AVERAGE(G48:G67) -> 28624.5 | AC48: 870 | AD48: 886.6666667 | AE48: 200 | AF48: -220 | AG48: 29950 | AH48: 27900 | AI48: 30620 | AJ48: 26910 | AK48: =MAX(E48:E67) -> 30620 | AL48: =MIN(F48:F67) -> 26910 | AM48: 1 | AN48: 5 | AO48: L | AP48: 0 | AQ48: 1 | AU48: 20 | AV48: =IF(F48>0,(MAX(E48:E67)+MIN(F48:F67))/2,(MAX(E49:E67,FB監視!P75)+MIN(F49:F67,FB監視!P75))/2) -> 28765 | AW48: =IF(F48>0,(MAX(E48:E56)+MIN(F48:F56))/2,(MAX(E49:E56,FB監視!P75)+MIN(F49:F56,FB監視!P75))/2) -> 28900 | AX48: =(#REF!+#REF!)/2 ->  | AY48: =(MAX(#REF!)+MIN(#REF!))/2 ->  | AZ48: =#REF! ->  | BA48: 30840 | BB48: 30340 | BC48: 29970 | BD48: 29470 | BE48: 29100 | BF48: 28600 | BG48: 28230 | BH48: 0 | BI48: 220 | BJ48: 83.63636364 | BK48: 43.93939394 | BN48: 0 | BO48: 0.01688774063 | BQ48: 1580 | BR48: 0 | BU48: 146301.3333 | BV48: 0 | BW48: 1 | CC48: =$CF48+3*STDEVP($G48:$G67) -> 31524.71771 | CD48: =$CF48+2*STDEVP($G48:$G67) -> 30557.97847 | CE48: =$CF48+STDEVP($G48:$G67) -> 29591.23924 | CF48: =AVERAGE(G48:G67) -> 28624.5 | CG48: =$CF48-STDEVP($G48:$G67) -> 27657.76076 | CH48: =$CF48-2*STDEVP($G48:$G67) -> 26691.02153 | CI48: =$CF48-3*STDEVP($G48:$G67) -> 25724.28229 | CJ48: -0.2481203008 | CK48: 0.9812030075 | CL48: 1.098496241 | CM48: 0.09022556391 | CN48: 0.2922077922 | CO48: 20 | CP48: 630 | CR48: L | CS48: L | CU48: 430 | CV48: -130 | CZ48: =IF(F48>0,(MAX(E48:E67)+MIN(F48:F67))/2,(MAX(FB監視!D48,E49:E67)+MIN(FB監視!D48,F49:F67))/2) -> 28765 | DA48: =IF(F48>0,(MAX(E48:E56)+MIN(F48:F56))/2,(MAX(FB監視!D48,E49:E55)+MIN(FB監視!D48,F49:F55))/2) -> 28900 | DB48: =(#REF!+#REF!)/2 ->  | DC48: =(MAX(#REF!)+MIN(#REF!))/2 ->  | DD48: 29242
A49: 2021-11-01 | B49: 2021-11-05 | C49: 45 | D49: 29410 | E49: 29950 | F49: 29390 | G49: 29620 | H49: 111202 | U49: 29380 | V49: 28268 | W49: 29162.72727 | X49: =AVERAGE(G49:G67) -> 28573.15789 | Y49: =AVERAGE(G49:G67) -> 28573.15789 | Z49: =AVERAGE(G49:G67) -> 28573.15789 | AA49: =AVERAGE(G49:G67) -> 28573.15789 | AB49: =AVERAGE(G49:G67) -> 28573.15789 | AC49: 560 | AD49: 1013.333333 | AE49: 630 | AF49: 210 | AG49: 29950 | AH49: 27180 | AI49: =MAX(AG49:AG67) -> 30620 | AJ49: =MIN(F49:F67) -> 26910 | AK49: =MAX(E49:E67) -> 30620 | AL49: =MIN(F49:F67) -> 26910 | AM49: 1 | AN49: 4 | AO49: L | AP49: 2 | AQ49: 0 | AT49: 840 | AV49: =IF(F49>0,(MAX(E49:E67)+MIN(F49:F67))/2,(MAX(E50:E67,FB監視!P76)+MIN(F50:F67,FB監視!P76))/2) -> 28765 | AW49: =IF(F49>0,(MAX(E49:E57)+MIN(F49:F57))/2,(MAX(E50:E57,FB監視!P76)+MIN(F50:F57,FB監視!P76))/2) -> 28900 | AX49: =(#REF!+#REF!)/2 ->  | AY49: =(MAX(#REF!)+MIN(#REF!))/2 ->  | AZ49: =#REF! ->  | BA49: 30476.66667 | BB49: 30213.33333 | BC49: 29916.66667 | BD49: 29653.33333 | BE49: 29356.66667 | BF49: 29093.33333 | BG49: 28796.66667 | BH49: 210 | BI49: 0 | BJ49: 63.88888889 | BK49: 54.10714286 | BN49: -0.01600910979 | BO49: 0.01400303452 | BQ49: 2050 | BR49: 0 | BU49: 161952 | BV49: 1 | BW49: 0 | CC49: =$CF49+3*STDEVP($G49:$G67) -> 31467.89081 | CD49: =$CF49+2*STDEVP($G49:$G67) -> 30502.97984 | CE49: =$CF49+STDEVP($G49:$G67) -> 29538.06887 | CF49: =AVERAGE(G49:G67) -> 28573.15789 | CG49: =$CF49-STDEVP($G49:$G67) -> 27608.24692 | CH49: =$CF49-2*STDEVP($G49:$G67) -> 26643.33595 | CI49: =$CF49-3*STDEVP($G49:$G67) -> 25678.42498 | CJ49: 0.2072368421 | CK49: 0.5526315789 | CL49: 1.334210526 | CM49: 0.2368421053 | CN49: 0.4512559809 | CO49: 330 | CP49: 20 | CR49: L | CS49: L | CU49: 1040 | CV49: 240 | CZ49: =IF(F49>0,(MAX(E49:E67)+MIN(F49:F67))/2,(MAX(FB監視!D49,E50:E67)+MIN(FB監視!D49,F50:F67))/2) -> 28765 | DA49: =IF(F49>0,(MAX(E49:E57)+MIN(F49:F57))/2,(MAX(FB監視!D49,E50:E56)+MIN(FB監視!D49,F50:F56))/2) -> 28900 | DB49: =(#REF!+#REF!)/2 ->  | DC49: =(MAX(#REF!)+MIN(#REF!))/2 ->  | DD49: 28860
A50: 2021-10-25 | B50: 2021-10-29 | C50: 44 | D50: 28460 | E50: 29170 | F50: 28370 | G50: 28780 | H50: 146251 | U50: 29436 | V50: 28126 | W50: 28925.45455 | X50: =AVERAGE(G50:G67) -> 28515 | Y50: =AVERAGE(G50:G67) -> 28515 | Z50: =AVERAGE(G50:G67) -> 28515 | AA50: =AVERAGE(G50:G67) -> 28515 | AB50: =AVERAGE(G50:G67) -> 28515 | AC50: 800 | AD50: 1263.333333 | AE50: -410 | AF50: 320 | AG50: 30230 | AH50: 27180 | AI50: =MAX(AG50:AG67) -> 30620 | AJ50: =MIN(F50:F67) -> 26910 | AK50: =MAX(E50:E67) -> 30620 | AL50: =MIN(F50:F67) -> 26910 | AM50: 5 | AN50: 3 | AO50: S | AP50: 1 | AQ50: 0 | AU50: 90 | AV50: =IF(F50>0,(MAX(E50:E67)+MIN(F50:F67))/2,(MAX(E51:E67,FB監視!P77)+MIN(F51:F67,FB監視!P77))/2) -> 28765 | AW50: =IF(F50>0,(MAX(E50:E58)+MIN(F50:F58))/2,(MAX(E51:E58,FB監視!P77)+MIN(F51:F58,FB監視!P77))/2) -> 28900 | AX50: =(#REF!+#REF!)/2 ->  | AY50: =(MAX(#REF!)+MIN(#REF!))/2 ->  | AZ50: =#REF! ->  | BA50: 29976.66667 | BB50: 29573.33333 | BC50: 29176.66667 | BD50: 28773.33333 | BE50: 28376.66667 | BF50: 27973.33333 | BG50: 27576.66667 | BH50: 320 | BI50: 0 | BJ50: 29.6735905 | BK50: 59.07643312 | BN50: -0.02134450429 | BO50: 0.01141167869 | BQ50: 2310 | BR50: 0 | BU50: 190770.6667 | BV50: 0 | BW50: 1 | CC50: =$CF50+3*STDEVP($G50:$G67) -> 31390.17391 | CD50: =$CF50+2*STDEVP($G50:$G67) -> 30431.78261 | CE50: =$CF50+STDEVP($G50:$G67) -> 29473.3913 | CF50: =AVERAGE(G50:G67) -> 28515 | CG50: =$CF50-STDEVP($G50:$G67) -> 27556.6087 | CH50: =$CF50-2*STDEVP($G50:$G67) -> 26598.21739 | CI50: =$CF50-3*STDEVP($G50:$G67) -> 25639.82609 | CJ50: 0.253298153 | CK50: 0.6332453826 | CL50: 0.5176781003 | CM50: -0.5192612137 | CN50: -0.1151355241 | CO50: 390 | CP50: 90 | CR50: N | CS50: L | CU50: -40 | CV50: -1030 | CZ50: =IF(F50>0,(MAX(E50:E67)+MIN(F50:F67))/2,(MAX(FB監視!D50,E51:E67)+MIN(FB監視!D50,F51:F67))/2) -> 28765 | DA50: =IF(F50>0,(MAX(E50:E58)+MIN(F50:F58))/2,(MAX(FB監視!D50,E51:E57)+MIN(FB監視!D50,F51:F57))/2) -> 28900 | DB50: =(#REF!+#REF!)/2 ->  | DC50: =(MAX(#REF!)+MIN(#REF!))/2 ->  | DD50: 28678
A51: 2021-10-18 | B51: 2021-10-22 | C51: 43 | D51: 29150 | E51: 29490 | F51: 28500 | G51: 28870 | H51: 167767 | U51: 29632 | V51: 28330 | W51: 28853.63636 | X51: =AVERAGE(G51:G67) -> 28499.41176 | Y51: =AVERAGE(G51:G67) -> 28499.41176 | Z51: =AVERAGE(G51:G67) -> 28499.41176 | AA51: =AVERAGE(G51:G67) -> 28499.41176 | AB51: =AVERAGE(G51:G67) -> 28499.41176 | AC51: 990 | AD51: 1263.333333 | AE51: 30 | AF51: -280 | AG51: 30230 | AH51: 27180 | AI51: =MAX(AG51:AG67) -> 30620 | AJ51: =MIN(F51:F67) -> 26910 | AK51: =MAX(E51:E67) -> 30620 | AL51: =MIN(F51:F67) -> 26910 | AM51: 4 | AN51: 2 | AO51: L | AP51: 0 | AQ51: 1 | AU51: 250 | AV51: =IF(F51>0,(MAX(E51:E67)+MIN(F51:F67))/2,(MAX(E52:E67,FB監視!P78)+MIN(F52:F67,FB監視!P78))/2) -> 28765 | AW51: =IF(F51>0,(MAX(E51:E59)+MIN(F51:F59))/2,(MAX(E52:E59,FB監視!P78)+MIN(F52:F59,FB監視!P78))/2) -> 28900 | AX51: =(#REF!+#REF!)/2 ->  | AY51: =(MAX(#REF!)+MIN(#REF!))/2 ->  | AZ51: =#REF! ->  | BA51: 30396.66667 | BB51: 29943.33333 | BC51: 29406.66667 | BD51: 28953.33333 | BE51: 28416.66667 | BF51: 27963.33333 | BG51: 27426.66667 | BH51: 0 | BI51: 280 | BJ51: 28.73563218 | BK51: 63.63636364 | BN51: -0.01515554374 | BO51: 0.01069961469 | BQ51: 3050 | BR51: 0 | BU51: 190770.6667 | BV51: 0 | BW51: 1 | CC51: =$CF51+3*STDEVP($G51:$G67) -> 31451.28103 | CD51: =$CF51+2*STDEVP($G51:$G67) -> 30467.32461 | CE51: =$CF51+STDEVP($G51:$G67) -> 29483.36819 | CF51: =AVERAGE(G51:G67) -> 28499.41176 | CG51: =$CF51-STDEVP($G51:$G67) -> 27515.45534 | CH51: =$CF51-2*STDEVP($G51:$G67) -> 26531.49892 | CI51: =$CF51-3*STDEVP($G51:$G67) -> 25547.5425 | CJ51: -0.2216358839 | CK51: 0.7836411609 | CL51: 0.4274406332 | CM51: -0.6031662269 | CN51: 0.01295274646 | CO51: 340 | CP51: 370 | CR51: L | CS51: L | CU51: 1250 | CV51: 0 | CZ51: =IF(F51>0,(MAX(E51:E67)+MIN(F51:F67))/2,(MAX(FB監視!D51,E52:E67)+MIN(FB監視!D51,F52:F67))/2) -> 28765 | DA51: =IF(F51>0,(MAX(E51:E59)+MIN(F51:F59))/2,(MAX(FB監視!D51,E52:E58)+MIN(FB監視!D51,F52:F58))/2) -> 28900 | DB51: =(#REF!+#REF!)/2 ->  | DC51: =(MAX(#REF!)+MIN(#REF!))/2 ->  | DD51: 29072
A52: 2021-10-11 | B52: 2021-10-15 | C52: 42 | D52: 28090 | E52: 29150 | F52: 27900 | G52: 29120 | H52: 171838 | U52: 29858 | V52: 28634 | W52: 28760 | X52: =AVERAGE(G52:G67) -> 28476.25 | Y52: =AVERAGE(G52:G67) -> 28476.25 | Z52: =AVERAGE(G52:G67) -> 28476.25 | AA52: =AVERAGE(G52:G67) -> 28476.25 | AB52: =AVERAGE(G52:G67) -> 28476.25 | AC52: =IF(E52>F52,E52-F52,(E52-F52)*(-1)) -> 1250 | AD52: 1186.666667 | AE52: =D52-G53 -> -30 | AF52: =G52-D52 -> 1030 | AG52: 30620 | AH52: 27180 | AI52: =MAX(AG52:AG67) -> 30620 | AJ52: =MIN(F52:F67) -> 26910 | AK52: =MAX(E52:E67) -> 30620 | AL52: =MIN(F52:F67) -> 26910 | AM52: =IF(U52>0,IF(E52>U52,1,AM53+1),"") -> 3 | AN52: =IF(V52>0,IF(F52<V52,1,AN53+1),"") -> 1 | AO52: =IF(W52>0,IF(G52>W52,"L","S"),"") -> L | AP52: =IF((G52-D52)>0,AP53+1,0) -> 1 | AQ52: =IF((G52-D52)<0,AQ53+1,0) -> 0 | AR52: =IF(W52>0,IF(G52>U52,IF(V52>W52,"L",""),""),"") ->  | AS52: =IF(W52>0,IF(G52<V52,IF(U52<W52,"S",""),""),"") ->  | AT52: =IF(G52>0,IF(G52-G53>0,G52-G53,""),"") -> 1000 | AU52: =IF(G52>0,IF(G52-G53<0,ABS(G52-G53),""),"") ->  | AV52: =IF(F52>0,(MAX(E52:E67)+MIN(F52:F67))/2,(MAX(E53:E67,FB監視!P79)+MIN(F53:F67,FB監視!P79))/2) -> 28765 | AW52: =IF(F52>0,(MAX(E52:E60)+MIN(F52:F60))/2,(MAX(E53:E60,FB監視!P79)+MIN(F53:F60,FB監視!P79))/2) -> 28765 | AX52: =(#REF!+#REF!)/2 ->  | AY52: =(MAX(#REF!)+MIN(#REF!))/2 ->  | AZ52: =#REF! ->  | BA52: =2*BD52-2*F52+E52 -> 30796.66667 | BB52: =BD52+E52-F52 -> 29973.33333 | BC52: =2*BD52-F52 -> 29546.66667 | BD52: =SUM(E52:G52)/3 -> 28723.33333 | BE52: =2*BD52-E52 -> 28296.66667 | BF52: =BD52-E52+F52 -> 27473.33333 | BG52: =2*BD52-2*E52+F52 -> 27046.66667 | BH52: =IF(G52>D52,G52-D52,0) -> 1030 | BI52: =IF(D52>G52,D52-G52,0) -> 0 | BJ52: 34.79532164 | BK52: 57.48344371 | BN52: =IF(U52>U53,IF(U53>U54,IF(U54>U55,U52/U55-1,""),),IF(U52<U53,IF(U53<U54,IF(U54<U55,U52/U55-1,""),""),"")) ->  | BO52: =IF(W52>W53,IF(W53>W54,IF(W54>W55,W52/W55-1,""),),IF(W52<W53,IF(W53<W54,IF(W54<W55,W52/W55-1,""),""),"")) -> 0.01028294054 | BP52: =IF(BN52<>"",IF(BO52<>"",IF(BN52>0.5%,IF(BO52>0.25%,"UP",""),IF(BN52<-0.5%,IF(BO52<-0.25%,"DW",""),"")),""),"") ->  | BQ52: 3050 | BR52: =IF(AND(E52<=E53,F52>=F53),1,0) -> 0 | BU52: 186789.6667 | BV52: =IF(G52>G53,IF(B52=B53,BV53+1,1),0) -> 1 | BW52: =IF(G52<G53,IF(B52=B53,BW53+1,1),0) -> 0 | BX52: =BX53+((G52-BX53)*2/(1+5)) ->  | BY52: =BY53+((G52-BY53)*2/(1+20)) ->  | BZ52: =BX52-BY52 ->  | CB52: =BZ52-CA52 ->  | CC52: =$CF52+3*STDEVP($G52:$G67) -> 31505.44931 | CD52: =$CF52+2*STDEVP($G52:$G67) -> 30495.7162 | CE52: =$CF52+STDEVP($G52:$G67) -> 29485.9831 | CF52: =AVERAGE(G52:G67) -> 28476.25 | CG52: =$CF52-STDEVP($G52:$G67) -> 27466.5169 | CH52: =$CF52-2*STDEVP($G52:$G67) -> 26456.7838 | CI52: =$CF52-3*STDEVP($G52:$G67) -> 25447.05069 | CJ52: =(G52-D52)/AD52 -> 0.8679775281 | CK52: =(E52-F52)/AD52 -> 1.053370787 | CL52: =(G52-V52)/AD52 -> 0.4095505618 | CM52: =(G52-U52)/AD52 -> -0.6219101124 | CN52: =(G52-W52)/AD52 -> 0.3033707865 | CO52: =IF(CJ52>=0,(E52-G52),(E52-D52)) -> 30 | CP52: =IF(CJ52>=0,(D52-F52),(G52-F52)) -> 190 | CQ52: =IF(AND(G52>AX52,G52>AY52),"L",IF(AND(G52<AX52,G52<AY52),"S","I")) ->  | CR52: =IF(AND(CS52="L",D52>AW52),"L",IF(AND(CS52="S",D52<AW52),"S","N")) -> N | CS52: =IF(AW52>AV52,"L",IF(AW52<AV52,"S","N")) -> N | CU52: =(D52-F53) -> 910 | CV52: =(D52-E53) -> -1050 | CY52: =IF(AND(CJ53>=0,D52>G53,G52<D53),"D",IF(AND(CJ53<=0,D52<G53,G52>D53),"U","")) ->  | CZ52: =IF(F52>0,(MAX(E52:E67)+MIN(F52:F67))/2,(MAX(FB監視!D52,E53:E67)+MIN(FB監視!D52,F53:F67))/2) -> 28765 | DA52: =IF(F52>0,(MAX(E52:E60)+MIN(F52:F60))/2,(MAX(FB監視!D52,E53:E59)+MIN(FB監視!D52,F53:F59))/2) -> 28765 | DB52: =(#REF!+#REF!)/2 ->  | DC52: =(MAX(#REF!)+MIN(#REF!))/2 ->  | DD52: 29106
A53: 2021-10-04 | B53: 2021-10-08 | C53: 41 | D53: 29140 | E53: 29140 | F53: 27180 | G53: 28120 | H53: 315045 | U53: 30078 | V53: 28948 | W53: 28599.09091 | X53: =AVERAGE(G53:G67) -> 28433.33333 | Y53: =AVERAGE(G53:G67) -> 28433.33333 | Z53: =AVERAGE(G53:G67) -> 28433.33333 | AA53: =AVERAGE(G53:G67) -> 28433.33333 | AB53: =AVERAGE(G53:G67) -> 28433.33333 | AC53: 1960 | AD53: 1030 | AE53: 320 | AF53: -1020 | AG53: 30620 | AH53: 27180 | AI53: =MAX(AG53:AG67) -> 30620 | AJ53: =MIN(F53:F67) -> 26910 | AK53: =MAX(E53:E67) -> 30620 | AL53: =MIN(F53:F67) -> 26910 | AM53: 2 | AN53: 1 | AO53: S | AP53: 0 | AQ53: 2 | AU53: 700 | AV53: =IF(F53>0,(MAX(E53:E67)+MIN(F53:F67))/2,(MAX(E54:E67,FB監視!P80)+MIN(F54:F67,FB監視!P80))/2) -> 28765 | AW53: =IF(F53>0,(MAX(E53:E61)+MIN(F53:F61))/2,(MAX(E54:E61,FB監視!P80)+MIN(F54:F61,FB監視!P80))/2) -> 28765 | AX53: =(#REF!+#REF!)/2 ->  | AY53: =(MAX(#REF!)+MIN(#REF!))/2 ->  | AZ53: =#REF! ->  | BA53: 31073.33333 | BB53: 30106.66667 | BC53: 29113.33333 | BD53: 28146.66667 | BE53: 27153.33333 | BF53: 26186.66667 | BG53: 25193.33333 | BH53: 0 | BI53: 1020 | BJ53: 34.79532164 | BK53: 52.08955224 | BO53: 0.0108933162 | BQ53: 3440 | BR53: 0 | BU53: 222298.6667 | BV53: 0 | BW53: 1 | CC53: =$CF53+3*STDEVP($G53:$G67) -> 31519.19788 | CD53: =$CF53+2*STDEVP($G53:$G67) -> 30490.57636 | CE53: =$CF53+STDEVP($G53:$G67) -> 29461.95485 | CF53: =AVERAGE(G53:G67) -> 28433.33333 | CG53: =$CF53-STDEVP($G53:$G67) -> 27404.71182 | CH53: =$CF53-2*STDEVP($G53:$G67) -> 26376.0903 | CI53: =$CF53-3*STDEVP($G53:$G67) -> 25347.46879 | CJ53: -0.9902912621 | CK53: 1.902912621 | CL53: -0.8038834951 | CM53: -1.900970874 | CN53: -0.4651368049 | CO53: 0 | CP53: 940 | CR53: N | CS53: N | CU53: 460 | CV53: -1090 | CZ53: =IF(F53>0,(MAX(E53:E67)+MIN(F53:F67))/2,(MAX(FB監視!D53,E54:E67)+MIN(FB監視!D53,F54:F67))/2) -> 28765 | DA53: =IF(F53>0,(MAX(E53:E61)+MIN(F53:F61))/2,(MAX(FB監視!D53,E54:E60)+MIN(FB監視!D53,F54:F60))/2) -> 28765 | DB53: =(#REF!+#REF!)/2 ->  | DC53: =(MAX(#REF!)+MIN(#REF!))/2 ->  | DD53: 29724
A54: 2021-09-27 | B54: 2021-10-01 | C54: 40 | D54: 30070 | E54: 30230 | F54: 28680 | G54: 28820 | H54: 232707 | U54: 30088 | V54: 29032 | W54: 28548.18182 | X54: =AVERAGE(G54:G67) -> 28455.71429 | Y54: =AVERAGE(G54:G67) -> 28455.71429 | Z54: =AVERAGE(G54:G67) -> 28455.71429 | AA54: =AVERAGE(G54:G67) -> 28455.71429 | AB54: =AVERAGE(G54:G67) -> 28455.71429 | AC54: 1550 | AD54: 1030 | AE54: -80 | AF54: -1250 | AG54: 30620 | AH54: 27600 | AI54: =MAX(AG54:AG67) -> 30620 | AJ54: =MIN(F54:F67) -> 26910 | AK54: =MAX(E54:E67) -> 30620 | AL54: =MIN(F54:F67) -> 26910 | AM54: 1 | AN54: 1 | AO54: L | AP54: 0 | AQ54: 1 | AU54: 1330 | AV54: =IF(F54>0,(MAX(E54:E67)+MIN(F54:F67))/2,(MAX(E55:E67,FB監視!P81)+MIN(F55:F67,FB監視!P81))/2) -> 28765 | AW54: =IF(F54>0,(MAX(E54:E62)+MIN(F54:F62))/2,(MAX(E55:E62,FB監視!P81)+MIN(F55:F62,FB監視!P81))/2) -> 28765 | AX54: =(#REF!+#REF!)/2 ->  | AY54: =(MAX(#REF!)+MIN(#REF!))/2 ->  | AZ54: =#REF! ->  | BA54: 31356.66667 | BB54: 30793.33333 | BC54: 29806.66667 | BD54: 29243.33333 | BE54: 28256.66667 | BF54: 27693.33333 | BG54: 26706.66667 | BH54: 0 | BI54: 1250 | BJ54: 63.91509434 | BK54: 61.32511556 | BN54: 0.04916660855 | BO54: 0.01608101987 | BP54: UP | BQ54: 1940 | BR54: 0 | BU54: 191882.6667 | BV54: 0 | BW54: 1 | CC54: =$CF54+3*STDEVP($G54:$G67) -> 31639.28467 | CD54: =$CF54+2*STDEVP($G54:$G67) -> 30578.09454 | CE54: =$CF54+STDEVP($G54:$G67) -> 29516.90441 | CF54: =AVERAGE(G54:G67) -> 28455.71429 | CG54: =$CF54-STDEVP($G54:$G67) -> 27394.52416 | CH54: =$CF54-2*STDEVP($G54:$G67) -> 26333.33403 | CI54: =$CF54-3*STDEVP($G54:$G67) -> 25272.1439 | CJ54: -1.213592233 | CK54: 1.504854369 | CL54: -0.2058252427 | CM54: -1.231067961 | CN54: 0.2639011474 | CO54: 160 | CP54: 140 | CR54: N | CS54: N | CU54: 680 | CV54: -80 | CZ54: =IF(F54>0,(MAX(E54:E67)+MIN(F54:F67))/2,(MAX(FB監視!D54,E55:E67)+MIN(FB監視!D54,F55:F67))/2) -> 28765 | DA54: =IF(F54>0,(MAX(E54:E62)+MIN(F54:F62))/2,(MAX(FB監視!D54,E55:E61)+MIN(FB監視!D54,F55:F61))/2) -> 28765 | DB54: =(#REF!+#REF!)/2 ->  | DC54: =(MAX(#REF!)+MIN(#REF!))/2 ->  | DD54: 29978
A55: 2021-09-21 | B55: 2021-09-24 | C55: 39 | D55: 29630 | E55: 30150 | F55: 29390 | G55: 30150 | H55: 113127 | U55: 29618 | V55: 28734 | W55: 28467.27273 | X55: =AVERAGE(G55:G67) -> 28427.69231 | Y55: =AVERAGE(G55:G67) -> 28427.69231 | Z55: =AVERAGE(G55:G67) -> 28427.69231 | AA55: =AVERAGE(G55:G67) -> 28427.69231 | AB55: =AVERAGE(G55:G67) -> 28427.69231 | AC55: 760 | AD55: 743.3333333 | AE55: -720 | AF55: 520 | AG55: 30620 | AH55: 27190 | AI55: =MAX(AG55:AG67) -> 30620 | AJ55: =MIN(F55:F67) -> 26910 | AK55: =MAX(E55:E67) -> 30620 | AL55: =MIN(F55:F67) -> 26910 | AM55: 1 | AN55: 5 | AO55: L | AP55: 5 | AQ55: 0 | AR55: L | AU55: 200 | AV55: =IF(F55>0,(MAX(E55:E67)+MIN(F55:F67))/2,(MAX(E56:E67,FB監視!P82)+MIN(F56:F67,FB監視!P82))/2) -> 28765 | AW55: =IF(F55>0,(MAX(E55:E63)+MIN(F55:F63))/2,(MAX(E56:E63,FB監視!P82)+MIN(F56:F63,FB監視!P82))/2) -> 28765 | AX55: =(#REF!+#REF!)/2 ->  | AY55: =(MAX(#REF!)+MIN(#REF!))/2 ->  | AZ55: =#REF! ->  | BA55: 31163.33333 | BB55: 30656.66667 | BC55: 30403.33333 | BD55: 29896.66667 | BE55: 29643.33333 | BF55: 29136.66667 | BG55: 28883.33333 | BH55: 520 | BI55: 0 | BJ55: 94.35028249 | BK55: 74.11545624 | BN55: 0.04998581963 | BO55: 0.02069819746 | BP55: UP | BQ55: 3020 | BR55: 0 | BU55: 152022.6667 | BV55: 0 | BW55: 1 | CC55: =$CF55+3*STDEVP($G55:$G67) -> 31716.43157 | CD55: =$CF55+2*STDEVP($G55:$G67) -> 30620.18515 | CE55: =$CF55+STDEVP($G55:$G67) -> 29523.93873 | CF55: =AVERAGE(G55:G67) -> 28427.69231 | CG55: =$CF55-STDEVP($G55:$G67) -> 27331.44589 | CH55: =$CF55-2*STDEVP($G55:$G67) -> 26235.19947 | CI55: =$CF55-3*STDEVP($G55:$G67) -> 25138.95305 | CJ55: 0.6995515695 | CK55: 1.022421525 | CL55: 1.904932735 | CM55: 0.7156950673 | CN55: 2.263758663 | CO55: 0 | CP55: 240 | CR55: N | CS55: N | CU55: -390 | CV55: -990 | CZ55: =IF(F55>0,(MAX(E55:E67)+MIN(F55:F67))/2,(MAX(FB監視!D55,E56:E67)+MIN(FB監視!D55,F56:F67))/2) -> 28765 | DA55: =IF(F55>0,(MAX(E55:E63)+MIN(F55:F63))/2,(MAX(FB監視!D55,E56:E62)+MIN(FB監視!D55,F56:F62))/2) -> 28765 | DB55: =(#REF!+#REF!)/2 ->  | DC55: =(MAX(#REF!)+MIN(#REF!))/2 ->  | DD55: 29388
A56: 2021-09-13 | B56: 2021-09-17 | C56: 38 | D56: 30100 | E56: 30620 | F56: 30020 | G56: 30350 | H56: 155824 | U56: 29150 | V56: 28238 | W56: 28290.90909 | X56: =AVERAGE(G56:G67) -> 28284.16667 | Y56: =AVERAGE(G56:G67) -> 28284.16667 | Z56: =AVERAGE(G56:G67) -> 28284.16667 | AA56: =AVERAGE(G56:G67) -> 28284.16667 | AB56: =AVERAGE(G56:G67) -> 28284.16667 | AC56: 600 | AD56: 790 | AE56: -60 | AF56: 250 | AG56: 30620 | AH56: 26910 | AI56: =MAX(AG56:AG67) -> 30620 | AJ56: =MIN(F56:F67) -> 26910 | AK56: =MAX(E56:E67) -> 30620 | AL56: =MIN(F56:F67) -> 26910 | AM56: 1 | AN56: 4 | AO56: L | AP56: 4 | AQ56: 0 | AT56: 190 | AV56: =IF(F56>0,(MAX(E56:E67)+MIN(F56:F67))/2,(MAX(E57:E67,FB監視!P83)+MIN(F57:F67,FB監視!P83))/2) -> 28765 | AW56: =IF(F56>0,(MAX(E56:E64)+MIN(F56:F64))/2,(MAX(E57:E64,FB監視!P83)+MIN(F57:F64,FB監視!P83))/2) -> 28765 | AX56: =(#REF!+#REF!)/2 ->  | AY56: =(MAX(#REF!)+MIN(#REF!))/2 ->  | AZ56: =#REF! ->  | BA56: 31240 | BB56: 30930 | BC56: 30640 | BD56: 30330 | BE56: 30040 | BF56: 29730 | BG56: 29440 | BH56: 250 | BI56: 0 | BJ56: 77.31481481 | BK56: 71.84115523 | BN56: 0.04107142857 | BO56: 0.01953304164 | BP56: UP | BQ56: 3430 | BR56: 0 | BU56: 161656.6667 | BV56: 1 | BW56: 0 | CC56: =$CF56+3*STDEVP($G56:$G67) -> 31334.89916 | CD56: =$CF56+2*STDEVP($G56:$G67) -> 30317.98833 | CE56: =$CF56+STDEVP($G56:$G67) -> 29301.0775 | CF56: =AVERAGE(G56:G67) -> 28284.16667 | CG56: =$CF56-STDEVP($G56:$G67) -> 27267.25584 | CH56: =$CF56-2*STDEVP($G56:$G67) -> 26250.345 | CI56: =$CF56-3*STDEVP($G56:$G67) -> 25233.43417 | CJ56: 0.3164556962 | CK56: 0.7594936709 | CL56: 2.673417722 | CM56: 1.518987342 | CN56: 2.606444189 | CO56: 270 | CP56: 80 | CR56: N | CS56: N | CU56: 630 | CV56: -150 | CZ56: =IF(F56>0,(MAX(E56:E67)+MIN(F56:F67))/2,(MAX(FB監視!D56,E57:E67)+MIN(FB監視!D56,F57:F67))/2) -> 28765 | DA56: =IF(F56>0,(MAX(E56:E64)+MIN(F56:F64))/2,(MAX(FB監視!D56,E57:E63)+MIN(FB監視!D56,F57:F63))/2) -> 28765 | DB56: =(#REF!+#REF!)/2 ->  | DC56: =(MAX(#REF!)+MIN(#REF!))/2 ->  | DD56: 28814
A57: 2021-09-06 | B57: 2021-09-10 | C57: 37 | D57: 29610 | E57: 30250 | F57: 29470 | G57: 30160 | H57: 278365 | U57: 28678 | V57: 27790 | W57: 28096.36364 | X57: =AVERAGE(G57:G67) -> 28096.36364 | Y57: =AVERAGE(G57:G67) -> 28096.36364 | Z57: =AVERAGE(G57:G67) -> 28096.36364 | AA57: =AVERAGE(G57:G67) -> 28096.36364 | AB57: =AVERAGE(G57:G67) -> 28096.36364 | AC57: 780 | AD57: 790 | AE57: 450 | AF57: 550 | AG57: 30250 | AH57: 26910 | AI57: =MAX(AG57:AG67) -> 30250 | AJ57: =MIN(F57:F67) -> 26910 | AK57: =MAX(E57:E67) -> 30250 | AL57: =MIN(F57:F67) -> 26910 | AM57: 1 | AN57: 3 | AO57: L | AP57: 3 | AQ57: 0 | AT57: 1000 | AV57: =IF(F57>0,(MAX(E57:E67)+MIN(F57:F67))/2,(MAX(E58:E67,FB監視!P84)+MIN(F58:F67,FB監視!P84))/2) -> 28580 | AW57: =IF(F57>0,(MAX(E57:E65)+MIN(F57:F65))/2,(MAX(E58:E65,FB監視!P84)+MIN(F58:F65,FB監視!P84))/2) -> 28580 | AX57: =(#REF!+#REF!)/2 ->  | AY57: =(MAX(#REF!)+MIN(#REF!))/2 ->  | AZ57: =#REF! ->  | BA57: 31230 | BB57: 30740 | BC57: 30450 | BD57: 29960 | BE57: 29670 | BF57: 29180 | BG57: 28890 | BH57: 550 | BI57: 0 | BJ57: 77.10280374 | BK57: 67.31793961 | BN57: 0.0242874491 | BQ57: 3340 | BR57: 0 | BU57: 144982.6667 | BV57: 1 | BW57: 0 | CC57: =$CF57+3*STDEVP($G57:$G67) -> 30615.07346 | CD57: =$CF57+2*STDEVP($G57:$G67) -> 29775.50352 | CE57: =$CF57+STDEVP($G57:$G67) -> 28935.93358 | CF57: =AVERAGE(G57:G67) -> 28096.36364 | CG57: =$CF57-STDEVP($G57:$G67) -> 27256.7937 | CH57: =$CF57-2*STDEVP($G57:$G67) -> 26417.22375 | CI57: =$CF57-3*STDEVP($G57:$G67) -> 25577.65381 | CJ57: 0.6962025316 | CK57: 0.9873417722 | CL57: 3 | CM57: 1.875949367 | CN57: 2.612197929 | CO57: 90 | CP57: 140 | CR57: N | CS57: N | CT57: H | CU57: 2010 | CV57: 420 | CZ57: =IF(F57>0,(MAX(E57:E67)+MIN(F57:F67))/2,(MAX(FB監視!D57,E58:E67)+MIN(FB監視!D57,F58:F67))/2) -> 28580 | DA57: =IF(F57>0,(MAX(E57:E65)+MIN(F57:F65))/2,(MAX(FB監視!D57,E58:E64)+MIN(FB監視!D57,F58:F64))/2) -> 28580 | DB57: =(#REF!+#REF!)/2 ->  | DC57: =(MAX(#REF!)+MIN(#REF!))/2 ->  | DD57: 28282
A58: 2021-08-30 | B58: 2021-09-03 | C58: 36 | D58: 27900 | E58: 29190 | F58: 27600 | G58: 29160 | H58: 187117 | U58: 28208 | V58: 27380 | W58: =AVERAGE(G58:G67) -> 27890 | X58: =AVERAGE(G58:G67) -> 27890 | Y58: =AVERAGE(G58:G67) -> 27890 | Z58: =AVERAGE(G58:G67) -> 27890 | AA58: =AVERAGE(G58:G67) -> 27890 | AB58: =AVERAGE(G58:G67) -> 27890 | AC58: 1590 | AD58: 690 | AE58: 260 | AF58: 1260 | AG58: 29190 | AH58: 26910 | AI58: =MAX(AG58:AG67) -> 29190 | AJ58: =MIN(F58:F67) -> 26910 | AK58: =MAX(E58:E67) -> 29190 | AL58: =MIN(F58:F67) -> 26910 | AM58: 1 | AN58: 2 | AO58: L | AP58: 2 | AQ58: 0 | AT58: 1520 | AV58: =IF(F58>0,(MAX(E58:E67)+MIN(F58:F67))/2,(MAX(E59:E67,FB監視!P85)+MIN(F59:F67,FB監視!P85))/2) -> 28050 | AW58: =IF(F58>0,(MAX(E58:E66)+MIN(F58:F66))/2,(MAX(E59:E66,FB監視!P85)+MIN(F59:F66,FB監視!P85))/2) -> 28050 | AX58: =(#REF!+#REF!)/2 ->  | AY58: =(MAX(#REF!)+MIN(#REF!))/2 ->  | AZ58: =#REF! ->  | BA58: 31290 | BB58: 30240 | BC58: 29700 | BD58: 28650 | BE58: 28110 | BF58: 27060 | BG58: 26520 | BH58: 1260 | BI58: 0 | BJ58: 74.00530504 | BK58: 60.25917927 | BO58: 0 | BQ58: 2280 | BR58: 0 | BU58: 118086.6667 | BV58: 1 | BW58: 0 | CC58: =$CF58+3*STDEVP($G58:$G67) -> 29552.01083 | CD58: =$CF58+2*STDEVP($G58:$G67) -> 28998.00722 | CE58: =$CF58+STDEVP($G58:$G67) -> 28444.00361 | CF58: =AVERAGE(G58:G67) -> 27890 | CG58: =$CF58-STDEVP($G58:$G67) -> 27335.99639 | CH58: =$CF58-2*STDEVP($G58:$G67) -> 26781.99278 | CI58: =$CF58-3*STDEVP($G58:$G67) -> 26227.98917 | CJ58: 1.826086957 | CK58: 2.304347826 | CL58: 2.579710145 | CM58: 1.379710145 | CN58: 1.84057971 | CO58: 30 | CP58: 300 | CR58: N | CS58: N | CU58: 710 | CV58: 20 | CZ58: =IF(F58>0,(MAX(E58:E67)+MIN(F58:F67))/2,(MAX(FB監視!D58,E59:E67)+MIN(FB監視!D58,F59:F67))/2) -> 28050 | DA58: =IF(F58>0,(MAX(E58:E66)+MIN(F58:F66))/2,(MAX(FB監視!D58,E59:E65)+MIN(FB監視!D58,F59:F65))/2) -> 28050 | DB58: =(#REF!+#REF!)/2 ->  | DC58: =(MAX(#REF!)+MIN(#REF!))/2 ->  | DD58: 27676
A59: 2021-08-23 | B59: 2021-08-27 | C59: 35 | D59: 27230 | E59: 27880 | F59: 27190 | G59: 27640 | H59: 105802 | U59: 28000 | V59: 27310 | W59: =AVERAGE(G59:G67) -> 27748.88889 | X59: =AVERAGE(G59:G67) -> 27748.88889 | Y59: =AVERAGE(G59:G67) -> 27748.88889 | Z59: =AVERAGE(G59:G67) -> 27748.88889 | AA59: =AVERAGE(G59:G67) -> 27748.88889 | AB59: =AVERAGE(G59:G67) -> 27748.88889 | AC59: 690 | AD59: 690 | AE59: 220 | AF59: 410 | AG59: 28260 | AH59: 26910 | AI59: =MAX(AG59:AG67) -> 28840 | AJ59: =MIN(F59:F67) -> 26910 | AK59: =MAX(E59:E67) -> 28840 | AL59: =MIN(F59:F67) -> 26910 | AM59: 3 | AN59: 1 | AO59: S | AP59: 1 | AQ59: 0 | AT59: 630 | AV59: =IF(F59>0,(MAX(E59:E67)+MIN(F59:F67))/2,(MAX(E60:E67,FB監視!P86)+MIN(F60:F67,FB監視!P86))/2) -> 27875 | AW59: =IF(F59>0,(MAX(E59:E67)+MIN(F59:F67))/2,(MAX(E60:E67,FB監視!P86)+MIN(F60:F67,FB監視!P86))/2) -> 27875 | AX59: =(#REF!+#REF!)/2 ->  | AY59: =(MAX(#REF!)+MIN(#REF!))/2 ->  | AZ59: =#REF! ->  | BA59: 28640 | BB59: 28260 | BC59: 27950 | BD59: 27570 | BE59: 27260 | BF59: 26880 | BG59: 26570 | BH59: 410 | BI59: 0 | BJ59: 51.62601626 | BN59: 0 | BQ59: 1350 | BR59: 0 | BU59: 118086.6667 | BV59: 1 | BW59: 0 | CC59: =$CF59+3*STDEVP($G59:$G67) -> 28878.97246 | CD59: =$CF59+2*STDEVP($G59:$G67) -> 28502.27794 | CE59: =$CF59+STDEVP($G59:$G67) -> 28125.58341 | CF59: =AVERAGE(G59:G67) -> 27748.88889 | CG59: =$CF59-STDEVP($G59:$G67) -> 27372.19436 | CH59: =$CF59-2*STDEVP($G59:$G67) -> 26995.49984 | CI59: =$CF59-3*STDEVP($G59:$G67) -> 26618.80531 | CJ59: 0.5942028986 | CK59: 1 | CL59: 0.4782608696 | CM59: -0.5217391304 | CN59: -0.1578099839 | CO59: 240 | CP59: 40 | CR59: N | CS59: N | CU59: 320 | CV59: -580 | CZ59: =IF(F59>0,(MAX(E59:E67)+MIN(F59:F67))/2,(MAX(FB監視!D59,E60:E67)+MIN(FB監視!D59,F60:F67))/2) -> 27875 | DA59: =IF(F59>0,(MAX(E59:E67)+MIN(F59:F67))/2,(MAX(FB監視!D59,E60:E66)+MIN(FB監視!D59,F60:F66))/2) -> 27875 | DB59: =(#REF!+#REF!)/2 ->  | DC59: =(MAX(#REF!)+MIN(#REF!))/2 ->  | DD59: 27484
A60: 2021-08-16 | B60: 2021-08-20 | C60: 34 | D60: 27800 | E60: 27810 | F60: 26910 | G60: 27010 | H60: 142029 | U60: 27998 | V60: 27326 | W60: =AVERAGE(G60:G67) -> 27762.5 | X60: =AVERAGE(G60:G67) -> 27762.5 | Y60: =AVERAGE(G60:G67) -> 27762.5 | Z60: =AVERAGE(G60:G67) -> 27762.5 | AA60: =AVERAGE(G60:G67) -> 27762.5 | AB60: =AVERAGE(G60:G67) -> 27762.5 | AC60: =IF(E60>F60,E60-F60,(E60-F60)*(-1)) -> 900 | AD60: 660 | AE60: =D60-G61 -> -190 | AF60: =G60-D60 -> -790 | AG60: 28260 | AH60: 26910 | AI60: =MAX(AG60:AG67) -> 28840 | AJ60: =MIN(F60:F67) -> 26910 | AK60: =MAX(E60:E67) -> 28840 | AL60: =MIN(F60:F67) -> 26910 | AM60: =IF(U60>0,IF(E60>U60,1,AM61+1),"") -> 2 | AN60: =IF(V60>0,IF(F60<V60,1,AN61+1),"") -> 1 | AO60: =IF(W60>0,IF(G60>W60,"L","S"),"") -> S | AP60: =IF((G60-D60)>0,AP61+1,0) -> 0 | AQ60: =IF((G60-D60)<0,AQ61+1,0) -> 1 | AR60: =IF(W60>0,IF(G60>U60,IF(V60>W60,"L",""),""),"") ->  | AS60: =IF(W60>0,IF(G60<V60,IF(U60<W60,"S",""),""),"") ->  | AT60: =IF(G60>0,IF(G60-G61>0,G60-G61,""),"") ->  | AU60: =IF(G60>0,IF(G60-G61<0,ABS(G60-G61),""),"") -> 980 | AV60: =IF(F60>0,(MAX(E60:E67)+MIN(F60:F67))/2,(MAX(E61:E67,FB監視!P87)+MIN(F61:F67,FB監視!P87))/2) -> 27875 | AW60: =IF(F60>0,(MAX(E60:E67)+MIN(F60:F67))/2,(MAX(E61:E67,FB監視!P87)+MIN(F61:F67,FB監視!P87))/2) -> 27875 | AX60: =(#REF!+#REF!)/2 ->  | AY60: =(MAX(#REF!)+MIN(#REF!))/2 ->  | AZ60: =#REF! ->  | BA60: =2*BD60-2*F60+E60 -> 28476.66667 | BB60: =BD60+E60-F60 -> 28143.33333 | BC60: =2*BD60-F60 -> 27576.66667 | BD60: =SUM(E60:G60)/3 -> 27243.33333 | BE60: =2*BD60-E60 -> 26676.66667 | BF60: =BD60-E60+F60 -> 26343.33333 | BG60: =2*BD60-2*E60+F60 -> 25776.66667 | BH60: =IF(G60>D60,G60-D60,0) -> 0 | BI60: =IF(D60>G60,D60-G60,0) -> 790 | BJ60: 29.09090909 | BK60: =(SUM(AT60:AT67)/(SUM(AU60:AU67)+SUM(AT60:AT67)))*100 ->  | BN60: =IF(U60>U61,IF(U61>U62,IF(U62>U63,U60/U63-1,""),),IF(U60<U61,IF(U61<U62,IF(U62<U63,U60/U63-1,""),""),"")) -> -0.01678606546 | BO60: =IF(W60>W61,IF(W61>W62,IF(W62>W63,W60/W63-1,""),),IF(W60<W61,IF(W61<W62,IF(W62<W63,W60/W63-1,""),""),"")) ->  | BP60: =IF(BN60<>"",IF(BO60<>"",IF(BN60>0.5%,IF(BO60>0.25%,"UP",""),IF(BN60<-0.5%,IF(BO60<-0.25%,"DW",""),"")),""),"") ->  | BQ60: 1350 | BR60: =IF(AND(E60<=E61,F60>=F61),1,0) -> 0 | BU60: 120108.6667 | BV60: =IF(G60>G61,IF(B60=B61,BV61+1,1),0) -> 0 | BW60: =IF(G60<G61,IF(B60=B61,BW61+1,1),0) -> 1 | BX60: =BX61+((G60-BX61)*2/(1+5)) ->  | BY60: =BY61+((G60-BY61)*2/(1+20)) ->  | BZ60: =BX60-BY60 ->  | CA60: =AVERAGE(BZ60:BZ67) ->  | CB60: =BZ60-CA60 ->  | CC60: =$CF60+3*STDEVP($G60:$G67) -> 28954.85848 | CD60: =$CF60+2*STDEVP($G60:$G67) -> 28557.40565 | CE60: =$CF60+STDEVP($G60:$G67) -> 28159.95283 | CF60: =AVERAGE(G60:G67) -> 27762.5 | CG60: =$CF60-STDEVP($G60:$G67) -> 27365.04717 | CH60: =$CF60-2*STDEVP($G60:$G67) -> 26967.59435 | CI60: =$CF60-3*STDEVP($G60:$G67) -> 26570.14152 | CJ60: =(G60-D60)/AD60 -> -1.196969697 | CK60: =(E60-F60)/AD60 -> 1.363636364 | CL60: =(G60-V60)/AD60 -> -0.4787878788 | CM60: =(G60-U60)/AD60 -> -1.496969697 | CN60: =(G60-W60)/AD60 -> -1.140151515 | CO60: =IF(CJ60>=0,(E60-G60),(E60-D60)) -> 10 | CP60: =IF(CJ60>=0,(D60-F60),(G60-F60)) -> 100 | CQ60: =IF(AND(G60>AX60,G60>AY60),"L",IF(AND(G60<AX60,G60<AY60),"S","I")) ->  | CR60: =IF(AND(CS60="L",D60>AW60),"L",IF(AND(CS60="S",D60<AW60),"S","N")) -> N | CS60: =IF(AW60>AV60,"L",IF(AW60<AV60,"S","N")) -> N | CU60: =(D60-F61) -> 20 | CV60: =(D60-E61) -> -460 | CY60: =IF(AND(CJ61>=0,D60>G61,G60<D61),"D",IF(AND(CJ61<=0,D60<G61,G60>D61),"U","")) ->  | CZ60: =IF(F60>0,(MAX(E60:E67)+MIN(F60:F67))/2,(MAX(FB監視!D60,E61:E67)+MIN(FB監視!D60,F61:F67))/2) -> 27875 | DA60: =IF(F60>0,(MAX(E60:E67)+MIN(F60:F67))/2,(MAX(FB監視!D60,E61:E67)+MIN(FB監視!D60,F61:F67))/2) -> 27875 | DB60: =(#REF!+#REF!)/2 ->  | DC60: =(MAX(#REF!)+MIN(#REF!))/2 ->  | DD60: 27708
A61: 2021-08-10 | B61: 2021-08-13 | C61: 33 | D61: 27900 | E61: 28260 | F61: 27780 | G61: 27990 | H61: 80416 | U61: 28204 | V61: 27510 | W61: =AVERAGE(G61:G67) -> 27870 | X61: =AVERAGE(G61:G67) -> 27870 | Y61: =AVERAGE(G61:G67) -> 27870 | Z61: =AVERAGE(G61:G67) -> 27870 | AA61: =AVERAGE(G61:G67) -> 27870 | AB61: =AVERAGE(G61:G67) -> 27870 | AC61: 480 | AD61: 660 | AE61: 60 | AF61: 90 | AG61: 28840 | AH61: 27250 | AI61: =MAX(AG61:AG67) -> 28840 | AJ61: =MIN(F61:F67) -> 27250 | AK61: =MAX(E61:E67) -> 28840 | AL61: =MIN(F61:F67) -> 27250 | AM61: 1 | AN61: 2 | AO61: L | AP61: 2 | AQ61: 0 | AT61: 150 | AV61: =IF(F61>0,(MAX(E61:E67)+MIN(F61:F67))/2,(MAX(E62:E67,FB監視!P88)+MIN(F62:F67,FB監視!P88))/2) -> 28045 | AW61: =IF(F61>0,(MAX(E61:E67)+MIN(F61:F67))/2,(MAX(E62:E67,FB監視!P88)+MIN(F62:F67,FB監視!P88))/2) -> 28045 | AX61: =(#REF!+#REF!)/2 ->  | AY61: =(MAX(#REF!)+MIN(#REF!))/2 ->  | AZ61: =#REF! ->  | BA61: 28720 | BB61: 28490 | BC61: 28240 | BD61: 28010 | BE61: 27760 | BF61: 27530 | BG61: 27280 | BH61: 90 | BI61: 0 | BJ61: 42.66666667 | BK61: =(SUM(AT61:AT67)/(SUM(AU61:AU67)+SUM(AT61:AT67)))*100 ->  | BN61: -0.01237853454 | BO61: 0 | BQ61: 1010 | BR61: 0 | BU61: 119323 | BV61: 1 | BW61: 0 | CA61: =AVERAGE(BZ61:BZ67) ->  | CC61: =$CF61+3*STDEVP($G61:$G67) -> 28760.37713 | CD61: =$CF61+2*STDEVP($G61:$G67) -> 28463.58475 | CE61: =$CF61+STDEVP($G61:$G67) -> 28166.79238 | CF61: =AVERAGE(G61:G67) -> 27870 | CG61: =$CF61-STDEVP($G61:$G67) -> 27573.20762 | CH61: =$CF61-2*STDEVP($G61:$G67) -> 27276.41525 | CI61: =$CF61-3*STDEVP($G61:$G67) -> 26979.62287 | CJ61: 0.1363636364 | CK61: 0.7272727273 | CL61: 0.7272727273 | CM61: -0.3242424242 | CN61: 0.1818181818 | CO61: 270 | CP61: 120 | CR61: N | CS61: N | CU61: 480 | CV61: 0 | CZ61: =IF(F61>0,(MAX(E61:E67)+MIN(F61:F67))/2,(MAX(FB監視!D61,E62:E67)+MIN(FB監視!D61,F62:F67))/2) -> 28045 | DA61: =IF(F61>0,(MAX(E61:E67)+MIN(F61:F67))/2,(MAX(FB監視!D61,E62:E67)+MIN(FB監視!D61,F62:F67))/2) -> 28045 | DB61: =(#REF!+#REF!)/2 ->  | DC61: =(MAX(#REF!)+MIN(#REF!))/2 ->  | DD61: 27716
A62: 2021-08-02 | B62: 2021-08-06 | C62: 32 | D62: 27460 | E62: 27900 | F62: 27420 | G62: 27840 | H62: 106429 | U62: 28304 | V62: 27430 | W62: =AVERAGE(G62:G67) -> 27850 | X62: =AVERAGE(G62:G67) -> 27850 | Y62: =AVERAGE(G62:G67) -> 27850 | Z62: =AVERAGE(G62:G67) -> 27850 | AA62: =AVERAGE(G62:G67) -> 27850 | AB62: =AVERAGE(G62:G67) -> 27850 | AC62: 480 | AD62: 836.6666667 | AE62: 110 | AF62: 380 | AG62: 28840 | AH62: 27250 | AI62: =MAX(AG62:AG67) -> 28840 | AJ62: =MIN(F62:F67) -> 27250 | AK62: =MAX(E62:E67) -> 28840 | AL62: =MIN(F62:F67) -> 27250 | AM62: 4 | AN62: 1 | AO62: S | AP62: 1 | AQ62: 0 | AT62: 490 | AV62: =IF(F62>0,(MAX(E62:E67)+MIN(F62:F67))/2,(MAX(E63:E67,FB監視!P89)+MIN(F63:F67,FB監視!P89))/2) -> 28045 | AW62: =IF(F62>0,(MAX(E62:E67)+MIN(F62:F67))/2,(MAX(E63:E67,FB監視!P89)+MIN(F63:F67,FB監視!P89))/2) -> 28045 | AX62: =(#REF!+#REF!)/2 ->  | AY62: =(MAX(#REF!)+MIN(#REF!))/2 ->  | AZ62: =#REF! ->  | BA62: 28500 | BB62: 28200 | BC62: 28020 | BD62: 27720 | BE62: 27540 | BF62: 27240 | BG62: 27060 | BH62: 380 | BI62: 0 | BJ62: 36.2962963 | BK62: =(SUM(AT62:AT67)/(SUM(AU62:AU67)+SUM(AT62:AT67)))*100 ->  | BN62: -0.01676702177 | BO62: -0.009484291642 | BP62: DW | BQ62: 1590 | BR62: 1 | BU62: 136054 | BV62: 1 | BW62: 0 | CA62: =AVERAGE(BZ62:BZ67) ->  | CC62: =$CF62+3*STDEVP($G62:$G67) -> 28798.52517 | CD62: =$CF62+2*STDEVP($G62:$G67) -> 28482.35011 | CE62: =$CF62+STDEVP($G62:$G67) -> 28166.17506 | CF62: =AVERAGE(G62:G67) -> 27850 | CG62: =$CF62-STDEVP($G62:$G67) -> 27533.82494 | CH62: =$CF62-2*STDEVP($G62:$G67) -> 27217.64989 | CI62: =$CF62-3*STDEVP($G62:$G67) -> 26901.47483 | CJ62: 0.4541832669 | CK62: 0.5737051793 | CL62: 0.4900398406 | CM62: -0.5545816733 | CN62: -0.01195219124 | CO62: 60 | CP62: 40 | CR62: N | CS62: N | CU62: 210 | CV62: -690 | CZ62: =IF(F62>0,(MAX(E62:E67)+MIN(F62:F67))/2,(MAX(FB監視!D62,E63:E67)+MIN(FB監視!D62,F63:F67))/2) -> 28045 | DA62: =IF(F62>0,(MAX(E62:E67)+MIN(F62:F67))/2,(MAX(FB監視!D62,E63:E67)+MIN(FB監視!D62,F63:F67))/2) -> 28045 | DB62: =(#REF!+#REF!)/2 ->  | DC62: =(MAX(#REF!)+MIN(#REF!))/2 ->  | DD62: 27702
A63: 2021-07-26 | B63: 2021-07-30 | C63: 31 | D63: 28100 | E63: 28150 | F63: 27250 | G63: 27350 | H63: 156622 | U63: 28476 | V63: 27422 | W63: =AVERAGE(G63:G67) -> 27852 | X63: =AVERAGE(G63:G67) -> 27852 | Y63: =AVERAGE(G63:G67) -> 27852 | Z63: =AVERAGE(G63:G67) -> 27852 | AA63: =AVERAGE(G63:G67) -> 27852 | AB63: =AVERAGE(G63:G67) -> 27852 | AC63: 900 | AD63: 1096.666667 | AE63: 540 | AF63: -750 | AG63: 28840 | AH63: 27250 | AI63: =MAX(AG63:AG67) -> 28840 | AJ63: =MIN(F63:F67) -> 27250 | AK63: =MAX(E63:E67) -> 28840 | AL63: =MIN(F63:F67) -> 27250 | AM63: 3 | AN63: 1 | AO63: S | AP63: 0 | AQ63: 1 | AU63: 210 | AV63: =IF(F63>0,(MAX(E63:E67)+MIN(F63:F67))/2,(MAX(E64:E67,FB監視!P90)+MIN(F64:F67,FB監視!P90))/2) -> 28045 | AW63: =IF(F63>0,(MAX(E63:E67)+MIN(F63:F67))/2,(MAX(E64:E67,FB監視!P90)+MIN(F64:F67,FB監視!P90))/2) -> 28045 | AX63: =(#REF!+#REF!)/2 ->  | AY63: =(MAX(#REF!)+MIN(#REF!))/2 ->  | AZ63: =#REF! ->  | BA63: 28816.66667 | BB63: 28483.33333 | BC63: 27916.66667 | BD63: 27583.33333 | BE63: 27016.66667 | BF63: 26683.33333 | BG63: 26116.66667 | BH63: 0 | BI63: 750 | BK63: =(SUM(AT63:AT67)/(SUM(AU63:AU67)+SUM(AT63:AT67)))*100 ->  | BO63: -0.01269053527 | BQ63: 1590 | BR63: 0 | BU63: 154149 | BV63: 0 | BW63: 1 | CA63: =AVERAGE(BZ63:BZ67) ->  | CC63: =$CF63+3*STDEVP($G63:$G67) -> 28890.95332 | CD63: =$CF63+2*STDEVP($G63:$G67) -> 28544.63555 | CE63: =$CF63+STDEVP($G63:$G67) -> 28198.31777 | CF63: =AVERAGE(G63:G67) -> 27852 | CG63: =$CF63-STDEVP($G63:$G67) -> 27505.68223 | CH63: =$CF63-2*STDEVP($G63:$G67) -> 27159.36445 | CI63: =$CF63-3*STDEVP($G63:$G67) -> 26813.04668 | CJ63: -0.6838905775 | CK63: 0.820668693 | CL63: -0.06565349544 | CM63: -1.02674772 | CN63: -0.4577507599 | CO63: 50 | CP63: 100 | CR63: N | CS63: N | CU63: 830 | CV63: 230 | CY63: D | CZ63: =IF(F63>0,(MAX(E63:E67)+MIN(F63:F67))/2,(MAX(FB監視!D63,E64:E67)+MIN(FB監視!D63,F64:F67))/2) -> 28045 | DA63: =IF(F63>0,(MAX(E63:E67)+MIN(F63:F67))/2,(MAX(FB監視!D63,E64:E67)+MIN(FB監視!D63,F64:F67))/2) -> 28045 | DB63: =(#REF!+#REF!)/2 ->  | DC63: =(MAX(#REF!)+MIN(#REF!))/2 ->  | DD63: 28002
A64: 2021-07-19 | B64: 2021-07-21 | C64: 30 | D64: 27560 | E64: 27870 | F64: 27270 | G64: 27560 | H64: 111868 | U64: =AVERAGE(E64:E67) -> 28557.5 | V64: =AVERAGE(F64:F67) -> 27465 | W64: =AVERAGE(G64:G67) -> 27977.5 | X64: =AVERAGE(G64:G67) -> 27977.5 | Y64: =AVERAGE(G64:G67) -> 27977.5 | Z64: =AVERAGE(G64:G67) -> 27977.5 | AA64: =AVERAGE(G64:G67) -> 27977.5 | AB64: =AVERAGE(G64:G67) -> 27977.5 | AC64: 600 | AD64: =(SUM(AC64:AC67)-MAX(AC64:AC67)-MIN(AC64:AC67))/3 -> 796.6666667 | AE64: -370 | AF64: 0 | AG64: =MAX(E64:E67) -> 28840 | AH64: =MIN(F64:F67) -> 27270 | AI64: =MAX(AG64:AG67) -> 28840 | AJ64: =MIN(F64:F67) -> 27270 | AK64: =MAX(E64:E67) -> 28840 | AL64: =MIN(F64:F67) -> 27270 | AM64: 2 | AN64: 1 | AO64: S | AP64: 0 | AQ64: 0 | AU64: 370 | AV64: =IF(F64>0,(MAX(E64:E67)+MIN(F64:F67))/2,(MAX(E65:E67,FB監視!P91)+MIN(F65:F67,FB監視!P91))/2) -> 28055 | AW64: =IF(F64>0,(MAX(E64:E67)+MIN(F64:F67))/2,(MAX(E65:E67,FB監視!P91)+MIN(F65:F67,FB監視!P91))/2) -> 28055 | AX64: =(#REF!+#REF!)/2 ->  | AY64: =(MAX(#REF!)+MIN(#REF!))/2 ->  | AZ64: =#REF! ->  | BA64: 28463.33333 | BB64: 28166.66667 | BC64: 27863.33333 | BD64: 27566.66667 | BE64: 27263.33333 | BF64: 26966.66667 | BG64: 26663.33333 | BH64: 0 | BI64: 0 | BJ64: =(SUM(AT64:AT67)/(SUM(AU64:AU67)+SUM(AT64:AT67)))*100 ->  | BK64: =(SUM(AT64:AT67)/(SUM(AU64:AU67)+SUM(AT64:AT67)))*100 ->  | BQ64: 1570 | BR64: 0 | BU64: =(SUM(H64:H67)-MAX(H64:H67)-MIN(H64:H67))/3 -> 101941.6667 | BV64: 0 | BW64: 1 | CA64: =AVERAGE(BZ64:BZ67) ->  | CC64: =$CF64+3*STDEVP($G64:$G67) -> 28777.82415 | CD64: =$CF64+2*STDEVP($G64:$G67) -> 28511.04944 | CE64: =$CF64+STDEVP($G64:$G67) -> 28244.27472 | CF64: =AVERAGE(G64:G67) -> 27977.5 | CG64: =$CF64-STDEVP($G64:$G67) -> 27710.72528 | CH64: =$CF64-2*STDEVP($G64:$G67) -> 27443.95056 | CI64: =$CF64-3*STDEVP($G64:$G67) -> 27177.17585 | CJ64: 0 | CK64: 0.7531380753 | CL64: 0.1192468619 | CM64: -1.25209205 | CN64: -0.5240585774 | CO64: 310 | CP64: 290 | CR64: N | CS64: N | CT64: =IF(D64>MAX(E65:E67),"H",IF(D64<MIN(F65:F67),"L","")) ->  | CU64: -270 | CV64: -1280 | CZ64: =IF(F64>0,(MAX(E64:E67)+MIN(F64:F67))/2,(MAX(FB監視!D64,E65:E67)+MIN(FB監視!D64,F65:F67))/2) -> 28055 | DA64: =IF(F64>0,(MAX(E64:E67)+MIN(F64:F67))/2,(MAX(FB監視!D64,E65:E67)+MIN(FB監視!D64,F65:F67))/2) -> 28055 | DB64: =(#REF!+#REF!)/2 ->  | DC64: =(MAX(#REF!)+MIN(#REF!))/2 ->  | DD64: =AVERAGE(D64,G65:G67) -> 27977.5
A65: 2021-07-12 | B65: 2021-07-16 | C65: 29 | D65: 28490 | E65: 28840 | F65: 27830 | G65: 27930 | H65: 139672 | U65: =AVERAGE(E65:E67) -> 28786.66667 | V65: =AVERAGE(F65:F67) -> 27530 | W65: =AVERAGE(G65:G67) -> 28116.66667 | X65: =AVERAGE(G65:G67) -> 28116.66667 | Y65: =AVERAGE(G65:G67) -> 28116.66667 | Z65: =AVERAGE(G65:G67) -> 28116.66667 | AA65: =AVERAGE(G65:G67) -> 28116.66667 | AB65: =AVERAGE(G65:G67) -> 28116.66667 | AC65: 1010 | AD65: =(SUM(AC65:AC67)-MAX(AC65:AC67)-MIN(AC65:AC67))/3 -> 460 | AE65: 280 | AF65: -560 | AG65: =MAX(E65:E67) -> 28840 | AH65: =MIN(F65:F67) -> 27380 | AI65: =MAX(AG65:AG67) -> 28840 | AJ65: =MIN(F65:F67) -> 27380 | AK65: =MAX(E65:E67) -> 28840 | AL65: =MIN(F65:F67) -> 27380 | AM65: 1 | AO65: S | AP65: 0 | AU65: 280 | AV65: =IF(F65>0,(MAX(E65:E67)+MIN(F65:F67))/2,(MAX(E66:E67,FB監視!P92)+MIN(F66:F67,FB監視!P92))/2) -> 28110 | AW65: =IF(F65>0,(MAX(E65:E67)+MIN(F65:F67))/2,(MAX(E66:E67,FB監視!P92)+MIN(F66:F67,FB監視!P92))/2) -> 28110 | AX65: =(#REF!+#REF!)/2 ->  | AY65: =(MAX(#REF!)+MIN(#REF!))/2 ->  | AZ65: =#REF! ->  | BA65: 29580 | BB65: 29210 | BC65: 28570 | BD65: 28200 | BE65: 27560 | BF65: 27190 | BG65: 26550 | BH65: 0 | BI65: 560 | BJ65: =(SUM(AT65:AT67)/(SUM(AU65:AU67)+SUM(AT65:AT67)))*100 ->  | BK65: =(SUM(AT65:AT67)/(SUM(AU65:AU67)+SUM(AT65:AT67)))*100 ->  | BN65: =IF(U65>U66,IF(U66>U67,IF(U67>#REF!,U65/#REF!-1,""),),IF(U65<U66,IF(U66<U67,IF(U67<#REF!,U65/#REF!-1,""),""),"")) -> 0 | BO65: =IF(W65>W66,IF(W66>W67,IF(W67>#REF!,W65/#REF!-1,""),),IF(W65<W66,IF(W66<W67,IF(W67<#REF!,W65/#REF!-1,""),""),"")) ->  | BQ65: =(MAX(E65:E67)-MIN(F65:F67)) -> 1460 | BR65: 0 | BU65: =(SUM(H65:H67)-MAX(H65:H67)-MIN(H65:H67))/3 -> 55384.33333 | BV65: 0 | BW65: 1 | CA65: =AVERAGE(BZ65:BZ67) ->  | CC65: =$CF65+3*STDEVP($G65:$G67) -> 28512.64646 | CD65: =$CF65+2*STDEVP($G65:$G67) -> 28380.6532 | CE65: =$CF65+STDEVP($G65:$G67) -> 28248.65993 | CF65: =AVERAGE(G65:G67) -> 28116.66667 | CG65: =$CF65-STDEVP($G65:$G67) -> 27984.6734 | CH65: =$CF65-2*STDEVP($G65:$G67) -> 27852.68014 | CI65: =$CF65-3*STDEVP($G65:$G67) -> 27720.68687 | CJ65: -1.217391304 | CK65: 2.195652174 | CL65: 0.8695652174 | CM65: -1.862318841 | CN65: -0.4057971014 | CO65: 350 | CP65: 100 | CR65: N | CS65: N | CT65: =IF(D65>MAX(E66:E67),"H",IF(D65<MIN(F66:F67),"L","")) ->  | CU65: 1110 | CV65: -270 | CZ65: =IF(F65>0,(MAX(E65:E67)+MIN(F65:F67))/2,(MAX(FB監視!D65,E66:E67)+MIN(FB監視!D65,F66:F67))/2) -> 28110 | DA65: =IF(F65>0,(MAX(E65:E67)+MIN(F65:F67))/2,(MAX(FB監視!D65,E66:E67)+MIN(FB監視!D65,F66:F67))/2) -> 28110 | DB65: =(#REF!+#REF!)/2 ->  | DC65: =(MAX(#REF!)+MIN(#REF!))/2 ->  | DD65: =AVERAGE(D65,G66:G67) -> 28303.33333
A66: 2021-07-05 | B66: 2021-07-09 | C66: 28 | D66: 28730 | E66: 28760 | F66: 27380 | G66: 28210 | H66: 166153 | U66: =AVERAGE(E66:E67) -> 28760 | V66: =AVERAGE(F66:F67) -> 27380 | W66: =AVERAGE(G66:G67) -> 28210 | X66: =AVERAGE(G66:G67) -> 28210 | Y66: =AVERAGE(G66:G67) -> 28210 | Z66: =AVERAGE(G66:G67) -> 28210 | AA66: =AVERAGE(G66:G67) -> 28210 | AB66: =AVERAGE(G66:G67) -> 28210 | AC66: 1380 | AD66: =(SUM(AC66:AC67)-MAX(AC66:AC67)-MIN(AC66:AC67))/3 -> 0 | AE66: 520 | AF66: -520 | AG66: =MAX(E66:E67) -> 28760 | AH66: =MIN(F66:F67) -> 27380 | AI66: =MAX(AG66:AG67) -> 28760 | AJ66: =MIN(F66:F67) -> 27380 | AK66: =MAX(E66:E67) -> 28760 | AL66: =MIN(F66:F67) -> 27380 | AO66: S | AP66: 0 | AV66: =IF(F66>0,(MAX(E66:E67)+MIN(F66:F67))/2,(MAX(E67:E67,FB監視!P93)+MIN(F67:F67,FB監視!P93))/2) -> 28070 | AW66: =IF(F66>0,(MAX(E66:E67)+MIN(F66:F67))/2,(MAX(E67:E67,FB監視!P93)+MIN(F67:F67,FB監視!P93))/2) -> 28070 | AX66: =(#REF!+#REF!)/2 ->  | AY66: =(MAX(#REF!)+MIN(#REF!))/2 ->  | AZ66: =#REF! ->  | BA66: 30233.33333 | BB66: 29496.66667 | BC66: 28853.33333 | BD66: 28116.66667 | BE66: 27473.33333 | BF66: 26736.66667 | BG66: 26093.33333 | BH66: 0 | BI66: 520 | BJ66: =(SUM(AT66:AT67)/(SUM(AU66:AU67)+SUM(AT66:AT67)))*100 ->  | BK66: =(SUM(AT66:AT67)/(SUM(AU66:AU67)+SUM(AT66:AT67)))*100 ->  | BN66: =IF(U66>U67,IF(U67>#REF!,IF(#REF!>#REF!,U66/#REF!-1,""),),IF(U66<U67,IF(U67<#REF!,IF(#REF!<#REF!,U66/#REF!-1,""),""),"")) ->  | BO66: =IF(W66>W67,IF(W67>#REF!,IF(#REF!>#REF!,W66/#REF!-1,""),),IF(W66<W67,IF(W67<#REF!,IF(#REF!<#REF!,W66/#REF!-1,""),""),"")) ->  | BQ66: =(MAX(E66:E67)-MIN(F66:F67)) -> 1380 | BR66: 1 | BU66: =(SUM(H66:H67)-MAX(H66:H67)-MIN(H66:H67))/3 -> 0 | BV66: 0 | BW66: 0 | CA66: =AVERAGE(BZ66:BZ67) ->  | CC66: =$CF66+3*STDEVP($G66:$G67) -> 28210 | CD66: =$CF66+2*STDEVP($G66:$G67) -> 28210 | CE66: =$CF66+STDEVP($G66:$G67) -> 28210 | CF66: =AVERAGE(G66:G67) -> 28210 | CG66: =$CF66-STDEVP($G66:$G67) -> 28210 | CH66: =$CF66-2*STDEVP($G66:$G67) -> 28210 | CI66: =$CF66-3*STDEVP($G66:$G67) -> 28210 | CR66: N | CS66: N | CT66: =IF(D66>MAX(E67:E67),"H",IF(D66<MIN(F67:F67),"L","")) ->  | CU66: 1350 | CV66: -30 | CY66: D | CZ66: =IF(F66>0,(MAX(E66:E67)+MIN(F66:F67))/2,(MAX(FB監視!D66,E67:E67)+MIN(FB監視!D66,F67:F67))/2) -> 28070 | DA66: =IF(F66>0,(MAX(E66:E67)+MIN(F66:F67))/2,(MAX(FB監視!D66,E67:E67)+MIN(FB監視!D66,F67:F67))/2) -> 28070 | DB66: =(#REF!+#REF!)/2 ->  | DC66: =(MAX(#REF!)+MIN(#REF!))/2 ->  | DD66: =AVERAGE(D66,G67:G67) -> 28470
A67: 2021-07-05 | B67: 2021-07-09 | C67: 28 | D67: 28730 | E67: 28760 | F67: 27380 | G67: 28210 | H67: 242737 | U67: =AVERAGE(E67:E67) -> 28760 | V67: =AVERAGE(F67:F67) -> 27380 | W67: =AVERAGE(G67:G67) -> 28210 | X67: =AVERAGE(G67:G67) -> 28210 | Y67: =AVERAGE(G67:G67) -> 28210 | Z67: =AVERAGE(G67:G67) -> 28210 | AA67: =AVERAGE(G67:G67) -> 28210 | AB67: =AVERAGE(G67:G67) -> 28210 | AC67: 1380 | AD67: =(SUM(AC67:AC67)-MAX(AC67:AC67)-MIN(AC67:AC67))/3 -> -460 | AE67: =D67-#REF! ->  | AF67: -520 | AG67: =MAX(E67:E67) -> 28760 | AH67: =MIN(F67:F67) -> 27380 | AI67: =MAX(AG67:AG67) -> 28760 | AJ67: =MIN(F67:F67) -> 27380 | AK67: =MAX(E67:E67) -> 28760 | AL67: =MIN(F67:F67) -> 27380 | AM67: =IF(U67>0,IF(E67>U67,1,#REF!+1),"") ->  | AN67: =IF(V67>0,IF(F67<V67,1,#REF!+1),"") ->  | AO67: S | AP67: =IF((G67-D67)>0,#REF!+1,0) -> 0 | AQ67: =IF((G67-D67)<0,#REF!+1,0) ->  | AT67: =IF(G67>0,IF(G67-#REF!>0,G67-#REF!,""),"") ->  | AU67: =IF(G67>0,IF(G67-#REF!<0,ABS(G67-#REF!),""),"") ->  | AV67: =IF(F67>0,(MAX(E67:E67)+MIN(F67:F67))/2,(MAX(#REF!,FB監視!P94)+MIN(#REF!,FB監視!P94))/2) -> 28070 | AW67: =IF(F67>0,(MAX(E67:E67)+MIN(F67:F67))/2,(MAX(#REF!,FB監視!P94)+MIN(#REF!,FB監視!P94))/2) -> 28070 | AX67: =(#REF!+#REF!)/2 ->  | AY67: =(MAX(#REF!)+MIN(#REF!))/2 ->  | AZ67: =#REF! ->  | BA67: 30233.33333 | BB67: 29496.66667 | BC67: 28853.33333 | BD67: 28116.66667 | BE67: 27473.33333 | BF67: 26736.66667 | BG67: 26093.33333 | BH67: 0 | BI67: 520 | BJ67: =(SUM(AT67:AT67)/(SUM(AU67:AU67)+SUM(AT67:AT67)))*100 ->  | BK67: =(SUM(AT67:AT67)/(SUM(AU67:AU67)+SUM(AT67:AT67)))*100 ->  | BN67: =IF(U67>#REF!,IF(#REF!>#REF!,IF(#REF!>#REF!,U67/#REF!-1,""),),IF(U67<#REF!,IF(#REF!<#REF!,IF(#REF!<#REF!,U67/#REF!-1,""),""),"")) ->  | BO67: =IF(W67>#REF!,IF(#REF!>#REF!,IF(#REF!>#REF!,W67/#REF!-1,""),),IF(W67<#REF!,IF(#REF!<#REF!,IF(#REF!<#REF!,W67/#REF!-1,""),""),"")) ->  | BQ67: =(MAX(E67:E67)-MIN(F67:F67)) -> 1380 | BR67: =IF(AND(E67<=#REF!,F67>=#REF!),1,0) ->  | BU67: =(SUM(H67:H67)-MAX(H67:H67)-MIN(H67:H67))/3 -> -80912.33333 | BV67: =IF(G67>#REF!,IF(B67=#REF!,#REF!+1,1),0) ->  | BW67: =IF(G67<#REF!,IF(B67=#REF!,#REF!+1,1),0) ->  | BX67: =#REF!+((G67-#REF!)*2/(1+5)) ->  | BY67: =#REF!+((G67-#REF!)*2/(1+20)) ->  | CA67: =AVERAGE(BZ67:BZ67) ->  | CC67: =$CF67+3*STDEVP($G67:$G67) -> 28210 | CD67: =$CF67+2*STDEVP($G67:$G67) -> 28210 | CE67: =$CF67+STDEVP($G67:$G67) -> 28210 | CF67: =AVERAGE(G67:G67) -> 28210 | CG67: =$CF67-STDEVP($G67:$G67) -> 28210 | CH67: =$CF67-2*STDEVP($G67:$G67) -> 28210 | CI67: =$CF67-3*STDEVP($G67:$G67) -> 28210 | CJ67: 1.130434783 | CK67: -3 | CL67: -1.804347826 | CM67: 1.195652174 | CN67: 0 | CO67: 550 | CP67: 1350 | CR67: N | CS67: N | CT67: =IF(D67>MAX(#REF!),"H",IF(D67<MIN(#REF!),"L","")) ->  | CU67: =(D67-#REF!) ->  | CV67: =(D67-#REF!) ->  | CY67: =IF(AND(#REF!>=0,D67>#REF!,G67<#REF!),"D",IF(AND(#REF!<=0,D67<#REF!,G67>#REF!),"U","")) ->  | CZ67: =IF(F67>0,(MAX(E67:E67)+MIN(F67:F67))/2,(MAX(FB監視!D67,#REF!)+MIN(FB監視!D67,#REF!))/2) -> 28070 | DA67: =IF(F67>0,(MAX(E67:E67)+MIN(F67:F67))/2,(MAX(FB監視!D67,#REF!)+MIN(FB監視!D67,#REF!))/2) -> 28070 | DB67: =(#REF!+#REF!)/2 ->  | DC67: =(MAX(#REF!)+MIN(#REF!))/2 ->  | DD67: =AVERAGE(D67,#REF!) -> 

Sheet 週足作成
A1: 年 | B1: 週番号 | C1: 日付 | D1: 始値 | E1: 高値 | F1: 安値 | G1: 終値 | H1: 出来高
A2: =YEAR(C2) -> 2022 | B2: =WEEKNUM(C2) -> 45 | C2: =TODAY() -> 2022-11-02 | D2: =IF(FB監視!D5=" ",FB監視!D4,IF(FB監視!D5=0,FB監視!D4,FB監視!D5)) -> 28450 | E2: =IF(FB監視!D5=" ",FB監視!D4,IF(FB監視!D5=0,FB監視!D4,FB監視!D6)) -> 28380.92618 | F2: =IF(FB監視!D5=" ",FB監視!D4,IF(FB監視!D5=0,FB監視!D4,FB監視!D7)) -> 28000 | G2: =FB監視!D4 -> 29370 | H2: =FB監視!R10 -> 0
A3: =YEAR(C3) -> 2020 | B3: =WEEKNUM(C3) -> 47 | C3: 2020-11-20 | D3: 25480 | E3: 25550 | F3: 25420 | G3: 25540 | H3: 51544
A4: 2020 | B4: 47 | C4: 2020-11-19 | D4: 25670 | E4: 25680 | F4: 25470 | G4: 25540 | H4: 61273
A5: 2020 | B5: 47 | C5: 2020-11-18 | D5: 25920 | E5: 25940 | F5: 25650 | G5: 25700 | H5: 66599
A6: 2020 | B6: 47 | C6: 2020-11-17 | D6: 26140 | E6: 26140 | F6: 25860 | G6: 26040 | H6: 78079
A7: 2020 | B7: 47 | C7: 2020-11-16 | D7: 25700 | E7: 25990 | F7: 25670 | G7: 25990 | H7: 69436
A8: 2020 | B8: 46 | C8: 2020-11-13 | D8: 25390 | E8: 25460 | F8: 25210 | G8: 25340 | H8: 72339
A9: 2020 | B9: 46 | C9: 2020-11-12 | D9: 25500 | E9: 25590 | F9: 25320 | G9: 25360 | H9: 89255
A10: 2020 | B10: 46 | C10: 2020-11-11 | D10: 25290 | E10: 25420 | F10: 25150 | G10: 25420 | H10: 95095
A11: 2020 | B11: 46 | C11: 2020-11-10 | D11: 25380 | E11: 25390 | F11: 24820 | G11: 24950 | H11: 158541
A12: 2020 | B12: 46 | C12: 2020-11-09 | D12: 24580 | E12: 24970 | F12: 24540 | G12: 24860 | H12: 107074
A13: 2020 | B13: 45 | C13: 2020-11-06 | D13: 24120 | E13: 24390 | F13: 24080 | G13: 24340 | H13: 92826
A14: 2020 | B14: 45 | C14: 2020-11-05 | D14: 23890 | E14: 24180 | F14: 23860 | G14: 24120 | H14: 115623
A15: 2020 | B15: 45 | C15: 2020-11-04 | D15: 23800 | E15: 23850 | F15: 23530 | G15: 23740 | H15: 118033
A16: 2020 | B16: 45 | C16: 2020-11-02 | D16: 23070 | E16: 23350 | F16: 23050 | G16: 23280 | H16: 87618
A17: 2020 | B17: 44 | C17: 2020-10-30 | D17: 23230 | E17: 23300 | F17: 22880 | G17: 22880 | H17: 86399
A18: 2020 | B18: 44 | C18: 2020-10-29 | D18: 23100 | E18: 23360 | F18: 23090 | G18: 23320 | H18: 80108
A19: 2020 | B19: 44 | C19: 2020-10-28 | D19: 23340 | E19: 23440 | F19: 23330 | G19: 23420 | H19: 43909
A20: 2020 | B20: 44 | C20: 2020-10-27 | D20: 23400 | E20: 23490 | F20: 23230 | G20: 23490 | H20: 50436
A21: 2020 | B21: 44 | C21: 2020-10-26 | D21: 23530 | E21: 23560 | F21: 23460 | G21: 23480 | H21: 28692
A22: 2020 | B22: 43 | C22: 2020-10-23 | D22: 23570 | E22: 23570 | F22: 23450 | G22: 23490 | H22: 42910
A23: 2020 | B23: 43 | C23: 2020-10-22 | D23: 23520 | E23: 23540 | F23: 23420 | G23: 23500 | H23: 44805
A24: 2020 | B24: 43 | C24: 2020-10-21 | D24: 23590 | E24: 23680 | F24: 23580 | G24: 23650 | H24: 42492
A25: 2020 | B25: 43 | C25: 2020-10-20 | D25: 23560 | E25: 23660 | F25: 23500 | G25: 23530 | H25: 42958
A26: 2020 | B26: 43 | C26: 2020-10-19 | D26: 23540 | E26: 23690 | F26: 23530 | G26: 23660 | H26: 53238
A27: 2020 | B27: 42 | C27: 2020-10-16 | D27: 23520 | E27: 23530 | F27: 23370 | G27: 23410 | H27: 60251
A28: 2020 | B28: 42 | C28: 2020-10-15 | D28: 23550 | E28: 23570 | F28: 23440 | G28: 23500 | H28: 45693
A29: 2020 | B29: 42 | C29: 2020-10-14 | D29: 23530 | E29: 23650 | F29: 23500 | G29: 23590 | H29: 42630
A30: 2020 | B30: 42 | C30: 2020-10-13 | D30: 23610 | E30: 23640 | F30: 23480 | G30: 23590 | H30: 37769
A31: 2020 | B31: 42 | C31: 2020-10-12 | D31: 23570 | E31: 23590 | F31: 23480 | G31: 23520 | H31: 42806
A32: 2020 | B32: 41 | C32: 2020-10-09 | D32: 23660 | E32: 23720 | F32: 23530 | G32: 23570 | H32: 56813
A33: 2020 | B33: 41 | C33: 2020-10-08 | D33: 23470 | E33: 23690 | F33: 23460 | G33: 23630 | H33: 57822
A34: 2020 | B34: 41 | C34: 2020-10-07 | D34: 23280 | E34: 23410 | F34: 23250 | G34: 23410 | H34: 58214
A35: 2020 | B35: 41 | C35: 2020-10-06 | D35: 23390 | E35: 23420 | F35: 23320 | G35: 23400 | H35: 44111
A36: 2020 | B36: 41 | C36: 2020-10-05 | D36: 23260 | E36: 23360 | F36: 23220 | G36: 23280 | H36: 68224
A37: 2020 | B37: 40 | C37: 2020-10-02 | D37: 23320 | E37: 23350 | F37: 22940 | G37: 22980 | H37: 90227
A38: 2020 | B38: 40 | C38: 2020-10-01 | D38: 23350 | E38: 23360 | F38: 23210 | G38: 23310 | H38: 53599
A39: 2020 | B39: 40 | C39: 2020-09-30 | D39: 23440 | E39: 23520 | F39: 23120 | G39: 23180 | H39: 72923
A40: 2020 | B40: 40 | C40: 2020-09-29 | D40: 23390 | E40: 23610 | F40: 23330 | G40: 23520 | H40: 62263
A41: 2020 | B41: 40 | C41: 2020-09-28 | D41: 23200 | E41: 23350 | F41: 23150 | G41: 23290 | H41: 61369
A42: 2020 | B42: 39 | C42: 2020-09-25 | D42: 23060 | E42: 23130 | F42: 23000 | G42: 23030 | H42: 64154
A43: 2020 | B43: 39 | C43: 2020-09-24 | D43: 23040 | E43: 23080 | F43: 22880 | G43: 22920 | H43: 68496
A44: 2020 | B44: 39 | C44: 2020-09-23 | D44: 23030 | E44: 23210 | F44: 22990 | G44: 23190 | H44: 59210
A45: 2020 | B45: 38 | C45: 2020-09-18 | D45: 23220 | E45: 23240 | F45: 23130 | G45: 23220 | H45: 46664
A46: 2020 | B46: 38 | C46: 2020-09-17 | D46: 23260 | E46: 23280 | F46: 23100 | G46: 23100 | H46: 44565
A47: 2020 | B47: 38 | C47: 2020-09-16 | D47: 23260 | E47: 23340 | F47: 23240 | G47: 23300 | H47: 26311
A48: 2020 | B48: 38 | C48: 2020-09-15 | D48: 23280 | E48: 23320 | F48: 23190 | G48: 23320 | H48: 37432
A49: 2020 | B49: 38 | C49: 2020-09-14 | D49: 23300 | E49: 23420 | F49: 23300 | G49: 23420 | H49: 44134
A50: 2020 | B50: 37 | C50: 2020-09-11 | D50: 23050 | E50: 23250 | F50: 22990 | G50: 23200 | H50: 64740
A51: 2020 | B51: 37 | C51: 2020-09-10 | D51: 23180 | E51: 23260 | F51: 23133 | G51: 23250 | H51: 47152
A52: 2020 | B52: 37 | C52: 2020-09-09 | D52: 22960 | E52: 23053 | F52: 22880 | G52: 22970 | H52: 126948
A53: 2020 | B53: 37 | C53: 2020-09-08 | D53: 23240 | E53: 23310 | F53: 23130 | G53: 23250 | H53: 104004
A54: 2020 | B54: 37 | C54: 2020-09-07 | D54: 23190 | E54: 23220 | F54: 23050 | G54: 23050 | H54: 133731
A55: 2020 | B55: 36 | C55: 2020-09-04 | D55: 23060 | E55: 23260 | F55: 23020 | G55: 23170 | H55: 98747
A56: 2020 | B56: 36 | C56: 2020-09-03 | D56: 23610 | E56: 23620 | F56: 23420 | G56: 23470 | H56: 69256
A57: 2020 | B57: 36 | C57: 2020-09-02 | D57: 23240 | E57: 23300 | F57: 23170 | G57: 23300 | H57: 43454
A58: 2020 | B58: 36 | C58: 2020-09-01 | D58: 23120 | E58: 23210 | F58: 23050 | G58: 23160 | H58: 47700
A59: 2020 | B59: 36 | C59: 2020-08-31 | D59: 23120 | E59: 23370 | F59: 23110 | G59: 23160 | H59: 69822
A60: 2020 | B60: 35 | C60: 2020-08-28 | D60: 23230 | E60: 23390 | F60: 22560 | G60: 22890 | H60: 98023
A61: 2020 | B61: 35 | C61: 2020-08-27 | D61: 23280 | E61: 23340 | F61: 23140 | G61: 23210 | H61: 35127
A62: 2020 | B62: 35 | C62: 2020-08-26 | D62: 23300 | E62: 23330 | F62: 23190 | G62: 23220 | H62: 41641
A63: 2020 | B63: 35 | C63: 2020-08-25 | D63: 23160 | E63: 23430 | F63: 23160 | G63: 23330 | H63: 50867
A64: 2020 | B64: 35 | C64: 2020-08-24 | D64: 22940 | E64: 23000 | F64: 22850 | G64: 23000 | H64: 42577
A65: 2020 | B65: 34 | C65: 2020-08-21 | D65: 23010 | E65: 23130 | F65: 22880 | G65: 22900 | H65: 46263
A66: 2020 | B66: 34 | C66: 2020-08-20 | D66: 23010 | E66: 23070 | F66: 22830 | G66: 22880 | H66: 42151
A67: =YEAR(C67) -> 2020 | B67: =WEEKNUM(C67) -> 34 | C67: 2020-08-19 | D67: 23030 | E67: 23140 | F67: 22950 | G67: 23130 | H67: 38490
A68: 2020 | B68: 34 | C68: 2020-08-18 | D68: 23130 | E68: 23130 | F68: 22930 | G68: 23060 | H68: 37995
A69: 2020 | B69: 34 | C69: 2020-08-17 | D69: 23120 | E69: 23230 | F69: 23050 | G69: 23080 | H69: 46804
A70: 2020 | B70: 33 | C70: 2020-08-14 | D70: 23270 | E70: 23340 | F70: 23210 | G70: 23280 | H70: 48704
A71: 2020 | B71: 33 | C71: 2020-08-13 | D71: 23150 | E71: 23300 | F71: 23130 | G71: 23210 | H71: 67146
A72: 2020 | B72: 33 | C72: 2020-08-12 | D72: 22750 | E72: 22900 | F72: 22650 | G72: 22900 | H72: 67438
A73: 2020 | B73: 33 | C73: 2020-08-11 | D73: 22490 | E73: 22750 | F73: 22490 | G73: 22720 | H73: 53796
A74: 2020 | B74: 32 | C74: 2020-08-07 | D74: 22420 | E74: 22420 | F74: 22190 | G74: 22340 | H74: 51557
A75: 2020 | B75: 32 | C75: 2020-08-06 | D75: 22480 | E75: 22570 | F75: 22340 | G75: 22390 | H75: 45922
A76: 2020 | B76: 32 | C76: 2020-08-05 | D76: 22460 | E76: 22530 | F76: 22340 | G76: 22510 | H76: 55839
A77: 2020 | B77: 32 | C77: 2020-08-04 | D77: 22360 | E77: 22590 | F77: 22360 | G77: 22590 | H77: 55732
A78: 2020 | B78: 32 | C78: 2020-08-03 | D78: 21970 | E78: 22200 | F78: 21900 | G78: 22090 | H78: 80895
A79: 2020 | B79: 31 | C79: 2020-07-31 | D79: 22300 | E79: 22300 | F79: 21680 | G79: 21760 | H79: 107209
A80: 2020 | B80: 31 | C80: 2020-07-30 | D80: 22520 | E80: 22530 | F80: 22310 | G80: 22320 | H80: 39040
A81: 2020 | B81: 31 | C81: 2020-07-29 | D81: 22530 | E81: 22550 | F81: 22340 | G81: 22340 | H81: 48915
A82: 2020 | B82: 31 | C82: 2020-07-28 | D82: 22660 | E82: 22820 | F82: 22610 | G82: 22610 | H82: 42869
A83: 2020 | B83: 31 | C83: 2020-07-27 | D83: 22510 | E83: 22720 | F83: 22390 | G83: 22690 | H83: 58387
A84: 2020 | B84: 30 | C84: 2020-07-22 | D84: 22760 | E84: 22830 | F84: 22700 | G84: 22750 | H84: 44615
A85: 2020 | B85: 30 | C85: 2020-07-21 | D85: 22800 | E85: 22910 | F85: 22780 | G85: 22840 | H85: 43171
A86: 2020 | B86: 30 | C86: 2020-07-20 | D86: 22730 | E86: 22770 | F86: 22550 | G86: 22650 | H86: 27711
A87: 2020 | B87: 29 | C87: 2020-07-17 | D87: 22790 | E87: 22830 | F87: 22620 | G87: 22670 | H87: 59670
A88: 2020 | B88: 29 | C88: 2020-07-16 | D88: 22900 | E88: 22910 | F88: 22710 | G88: 22760 | H88: 72016
A89: 2020 | B89: 29 | C89: 2020-07-15 | D89: 22790 | E89: 22950 | F89: 22780 | G89: 22950 | H89: 71182
A90: 2020 | B90: 29 | C90: 2020-07-14 | D90: 22630 | E90: 22650 | F90: 22510 | G90: 22570 | H90: 58225
A91: 2020 | B91: 29 | C91: 2020-07-13 | D91: 22610 | E91: 22780 | F91: 22540 | G91: 22710 | H91: 69412
A92: 2020 | B92: 28 | C92: 2020-07-10 | D92: 22450 | E92: 22540 | F92: 22270 | G92: 22290 | H92: 70600
A93: 2020 | B93: 28 | C93: 2020-07-09 | D93: 22500 | E93: 22670 | F93: 22440 | G93: 22480 | H93: 61030
A94: 2020 | B94: 28 | C94: 2020-07-08 | D94: 22450 | E94: 22640 | F94: 22370 | G94: 22370 | H94: 60855
A95: 2020 | B95: 28 | C95: 2020-07-07 | D95: 22650 | E95: 22710 | F95: 22470 | G95: 22540 | H95: 63115
A96: 2020 | B96: 28 | C96: 2020-07-06 | D96: 22260 | E96: 22710 | F96: 22240 | G96: 22650 | H96: 51958
A97: 2020 | B97: 27 | C97: 2020-07-03 | D97: 22300 | E97: 22310 | F97: 22120 | G97: 22280 | H97: 50111
A98: 2020 | B98: 27 | C98: 2020-07-02 | D98: 22185 | E98: 22250 | F98: 22040 | G98: 22180 | H98: 59468
A99: 2020 | B99: 27 | C99: 2020-07-01 | D99: 22310 | E99: 22330 | F99: 22010 | G99: 22090 | H99: 57534
A100: 2020 | B100: 27 | C100: 2020-06-30 | D100: 22390 | E100: 22420 | F100: 22210 | G100: 22230 | H100: 56219
A101: 2020 | B101: 27 | C101: 2020-06-29 | D101: 22240 | E101: 22250 | F101: 21920 | G101: 22050 | H101: 72471
A102: 2020 | B102: 26 | C102: 2020-06-26 | D102: 22450 | E102: 22530 | F102: 22340 | G102: 22420 | H102: 57738
A103: 2020 | B103: 26 | C103: 2020-06-25 | D103: 22210 | E103: 22360 | F103: 22090 | G103: 22220 | H103: 78513
A104: 2020 | B104: 26 | C104: 2020-06-24 | D104: 22530 | E104: 22610 | F104: 22420 | G104: 22460 | H104: 53795
A105: 2020 | B105: 26 | C105: 2020-06-23 | D105: 22620 | E105: 22690 | F105: 22180 | G105: 22560 | H105: 87787
A106: 2020 | B106: 26 | C106: 2020-06-22 | D106: 22280 | E106: 22510 | F106: 22240 | G106: 22320 | H106: 52868
A107: 2020 | B107: 25 | C107: 2020-06-19 | D107: 22440 | E107: 22510 | F107: 22290 | G107: 22510 | H107: 58510
A108: 2020 | B108: 25 | C108: 2020-06-18 | D108: 22320 | E108: 22370 | F108: 22050 | G108: 22200 | H108: 77024
A109: 2020 | B109: 25 | C109: 2020-06-17 | D109: 22380 | E109: 22530 | F109: 22180 | G109: 22530 | H109: 89857
A110: 2020 | B110: 25 | C110: 2020-06-16 | D110: 22040 | E110: 22570 | F110: 22000 | G110: 22360 | H110: 139142
A111: 2020 | B111: 25 | C111: 2020-06-15 | D111: 22000 | E111: 22190 | F111: 21330 | G111: 21350 | H111: 135022
A112: 2020 | B112: 24 | C112: 2020-06-12 | D112: 21830 | E112: 22290 | F112: 21700 | G112: 22140 | H112: 125551
A113: 2020 | B113: 24 | C113: 2020-06-11 | D113: 22750 | E113: 22940 | F113: 22459 | G113: 22550 | H113: 64907
A114: 2020 | B114: 24 | C114: 2020-06-10 | D114: 22890 | E114: 23180 | F114: 22880 | G114: 23020 | H114: 105667
A115: 2020 | B115: 24 | C115: 2020-06-09 | D115: 23180 | E115: 23190 | F115: 22930 | G115: 23110 | H115: 118590
A116: 2020 | B116: 24 | C116: 2020-06-08 | D116: 23220 | E116: 23240 | F116: 23030 | G116: 23190 | H116: 120387
A117: 2020 | B117: 23 | C117: 2020-06-05 | D117: 22680 | E117: 22900 | F117: 22560 | G117: 22870 | H117: 82768
A118: 2020 | B118: 23 | C118: 2020-06-04 | D118: 22970 | E118: 22980 | F118: 22490 | G118: 22760 | H118: 111199
A119: 2020 | B119: 23 | C119: 2020-06-03 | D119: 22720 | E119: 22830 | F119: 22460 | G119: 22730 | H119: 115235
A120: 2020 | B120: 23 | C120: 2020-06-02 | D120: 22190 | E120: 22410 | F120: 22110 | G120: 22370 | H120: 89156
A121: 2020 | B121: 23 | C121: 2020-06-01 | D121: 21870 | E121: 22170 | F121: 21860 | G121: 22120 | H121: 91236
A122: 2020 | B122: 22 | C122: 2020-05-29 | D122: 21820 | E122: 21960 | F122: 21700 | G122: 21810 | H122: 102094
A123: 2020 | B123: 22 | C123: 2020-05-28 | D123: 21640 | E123: 22030 | F123: 21570 | G123: 22030 | H123: 135101
A124: 2020 | B124: 22 | C124: 2020-05-27 | D124: 21230 | E124: 21490 | F124: 21140 | G124: 21490 | H124: 82667
A125: 2020 | B125: 22 | C125: 2020-05-26 | D125: 20980 | E125: 21330 | F125: 20920 | G125: 21280 | H125: 75546
A126: 2020 | B126: 22 | C126: 2020-05-25 | D126: 20660 | E126: 20820 | F126: 20570 | G126: 20820 | H126: 57014
A127: 2020 | B127: 21 | C127: 2020-05-22 | D127: 20540 | E127: 20610 | F127: 20320 | G127: 20360 | H127: 61341
A128: 2020 | B128: 21 | C128: 2020-05-21 | D128: 20700 | E128: 20740 | F128: 20500 | G128: 20620 | H128: 55009
A129: 2020 | B129: 21 | C129: 2020-05-20 | D129: 20450 | E129: 20680 | F129: 20420 | G129: 20550 | H129: 60399
A130: 2020 | B130: 21 | C130: 2020-05-19 | D130: 20620 | E130: 20660 | F130: 20430 | G130: 20530 | H130: 82755
A131: =YEAR(C131) -> 2020 | B131: =WEEKNUM(C131) -> 21 | C131: 2020-05-18 | D131: 20070 | E131: 20210 | F131: 19990 | G131: 20210 | H131: 60354
A132: 2020 | B132: 20 | C132: 2020-05-15 | D132: 20100 | E132: 20180 | F132: 19820 | G132: 20040 | H132: 90716
A133: 2020 | B133: 20 | C133: 2020-05-14 | D133: 20160 | E133: 20180 | F133: 19780 | G133: 19780 | H133: 83481
A134: 2020 | B134: 20 | C134: 2020-05-13 | D134: 20100 | E134: 20350 | F134: 20030 | G134: 20350 | H134: 55102
A135: 2020 | B135: 20 | C135: 2020-05-12 | D135: 20470 | E135: 20470 | F135: 20280 | G135: 20290 | H135: 59242
A136: 2020 | B136: 20 | C136: 2020-05-11 | D136: 20340 | E136: 20530 | F136: 20290 | G136: 20490 | H136: 55055
A137: 2020 | B137: 19 | C137: 2020-05-08 | D137: 19830 | E137: 20200 | F137: 19820 | G137: 20140 | H137: 66426
A138: 2020 | B138: 19 | C138: 2020-05-07 | D138: 19360 | E138: 19730 | F138: 19350 | G138: 19700 | H138: 54791
A139: 2020 | B139: 18 | C139: 2020-05-01 | D139: 19950 | E139: 19970 | F139: 19530 | G139: 19630 | H139: 79269
A140: 2020 | B140: 18 | C140: 2020-04-30 | D140: 20320 | E140: 20360 | F140: 20060 | G140: 20060 | H140: 75944
A141: 2020 | B141: 18 | C141: 2020-04-28 | D141: 19760 | E141: 19820 | F141: 19620 | G141: 19810 | H141: 45878
A142: 2020 | B142: 18 | C142: 2020-04-27 | D142: 19450 | E142: 19800 | F142: 19430 | G142: 19720 | H142: 51729
A143: 2020 | B143: 17 | C143: 2020-04-24 | D143: 19340 | E143: 19350 | F143: 19150 | G143: 19190 | H143: 51825
A144: 2020 | B144: 17 | C144: 2020-04-23 | D144: 19240 | E144: 19470 | F144: 19200 | G144: 19440 | H144: 51076
A145: 2020 | B145: 17 | C145: 2020-04-22 | D145: 19090 | E145: 19120 | F145: 18830 | G145: 19020 | H145: 69961
A146: 2020 | B146: 17 | C146: 2020-04-21 | D146: 19440 | E146: 19520 | F146: 19160 | G146: 19320 | H146: 62279
A147: 2020 | B147: 17 | C147: 2020-04-20 | D147: 19540 | E147: 19770 | F147: 19530 | G147: 19640 | H147: 49879
A148: 2020 | B148: 16 | C148: 2020-04-17 | D148: 19600 | E148: 19910 | F148: 19590 | G148: 19700 | H148: 75840
A149: 2020 | B149: 16 | C149: 2020-04-16 | D149: 19260 | E149: 19340 | F149: 19130 | G149: 19240 | H149: 54168
A150: 2020 | B150: 16 | C150: 2020-04-15 | D150: 19520 | E150: 19640 | F150: 19440 | G150: 19580 | H150: 53795
A151: 2020 | B151: 16 | C151: 2020-04-14 | D151: 19140 | E151: 19700 | F151: 19080 | G151: 19610 | H151: 59811
A152: 2020 | B152: 16 | C152: 2020-04-13 | D152: 19220 | E152: 19350 | F152: 18980 | G152: 19070 | H152: 34395
A153: 2020 | B153: 15 | C153: 2020-04-10 | D153: 19450 | E153: 19540 | F153: 19210 | G153: 19310 | H153: 68559
A154: 2020 | B154: 15 | C154: 2020-04-09 | D154: 19280 | E154: 19490 | F154: 19140 | G154: 19490 | H154: 73120
A155: 2020 | B155: 15 | C155: 2020-04-08 | D155: 19020 | E155: 19440 | F155: 18710 | G155: 18920 | H155: 113014
A156: 2020 | B156: 15 | C156: 2020-04-07 | D156: 18930 | E156: 19150 | F156: 18520 | G156: 19150 | H156: 85471
A157: 2020 | B157: 15 | C157: 2020-04-06 | D157: 17770 | E157: 18700 | F157: 17720 | G157: 18570 | H157: 93192
A158: 2020 | B158: 14 | C158: 2020-04-03 | D158: 17910 | E158: 18040 | F158: 17610 | G158: 17680 | H158: 67864
A159: 2020 | B159: 14 | C159: 2020-04-02 | D159: 17800 | E159: 18110 | F159: 17660 | G159: 17860 | H159: 94420
A160: 2020 | B160: 14 | C160: 2020-04-01 | D160: 18540 | E160: 18760 | F160: 17820 | G160: 17820 | H160: 96681
A161: 2020 | B161: 14 | C161: 2020-03-31 | D161: 19090 | E161: 19310 | F161: 18590 | G161: 18710 | H161: 52979
A162: 2020 | B162: 14 | C162: 2020-03-30 | D162: 18660 | E162: 19020 | F162: 18540 | G162: 18800 | H162: 109739
A163: 2020 | B163: 13 | C163: 2020-03-27 | D163: 19150 | E163: 19210 | F163: 18630 | G163: 19080 | H163: 40658
A164: 2020 | B164: 13 | C164: 2020-03-26 | D164: 18650 | E164: 18950 | F164: 18250 | G164: 18360 | H164: 44184
A165: 2020 | B165: 13 | C165: 2020-03-25 | D165: 18870 | E165: 19450 | F165: 18640 | G165: 19240 | H165: 47168
A166: 2020 | B166: 13 | C166: 2020-03-24 | D166: 17420 | E166: 18270 | F166: 17330 | G166: 18270 | H166: 55720
A167: 2020 | B167: 13 | C167: 2020-03-23 | D167: 16420 | E167: 16950 | F167: 16190 | G167: 16950 | H167: 60684
A168: 2020 | B168: 12 | C168: 2020-03-19 | D168: 16820 | E168: 17030 | F168: 16060 | G168: 16550 | H168: 61767
A169: 2020 | B169: 12 | C169: 2020-03-18 | D169: 16900 | E169: 17320 | F169: 16440 | G169: 16510 | H169: 60348
A170: 2020 | B170: 12 | C170: 2020-03-17 | D170: 16510 | E170: 17350 | F170: 16160 | G170: 16670 | H170: 92032
A171: 2020 | B171: 12 | C171: 2020-03-16 | D171: 17250 | E171: 17590 | F171: 16650 | G171: 16840 | H171: 52775
A172: 2020 | B172: 11 | C172: 2020-03-13 | D172: 16620 | E172: 17960 | F172: 16480 | G172: 16790 | H172: 91886
A173: 2020 | B173: 11 | C173: 2020-03-12 | D173: 19140 | E173: 19150 | F173: 18330 | G173: 18360 | H173: 37718
A174: 2020 | B174: 11 | C174: 2020-03-11 | D174: 19630 | E174: 19980 | F174: 19370 | G174: 19370 | H174: 92566
A175: 2020 | B175: 11 | C175: 2020-03-10 | D175: 19360 | E175: 19970 | F175: 18890 | G175: 19810 | H175: 111442
A176: 2020 | B176: 11 | C176: 2020-03-09 | D176: 19900 | E176: 19970 | F176: 19410 | G176: 19410 | H176: 102864
A177: 2020 | B177: 10 | C177: 2020-03-06 | D177: 20970 | E177: 21060 | F177: 20610 | G177: 20710 | H177: 56429
A178: 2020 | B178: 10 | C178: 2020-03-05 | D178: 21380 | E178: 21440 | F178: 21220 | G178: 21370 | H178: 38498
A179: 2020 | B179: 10 | C179: 2020-03-04 | D179: 20840 | E179: 21250 | F179: 20780 | G179: 21130 | H179: 52010
A180: 2020 | B180: 10 | C180: 2020-03-03 | D180: 21500 | E180: 21730 | F180: 20970 | G180: 20980 | H180: 62875
A181: 2020 | B181: 10 | C181: 2020-03-02 | D181: 20800 | E181: 21590 | F181: 20660 | G181: 21170 | H181: 99805
A182: 2020 | B182: 9 | C182: 2020-02-28 | D182: 21380 | E182: 21450 | F182: 20900 | G182: 21080 | H182: 90615
A183: 2020 | B183: 9 | C183: 2020-02-27 | D183: 22270 | E183: 22290 | F183: 21840 | G183: 21850 | H183: 63136
A184: 2020 | B184: 9 | C184: 2020-02-26 | D184: 22200 | E184: 22460 | F184: 22100 | G184: 22330 | H184: 81608
A185: 2020 | B185: 9 | C185: 2020-02-25 | D185: 22310 | E185: 22730 | F185: 22260 | G185: 22670 | H185: 67824
A186: 2020 | B186: 8 | C186: 2020-02-21 | D186: 23470 | E186: 23580 | F186: 23290 | G186: 23290 | H186: 37722
A187: 2020 | B187: 8 | C187: 2020-02-20 | D187: 23660 | E187: 23800 | F187: 23400 | G187: 23510 | H187: 55007
A188: 2020 | B188: 8 | C188: 2020-02-19 | D188: 23290 | E188: 23450 | F188: 23210 | G188: 23370 | H188: 35932
A189: 2020 | B189: 8 | C189: 2020-02-18 | D189: 23430 | E189: 23440 | F189: 23110 | G189: 23200 | H189: 41827
A190: 2020 | B190: 8 | C190: 2020-02-17 | D190: 23560 | E190: 23570 | F190: 23320 | G190: 23540 | H190: 36751
A191: 2020 | B191: 7 | C191: 2020-02-13 | D191: 23950 | E191: 23970 | F191: 23770 | G191: 23790 | H191: 31388
A192: 2020 | B192: 7 | C192: 2020-02-12 | D192: 23880 | E192: 23890 | F192: 23700 | G192: 23870 | H192: 23077
A193: 2020 | B193: 7 | C193: 2020-02-10 | D193: 23600 | E193: 23790 | F193: 23600 | G193: 23640 | H193: 34420
A194: 2020 | B194: 6 | C194: 2020-02-07 | D194: 23920 | E194: 23960 | F194: 23730 | G194: 23830 | H194: 35760
A195: =YEAR(C195) -> 2020 | B195: =WEEKNUM(C195) -> 6 | C195: 2020-02-06 | D195: 23680 | E195: 23980 | F195: 23630 | G195: 23950 | H195: 41710
A196: 2020 | B196: 6 | C196: 2020-02-05 | D196: 23330 | E196: 23390 | F196: 23210 | G196: 23360 | H196: 33893
A197: 2020 | B197: 6 | C197: 2020-02-04 | D197: 22830 | E197: 23090 | F197: 22830 | G197: 23090 | H197: 35438
A198: 2020 | B198: 6 | C198: 2020-02-03 | D198: 22780 | E198: 23000 | F198: 22710 | G198: 22890 | H198: 58223
A199: 2020 | B199: 5 | C199: 2020-01-31 | D199: 23140 | E199: 23400 | F199: 23110 | G199: 23130 | H199: 58800
A200: 2020 | B200: 5 | C200: 2020-01-30 | D200: 23260 | E200: 23290 | F200: 22860 | G200: 22970 | H200: 47627
... 7055 more rows

Sheet リアルタイム更新データ
A1: 日付 | B1: 銘柄コード | C1: 銘柄 | D1: 始値 | E1: 高値 | F1: 安値 | G1: 終値 | H1: 出来高 | U1: 高値平均 | V1: 安値平均 | W1: 20DMA | X1: 5DMA | Y1: 25DMA | Z1: 75DMA | AA1: 100DMA | AB1: 200DMA | AC1: 高安値幅 | AD1: 5日値幅平均 | AE1: ギャップ | AF1: 本体値幅 | AG1: 対前日レンジ寄り付き位置 | AH1: 対前日レンジ終値位置 | AI1: ＭＡ並び | AK1: ４０日高値 | AL1: ４０日安値 | AP1: 連続陽線 | AQ1: 連続陰線 | AT1: 前日比＋ | AU1: 前日比－ | AV1: 基準線 | AW1: 転換線 | AX1: 先行スパン上限 | AY1: 先行スパン下限 | AZ1: 遅行線 | BA1: HBOP | BB1: S2 | BC1: S1 | BD1: P | BE1: B1 | BF1: B2 | BG1: LBOP | BH1: 上昇幅 | BI1: 下落幅 | BJ1: ＲＳＩ5日 | BK1: RSI9日 | BN1: ５日ＭＡ傾き | BO1: ２０日ＭＡ傾き | BP1: 傾き判定 | BQ1: 前４日レンジ幅 | BR1: 孕み足本数 | BU1: 5日間平均出来高 | BV1: 連続上昇日数 | BW1: 連続下落日数 | BX1: 5ＥＭＡ | BY1: 20ＥＭＡ | BZ1: ＭＡＣＤ | CA1: シグナル | CB1: ＯＳＣＩ | CC1: +3σ | CD1: +2σ | CE1: +1σ | CF1: 25ＭＡ | CG1: -1σ | CH1: -2σ | CI1: -3σ | CJ1: 本体値幅 | CK1: 高安値幅 | CL1: LB乖離率 | CM1: HB乖離率 | CN1: 5DMA乖離率 | CO1: 上ヒゲ | CP1: 下ヒゲ | CQ1: 一目終値雲位置 | CR1: 一目始値位置 | CS1: 転換線・基準線位置 | CT1: 前４日ＲＢＯ | CU1: 前日安値～当日始値 | CV1: 前日高値～当日始値 | CW1: 25DMA乖離率 | CX1: 暫定１００日ＭＡ | CY1: 前日包み足 | CZ1: 暫定基準線 | DA1: 暫定転換線 | DB1: 暫定７５日ＭＡ | DC1: 暫定２００日ＭＡ | DD1: 暫定５日ＭＡ | DE1: 週番号 | DF1: +3σ乖離率 | DG1: +2σ乖離率 | DH1: +1σ乖離率 | DI1: 25ＭＡ | DJ1: -1σ乖離率 | DK1: -2σ乖離率 | DL1: -3σ乖離率 | DM1: 暫定+3σ | DN1: 暫定+2σ | DO1: 暫定+1σ | DP1: 暫定25ＭＡ | DQ1: 暫定－1σ | DR1: 暫定－2σ | DS1: 暫定－3σ | IA1: データ数 | IB1: 7759 | IC1: 1 | ID1: 2 | IE1: 3 | IF1: 4 | IG1: 5 | IH1: 6 | II1: 7 | IJ1: 8 | IK1: 9 | IL1: 10 | IM1: 11 | IN1: 12 | IO1: 13 | IP1: 14 | IQ1: 15 | IR1: 16 | IS1: 17 | IT1: 18 | IU1: 19 | IV1: 20 | IW1: 21 | IX1: 22 | IY1: 23 | IZ1: 24 | JA1: 25 | JB1: 26 | JC1: 27 | JD1: 28 | JE1: 29 | JF1: 30 | JG1: 31 | JH1: 32 | JI1: 33 | JJ1: 34 | JK1: 35 | JL1: 36 | JM1: 37 | JN1: 38 | JO1: 39 | JP1: 40 | JQ1: 41 | JR1: 42 | JS1: 43 | JT1: 44 | JU1: 45 | JV1: 46 | JW1: 47 | JX1: 48 | JY1: 49 | JZ1: 50 | KA1: 51 | KB1: 52 | KC1: 合計 | KD1: 9 | KE1: 93 | KF1: 向き | KG1: 0 | KH1: 1 | KI1: 2 | KJ1: 3 | KK1: 4 | KL1: 5 | KM1: 6 | KN1: 7 | KO1: 8 | KP1: 9 | KQ1: 10 | KR1: 11 | KS1: 12 | KT1: 13 | KU1: 14 | KV1: 15 | KW1: 16 | KX1: 17 | KY1: 18 | KZ1: 19 | LA1: 20 | LB1: 21 | LC1: 22 | LD1: 23 | LE1: 24 | LF1: 25 | LG1: 26 | LH1: 27 | LI1: 28 | LJ1: 29 | LK1: 30 | LL1: 31 | LM1: 32 | LN1: 33 | LO1: 34 | LP1: 35 | LQ1: 36 | LR1: 37 | LS1: 38 | LT1: 39 | LU1: 40 | LV1: 41 | LW1: 42 | LX1: 43 | LY1: 44 | LZ1: 45 | MA1: 46 | MB1: 47 | MC1: 48 | MD1: 49 | ME1: 50 | MF1: 51 | MG1: 52 | MH1: 合計 | MI1: 24 | MJ1: 93 | MK1: 向き | ML1: 0 | MM1: 1 | MN1: 2 | MO1: 3 | MP1: 4 | MQ1: 5 | MR1: 6 | MS1: 7 | MT1: 8 | MU1: 9 | MV1: 10 | MW1: 11 | MX1: 12 | MY1: 13 | MZ1: 14 | NA1: 15 | NB1: 16 | NC1: 17 | ND1: 18 | NE1: 19 | NF1: 20 | NG1: 21 | NH1: 22 | NI1: 23 | NJ1: 24 | NK1: 25 | NL1: 26 | NM1: 27 | NN1: 28 | NO1: 29 | NP1: 30 | NQ1: 31 | NR1: 32 | NS1: 33 | NT1: 34 | NU1: 35 | NV1: 36 | NW1: 37 | NX1: 38 | NY1: 39 | NZ1: 40 | OA1: 41 | OB1: 42 | OC1: 43 | OD1: 44 | OE1: 45 | OF1: 46 | OG1: 47 | OH1: 48 | OI1: 49 | OJ1: 50 | OK1: 51 | OL1: 52 | OM1: 合計 | ON1: 48 | OO1: 85 | OQ1: 0 | OR1: 短期トレンド転換 | OS1: 中期 | OT1: 長期 | OU1: cruz | OV1: full | OW1: rush | OX1: ２１本線傾き | OY1: 傾き基準値 | OZ1: -3 | PA1: 3 | PB1: RCI基準値 | PC1: 50 | PD1: -50 | PE1: cruz基準値 | PF1: 70
A2: 2022-11-02 | B2: 225F | C2: 日経225先物 07-06 | D2: 27600 | E2: 27690 | F2: 27550 | G2: 27640 | H2: 47706 | U2: 27538 | V2: 27340 | W2: 27073 | X2: 27438 | Y2: 26914.8 | Z2: 27551.06667 | AA2: 27288.3 | AB2: 27136.8 | AC2: 140 | AD2: 180 | AE2: -90 | AF2: 40 | AG2: I | AH2: I | AI2: L | AK2: 28450 | AL2: 25610 | AP2: 3 | AQ2: 0 | AU2: 50 | AV2: 26655 | AW2: 27285 | AX2: 27492.5 | AY2: 27710 | AZ2: 26320 | BA2: 27843.33333 | BB2: 27766.66667 | BC2: 27703.33333 | BD2: 27626.66667 | BE2: 27563.33333 | BF2: 27486.66667 | BG2: 27423.33333 | BH2: 40 | BI2: 0 | BJ2: 58.62068966 | BK2: 67.77777778 | BN2: 0.005476851176 | BO2: 0.006936566678 | BP2: UP | BQ2: 740 | BR2: 1 | BU2: 57804.33333 | BV2: 0 | BW2: 1 | BX2: 27493.49522 | BY2: 27191.02796 | BZ2: 302.4672598 | CA2: 154.7410089 | CB2: 147.726251 | CC2: 28399.48469 | CD2: 27904.5898 | CE2: 27409.6949 | CF2: 26914.8 | CG2: 26419.9051 | CH2: 25925.0102 | CI2: 25430.11531 | CJ2: 0.2222222222 | CK2: 0.7777777778 | CL2: 1.666666667 | CM2: 0.5666666667 | CN2: 0.007308248915 | CO2: 50 | CP2: 50 | CQ2: I | CR2: L | CS2: L | CU2: 80 | CV2: -100 | CW2: 0.02623733719 | CX2: 27287.9 | CZ2: 26655 | DA2: 27285 | DB2: 27550.53333 | DC2: 27136.6 | DD2: 27430 | DE2: 45 | DF2: -0.02747773856 | DG2: -0.009572713309 | DH2: 0.008332311942 | DI2: 0.02623733719 | DJ2: 0.04414236244 | DK2: 0.06204738769 | DL2: 0.07995241294 | DM2: 28391.02132 | DN2: 27898.41421 | DO2: 27405.80711 | DP2: 26913.2 | DQ2: 26420.59289 | DR2: 25927.98579 | DS2: 25435.37868
A3: 2022-11-01 | B3: 225F | C3: 日経225先物 07-06 | D3: 27620 | E3: 27700 | F3: 27520 | G3: 27690 | H3: 49846 | U3: 27518 | V3: 27310 | W3: 27036.5 | X3: 27398 | Y3: 26862 | Z3: 27535.06667 | AA3: 27293.8 | AB3: 27140.85 | AC3: 180 | AD3: 186.6666667 | AE3: 70 | AF3: 70 | AG3: H | AH3: H | AI3: L | AK3: 28450 | AL3: 25610 | AP3: 2 | AQ3: 0 | AT3: 140 | AV3: 26655 | AW3: 27280 | AX3: 27492.5 | AY3: 27710 | AZ3: 26200 | BA3: 27933.33333 | BB3: 27816.66667 | BC3: 27753.33333 | BD3: 27636.66667 | BE3: 27573.33333 | BF3: 27456.66667 | BG3: 27393.33333 | BH3: 70 | BI3: 0 | BJ3: 66.66666667 | BK3: 61.61616162 | BN3: 0.006878887669 | BO3: 0.006833500912 | BP3: UP | BQ3: 740 | BR3: 0 | BU3: 58857.33333 | BV3: 2 | BW3: 0 | BX3: 27420.24283 | BY3: 27143.76775 | BZ3: 276.4750852 | CA3: 126.94663 | CB3: 149.5284552 | CC3: 28317.07113 | CD3: 27832.04742 | CE3: 27347.02371 | CF3: 26862 | CG3: 26376.97629 | CH3: 25891.95258 | CI3: 25406.92887 | CJ3: 0.375 | CK3: 0.9642857143 | CL3: 2.035714286 | CM3: 0.9214285714 | CN3: 0.01054532322 | CO3: 10 | CP3: 100 | CQ3: I | CR3: L | CS3: L | CT3: H | CU3: 220 | CV3: 30 | CW3: 0.02990249187 | CX3: 27293.1 | CZ3: 26655 | DA3: 27280 | DB3: 27534.13333 | DC3: 27140.5 | DD3: 27384 | DE3: 45 | DF3: -0.02264612251 | DG3: -0.005129917715 | DH3: 0.01238628708 | DI3: 0.02990249187 | DJ3: 0.04741869667 | DK3: 0.06493490146 | DL3: 0.08245110626 | DM3: 28300.44746 | DN3: 27820.03164 | DO3: 27339.61582 | DP3: 26859.2 | DQ3: 26378.78418 | DR3: 25898.36836 | DS3: 25417.95254 | OM3: 0 | OX3: 63446
